Workbook

Sheet Information
A2: Trend Based Capex Forecast
A4: Purpose
A5: Calculate forecast of trend based project driver categories.
A7: Context
A8: Historical project expenditure information is listed in "Consolidated Historic Capex" sheet. Conversion (to real 15/16) and calculations are performed on this sheet.
A9: Specific projects are identified to be excluded from the trend calculation, based on either (a) project is non-repeatable; or (b) project cost exceeds 2x standard deviations above the mean.
A10: The "Category Significance Calc" sheet calculates the limit for each project category.
A11: The replacement category is all replacement expenditure, outside of what is modelled in the Repex Model.
A12: Each category has its own worksheet. The output of each goes into the capex model.

Sheet Consolidated Historic Capex
B2: Project Information
N3: Expenditure, Real 15/16, $m
D4: Nominal $ | E4: Nominal $ | F4: Nominal $ | G4: Nominal $ | H4: Nominal $ | I4: Nominal $ | J4: Nominal $ | K4: Nominal $ | N4: 08 | O4: 09 | P4: 10 | Q4: 11 | R4: 12 | S4: 13 | T4: 14 | U4: 15 | AB4: These projects appear as offsets on the subsequent worksheets.
A5: Project ID | B5: Project Description | C5: Category | D5: Actuals 07/08 | E5: Actuals 08/09 | F5: Actuals 09/10 | G5: Actuals 10/11 | H5: Actuals 11/12 | I5: Actuals 12/13 | J5: Actuals 13/14 | K5: Actuals 14/15 | L5: Sum > 0 | M5: SomeExpenditure >= 2011 | N5: Real 08 | O5: Real 09 | P5: Real 10 | Q5: Real 11 | R5: Real 12 | S5: Real 13 | T5: Real 14 | U5: Real 15 | V5: Real Sum | W5: (Project Total - Category Average)^2 | X5: Category Limit | Y5: Significant Project? (Financial Basis) | Z5: Non repeatable | AA5: Abnormal? | AB5: SomeExpenditure >= 2011 and Abnormal
A6: CP.00869 | B6: Laser Scanning of Line Routes | C6: Other | E6: 0.055643 | F6: -0.06486757 | G6: -0.14687577 | H6: 0 | I6: 0 | K6: 0 | L6: =ProjectData[[#This Row],[Real Sum]]>0.00000001 -> FALSE | M6: =OR(ProjectData[[#This Row],[Real 11]]>0,ProjectData[[#This Row],[Real 12]]>0,ProjectData[[#This Row],[Real 13]]>0,ProjectData[[#This Row],[Real 14]]>0,ProjectData[[#This Row],[Real 15]]>0) -> FALSE | N6: =ProjectData[[#This Row],[Actuals 07/08]]*VLOOKUP("Mid Year Nominal - EOY Real (2015/16)",CPI[],MATCH(N$4,CPI[#Headers],0),FALSE) -> 0 | O6: =ProjectData[[#This Row],[Actuals 08/09]]*VLOOKUP("Mid Year Nominal - EOY Real (2015/16)",CPI[],MATCH(O$4,CPI[#Headers],0),FALSE) -> 0.06655420994 | P6: =ProjectData[[#This Row],[Actuals 09/10]]*VLOOKUP("Mid Year Nominal - EOY Real (2015/16)",CPI[],MATCH(P$4,CPI[#Headers],0),FALSE) -> -0.07556453696 | Q6: =ProjectData[[#This Row],[Actuals 10/11]]*VLOOKUP("Mid Year Nominal - EOY Real (2015/16)",CPI[],MATCH(Q$4,CPI[#Headers],0),FALSE) -> -0.1659719361 | R6: =ProjectData[[#This Row],[Actuals 11/12]]*VLOOKUP("Mid Year Nominal - EOY Real (2015/16)",CPI[],MATCH(R$4,CPI[#Headers],0),FALSE) -> 0 | S6: =ProjectData[[#This Row],[Actuals 12/13]]*VLOOKUP("Mid Year Nominal - EOY Real (2015/16)",CPI[],MATCH(S$4,CPI[#Headers],0),FALSE) -> 0 | T6: =ProjectData[[#This Row],[Actuals 13/14]]*VLOOKUP("Mid Year Nominal - EOY Real (2015/16)",CPI[],MATCH(T$4,CPI[#Headers],0),FALSE) -> 0 | U6: =ProjectData[[#This Row],[Actuals 14/15]]*VLOOKUP("Mid Year Nominal - EOY Real (2015/16)",CPI[],MATCH(U$4,CPI[#Headers],0),FALSE) -> 0 | V6: =SUM(ProjectData[[#This Row],[Real 08]:[Real 15]]) -> -0.1749822631 | W6: =(ProjectData[[#This Row],[Real Sum]]-VLOOKUP(ProjectData[[#This Row],[Category]],Category_AverageStdDevLimit[],MATCH("Average",Category_AverageStdDevLimit[#Headers],0),FALSE))^2 -> 2.581855637 | X6: =VLOOKUP(ProjectData[[#This Row],[Category]],Category_AverageStdDevLimit[],MATCH("Limit",Category_AverageStdDevLimit[#Headers],0),FALSE) -> 7.704088755 | Y6: =ProjectData[[#This Row],[Real Sum]]>ProjectData[[#This Row],[Category Limit]] -> FALSE | AA6: =OR(ProjectData[[#This Row],[Significant Project? (Financial Basis)]],ProjectData[[#This Row],[Non repeatable]]) -> FALSE | AB6: =AND(ProjectData[[#This Row],[SomeExpenditure >= 2011]],ProjectData[[#This Row],[Abnormal?]]) -> FALSE
A7: CP.00879 | B7: Dan Gleeson Transformer No.2 | C7: Other | E7: 1.157088 | F7: 0 | G7: 0 | H7: 0 | I7: 0 | K7: 0 | L7: =ProjectData[[#This Row],[Real Sum]]>0.00000001 -> TRUE | M7: =OR(ProjectData[[#This Row],[Real 11]]>0,ProjectData[[#This Row],[Real 12]]>0,ProjectData[[#This Row],[Real 13]]>0,ProjectData[[#This Row],[Real 14]]>0,ProjectData[[#This Row],[Real 15]]>0) -> FALSE | N7: =ProjectData[[#This Row],[Actuals 07/08]]*VLOOKUP("Mid Year Nominal - EOY Real (2015/16)",CPI[],MATCH(N$4,CPI[#Headers],0),FALSE) -> 0 | O7: =ProjectData[[#This Row],[Actuals 08/09]]*VLOOKUP("Mid Year Nominal - EOY Real (2015/16)",CPI[],MATCH(O$4,CPI[#Headers],0),FALSE) -> 1.383985006 | P7: =ProjectData[[#This Row],[Actuals 09/10]]*VLOOKUP("Mid Year Nominal - EOY Real (2015/16)",CPI[],MATCH(P$4,CPI[#Headers],0),FALSE) -> 0 | Q7: =ProjectData[[#This Row],[Actuals 10/11]]*VLOOKUP("Mid Year Nominal - EOY Real (2015/16)",CPI[],MATCH(Q$4,CPI[#Headers],0),FALSE) -> 0 | R7: =ProjectData[[#This Row],[Actuals 11/12]]*VLOOKUP("Mid Year Nominal - EOY Real (2015/16)",CPI[],MATCH(R$4,CPI[#Headers],0),FALSE) -> 0 | S7: =ProjectData[[#This Row],[Actuals 12/13]]*VLOOKUP("Mid Year Nominal - EOY Real (2015/16)",CPI[],MATCH(S$4,CPI[#Headers],0),FALSE) -> 0 | T7: =ProjectData[[#This Row],[Actuals 13/14]]*VLOOKUP("Mid Year Nominal - EOY Real (2015/16)",CPI[],MATCH(T$4,CPI[#Headers],0),FALSE) -> 0 | U7: =ProjectData[[#This Row],[Actuals 14/15]]*VLOOKUP("Mid Year Nominal - EOY Real (2015/16)",CPI[],MATCH(U$4,CPI[#Headers],0),FALSE) -> 0 | V7: =SUM(ProjectData[[#This Row],[Real 08]:[Real 15]]) -> 1.383985006 | W7: =(ProjectData[[#This Row],[Real Sum]]-VLOOKUP(ProjectData[[#This Row],[Category]],Category_AverageStdDevLimit[],MATCH("Average",Category_AverageStdDevLimit[#Headers],0),FALSE))^2 -> 0.002289440896 | X7: =VLOOKUP(ProjectData[[#This Row],[Category]],Category_AverageStdDevLimit[],MATCH("Limit",Category_AverageStdDevLimit[#Headers],0),FALSE) -> 7.704088755 | Y7: =ProjectData[[#This Row],[Real Sum]]>ProjectData[[#This Row],[Category Limit]] -> FALSE | AA7: =OR(ProjectData[[#This Row],[Significant Project? (Financial Basis)]],ProjectData[[#This Row],[Non repeatable]]) -> FALSE | AB7: =AND(ProjectData[[#This Row],[SomeExpenditure >= 2011]],ProjectData[[#This Row],[Abnormal?]]) -> FALSE
A8: CP.01042 | B8: Ross - Chalumbin 275kV Line Switching | C8: Other | D8: 0.00070035 | E8: 0 | F8: 0 | G8: 0 | H8: 0 | I8: 0 | K8: 0 | L8: =ProjectData[[#This Row],[Real Sum]]>0.00000001 -> TRUE | M8: =OR(ProjectData[[#This Row],[Real 11]]>0,ProjectData[[#This Row],[Real 12]]>0,ProjectData[[#This Row],[Real 13]]>0,ProjectData[[#This Row],[Real 14]]>0,ProjectData[[#This Row],[Real 15]]>0) -> FALSE | N8: =ProjectData[[#This Row],[Actuals 07/08]]*VLOOKUP("Mid Year Nominal - EOY Real (2015/16)",CPI[],MATCH(N$4,CPI[#Headers],0),FALSE) -> 0.0008657490999 | O8: =ProjectData[[#This Row],[Actuals 08/09]]*VLOOKUP("Mid Year Nominal - EOY Real (2015/16)",CPI[],MATCH(O$4,CPI[#Headers],0),FALSE) -> 0 | P8: =ProjectData[[#This Row],[Actuals 09/10]]*VLOOKUP("Mid Year Nominal - EOY Real (2015/16)",CPI[],MATCH(P$4,CPI[#Headers],0),FALSE) -> 0 | Q8: =ProjectData[[#This Row],[Actuals 10/11]]*VLOOKUP("Mid Year Nominal - EOY Real (2015/16)",CPI[],MATCH(Q$4,CPI[#Headers],0),FALSE) -> 0 | R8: =ProjectData[[#This Row],[Actuals 11/12]]*VLOOKUP("Mid Year Nominal - EOY Real (2015/16)",CPI[],MATCH(R$4,CPI[#Headers],0),FALSE) -> 0 | S8: =ProjectData[[#This Row],[Actuals 12/13]]*VLOOKUP("Mid Year Nominal - EOY Real (2015/16)",CPI[],MATCH(S$4,CPI[#Headers],0),FALSE) -> 0 | T8: =ProjectData[[#This Row],[Actuals 13/14]]*VLOOKUP("Mid Year Nominal - EOY Real (2015/16)",CPI[],MATCH(T$4,CPI[#Headers],0),FALSE) -> 0 | U8: =ProjectData[[#This Row],[Actuals 14/15]]*VLOOKUP("Mid Year Nominal - EOY Real (2015/16)",CPI[],MATCH(U$4,CPI[#Headers],0),FALSE) -> 0 | V8: =SUM(ProjectData[[#This Row],[Real 08]:[Real 15]]) -> 0.0008657490999 | W8: =(ProjectData[[#This Row],[Real Sum]]-VLOOKUP(ProjectData[[#This Row],[Category]],Category_AverageStdDevLimit[],MATCH("Average",Category_AverageStdDevLimit[#Headers],0),FALSE))^2 -> 2.047667582 | X8: =VLOOKUP(ProjectData[[#This Row],[Category]],Category_AverageStdDevLimit[],MATCH("Limit",Category_AverageStdDevLimit[#Headers],0),FALSE) -> 7.704088755 | Y8: =ProjectData[[#This Row],[Real Sum]]>ProjectData[[#This Row],[Category Limit]] -> FALSE | AA8: =OR(ProjectData[[#This Row],[Significant Project? (Financial Basis)]],ProjectData[[#This Row],[Non repeatable]]) -> FALSE | AB8: =AND(ProjectData[[#This Row],[SomeExpenditure >= 2011]],ProjectData[[#This Row],[Abnormal?]]) -> FALSE
A9: CP.01111 | B9: Fujitsu PLC Equipment Replacement | C9: Replacement | D9: 0.10418757 | E9: 0.0259311 | H9: 0 | I9: 0 | K9: 0 | L9: =ProjectData[[#This Row],[Real Sum]]>0.00000001 -> TRUE | M9: =OR(ProjectData[[#This Row],[Real 11]]>0,ProjectData[[#This Row],[Real 12]]>0,ProjectData[[#This Row],[Real 13]]>0,ProjectData[[#This Row],[Real 14]]>0,ProjectData[[#This Row],[Real 15]]>0) -> FALSE | N9: =ProjectData[[#This Row],[Actuals 07/08]]*VLOOKUP("Mid Year Nominal - EOY Real (2015/16)",CPI[],MATCH(N$4,CPI[#Headers],0),FALSE) -> 0.1287931676 | O9: =ProjectData[[#This Row],[Actuals 08/09]]*VLOOKUP("Mid Year Nominal - EOY Real (2015/16)",CPI[],MATCH(O$4,CPI[#Headers],0),FALSE) -> 0.03101601052 | P9: =ProjectData[[#This Row],[Actuals 09/10]]*VLOOKUP("Mid Year Nominal - EOY Real (2015/16)",CPI[],MATCH(P$4,CPI[#Headers],0),FALSE) -> 0 | Q9: =ProjectData[[#This Row],[Actuals 10/11]]*VLOOKUP("Mid Year Nominal - EOY Real (2015/16)",CPI[],MATCH(Q$4,CPI[#Headers],0),FALSE) -> 0 | R9: =ProjectData[[#This Row],[Actuals 11/12]]*VLOOKUP("Mid Year Nominal - EOY Real (2015/16)",CPI[],MATCH(R$4,CPI[#Headers],0),FALSE) -> 0 | S9: =ProjectData[[#This Row],[Actuals 12/13]]*VLOOKUP("Mid Year Nominal - EOY Real (2015/16)",CPI[],MATCH(S$4,CPI[#Headers],0),FALSE) -> 0 | T9: =ProjectData[[#This Row],[Actuals 13/14]]*VLOOKUP("Mid Year Nominal - EOY Real (2015/16)",CPI[],MATCH(T$4,CPI[#Headers],0),FALSE) -> 0 | U9: =ProjectData[[#This Row],[Actuals 14/15]]*VLOOKUP("Mid Year Nominal - EOY Real (2015/16)",CPI[],MATCH(U$4,CPI[#Headers],0),FALSE) -> 0 | V9: =SUM(ProjectData[[#This Row],[Real 08]:[Real 15]]) -> 0.1598091781 | W9: =(ProjectData[[#This Row],[Real Sum]]-VLOOKUP(ProjectData[[#This Row],[Category]],Category_AverageStdDevLimit[],MATCH("Average",Category_AverageStdDevLimit[#Headers],0),FALSE))^2 -> 0.2560928984 | X9: =VLOOKUP(ProjectData[[#This Row],[Category]],Category_AverageStdDevLimit[],MATCH("Limit",Category_AverageStdDevLimit[#Headers],0),FALSE) -> 2.96351611 | Y9: =ProjectData[[#This Row],[Real Sum]]>ProjectData[[#This Row],[Category Limit]] -> FALSE | AA9: =OR(ProjectData[[#This Row],[Significant Project? (Financial Basis)]],ProjectData[[#This Row],[Non repeatable]]) -> FALSE | AB9: =AND(ProjectData[[#This Row],[SomeExpenditure >= 2011]],ProjectData[[#This Row],[Abnormal?]]) -> FALSE
A10: CP.01115 | B10: INSTALL. OF SDH MICRO RADIO VIRGINIA - M | C10: Other | E10: 0.0031192 | F10: -0.0031192 | G10: 0 | H10: 0 | I10: 0 | K10: 0 | L10: =ProjectData[[#This Row],[Real Sum]]>0.00000001 -> TRUE | M10: =OR(ProjectData[[#This Row],[Real 11]]>0,ProjectData[[#This Row],[Real 12]]>0,ProjectData[[#This Row],[Real 13]]>0,ProjectData[[#This Row],[Real 14]]>0,ProjectData[[#This Row],[Real 15]]>0) -> FALSE | N10: =ProjectData[[#This Row],[Actuals 07/08]]*VLOOKUP("Mid Year Nominal - EOY Real (2015/16)",CPI[],MATCH(N$4,CPI[#Headers],0),FALSE) -> 0 | O10: =ProjectData[[#This Row],[Actuals 08/09]]*VLOOKUP("Mid Year Nominal - EOY Real (2015/16)",CPI[],MATCH(O$4,CPI[#Headers],0),FALSE) -> 0.003730853686 | P10: =ProjectData[[#This Row],[Actuals 09/10]]*VLOOKUP("Mid Year Nominal - EOY Real (2015/16)",CPI[],MATCH(P$4,CPI[#Headers],0),FALSE) -> -0.00363357073 | Q10: =ProjectData[[#This Row],[Actuals 10/11]]*VLOOKUP("Mid Year Nominal - EOY Real (2015/16)",CPI[],MATCH(Q$4,CPI[#Headers],0),FALSE) -> 0 | R10: =ProjectData[[#This Row],[Actuals 11/12]]*VLOOKUP("Mid Year Nominal - EOY Real (2015/16)",CPI[],MATCH(R$4,CPI[#Headers],0),FALSE) -> 0 | S10: =ProjectData[[#This Row],[Actuals 12/13]]*VLOOKUP("Mid Year Nominal - EOY Real (2015/16)",CPI[],MATCH(S$4,CPI[#Headers],0),FALSE) -> 0 | T10: =ProjectData[[#This Row],[Actuals 13/14]]*VLOOKUP("Mid Year Nominal - EOY Real (2015/16)",CPI[],MATCH(T$4,CPI[#Headers],0),FALSE) -> 0 | U10: =ProjectData[[#This Row],[Actuals 14/15]]*VLOOKUP("Mid Year Nominal - EOY Real (2015/16)",CPI[],MATCH(U$4,CPI[#Headers],0),FALSE) -> 0 | V10: =SUM(ProjectData[[#This Row],[Real 08]:[Real 15]]) -> 9.728295579e-05 | W10: =(ProjectData[[#This Row],[Real Sum]]-VLOOKUP(ProjectData[[#This Row],[Category]],Category_AverageStdDevLimit[],MATCH("Average",Category_AverageStdDevLimit[#Headers],0),FALSE))^2 -> 2.049867473 | X10: =VLOOKUP(ProjectData[[#This Row],[Category]],Category_AverageStdDevLimit[],MATCH("Limit",Category_AverageStdDevLimit[#Headers],0),FALSE) -> 7.704088755 | Y10: =ProjectData[[#This Row],[Real Sum]]>ProjectData[[#This Row],[Category Limit]] -> FALSE | AA10: =OR(ProjectData[[#This Row],[Significant Project? (Financial Basis)]],ProjectData[[#This Row],[Non repeatable]]) -> FALSE | AB10: =AND(ProjectData[[#This Row],[SomeExpenditure >= 2011]],ProjectData[[#This Row],[Abnormal?]]) -> FALSE
A11: CP.01129 | B11: Mackay Secondary Systems Refurbishment | C11: Other | E11: 0.00022 | F11: 0.00909945 | G11: 0.0016744 | H11: -0.01099385 | I11: 0 | K11: 0 | L11: =ProjectData[[#This Row],[Real Sum]]>0.00000001 -> TRUE | M11: =OR(ProjectData[[#This Row],[Real 11]]>0,ProjectData[[#This Row],[Real 12]]>0,ProjectData[[#This Row],[Real 13]]>0,ProjectData[[#This Row],[Real 14]]>0,ProjectData[[#This Row],[Real 15]]>0) -> TRUE | N11: =ProjectData[[#This Row],[Actuals 07/08]]*VLOOKUP("Mid Year Nominal - EOY Real (2015/16)",CPI[],MATCH(N$4,CPI[#Headers],0),FALSE) -> 0 | O11: =ProjectData[[#This Row],[Actuals 08/09]]*VLOOKUP("Mid Year Nominal - EOY Real (2015/16)",CPI[],MATCH(O$4,CPI[#Headers],0),FALSE) -> 0.0002631404882 | P11: =ProjectData[[#This Row],[Actuals 09/10]]*VLOOKUP("Mid Year Nominal - EOY Real (2015/16)",CPI[],MATCH(P$4,CPI[#Headers],0),FALSE) -> 0.01059999204 | Q11: =ProjectData[[#This Row],[Actuals 10/11]]*VLOOKUP("Mid Year Nominal - EOY Real (2015/16)",CPI[],MATCH(Q$4,CPI[#Headers],0),FALSE) -> 0.001892098403 | R11: =ProjectData[[#This Row],[Actuals 11/12]]*VLOOKUP("Mid Year Nominal - EOY Real (2015/16)",CPI[],MATCH(R$4,CPI[#Headers],0),FALSE) -> -0.01212746531 | S11: =ProjectData[[#This Row],[Actuals 12/13]]*VLOOKUP("Mid Year Nominal - EOY Real (2015/16)",CPI[],MATCH(S$4,CPI[#Headers],0),FALSE) -> 0 | T11: =ProjectData[[#This Row],[Actuals 13/14]]*VLOOKUP("Mid Year Nominal - EOY Real (2015/16)",CPI[],MATCH(T$4,CPI[#Headers],0),FALSE) -> 0 | U11: =ProjectData[[#This Row],[Actuals 14/15]]*VLOOKUP("Mid Year Nominal - EOY Real (2015/16)",CPI[],MATCH(U$4,CPI[#Headers],0),FALSE) -> 0 | V11: =SUM(ProjectData[[#This Row],[Real 08]:[Real 15]]) -> 0.0006277656248 | W11: =(ProjectData[[#This Row],[Real Sum]]-VLOOKUP(ProjectData[[#This Row],[Category]],Category_AverageStdDevLimit[],MATCH("Average",Category_AverageStdDevLimit[#Headers],0),FALSE))^2 -> 2.048348732 | X11: =VLOOKUP(ProjectData[[#This Row],[Category]],Category_AverageStdDevLimit[],MATCH("Limit",Category_AverageStdDevLimit[#Headers],0),FALSE) -> 7.704088755 | Y11: =ProjectData[[#This Row],[Real Sum]]>ProjectData[[#This Row],[Category Limit]] -> FALSE | AA11: =OR(ProjectData[[#This Row],[Significant Project? (Financial Basis)]],ProjectData[[#This Row],[Non repeatable]]) -> FALSE | AB11: =AND(ProjectData[[#This Row],[SomeExpenditure >= 2011]],ProjectData[[#This Row],[Abnormal?]]) -> FALSE
A12: CP.01207 | B12: AARNet Interim Stage 2 | C12: Other | E12: 0.007981 | F12: 0 | G12: 0 | H12: 0 | I12: 0 | K12: 0 | L12: =ProjectData[[#This Row],[Real Sum]]>0.00000001 -> TRUE | M12: =OR(ProjectData[[#This Row],[Real 11]]>0,ProjectData[[#This Row],[Real 12]]>0,ProjectData[[#This Row],[Real 13]]>0,ProjectData[[#This Row],[Real 14]]>0,ProjectData[[#This Row],[Real 15]]>0) -> FALSE | N12: =ProjectData[[#This Row],[Actuals 07/08]]*VLOOKUP("Mid Year Nominal - EOY Real (2015/16)",CPI[],MATCH(N$4,CPI[#Headers],0),FALSE) -> 0 | O12: =ProjectData[[#This Row],[Actuals 08/09]]*VLOOKUP("Mid Year Nominal - EOY Real (2015/16)",CPI[],MATCH(O$4,CPI[#Headers],0),FALSE) -> 0.009546019257 | P12: =ProjectData[[#This Row],[Actuals 09/10]]*VLOOKUP("Mid Year Nominal - EOY Real (2015/16)",CPI[],MATCH(P$4,CPI[#Headers],0),FALSE) -> 0 | Q12: =ProjectData[[#This Row],[Actuals 10/11]]*VLOOKUP("Mid Year Nominal - EOY Real (2015/16)",CPI[],MATCH(Q$4,CPI[#Headers],0),FALSE) -> 0 | R12: =ProjectData[[#This Row],[Actuals 11/12]]*VLOOKUP("Mid Year Nominal - EOY Real (2015/16)",CPI[],MATCH(R$4,CPI[#Headers],0),FALSE) -> 0 | S12: =ProjectData[[#This Row],[Actuals 12/13]]*VLOOKUP("Mid Year Nominal - EOY Real (2015/16)",CPI[],MATCH(S$4,CPI[#Headers],0),FALSE) -> 0 | T12: =ProjectData[[#This Row],[Actuals 13/14]]*VLOOKUP("Mid Year Nominal - EOY Real (2015/16)",CPI[],MATCH(T$4,CPI[#Headers],0),FALSE) -> 0 | U12: =ProjectData[[#This Row],[Actuals 14/15]]*VLOOKUP("Mid Year Nominal - EOY Real (2015/16)",CPI[],MATCH(U$4,CPI[#Headers],0),FALSE) -> 0 | V12: =SUM(ProjectData[[#This Row],[Real 08]:[Real 15]]) -> 0.009546019257 | W12: =(ProjectData[[#This Row],[Real Sum]]-VLOOKUP(ProjectData[[#This Row],[Category]],Category_AverageStdDevLimit[],MATCH("Average",Category_AverageStdDevLimit[#Headers],0),FALSE))^2 -> 2.022900563 | X12: =VLOOKUP(ProjectData[[#This Row],[Category]],Category_AverageStdDevLimit[],MATCH("Limit",Category_AverageStdDevLimit[#Headers],0),FALSE) -> 7.704088755 | Y12: =ProjectData[[#This Row],[Real Sum]]>ProjectData[[#This Row],[Category Limit]] -> FALSE | AA12: =OR(ProjectData[[#This Row],[Significant Project? (Financial Basis)]],ProjectData[[#This Row],[Non repeatable]]) -> FALSE | AB12: =AND(ProjectData[[#This Row],[SomeExpenditure >= 2011]],ProjectData[[#This Row],[Abnormal?]]) -> FALSE
A13: CP.01213 | B13: Mt Gravatt - Eagle Hts Microwave Upgrade | C13: Replacement | D13: 0.05943906 | E13: 0 | F13: 0 | G13: 0 | H13: 0 | I13: 0 | K13: 0 | L13: =ProjectData[[#This Row],[Real Sum]]>0.00000001 -> TRUE | M13: =OR(ProjectData[[#This Row],[Real 11]]>0,ProjectData[[#This Row],[Real 12]]>0,ProjectData[[#This Row],[Real 13]]>0,ProjectData[[#This Row],[Real 14]]>0,ProjectData[[#This Row],[Real 15]]>0) -> FALSE | N13: =ProjectData[[#This Row],[Actuals 07/08]]*VLOOKUP("Mid Year Nominal - EOY Real (2015/16)",CPI[],MATCH(N$4,CPI[#Headers],0),FALSE) -> 0.07347656556 | O13: =ProjectData[[#This Row],[Actuals 08/09]]*VLOOKUP("Mid Year Nominal - EOY Real (2015/16)",CPI[],MATCH(O$4,CPI[#Headers],0),FALSE) -> 0 | P13: =ProjectData[[#This Row],[Actuals 09/10]]*VLOOKUP("Mid Year Nominal - EOY Real (2015/16)",CPI[],MATCH(P$4,CPI[#Headers],0),FALSE) -> 0 | Q13: =ProjectData[[#This Row],[Actuals 10/11]]*VLOOKUP("Mid Year Nominal - EOY Real (2015/16)",CPI[],MATCH(Q$4,CPI[#Headers],0),FALSE) -> 0 | R13: =ProjectData[[#This Row],[Actuals 11/12]]*VLOOKUP("Mid Year Nominal - EOY Real (2015/16)",CPI[],MATCH(R$4,CPI[#Headers],0),FALSE) -> 0 | S13: =ProjectData[[#This Row],[Actuals 12/13]]*VLOOKUP("Mid Year Nominal - EOY Real (2015/16)",CPI[],MATCH(S$4,CPI[#Headers],0),FALSE) -> 0 | T13: =ProjectData[[#This Row],[Actuals 13/14]]*VLOOKUP("Mid Year Nominal - EOY Real (2015/16)",CPI[],MATCH(T$4,CPI[#Headers],0),FALSE) -> 0 | U13: =ProjectData[[#This Row],[Actuals 14/15]]*VLOOKUP("Mid Year Nominal - EOY Real (2015/16)",CPI[],MATCH(U$4,CPI[#Headers],0),FALSE) -> 0 | V13: =SUM(ProjectData[[#This Row],[Real 08]:[Real 15]]) -> 0.07347656556 | W13: =(ProjectData[[#This Row],[Real Sum]]-VLOOKUP(ProjectData[[#This Row],[Category]],Category_AverageStdDevLimit[],MATCH("Average",Category_AverageStdDevLimit[#Headers],0),FALSE))^2 -> 0.3509245296 | X13: =VLOOKUP(ProjectData[[#This Row],[Category]],Category_AverageStdDevLimit[],MATCH("Limit",Category_AverageStdDevLimit[#Headers],0),FALSE) -> 2.96351611 | Y13: =ProjectData[[#This Row],[Real Sum]]>ProjectData[[#This Row],[Category Limit]] -> FALSE | AA13: =OR(ProjectData[[#This Row],[Significant Project? (Financial Basis)]],ProjectData[[#This Row],[Non repeatable]]) -> FALSE | AB13: =AND(ProjectData[[#This Row],[SomeExpenditure >= 2011]],ProjectData[[#This Row],[Abnormal?]]) -> FALSE
A14: CP.01218 | B14: Braemar Power Station Transmission | C14: Other | E14: 0.017962 | F14: 0.00643082 | G14: 0 | H14: 0 | I14: 0 | K14: 0 | L14: =ProjectData[[#This Row],[Real Sum]]>0.00000001 -> TRUE | M14: =OR(ProjectData[[#This Row],[Real 11]]>0,ProjectData[[#This Row],[Real 12]]>0,ProjectData[[#This Row],[Real 13]]>0,ProjectData[[#This Row],[Real 14]]>0,ProjectData[[#This Row],[Real 15]]>0) -> FALSE | N14: =ProjectData[[#This Row],[Actuals 07/08]]*VLOOKUP("Mid Year Nominal - EOY Real (2015/16)",CPI[],MATCH(N$4,CPI[#Headers],0),FALSE) -> 0 | O14: =ProjectData[[#This Row],[Actuals 08/09]]*VLOOKUP("Mid Year Nominal - EOY Real (2015/16)",CPI[],MATCH(O$4,CPI[#Headers],0),FALSE) -> 0.02148422477 | P14: =ProjectData[[#This Row],[Actuals 09/10]]*VLOOKUP("Mid Year Nominal - EOY Real (2015/16)",CPI[],MATCH(P$4,CPI[#Headers],0),FALSE) -> 0.007491292422 | Q14: =ProjectData[[#This Row],[Actuals 10/11]]*VLOOKUP("Mid Year Nominal - EOY Real (2015/16)",CPI[],MATCH(Q$4,CPI[#Headers],0),FALSE) -> 0 | R14: =ProjectData[[#This Row],[Actuals 11/12]]*VLOOKUP("Mid Year Nominal - EOY Real (2015/16)",CPI[],MATCH(R$4,CPI[#Headers],0),FALSE) -> 0 | S14: =ProjectData[[#This Row],[Actuals 12/13]]*VLOOKUP("Mid Year Nominal - EOY Real (2015/16)",CPI[],MATCH(S$4,CPI[#Headers],0),FALSE) -> 0 | T14: =ProjectData[[#This Row],[Actuals 13/14]]*VLOOKUP("Mid Year Nominal - EOY Real (2015/16)",CPI[],MATCH(T$4,CPI[#Headers],0),FALSE) -> 0 | U14: =ProjectData[[#This Row],[Actuals 14/15]]*VLOOKUP("Mid Year Nominal - EOY Real (2015/16)",CPI[],MATCH(U$4,CPI[#Headers],0),FALSE) -> 0 | V14: =SUM(ProjectData[[#This Row],[Real 08]:[Real 15]]) -> 0.02897551719 | W14: =(ProjectData[[#This Row],[Real Sum]]-VLOOKUP(ProjectData[[#This Row],[Category]],Category_AverageStdDevLimit[],MATCH("Average",Category_AverageStdDevLimit[#Headers],0),FALSE))^2 -> 1.96800942 | X14: =VLOOKUP(ProjectData[[#This Row],[Category]],Category_AverageStdDevLimit[],MATCH("Limit",Category_AverageStdDevLimit[#Headers],0),FALSE) -> 7.704088755 | Y14: =ProjectData[[#This Row],[Real Sum]]>ProjectData[[#This Row],[Category Limit]] -> FALSE | AA14: =OR(ProjectData[[#This Row],[Significant Project? (Financial Basis)]],ProjectData[[#This Row],[Non repeatable]]) -> FALSE | AB14: =AND(ProjectData[[#This Row],[SomeExpenditure >= 2011]],ProjectData[[#This Row],[Abnormal?]]) -> FALSE
A15: CP.01220 | B15: EMS Front End Processor Upgrade | C15: Replacement | D15: 0.02530735 | E15: 0.09140555 | H15: 0 | I15: 0 | K15: 0 | L15: =ProjectData[[#This Row],[Real Sum]]>0.00000001 -> TRUE | M15: =OR(ProjectData[[#This Row],[Real 11]]>0,ProjectData[[#This Row],[Real 12]]>0,ProjectData[[#This Row],[Real 13]]>0,ProjectData[[#This Row],[Real 14]]>0,ProjectData[[#This Row],[Real 15]]>0) -> FALSE | N15: =ProjectData[[#This Row],[Actuals 07/08]]*VLOOKUP("Mid Year Nominal - EOY Real (2015/16)",CPI[],MATCH(N$4,CPI[#Headers],0),FALSE) -> 0.03128409436 | O15: =ProjectData[[#This Row],[Actuals 08/09]]*VLOOKUP("Mid Year Nominal - EOY Real (2015/16)",CPI[],MATCH(O$4,CPI[#Headers],0),FALSE) -> 0.1093295502 | P15: =ProjectData[[#This Row],[Actuals 09/10]]*VLOOKUP("Mid Year Nominal - EOY Real (2015/16)",CPI[],MATCH(P$4,CPI[#Headers],0),FALSE) -> 0 | Q15: =ProjectData[[#This Row],[Actuals 10/11]]*VLOOKUP("Mid Year Nominal - EOY Real (2015/16)",CPI[],MATCH(Q$4,CPI[#Headers],0),FALSE) -> 0 | R15: =ProjectData[[#This Row],[Actuals 11/12]]*VLOOKUP("Mid Year Nominal - EOY Real (2015/16)",CPI[],MATCH(R$4,CPI[#Headers],0),FALSE) -> 0 | S15: =ProjectData[[#This Row],[Actuals 12/13]]*VLOOKUP("Mid Year Nominal - EOY Real (2015/16)",CPI[],MATCH(S$4,CPI[#Headers],0),FALSE) -> 0 | T15: =ProjectData[[#This Row],[Actuals 13/14]]*VLOOKUP("Mid Year Nominal - EOY Real (2015/16)",CPI[],MATCH(T$4,CPI[#Headers],0),FALSE) -> 0 | U15: =ProjectData[[#This Row],[Actuals 14/15]]*VLOOKUP("Mid Year Nominal - EOY Real (2015/16)",CPI[],MATCH(U$4,CPI[#Headers],0),FALSE) -> 0 | V15: =SUM(ProjectData[[#This Row],[Real 08]:[Real 15]]) -> 0.1406136446 | W15: =(ProjectData[[#This Row],[Real Sum]]-VLOOKUP(ProjectData[[#This Row],[Category]],Category_AverageStdDevLimit[],MATCH("Average",Category_AverageStdDevLimit[#Headers],0),FALSE))^2 -> 0.2758894052 | X15: =VLOOKUP(ProjectData[[#This Row],[Category]],Category_AverageStdDevLimit[],MATCH("Limit",Category_AverageStdDevLimit[#Headers],0),FALSE) -> 2.96351611 | Y15: =ProjectData[[#This Row],[Real Sum]]>ProjectData[[#This Row],[Category Limit]] -> FALSE | AA15: =OR(ProjectData[[#This Row],[Significant Project? (Financial Basis)]],ProjectData[[#This Row],[Non repeatable]]) -> FALSE | AB15: =AND(ProjectData[[#This Row],[SomeExpenditure >= 2011]],ProjectData[[#This Row],[Abnormal?]]) -> FALSE
A16: CP.01227 | B16: Ergon SCADA ICCP Link Stage 1 & 2 | C16: Other | D16: 0.05152801 | E16: 0.00094025 | F16: 0 | G16: 0 | H16: 0 | I16: 0 | K16: 0 | L16: =ProjectData[[#This Row],[Real Sum]]>0.00000001 -> TRUE | M16: =OR(ProjectData[[#This Row],[Real 11]]>0,ProjectData[[#This Row],[Real 12]]>0,ProjectData[[#This Row],[Real 13]]>0,ProjectData[[#This Row],[Real 14]]>0,ProjectData[[#This Row],[Real 15]]>0) -> FALSE | N16: =ProjectData[[#This Row],[Actuals 07/08]]*VLOOKUP("Mid Year Nominal - EOY Real (2015/16)",CPI[],MATCH(N$4,CPI[#Headers],0),FALSE) -> 0.0636971918 | O16: =ProjectData[[#This Row],[Actuals 08/09]]*VLOOKUP("Mid Year Nominal - EOY Real (2015/16)",CPI[],MATCH(O$4,CPI[#Headers],0),FALSE) -> 0.001124626564 | P16: =ProjectData[[#This Row],[Actuals 09/10]]*VLOOKUP("Mid Year Nominal - EOY Real (2015/16)",CPI[],MATCH(P$4,CPI[#Headers],0),FALSE) -> 0 | Q16: =ProjectData[[#This Row],[Actuals 10/11]]*VLOOKUP("Mid Year Nominal - EOY Real (2015/16)",CPI[],MATCH(Q$4,CPI[#Headers],0),FALSE) -> 0 | R16: =ProjectData[[#This Row],[Actuals 11/12]]*VLOOKUP("Mid Year Nominal - EOY Real (2015/16)",CPI[],MATCH(R$4,CPI[#Headers],0),FALSE) -> 0 | S16: =ProjectData[[#This Row],[Actuals 12/13]]*VLOOKUP("Mid Year Nominal - EOY Real (2015/16)",CPI[],MATCH(S$4,CPI[#Headers],0),FALSE) -> 0 | T16: =ProjectData[[#This Row],[Actuals 13/14]]*VLOOKUP("Mid Year Nominal - EOY Real (2015/16)",CPI[],MATCH(T$4,CPI[#Headers],0),FALSE) -> 0 | U16: =ProjectData[[#This Row],[Actuals 14/15]]*VLOOKUP("Mid Year Nominal - EOY Real (2015/16)",CPI[],MATCH(U$4,CPI[#Headers],0),FALSE) -> 0 | V16: =SUM(ProjectData[[#This Row],[Real 08]:[Real 15]]) -> 0.06482181836 | W16: =(ProjectData[[#This Row],[Real Sum]]-VLOOKUP(ProjectData[[#This Row],[Category]],Category_AverageStdDevLimit[],MATCH("Average",Category_AverageStdDevLimit[#Headers],0),FALSE))^2 -> 1.868719866 | X16: =VLOOKUP(ProjectData[[#This Row],[Category]],Category_AverageStdDevLimit[],MATCH("Limit",Category_AverageStdDevLimit[#Headers],0),FALSE) -> 7.704088755 | Y16: =ProjectData[[#This Row],[Real Sum]]>ProjectData[[#This Row],[Category Limit]] -> FALSE | AA16: =OR(ProjectData[[#This Row],[Significant Project? (Financial Basis)]],ProjectData[[#This Row],[Non repeatable]]) -> FALSE | AB16: =AND(ProjectData[[#This Row],[SomeExpenditure >= 2011]],ProjectData[[#This Row],[Abnormal?]]) -> FALSE
A17: CP.01229 | B17: Tower Bolts (Combined Regions) | C17: Security / Compliance | F17: 1.31259526 | G17: 1.07040428 | H17: 7.39005964 | I17: 0.35699875 | J17: -0.122 | K17: 0 | L17: =ProjectData[[#This Row],[Real Sum]]>0.00000001 -> TRUE | M17: =OR(ProjectData[[#This Row],[Real 11]]>0,ProjectData[[#This Row],[Real 12]]>0,ProjectData[[#This Row],[Real 13]]>0,ProjectData[[#This Row],[Real 14]]>0,ProjectData[[#This Row],[Real 15]]>0) -> TRUE | N17: =ProjectData[[#This Row],[Actuals 07/08]]*VLOOKUP("Mid Year Nominal - EOY Real (2015/16)",CPI[],MATCH(N$4,CPI[#Headers],0),FALSE) -> 0 | O17: =ProjectData[[#This Row],[Actuals 08/09]]*VLOOKUP("Mid Year Nominal - EOY Real (2015/16)",CPI[],MATCH(O$4,CPI[#Headers],0),FALSE) -> 0 | P17: =ProjectData[[#This Row],[Actuals 09/10]]*VLOOKUP("Mid Year Nominal - EOY Real (2015/16)",CPI[],MATCH(P$4,CPI[#Headers],0),FALSE) -> 1.529048383 | Q17: =ProjectData[[#This Row],[Actuals 10/11]]*VLOOKUP("Mid Year Nominal - EOY Real (2015/16)",CPI[],MATCH(Q$4,CPI[#Headers],0),FALSE) -> 1.209573715 | R17: =ProjectData[[#This Row],[Actuals 11/12]]*VLOOKUP("Mid Year Nominal - EOY Real (2015/16)",CPI[],MATCH(R$4,CPI[#Headers],0),FALSE) -> 8.152075198 | S17: =ProjectData[[#This Row],[Actuals 12/13]]*VLOOKUP("Mid Year Nominal - EOY Real (2015/16)",CPI[],MATCH(S$4,CPI[#Headers],0),FALSE) -> 0.3858457402 | T17: =ProjectData[[#This Row],[Actuals 13/14]]*VLOOKUP("Mid Year Nominal - EOY Real (2015/16)",CPI[],MATCH(T$4,CPI[#Headers],0),FALSE) -> -0.1283716974 | U17: =ProjectData[[#This Row],[Actuals 14/15]]*VLOOKUP("Mid Year Nominal - EOY Real (2015/16)",CPI[],MATCH(U$4,CPI[#Headers],0),FALSE) -> 0 | V17: =SUM(ProjectData[[#This Row],[Real 08]:[Real 15]]) -> 11.14817134 | W17: =(ProjectData[[#This Row],[Real Sum]]-VLOOKUP(ProjectData[[#This Row],[Category]],Category_AverageStdDevLimit[],MATCH("Average",Category_AverageStdDevLimit[#Headers],0),FALSE))^2 -> 57.08931778 | X17: =VLOOKUP(ProjectData[[#This Row],[Category]],Category_AverageStdDevLimit[],MATCH("Limit",Category_AverageStdDevLimit[#Headers],0),FALSE) -> 10.86958417 | Y17: =ProjectData[[#This Row],[Real Sum]]>ProjectData[[#This Row],[Category Limit]] -> TRUE | Z17: TRUE | AA17: =OR(ProjectData[[#This Row],[Significant Project? (Financial Basis)]],ProjectData[[#This Row],[Non repeatable]]) -> TRUE | AB17: =AND(ProjectData[[#This Row],[SomeExpenditure >= 2011]],ProjectData[[#This Row],[Abnormal?]]) -> TRUE
A18: CP.01238 | B18: Central Region Comms RTU Upgrade | C18: Replacement | D18: 0.1918338 | E18: 0 | F18: 0 | G18: 0 | H18: 0 | I18: 0 | K18: 0 | L18: =ProjectData[[#This Row],[Real Sum]]>0.00000001 -> TRUE | M18: =OR(ProjectData[[#This Row],[Real 11]]>0,ProjectData[[#This Row],[Real 12]]>0,ProjectData[[#This Row],[Real 13]]>0,ProjectData[[#This Row],[Real 14]]>0,ProjectData[[#This Row],[Real 15]]>0) -> FALSE | N18: =ProjectData[[#This Row],[Actuals 07/08]]*VLOOKUP("Mid Year Nominal - EOY Real (2015/16)",CPI[],MATCH(N$4,CPI[#Headers],0),FALSE) -> 0.2371384874 | O18: =ProjectData[[#This Row],[Actuals 08/09]]*VLOOKUP("Mid Year Nominal - EOY Real (2015/16)",CPI[],MATCH(O$4,CPI[#Headers],0),FALSE) -> 0 | P18: =ProjectData[[#This Row],[Actuals 09/10]]*VLOOKUP("Mid Year Nominal - EOY Real (2015/16)",CPI[],MATCH(P$4,CPI[#Headers],0),FALSE) -> 0 | Q18: =ProjectData[[#This Row],[Actuals 10/11]]*VLOOKUP("Mid Year Nominal - EOY Real (2015/16)",CPI[],MATCH(Q$4,CPI[#Headers],0),FALSE) -> 0 | R18: =ProjectData[[#This Row],[Actuals 11/12]]*VLOOKUP("Mid Year Nominal - EOY Real (2015/16)",CPI[],MATCH(R$4,CPI[#Headers],0),FALSE) -> 0 | S18: =ProjectData[[#This Row],[Actuals 12/13]]*VLOOKUP("Mid Year Nominal - EOY Real (2015/16)",CPI[],MATCH(S$4,CPI[#Headers],0),FALSE) -> 0 | T18: =ProjectData[[#This Row],[Actuals 13/14]]*VLOOKUP("Mid Year Nominal - EOY Real (2015/16)",CPI[],MATCH(T$4,CPI[#Headers],0),FALSE) -> 0 | U18: =ProjectData[[#This Row],[Actuals 14/15]]*VLOOKUP("Mid Year Nominal - EOY Real (2015/16)",CPI[],MATCH(U$4,CPI[#Headers],0),FALSE) -> 0 | V18: =SUM(ProjectData[[#This Row],[Real 08]:[Real 15]]) -> 0.2371384874 | W18: =(ProjectData[[#This Row],[Real Sum]]-VLOOKUP(ProjectData[[#This Row],[Category]],Category_AverageStdDevLimit[],MATCH("Average",Category_AverageStdDevLimit[#Headers],0),FALSE))^2 -> 0.1838067644 | X18: =VLOOKUP(ProjectData[[#This Row],[Category]],Category_AverageStdDevLimit[],MATCH("Limit",Category_AverageStdDevLimit[#Headers],0),FALSE) -> 2.96351611 | Y18: =ProjectData[[#This Row],[Real Sum]]>ProjectData[[#This Row],[Category Limit]] -> FALSE | AA18: =OR(ProjectData[[#This Row],[Significant Project? (Financial Basis)]],ProjectData[[#This Row],[Non repeatable]]) -> FALSE | AB18: =AND(ProjectData[[#This Row],[SomeExpenditure >= 2011]],ProjectData[[#This Row],[Abnormal?]]) -> FALSE
A19: CP.01244 | B19: Mackay Area Telecommunications Reinforcement | C19: Other | D19: 0.37350774 | E19: 0.1794021 | F19: 0.37137257 | G19: 0.00810912 | H19: 0 | I19: 0 | K19: 0 | L19: =ProjectData[[#This Row],[Real Sum]]>0.00000001 -> TRUE | M19: =OR(ProjectData[[#This Row],[Real 11]]>0,ProjectData[[#This Row],[Real 12]]>0,ProjectData[[#This Row],[Real 13]]>0,ProjectData[[#This Row],[Real 14]]>0,ProjectData[[#This Row],[Real 15]]>0) -> TRUE | N19: =ProjectData[[#This Row],[Actuals 07/08]]*VLOOKUP("Mid Year Nominal - EOY Real (2015/16)",CPI[],MATCH(N$4,CPI[#Headers],0),FALSE) -> 0.4617176979 | O19: =ProjectData[[#This Row],[Actuals 08/09]]*VLOOKUP("Mid Year Nominal - EOY Real (2015/16)",CPI[],MATCH(O$4,CPI[#Headers],0),FALSE) -> 0.214581619 | P19: =ProjectData[[#This Row],[Actuals 09/10]]*VLOOKUP("Mid Year Nominal - EOY Real (2015/16)",CPI[],MATCH(P$4,CPI[#Headers],0),FALSE) -> 0.432613651 | Q19: =ProjectData[[#This Row],[Actuals 10/11]]*VLOOKUP("Mid Year Nominal - EOY Real (2015/16)",CPI[],MATCH(Q$4,CPI[#Headers],0),FALSE) -> 0.009163433468 | R19: =ProjectData[[#This Row],[Actuals 11/12]]*VLOOKUP("Mid Year Nominal - EOY Real (2015/16)",CPI[],MATCH(R$4,CPI[#Headers],0),FALSE) -> 0 | S19: =ProjectData[[#This Row],[Actuals 12/13]]*VLOOKUP("Mid Year Nominal - EOY Real (2015/16)",CPI[],MATCH(S$4,CPI[#Headers],0),FALSE) -> 0 | T19: =ProjectData[[#This Row],[Actuals 13/14]]*VLOOKUP("Mid Year Nominal - EOY Real (2015/16)",CPI[],MATCH(T$4,CPI[#Headers],0),FALSE) -> 0 | U19: =ProjectData[[#This Row],[Actuals 14/15]]*VLOOKUP("Mid Year Nominal - EOY Real (2015/16)",CPI[],MATCH(U$4,CPI[#Headers],0),FALSE) -> 0 | V19: =SUM(ProjectData[[#This Row],[Real 08]:[Real 15]]) -> 1.118076401 | W19: =(ProjectData[[#This Row],[Real Sum]]-VLOOKUP(ProjectData[[#This Row],[Category]],Category_AverageStdDevLimit[],MATCH("Average",Category_AverageStdDevLimit[#Headers],0),FALSE))^2 -> 0.09844327095 | X19: =VLOOKUP(ProjectData[[#This Row],[Category]],Category_AverageStdDevLimit[],MATCH("Limit",Category_AverageStdDevLimit[#Headers],0),FALSE) -> 7.704088755 | Y19: =ProjectData[[#This Row],[Real Sum]]>ProjectData[[#This Row],[Category Limit]] -> FALSE | AA19: =OR(ProjectData[[#This Row],[Significant Project? (Financial Basis)]],ProjectData[[#This Row],[Non repeatable]]) -> FALSE | AB19: =AND(ProjectData[[#This Row],[SomeExpenditure >= 2011]],ProjectData[[#This Row],[Abnormal?]]) -> FALSE
A20: CP.01254 | B20: Ingham Microwave Radio Establishment | C20: Other | D20: 0.36778831 | E20: 0.13487625 | F20: 0.29687187 | H20: 0 | I20: 0 | K20: 0 | L20: =ProjectData[[#This Row],[Real Sum]]>0.00000001 -> TRUE | M20: =OR(ProjectData[[#This Row],[Real 11]]>0,ProjectData[[#This Row],[Real 12]]>0,ProjectData[[#This Row],[Real 13]]>0,ProjectData[[#This Row],[Real 14]]>0,ProjectData[[#This Row],[Real 15]]>0) -> FALSE | N20: =ProjectData[[#This Row],[Actuals 07/08]]*VLOOKUP("Mid Year Nominal - EOY Real (2015/16)",CPI[],MATCH(N$4,CPI[#Headers],0),FALSE) -> 0.454647531 | O20: =ProjectData[[#This Row],[Actuals 08/09]]*VLOOKUP("Mid Year Nominal - EOY Real (2015/16)",CPI[],MATCH(O$4,CPI[#Headers],0),FALSE) -> 0.1613245558 | P20: =ProjectData[[#This Row],[Actuals 09/10]]*VLOOKUP("Mid Year Nominal - EOY Real (2015/16)",CPI[],MATCH(P$4,CPI[#Headers],0),FALSE) -> 0.3458274357 | Q20: =ProjectData[[#This Row],[Actuals 10/11]]*VLOOKUP("Mid Year Nominal - EOY Real (2015/16)",CPI[],MATCH(Q$4,CPI[#Headers],0),FALSE) -> 0 | R20: =ProjectData[[#This Row],[Actuals 11/12]]*VLOOKUP("Mid Year Nominal - EOY Real (2015/16)",CPI[],MATCH(R$4,CPI[#Headers],0),FALSE) -> 0 | S20: =ProjectData[[#This Row],[Actuals 12/13]]*VLOOKUP("Mid Year Nominal - EOY Real (2015/16)",CPI[],MATCH(S$4,CPI[#Headers],0),FALSE) -> 0 | T20: =ProjectData[[#This Row],[Actuals 13/14]]*VLOOKUP("Mid Year Nominal - EOY Real (2015/16)",CPI[],MATCH(T$4,CPI[#Headers],0),FALSE) -> 0 | U20: =ProjectData[[#This Row],[Actuals 14/15]]*VLOOKUP("Mid Year Nominal - EOY Real (2015/16)",CPI[],MATCH(U$4,CPI[#Headers],0),FALSE) -> 0 | V20: =SUM(ProjectData[[#This Row],[Real 08]:[Real 15]]) -> 0.9617995225 | W20: =(ProjectData[[#This Row],[Real Sum]]-VLOOKUP(ProjectData[[#This Row],[Category]],Category_AverageStdDevLimit[],MATCH("Average",Category_AverageStdDevLimit[#Headers],0),FALSE))^2 -> 0.2209315715 | X20: =VLOOKUP(ProjectData[[#This Row],[Category]],Category_AverageStdDevLimit[],MATCH("Limit",Category_AverageStdDevLimit[#Headers],0),FALSE) -> 7.704088755 | Y20: =ProjectData[[#This Row],[Real Sum]]>ProjectData[[#This Row],[Category Limit]] -> FALSE | AA20: =OR(ProjectData[[#This Row],[Significant Project? (Financial Basis)]],ProjectData[[#This Row],[Non repeatable]]) -> FALSE | AB20: =AND(ProjectData[[#This Row],[SomeExpenditure >= 2011]],ProjectData[[#This Row],[Abnormal?]]) -> FALSE
A21: CP.01272 | B21: Network Ops Centre Wallboard Replacement | C21: Replacement | D21: 0.04525818 | E21: 0 | F21: 0 | G21: 0 | H21: 0 | I21: 0 | K21: 0 | L21: =ProjectData[[#This Row],[Real Sum]]>0.00000001 -> TRUE | M21: =OR(ProjectData[[#This Row],[Real 11]]>0,ProjectData[[#This Row],[Real 12]]>0,ProjectData[[#This Row],[Real 13]]>0,ProjectData[[#This Row],[Real 14]]>0,ProjectData[[#This Row],[Real 15]]>0) -> FALSE | N21: =ProjectData[[#This Row],[Actuals 07/08]]*VLOOKUP("Mid Year Nominal - EOY Real (2015/16)",CPI[],MATCH(N$4,CPI[#Headers],0),FALSE) -> 0.05594663896 | O21: =ProjectData[[#This Row],[Actuals 08/09]]*VLOOKUP("Mid Year Nominal - EOY Real (2015/16)",CPI[],MATCH(O$4,CPI[#Headers],0),FALSE) -> 0 | P21: =ProjectData[[#This Row],[Actuals 09/10]]*VLOOKUP("Mid Year Nominal - EOY Real (2015/16)",CPI[],MATCH(P$4,CPI[#Headers],0),FALSE) -> 0 | Q21: =ProjectData[[#This Row],[Actuals 10/11]]*VLOOKUP("Mid Year Nominal - EOY Real (2015/16)",CPI[],MATCH(Q$4,CPI[#Headers],0),FALSE) -> 0 | R21: =ProjectData[[#This Row],[Actuals 11/12]]*VLOOKUP("Mid Year Nominal - EOY Real (2015/16)",CPI[],MATCH(R$4,CPI[#Headers],0),FALSE) -> 0 | S21: =ProjectData[[#This Row],[Actuals 12/13]]*VLOOKUP("Mid Year Nominal - EOY Real (2015/16)",CPI[],MATCH(S$4,CPI[#Headers],0),FALSE) -> 0 | T21: =ProjectData[[#This Row],[Actuals 13/14]]*VLOOKUP("Mid Year Nominal - EOY Real (2015/16)",CPI[],MATCH(T$4,CPI[#Headers],0),FALSE) -> 0 | U21: =ProjectData[[#This Row],[Actuals 14/15]]*VLOOKUP("Mid Year Nominal - EOY Real (2015/16)",CPI[],MATCH(U$4,CPI[#Headers],0),FALSE) -> 0 | V21: =SUM(ProjectData[[#This Row],[Real 08]:[Real 15]]) -> 0.05594663896 | W21: =(ProjectData[[#This Row],[Real Sum]]-VLOOKUP(ProjectData[[#This Row],[Category]],Category_AverageStdDevLimit[],MATCH("Average",Category_AverageStdDevLimit[#Headers],0),FALSE))^2 -> 0.3720008935 | X21: =VLOOKUP(ProjectData[[#This Row],[Category]],Category_AverageStdDevLimit[],MATCH("Limit",Category_AverageStdDevLimit[#Headers],0),FALSE) -> 2.96351611 | Y21: =ProjectData[[#This Row],[Real Sum]]>ProjectData[[#This Row],[Category Limit]] -> FALSE | AA21: =OR(ProjectData[[#This Row],[Significant Project? (Financial Basis)]],ProjectData[[#This Row],[Non repeatable]]) -> FALSE | AB21: =AND(ProjectData[[#This Row],[SomeExpenditure >= 2011]],ProjectData[[#This Row],[Abnormal?]]) -> FALSE
A22: CP.01273 | B22: EMS Hardware Replacement | C22: Replacement | D22: 0.00039994 | E22: 0 | F22: 0 | G22: 0 | H22: 0 | I22: 0 | K22: 0 | L22: =ProjectData[[#This Row],[Real Sum]]>0.00000001 -> TRUE | M22: =OR(ProjectData[[#This Row],[Real 11]]>0,ProjectData[[#This Row],[Real 12]]>0,ProjectData[[#This Row],[Real 13]]>0,ProjectData[[#This Row],[Real 14]]>0,ProjectData[[#This Row],[Real 15]]>0) -> FALSE | N22: =ProjectData[[#This Row],[Actuals 07/08]]*VLOOKUP("Mid Year Nominal - EOY Real (2015/16)",CPI[],MATCH(N$4,CPI[#Headers],0),FALSE) -> 0.0004943923681 | O22: =ProjectData[[#This Row],[Actuals 08/09]]*VLOOKUP("Mid Year Nominal - EOY Real (2015/16)",CPI[],MATCH(O$4,CPI[#Headers],0),FALSE) -> 0 | P22: =ProjectData[[#This Row],[Actuals 09/10]]*VLOOKUP("Mid Year Nominal - EOY Real (2015/16)",CPI[],MATCH(P$4,CPI[#Headers],0),FALSE) -> 0 | Q22: =ProjectData[[#This Row],[Actuals 10/11]]*VLOOKUP("Mid Year Nominal - EOY Real (2015/16)",CPI[],MATCH(Q$4,CPI[#Headers],0),FALSE) -> 0 | R22: =ProjectData[[#This Row],[Actuals 11/12]]*VLOOKUP("Mid Year Nominal - EOY Real (2015/16)",CPI[],MATCH(R$4,CPI[#Headers],0),FALSE) -> 0 | S22: =ProjectData[[#This Row],[Actuals 12/13]]*VLOOKUP("Mid Year Nominal - EOY Real (2015/16)",CPI[],MATCH(S$4,CPI[#Headers],0),FALSE) -> 0 | T22: =ProjectData[[#This Row],[Actuals 13/14]]*VLOOKUP("Mid Year Nominal - EOY Real (2015/16)",CPI[],MATCH(T$4,CPI[#Headers],0),FALSE) -> 0 | U22: =ProjectData[[#This Row],[Actuals 14/15]]*VLOOKUP("Mid Year Nominal - EOY Real (2015/16)",CPI[],MATCH(U$4,CPI[#Headers],0),FALSE) -> 0 | V22: =SUM(ProjectData[[#This Row],[Real 08]:[Real 15]]) -> 0.0004943923681 | W22: =(ProjectData[[#This Row],[Real Sum]]-VLOOKUP(ProjectData[[#This Row],[Category]],Category_AverageStdDevLimit[],MATCH("Average",Category_AverageStdDevLimit[#Headers],0),FALSE))^2 -> 0.4427185761 | X22: =VLOOKUP(ProjectData[[#This Row],[Category]],Category_AverageStdDevLimit[],MATCH("Limit",Category_AverageStdDevLimit[#Headers],0),FALSE) -> 2.96351611 | Y22: =ProjectData[[#This Row],[Real Sum]]>ProjectData[[#This Row],[Category Limit]] -> FALSE | AA22: =OR(ProjectData[[#This Row],[Significant Project? (Financial Basis)]],ProjectData[[#This Row],[Non repeatable]]) -> FALSE | AB22: =AND(ProjectData[[#This Row],[SomeExpenditure >= 2011]],ProjectData[[#This Row],[Abnormal?]]) -> FALSE
A23: CP.01274 | B23: Braemar Power Station Telecomms | C23: Other | E23: 0.035677 | F23: 0 | G23: 0 | H23: 0 | I23: 0 | K23: 0 | L23: =ProjectData[[#This Row],[Real Sum]]>0.00000001 -> TRUE | M23: =OR(ProjectData[[#This Row],[Real 11]]>0,ProjectData[[#This Row],[Real 12]]>0,ProjectData[[#This Row],[Real 13]]>0,ProjectData[[#This Row],[Real 14]]>0,ProjectData[[#This Row],[Real 15]]>0) -> FALSE | N23: =ProjectData[[#This Row],[Actuals 07/08]]*VLOOKUP("Mid Year Nominal - EOY Real (2015/16)",CPI[],MATCH(N$4,CPI[#Headers],0),FALSE) -> 0 | O23: =ProjectData[[#This Row],[Actuals 08/09]]*VLOOKUP("Mid Year Nominal - EOY Real (2015/16)",CPI[],MATCH(O$4,CPI[#Headers],0),FALSE) -> 0.04267301454 | P23: =ProjectData[[#This Row],[Actuals 09/10]]*VLOOKUP("Mid Year Nominal - EOY Real (2015/16)",CPI[],MATCH(P$4,CPI[#Headers],0),FALSE) -> 0 | Q23: =ProjectData[[#This Row],[Actuals 10/11]]*VLOOKUP("Mid Year Nominal - EOY Real (2015/16)",CPI[],MATCH(Q$4,CPI[#Headers],0),FALSE) -> 0 | R23: =ProjectData[[#This Row],[Actuals 11/12]]*VLOOKUP("Mid Year Nominal - EOY Real (2015/16)",CPI[],MATCH(R$4,CPI[#Headers],0),FALSE) -> 0 | S23: =ProjectData[[#This Row],[Actuals 12/13]]*VLOOKUP("Mid Year Nominal - EOY Real (2015/16)",CPI[],MATCH(S$4,CPI[#Headers],0),FALSE) -> 0 | T23: =ProjectData[[#This Row],[Actuals 13/14]]*VLOOKUP("Mid Year Nominal - EOY Real (2015/16)",CPI[],MATCH(T$4,CPI[#Headers],0),FALSE) -> 0 | U23: =ProjectData[[#This Row],[Actuals 14/15]]*VLOOKUP("Mid Year Nominal - EOY Real (2015/16)",CPI[],MATCH(U$4,CPI[#Headers],0),FALSE) -> 0 | V23: =SUM(ProjectData[[#This Row],[Real 08]:[Real 15]]) -> 0.04267301454 | W23: =(ProjectData[[#This Row],[Real Sum]]-VLOOKUP(ProjectData[[#This Row],[Category]],Category_AverageStdDevLimit[],MATCH("Average",Category_AverageStdDevLimit[#Headers],0),FALSE))^2 -> 1.929765765 | X23: =VLOOKUP(ProjectData[[#This Row],[Category]],Category_AverageStdDevLimit[],MATCH("Limit",Category_AverageStdDevLimit[#Headers],0),FALSE) -> 7.704088755 | Y23: =ProjectData[[#This Row],[Real Sum]]>ProjectData[[#This Row],[Category Limit]] -> FALSE | AA23: =OR(ProjectData[[#This Row],[Significant Project? (Financial Basis)]],ProjectData[[#This Row],[Non repeatable]]) -> FALSE | AB23: =AND(ProjectData[[#This Row],[SomeExpenditure >= 2011]],ProjectData[[#This Row],[Abnormal?]]) -> FALSE
A24: CP.01295 | B24: New Virginia Mux & PABX | C24: Other | D24: 0.06483106 | H24: 0 | I24: 0 | K24: 0 | L24: =ProjectData[[#This Row],[Real Sum]]>0.00000001 -> TRUE | M24: =OR(ProjectData[[#This Row],[Real 11]]>0,ProjectData[[#This Row],[Real 12]]>0,ProjectData[[#This Row],[Real 13]]>0,ProjectData[[#This Row],[Real 14]]>0,ProjectData[[#This Row],[Real 15]]>0) -> FALSE | N24: =ProjectData[[#This Row],[Actuals 07/08]]*VLOOKUP("Mid Year Nominal - EOY Real (2015/16)",CPI[],MATCH(N$4,CPI[#Headers],0),FALSE) -> 0.0801419745 | O24: =ProjectData[[#This Row],[Actuals 08/09]]*VLOOKUP("Mid Year Nominal - EOY Real (2015/16)",CPI[],MATCH(O$4,CPI[#Headers],0),FALSE) -> 0 | P24: =ProjectData[[#This Row],[Actuals 09/10]]*VLOOKUP("Mid Year Nominal - EOY Real (2015/16)",CPI[],MATCH(P$4,CPI[#Headers],0),FALSE) -> 0 | Q24: =ProjectData[[#This Row],[Actuals 10/11]]*VLOOKUP("Mid Year Nominal - EOY Real (2015/16)",CPI[],MATCH(Q$4,CPI[#Headers],0),FALSE) -> 0 | R24: =ProjectData[[#This Row],[Actuals 11/12]]*VLOOKUP("Mid Year Nominal - EOY Real (2015/16)",CPI[],MATCH(R$4,CPI[#Headers],0),FALSE) -> 0 | S24: =ProjectData[[#This Row],[Actuals 12/13]]*VLOOKUP("Mid Year Nominal - EOY Real (2015/16)",CPI[],MATCH(S$4,CPI[#Headers],0),FALSE) -> 0 | T24: =ProjectData[[#This Row],[Actuals 13/14]]*VLOOKUP("Mid Year Nominal - EOY Real (2015/16)",CPI[],MATCH(T$4,CPI[#Headers],0),FALSE) -> 0 | U24: =ProjectData[[#This Row],[Actuals 14/15]]*VLOOKUP("Mid Year Nominal - EOY Real (2015/16)",CPI[],MATCH(U$4,CPI[#Headers],0),FALSE) -> 0 | V24: =SUM(ProjectData[[#This Row],[Real 08]:[Real 15]]) -> 0.0801419745 | W24: =(ProjectData[[#This Row],[Real Sum]]-VLOOKUP(ProjectData[[#This Row],[Category]],Category_AverageStdDevLimit[],MATCH("Average",Category_AverageStdDevLimit[#Headers],0),FALSE))^2 -> 1.82706892 | X24: =VLOOKUP(ProjectData[[#This Row],[Category]],Category_AverageStdDevLimit[],MATCH("Limit",Category_AverageStdDevLimit[#Headers],0),FALSE) -> 7.704088755 | Y24: =ProjectData[[#This Row],[Real Sum]]>ProjectData[[#This Row],[Category Limit]] -> FALSE | AA24: =OR(ProjectData[[#This Row],[Significant Project? (Financial Basis)]],ProjectData[[#This Row],[Non repeatable]]) -> FALSE | AB24: =AND(ProjectData[[#This Row],[SomeExpenditure >= 2011]],ProjectData[[#This Row],[Abnormal?]]) -> FALSE
A25: CP.01298 | B25: Relocation of NOC Infrastructure | C25: Security / Compliance | D25: 0.23700444 | E25: 0.17571264 | F25: 0.01367669 | H25: 0 | I25: 0 | K25: 0 | L25: =ProjectData[[#This Row],[Real Sum]]>0.00000001 -> TRUE | M25: =OR(ProjectData[[#This Row],[Real 11]]>0,ProjectData[[#This Row],[Real 12]]>0,ProjectData[[#This Row],[Real 13]]>0,ProjectData[[#This Row],[Real 14]]>0,ProjectData[[#This Row],[Real 15]]>0) -> FALSE | N25: =ProjectData[[#This Row],[Actuals 07/08]]*VLOOKUP("Mid Year Nominal - EOY Real (2015/16)",CPI[],MATCH(N$4,CPI[#Headers],0),FALSE) -> 0.2929769124 | O25: =ProjectData[[#This Row],[Actuals 08/09]]*VLOOKUP("Mid Year Nominal - EOY Real (2015/16)",CPI[],MATCH(O$4,CPI[#Headers],0),FALSE) -> 0.2101686813 | P25: =ProjectData[[#This Row],[Actuals 09/10]]*VLOOKUP("Mid Year Nominal - EOY Real (2015/16)",CPI[],MATCH(P$4,CPI[#Headers],0),FALSE) -> 0.01593204042 | Q25: =ProjectData[[#This Row],[Actuals 10/11]]*VLOOKUP("Mid Year Nominal - EOY Real (2015/16)",CPI[],MATCH(Q$4,CPI[#Headers],0),FALSE) -> 0 | R25: =ProjectData[[#This Row],[Actuals 11/12]]*VLOOKUP("Mid Year Nominal - EOY Real (2015/16)",CPI[],MATCH(R$4,CPI[#Headers],0),FALSE) -> 0 | S25: =ProjectData[[#This Row],[Actuals 12/13]]*VLOOKUP("Mid Year Nominal - EOY Real (2015/16)",CPI[],MATCH(S$4,CPI[#Headers],0),FALSE) -> 0 | T25: =ProjectData[[#This Row],[Actuals 13/14]]*VLOOKUP("Mid Year Nominal - EOY Real (2015/16)",CPI[],MATCH(T$4,CPI[#Headers],0),FALSE) -> 0 | U25: =ProjectData[[#This Row],[Actuals 14/15]]*VLOOKUP("Mid Year Nominal - EOY Real (2015/16)",CPI[],MATCH(U$4,CPI[#Headers],0),FALSE) -> 0 | V25: =SUM(ProjectData[[#This Row],[Real 08]:[Real 15]]) -> 0.5190776341 | W25: =(ProjectData[[#This Row],[Real Sum]]-VLOOKUP(ProjectData[[#This Row],[Category]],Category_AverageStdDevLimit[],MATCH("Average",Category_AverageStdDevLimit[#Headers],0),FALSE))^2 -> 9.445457915 | X25: =VLOOKUP(ProjectData[[#This Row],[Category]],Category_AverageStdDevLimit[],MATCH("Limit",Category_AverageStdDevLimit[#Headers],0),FALSE) -> 10.86958417 | Y25: =ProjectData[[#This Row],[Real Sum]]>ProjectData[[#This Row],[Category Limit]] -> FALSE | AA25: =OR(ProjectData[[#This Row],[Significant Project? (Financial Basis)]],ProjectData[[#This Row],[Non repeatable]]) -> FALSE | AB25: =AND(ProjectData[[#This Row],[SomeExpenditure >= 2011]],ProjectData[[#This Row],[Abnormal?]]) -> FALSE
A26: CP.01301 | B26: Power Quality Monitoring Stages 1&2 | C26: Other | D26: 0.03188221 | E26: 0.39199701 | F26: 0.05976304 | G26: 0.19758011 | H26: 1.49436226 | I26: 1.38145545 | J26: 1.17605704 | K26: 0.16339881 | L26: =ProjectData[[#This Row],[Real Sum]]>0.00000001 -> TRUE | M26: =OR(ProjectData[[#This Row],[Real 11]]>0,ProjectData[[#This Row],[Real 12]]>0,ProjectData[[#This Row],[Real 13]]>0,ProjectData[[#This Row],[Real 14]]>0,ProjectData[[#This Row],[Real 15]]>0) -> TRUE | N26: =ProjectData[[#This Row],[Actuals 07/08]]*VLOOKUP("Mid Year Nominal - EOY Real (2015/16)",CPI[],MATCH(N$4,CPI[#Headers],0),FALSE) -> 0.03941171501 | O26: =ProjectData[[#This Row],[Actuals 08/09]]*VLOOKUP("Mid Year Nominal - EOY Real (2015/16)",CPI[],MATCH(O$4,CPI[#Headers],0),FALSE) -> 0.46886493 | P26: =ProjectData[[#This Row],[Actuals 09/10]]*VLOOKUP("Mid Year Nominal - EOY Real (2015/16)",CPI[],MATCH(P$4,CPI[#Headers],0),FALSE) -> 0.06961824599 | Q26: =ProjectData[[#This Row],[Actuals 10/11]]*VLOOKUP("Mid Year Nominal - EOY Real (2015/16)",CPI[],MATCH(Q$4,CPI[#Headers],0),FALSE) -> 0.2232686398 | R26: =ProjectData[[#This Row],[Actuals 11/12]]*VLOOKUP("Mid Year Nominal - EOY Real (2015/16)",CPI[],MATCH(R$4,CPI[#Headers],0),FALSE) -> 1.648451313 | S26: =ProjectData[[#This Row],[Actuals 12/13]]*VLOOKUP("Mid Year Nominal - EOY Real (2015/16)",CPI[],MATCH(S$4,CPI[#Headers],0),FALSE) -> 1.493082821 | T26: =ProjectData[[#This Row],[Actuals 13/14]]*VLOOKUP("Mid Year Nominal - EOY Real (2015/16)",CPI[],MATCH(T$4,CPI[#Headers],0),FALSE) -> 1.237479004 | U26: =ProjectData[[#This Row],[Actuals 14/15]]*VLOOKUP("Mid Year Nominal - EOY Real (2015/16)",CPI[],MATCH(U$4,CPI[#Headers],0),FALSE) -> 0.1683537112 | V26: =SUM(ProjectData[[#This Row],[Real 08]:[Real 15]]) -> 5.34853038 | W26: =(ProjectData[[#This Row],[Real Sum]]-VLOOKUP(ProjectData[[#This Row],[Category]],Category_AverageStdDevLimit[],MATCH("Average",Category_AverageStdDevLimit[#Headers],0),FALSE))^2 -> 15.34051752 | X26: =VLOOKUP(ProjectData[[#This Row],[Category]],Category_AverageStdDevLimit[],MATCH("Limit",Category_AverageStdDevLimit[#Headers],0),FALSE) -> 7.704088755 | Y26: =ProjectData[[#This Row],[Real Sum]]>ProjectData[[#This Row],[Category Limit]] -> FALSE | AA26: =OR(ProjectData[[#This Row],[Significant Project? (Financial Basis)]],ProjectData[[#This Row],[Non repeatable]]) -> FALSE | AB26: =AND(ProjectData[[#This Row],[SomeExpenditure >= 2011]],ProjectData[[#This Row],[Abnormal?]]) -> FALSE
A27: CP.01304 | B27: Test Sticks & Detectors Replacement | C27: Replacement | D27: 0.11883216 | E27: 0 | F27: 0 | G27: 0 | H27: 0 | I27: 0 | K27: 0 | L27: =ProjectData[[#This Row],[Real Sum]]>0.00000001 -> TRUE | M27: =OR(ProjectData[[#This Row],[Real 11]]>0,ProjectData[[#This Row],[Real 12]]>0,ProjectData[[#This Row],[Real 13]]>0,ProjectData[[#This Row],[Real 14]]>0,ProjectData[[#This Row],[Real 15]]>0) -> FALSE | N27: =ProjectData[[#This Row],[Actuals 07/08]]*VLOOKUP("Mid Year Nominal - EOY Real (2015/16)",CPI[],MATCH(N$4,CPI[#Headers],0),FALSE) -> 0.1468963169 | O27: =ProjectData[[#This Row],[Actuals 08/09]]*VLOOKUP("Mid Year Nominal - EOY Real (2015/16)",CPI[],MATCH(O$4,CPI[#Headers],0),FALSE) -> 0 | P27: =ProjectData[[#This Row],[Actuals 09/10]]*VLOOKUP("Mid Year Nominal - EOY Real (2015/16)",CPI[],MATCH(P$4,CPI[#Headers],0),FALSE) -> 0 | Q27: =ProjectData[[#This Row],[Actuals 10/11]]*VLOOKUP("Mid Year Nominal - EOY Real (2015/16)",CPI[],MATCH(Q$4,CPI[#Headers],0),FALSE) -> 0 | R27: =ProjectData[[#This Row],[Actuals 11/12]]*VLOOKUP("Mid Year Nominal - EOY Real (2015/16)",CPI[],MATCH(R$4,CPI[#Headers],0),FALSE) -> 0 | S27: =ProjectData[[#This Row],[Actuals 12/13]]*VLOOKUP("Mid Year Nominal - EOY Real (2015/16)",CPI[],MATCH(S$4,CPI[#Headers],0),FALSE) -> 0 | T27: =ProjectData[[#This Row],[Actuals 13/14]]*VLOOKUP("Mid Year Nominal - EOY Real (2015/16)",CPI[],MATCH(T$4,CPI[#Headers],0),FALSE) -> 0 | U27: =ProjectData[[#This Row],[Actuals 14/15]]*VLOOKUP("Mid Year Nominal - EOY Real (2015/16)",CPI[],MATCH(U$4,CPI[#Headers],0),FALSE) -> 0 | V27: =SUM(ProjectData[[#This Row],[Real 08]:[Real 15]]) -> 0.1468963169 | W27: =(ProjectData[[#This Row],[Real Sum]]-VLOOKUP(ProjectData[[#This Row],[Category]],Category_AverageStdDevLimit[],MATCH("Average",Category_AverageStdDevLimit[#Headers],0),FALSE))^2 -> 0.2693289078 | X27: =VLOOKUP(ProjectData[[#This Row],[Category]],Category_AverageStdDevLimit[],MATCH("Limit",Category_AverageStdDevLimit[#Headers],0),FALSE) -> 2.96351611 | Y27: =ProjectData[[#This Row],[Real Sum]]>ProjectData[[#This Row],[Category Limit]] -> FALSE | AA27: =OR(ProjectData[[#This Row],[Significant Project? (Financial Basis)]],ProjectData[[#This Row],[Non repeatable]]) -> FALSE | AB27: =AND(ProjectData[[#This Row],[SomeExpenditure >= 2011]],ProjectData[[#This Row],[Abnormal?]]) -> FALSE
A28: CP.01305 | B28: Virginia Telstra Connection | C28: Other | D28: 0.03488124 | E28: 0 | F28: 0 | G28: 0 | H28: 0 | I28: 0 | K28: 0 | L28: =ProjectData[[#This Row],[Real Sum]]>0.00000001 -> TRUE | M28: =OR(ProjectData[[#This Row],[Real 11]]>0,ProjectData[[#This Row],[Real 12]]>0,ProjectData[[#This Row],[Real 13]]>0,ProjectData[[#This Row],[Real 14]]>0,ProjectData[[#This Row],[Real 15]]>0) -> FALSE | N28: =ProjectData[[#This Row],[Actuals 07/08]]*VLOOKUP("Mid Year Nominal - EOY Real (2015/16)",CPI[],MATCH(N$4,CPI[#Headers],0),FALSE) -> 0.04311901497 | O28: =ProjectData[[#This Row],[Actuals 08/09]]*VLOOKUP("Mid Year Nominal - EOY Real (2015/16)",CPI[],MATCH(O$4,CPI[#Headers],0),FALSE) -> 0 | P28: =ProjectData[[#This Row],[Actuals 09/10]]*VLOOKUP("Mid Year Nominal - EOY Real (2015/16)",CPI[],MATCH(P$4,CPI[#Headers],0),FALSE) -> 0 | Q28: =ProjectData[[#This Row],[Actuals 10/11]]*VLOOKUP("Mid Year Nominal - EOY Real (2015/16)",CPI[],MATCH(Q$4,CPI[#Headers],0),FALSE) -> 0 | R28: =ProjectData[[#This Row],[Actuals 11/12]]*VLOOKUP("Mid Year Nominal - EOY Real (2015/16)",CPI[],MATCH(R$4,CPI[#Headers],0),FALSE) -> 0 | S28: =ProjectData[[#This Row],[Actuals 12/13]]*VLOOKUP("Mid Year Nominal - EOY Real (2015/16)",CPI[],MATCH(S$4,CPI[#Headers],0),FALSE) -> 0 | T28: =ProjectData[[#This Row],[Actuals 13/14]]*VLOOKUP("Mid Year Nominal - EOY Real (2015/16)",CPI[],MATCH(T$4,CPI[#Headers],0),FALSE) -> 0 | U28: =ProjectData[[#This Row],[Actuals 14/15]]*VLOOKUP("Mid Year Nominal - EOY Real (2015/16)",CPI[],MATCH(U$4,CPI[#Headers],0),FALSE) -> 0 | V28: =SUM(ProjectData[[#This Row],[Real 08]:[Real 15]]) -> 0.04311901497 | W28: =(ProjectData[[#This Row],[Real Sum]]-VLOOKUP(ProjectData[[#This Row],[Category]],Category_AverageStdDevLimit[],MATCH("Average",Category_AverageStdDevLimit[#Headers],0),FALSE))^2 -> 1.928526832 | X28: =VLOOKUP(ProjectData[[#This Row],[Category]],Category_AverageStdDevLimit[],MATCH("Limit",Category_AverageStdDevLimit[#Headers],0),FALSE) -> 7.704088755 | Y28: =ProjectData[[#This Row],[Real Sum]]>ProjectData[[#This Row],[Category Limit]] -> FALSE | AA28: =OR(ProjectData[[#This Row],[Significant Project? (Financial Basis)]],ProjectData[[#This Row],[Non repeatable]]) -> FALSE | AB28: =AND(ProjectData[[#This Row],[SomeExpenditure >= 2011]],ProjectData[[#This Row],[Abnormal?]]) -> FALSE
A29: CP.01312 | B29: Minnippi Park to Mary St Optical Fibre C | C29: Other | D29: 0.19497747 | E29: 0.14439276 | F29: 0 | G29: 0 | H29: 0 | I29: 0 | K29: 0 | L29: =ProjectData[[#This Row],[Real Sum]]>0.00000001 -> TRUE | M29: =OR(ProjectData[[#This Row],[Real 11]]>0,ProjectData[[#This Row],[Real 12]]>0,ProjectData[[#This Row],[Real 13]]>0,ProjectData[[#This Row],[Real 14]]>0,ProjectData[[#This Row],[Real 15]]>0) -> FALSE | N29: =ProjectData[[#This Row],[Actuals 07/08]]*VLOOKUP("Mid Year Nominal - EOY Real (2015/16)",CPI[],MATCH(N$4,CPI[#Headers],0),FALSE) -> 0.2410245865 | O29: =ProjectData[[#This Row],[Actuals 08/09]]*VLOOKUP("Mid Year Nominal - EOY Real (2015/16)",CPI[],MATCH(O$4,CPI[#Headers],0),FALSE) -> 0.172707188 | P29: =ProjectData[[#This Row],[Actuals 09/10]]*VLOOKUP("Mid Year Nominal - EOY Real (2015/16)",CPI[],MATCH(P$4,CPI[#Headers],0),FALSE) -> 0 | Q29: =ProjectData[[#This Row],[Actuals 10/11]]*VLOOKUP("Mid Year Nominal - EOY Real (2015/16)",CPI[],MATCH(Q$4,CPI[#Headers],0),FALSE) -> 0 | R29: =ProjectData[[#This Row],[Actuals 11/12]]*VLOOKUP("Mid Year Nominal - EOY Real (2015/16)",CPI[],MATCH(R$4,CPI[#Headers],0),FALSE) -> 0 | S29: =ProjectData[[#This Row],[Actuals 12/13]]*VLOOKUP("Mid Year Nominal - EOY Real (2015/16)",CPI[],MATCH(S$4,CPI[#Headers],0),FALSE) -> 0 | T29: =ProjectData[[#This Row],[Actuals 13/14]]*VLOOKUP("Mid Year Nominal - EOY Real (2015/16)",CPI[],MATCH(T$4,CPI[#Headers],0),FALSE) -> 0 | U29: =ProjectData[[#This Row],[Actuals 14/15]]*VLOOKUP("Mid Year Nominal - EOY Real (2015/16)",CPI[],MATCH(U$4,CPI[#Headers],0),FALSE) -> 0 | V29: =SUM(ProjectData[[#This Row],[Real 08]:[Real 15]]) -> 0.4137317745 | W29: =(ProjectData[[#This Row],[Real Sum]]-VLOOKUP(ProjectData[[#This Row],[Category]],Category_AverageStdDevLimit[],MATCH("Average",Category_AverageStdDevLimit[#Headers],0),FALSE))^2 -> 1.036530325 | X29: =VLOOKUP(ProjectData[[#This Row],[Category]],Category_AverageStdDevLimit[],MATCH("Limit",Category_AverageStdDevLimit[#Headers],0),FALSE) -> 7.704088755 | Y29: =ProjectData[[#This Row],[Real Sum]]>ProjectData[[#This Row],[Category Limit]] -> FALSE | AA29: =OR(ProjectData[[#This Row],[Significant Project? (Financial Basis)]],ProjectData[[#This Row],[Non repeatable]]) -> FALSE | AB29: =AND(ProjectData[[#This Row],[SomeExpenditure >= 2011]],ProjectData[[#This Row],[Abnormal?]]) -> FALSE
A30: CP.01313 | B30: Ross - Chalumbin OPGW Retrofit | C30: Other | D30: 0.76215295 | E30: 0.01804321 | H30: 0 | I30: 0 | K30: 0 | L30: =ProjectData[[#This Row],[Real Sum]]>0.00000001 -> TRUE | M30: =OR(ProjectData[[#This Row],[Real 11]]>0,ProjectData[[#This Row],[Real 12]]>0,ProjectData[[#This Row],[Real 13]]>0,ProjectData[[#This Row],[Real 14]]>0,ProjectData[[#This Row],[Real 15]]>0) -> FALSE | N30: =ProjectData[[#This Row],[Actuals 07/08]]*VLOOKUP("Mid Year Nominal - EOY Real (2015/16)",CPI[],MATCH(N$4,CPI[#Headers],0),FALSE) -> 0.9421478267 | O30: =ProjectData[[#This Row],[Actuals 08/09]]*VLOOKUP("Mid Year Nominal - EOY Real (2015/16)",CPI[],MATCH(O$4,CPI[#Headers],0),FALSE) -> 0.02158135949 | P30: =ProjectData[[#This Row],[Actuals 09/10]]*VLOOKUP("Mid Year Nominal - EOY Real (2015/16)",CPI[],MATCH(P$4,CPI[#Headers],0),FALSE) -> 0 | Q30: =ProjectData[[#This Row],[Actuals 10/11]]*VLOOKUP("Mid Year Nominal - EOY Real (2015/16)",CPI[],MATCH(Q$4,CPI[#Headers],0),FALSE) -> 0 | R30: =ProjectData[[#This Row],[Actuals 11/12]]*VLOOKUP("Mid Year Nominal - EOY Real (2015/16)",CPI[],MATCH(R$4,CPI[#Headers],0),FALSE) -> 0 | S30: =ProjectData[[#This Row],[Actuals 12/13]]*VLOOKUP("Mid Year Nominal - EOY Real (2015/16)",CPI[],MATCH(S$4,CPI[#Headers],0),FALSE) -> 0 | T30: =ProjectData[[#This Row],[Actuals 13/14]]*VLOOKUP("Mid Year Nominal - EOY Real (2015/16)",CPI[],MATCH(T$4,CPI[#Headers],0),FALSE) -> 0 | U30: =ProjectData[[#This Row],[Actuals 14/15]]*VLOOKUP("Mid Year Nominal - EOY Real (2015/16)",CPI[],MATCH(U$4,CPI[#Headers],0),FALSE) -> 0 | V30: =SUM(ProjectData[[#This Row],[Real 08]:[Real 15]]) -> 0.9637291862 | W30: =(ProjectData[[#This Row],[Real Sum]]-VLOOKUP(ProjectData[[#This Row],[Category]],Category_AverageStdDevLimit[],MATCH("Average",Category_AverageStdDevLimit[#Headers],0),FALSE))^2 -> 0.2191212816 | X30: =VLOOKUP(ProjectData[[#This Row],[Category]],Category_AverageStdDevLimit[],MATCH("Limit",Category_AverageStdDevLimit[#Headers],0),FALSE) -> 7.704088755 | Y30: =ProjectData[[#This Row],[Real Sum]]>ProjectData[[#This Row],[Category Limit]] -> FALSE | AA30: =OR(ProjectData[[#This Row],[Significant Project? (Financial Basis)]],ProjectData[[#This Row],[Non repeatable]]) -> FALSE | AB30: =AND(ProjectData[[#This Row],[SomeExpenditure >= 2011]],ProjectData[[#This Row],[Abnormal?]]) -> FALSE
A31: CP.01334 | B31: EMS DIMA Upgrade | C31: Replacement | E31: 0.0962727 | F31: 0.2373283 | G31: 1.11918588 | H31: 0.71346572 | I31: 0.02269377 | J31: 0 | K31: 0 | L31: =ProjectData[[#This Row],[Real Sum]]>0.00000001 -> TRUE | M31: =OR(ProjectData[[#This Row],[Real 11]]>0,ProjectData[[#This Row],[Real 12]]>0,ProjectData[[#This Row],[Real 13]]>0,ProjectData[[#This Row],[Real 14]]>0,ProjectData[[#This Row],[Real 15]]>0) -> TRUE | N31: =ProjectData[[#This Row],[Actuals 07/08]]*VLOOKUP("Mid Year Nominal - EOY Real (2015/16)",CPI[],MATCH(N$4,CPI[#Headers],0),FALSE) -> 0 | O31: =ProjectData[[#This Row],[Actuals 08/09]]*VLOOKUP("Mid Year Nominal - EOY Real (2015/16)",CPI[],MATCH(O$4,CPI[#Headers],0),FALSE) -> 0.1151511149 | P31: =ProjectData[[#This Row],[Actuals 09/10]]*VLOOKUP("Mid Year Nominal - EOY Real (2015/16)",CPI[],MATCH(P$4,CPI[#Headers],0),FALSE) -> 0.2764648513 | Q31: =ProjectData[[#This Row],[Actuals 10/11]]*VLOOKUP("Mid Year Nominal - EOY Real (2015/16)",CPI[],MATCH(Q$4,CPI[#Headers],0),FALSE) -> 1.264697692 | R31: =ProjectData[[#This Row],[Actuals 11/12]]*VLOOKUP("Mid Year Nominal - EOY Real (2015/16)",CPI[],MATCH(R$4,CPI[#Headers],0),FALSE) -> 0.7870337296 | S31: =ProjectData[[#This Row],[Actuals 12/13]]*VLOOKUP("Mid Year Nominal - EOY Real (2015/16)",CPI[],MATCH(S$4,CPI[#Headers],0),FALSE) -> 0.02452752141 | T31: =ProjectData[[#This Row],[Actuals 13/14]]*VLOOKUP("Mid Year Nominal - EOY Real (2015/16)",CPI[],MATCH(T$4,CPI[#Headers],0),FALSE) -> 0 | U31: =ProjectData[[#This Row],[Actuals 14/15]]*VLOOKUP("Mid Year Nominal - EOY Real (2015/16)",CPI[],MATCH(U$4,CPI[#Headers],0),FALSE) -> 0 | V31: =SUM(ProjectData[[#This Row],[Real 08]:[Real 15]]) -> 2.46787491 | W31: =(ProjectData[[#This Row],[Real Sum]]-VLOOKUP(ProjectData[[#This Row],[Category]],Category_AverageStdDevLimit[],MATCH("Average",Category_AverageStdDevLimit[#Headers],0),FALSE))^2 -> 3.247238277 | X31: =VLOOKUP(ProjectData[[#This Row],[Category]],Category_AverageStdDevLimit[],MATCH("Limit",Category_AverageStdDevLimit[#Headers],0),FALSE) -> 2.96351611 | Y31: =ProjectData[[#This Row],[Real Sum]]>ProjectData[[#This Row],[Category Limit]] -> FALSE | AA31: =OR(ProjectData[[#This Row],[Significant Project? (Financial Basis)]],ProjectData[[#This Row],[Non repeatable]]) -> FALSE | AB31: =AND(ProjectData[[#This Row],[SomeExpenditure >= 2011]],ProjectData[[#This Row],[Abnormal?]]) -> FALSE
A32: CP.01340 | B32: Nokia NMS Upgrade | C32: Replacement | D32: 0.09406167 | E32: 0.02456186 | F32: 0.01381025 | G32: 0.005698 | H32: 0 | I32: 0 | K32: 0 | L32: =ProjectData[[#This Row],[Real Sum]]>0.00000001 -> TRUE | M32: =OR(ProjectData[[#This Row],[Real 11]]>0,ProjectData[[#This Row],[Real 12]]>0,ProjectData[[#This Row],[Real 13]]>0,ProjectData[[#This Row],[Real 14]]>0,ProjectData[[#This Row],[Real 15]]>0) -> TRUE | N32: =ProjectData[[#This Row],[Actuals 07/08]]*VLOOKUP("Mid Year Nominal - EOY Real (2015/16)",CPI[],MATCH(N$4,CPI[#Headers],0),FALSE) -> 0.1162758708 | O32: =ProjectData[[#This Row],[Actuals 08/09]]*VLOOKUP("Mid Year Nominal - EOY Real (2015/16)",CPI[],MATCH(O$4,CPI[#Headers],0),FALSE) -> 0.02937827197 | P32: =ProjectData[[#This Row],[Actuals 09/10]]*VLOOKUP("Mid Year Nominal - EOY Real (2015/16)",CPI[],MATCH(P$4,CPI[#Headers],0),FALSE) -> 0.01608762509 | Q32: =ProjectData[[#This Row],[Actuals 10/11]]*VLOOKUP("Mid Year Nominal - EOY Real (2015/16)",CPI[],MATCH(Q$4,CPI[#Headers],0),FALSE) -> 0.006438829849 | R32: =ProjectData[[#This Row],[Actuals 11/12]]*VLOOKUP("Mid Year Nominal - EOY Real (2015/16)",CPI[],MATCH(R$4,CPI[#Headers],0),FALSE) -> 0 | S32: =ProjectData[[#This Row],[Actuals 12/13]]*VLOOKUP("Mid Year Nominal - EOY Real (2015/16)",CPI[],MATCH(S$4,CPI[#Headers],0),FALSE) -> 0 | T32: =ProjectData[[#This Row],[Actuals 13/14]]*VLOOKUP("Mid Year Nominal - EOY Real (2015/16)",CPI[],MATCH(T$4,CPI[#Headers],0),FALSE) -> 0 | U32: =ProjectData[[#This Row],[Actuals 14/15]]*VLOOKUP("Mid Year Nominal - EOY Real (2015/16)",CPI[],MATCH(U$4,CPI[#Headers],0),FALSE) -> 0 | V32: =SUM(ProjectData[[#This Row],[Real 08]:[Real 15]]) -> 0.1681805977 | W32: =(ProjectData[[#This Row],[Real Sum]]-VLOOKUP(ProjectData[[#This Row],[Category]],Category_AverageStdDevLimit[],MATCH("Average",Category_AverageStdDevLimit[#Headers],0),FALSE))^2 -> 0.2476901611 | X32: =VLOOKUP(ProjectData[[#This Row],[Category]],Category_AverageStdDevLimit[],MATCH("Limit",Category_AverageStdDevLimit[#Headers],0),FALSE) -> 2.96351611 | Y32: =ProjectData[[#This Row],[Real Sum]]>ProjectData[[#This Row],[Category Limit]] -> FALSE | AA32: =OR(ProjectData[[#This Row],[Significant Project? (Financial Basis)]],ProjectData[[#This Row],[Non repeatable]]) -> FALSE | AB32: =AND(ProjectData[[#This Row],[SomeExpenditure >= 2011]],ProjectData[[#This Row],[Abnormal?]]) -> FALSE
A33: CP.01343 | B33: Replacement of Barron Gorge to Wright's | C33: Replacement | D33: 0.06258366 | E33: 0 | F33: 0 | G33: 0 | H33: 0 | I33: 0 | K33: 0 | L33: =ProjectData[[#This Row],[Real Sum]]>0.00000001 -> TRUE | M33: =OR(ProjectData[[#This Row],[Real 11]]>0,ProjectData[[#This Row],[Real 12]]>0,ProjectData[[#This Row],[Real 13]]>0,ProjectData[[#This Row],[Real 14]]>0,ProjectData[[#This Row],[Real 15]]>0) -> FALSE | N33: =ProjectData[[#This Row],[Actuals 07/08]]*VLOOKUP("Mid Year Nominal - EOY Real (2015/16)",CPI[],MATCH(N$4,CPI[#Headers],0),FALSE) -> 0.07736381425 | O33: =ProjectData[[#This Row],[Actuals 08/09]]*VLOOKUP("Mid Year Nominal - EOY Real (2015/16)",CPI[],MATCH(O$4,CPI[#Headers],0),FALSE) -> 0 | P33: =ProjectData[[#This Row],[Actuals 09/10]]*VLOOKUP("Mid Year Nominal - EOY Real (2015/16)",CPI[],MATCH(P$4,CPI[#Headers],0),FALSE) -> 0 | Q33: =ProjectData[[#This Row],[Actuals 10/11]]*VLOOKUP("Mid Year Nominal - EOY Real (2015/16)",CPI[],MATCH(Q$4,CPI[#Headers],0),FALSE) -> 0 | R33: =ProjectData[[#This Row],[Actuals 11/12]]*VLOOKUP("Mid Year Nominal - EOY Real (2015/16)",CPI[],MATCH(R$4,CPI[#Headers],0),FALSE) -> 0 | S33: =ProjectData[[#This Row],[Actuals 12/13]]*VLOOKUP("Mid Year Nominal - EOY Real (2015/16)",CPI[],MATCH(S$4,CPI[#Headers],0),FALSE) -> 0 | T33: =ProjectData[[#This Row],[Actuals 13/14]]*VLOOKUP("Mid Year Nominal - EOY Real (2015/16)",CPI[],MATCH(T$4,CPI[#Headers],0),FALSE) -> 0 | U33: =ProjectData[[#This Row],[Actuals 14/15]]*VLOOKUP("Mid Year Nominal - EOY Real (2015/16)",CPI[],MATCH(U$4,CPI[#Headers],0),FALSE) -> 0 | V33: =SUM(ProjectData[[#This Row],[Real 08]:[Real 15]]) -> 0.07736381425 | W33: =(ProjectData[[#This Row],[Real Sum]]-VLOOKUP(ProjectData[[#This Row],[Category]],Category_AverageStdDevLimit[],MATCH("Average",Category_AverageStdDevLimit[#Headers],0),FALSE))^2 -> 0.3463341149 | X33: =VLOOKUP(ProjectData[[#This Row],[Category]],Category_AverageStdDevLimit[],MATCH("Limit",Category_AverageStdDevLimit[#Headers],0),FALSE) -> 2.96351611 | Y33: =ProjectData[[#This Row],[Real Sum]]>ProjectData[[#This Row],[Category Limit]] -> FALSE | AA33: =OR(ProjectData[[#This Row],[Significant Project? (Financial Basis)]],ProjectData[[#This Row],[Non repeatable]]) -> FALSE | AB33: =AND(ProjectData[[#This Row],[SomeExpenditure >= 2011]],ProjectData[[#This Row],[Abnormal?]]) -> FALSE
A34: CP.01345 | B34: Kareeya to Chalumbin ADSS Replacement | C34: Replacement | F34: 0.02924462 | G34: 0.11310219 | H34: 0.74851248 | I34: 0.01432206 | J34: 0.03722802 | K34: 0.12722427 | L34: =ProjectData[[#This Row],[Real Sum]]>0.00000001 -> TRUE | M34: =OR(ProjectData[[#This Row],[Real 11]]>0,ProjectData[[#This Row],[Real 12]]>0,ProjectData[[#This Row],[Real 13]]>0,ProjectData[[#This Row],[Real 14]]>0,ProjectData[[#This Row],[Real 15]]>0) -> TRUE | N34: =ProjectData[[#This Row],[Actuals 07/08]]*VLOOKUP("Mid Year Nominal - EOY Real (2015/16)",CPI[],MATCH(N$4,CPI[#Headers],0),FALSE) -> 0 | O34: =ProjectData[[#This Row],[Actuals 08/09]]*VLOOKUP("Mid Year Nominal - EOY Real (2015/16)",CPI[],MATCH(O$4,CPI[#Headers],0),FALSE) -> 0 | P34: =ProjectData[[#This Row],[Actuals 09/10]]*VLOOKUP("Mid Year Nominal - EOY Real (2015/16)",CPI[],MATCH(P$4,CPI[#Headers],0),FALSE) -> 0.03406719519 | Q34: =ProjectData[[#This Row],[Actuals 10/11]]*VLOOKUP("Mid Year Nominal - EOY Real (2015/16)",CPI[],MATCH(Q$4,CPI[#Headers],0),FALSE) -> 0.1278072581 | R34: =ProjectData[[#This Row],[Actuals 11/12]]*VLOOKUP("Mid Year Nominal - EOY Real (2015/16)",CPI[],MATCH(R$4,CPI[#Headers],0),FALSE) -> 0.8256942868 | S34: =ProjectData[[#This Row],[Actuals 12/13]]*VLOOKUP("Mid Year Nominal - EOY Real (2015/16)",CPI[],MATCH(S$4,CPI[#Headers],0),FALSE) -> 0.01547934227 | T34: =ProjectData[[#This Row],[Actuals 13/14]]*VLOOKUP("Mid Year Nominal - EOY Real (2015/16)",CPI[],MATCH(T$4,CPI[#Headers],0),FALSE) -> 0.03917232884 | U34: =ProjectData[[#This Row],[Actuals 14/15]]*VLOOKUP("Mid Year Nominal - EOY Real (2015/16)",CPI[],MATCH(U$4,CPI[#Headers],0),FALSE) -> 0.1310822154 | V34: =SUM(ProjectData[[#This Row],[Real 08]:[Real 15]]) -> 1.173302627 | W34: =(ProjectData[[#This Row],[Real Sum]]-VLOOKUP(ProjectData[[#This Row],[Category]],Category_AverageStdDevLimit[],MATCH("Average",Category_AverageStdDevLimit[#Headers],0),FALSE))^2 -> 0.2574925403 | X34: =VLOOKUP(ProjectData[[#This Row],[Category]],Category_AverageStdDevLimit[],MATCH("Limit",Category_AverageStdDevLimit[#Headers],0),FALSE) -> 2.96351611 | Y34: =ProjectData[[#This Row],[Real Sum]]>ProjectData[[#This Row],[Category Limit]] -> FALSE | AA34: =OR(ProjectData[[#This Row],[Significant Project? (Financial Basis)]],ProjectData[[#This Row],[Non repeatable]]) -> FALSE | AB34: =AND(ProjectData[[#This Row],[SomeExpenditure >= 2011]],ProjectData[[#This Row],[Abnormal?]]) -> FALSE
A35: CP.01351 | B35: High Speed Monitoring Installation | C35: Replacement | D35: 0.034938 | E35: 0.64818213 | F35: 0.06098041 | H35: 0 | I35: 0 | K35: 0 | L35: =ProjectData[[#This Row],[Real Sum]]>0.00000001 -> TRUE | M35: =OR(ProjectData[[#This Row],[Real 11]]>0,ProjectData[[#This Row],[Real 12]]>0,ProjectData[[#This Row],[Real 13]]>0,ProjectData[[#This Row],[Real 14]]>0,ProjectData[[#This Row],[Real 15]]>0) -> FALSE | N35: =ProjectData[[#This Row],[Actuals 07/08]]*VLOOKUP("Mid Year Nominal - EOY Real (2015/16)",CPI[],MATCH(N$4,CPI[#Headers],0),FALSE) -> 0.04318917977 | O35: =ProjectData[[#This Row],[Actuals 08/09]]*VLOOKUP("Mid Year Nominal - EOY Real (2015/16)",CPI[],MATCH(O$4,CPI[#Headers],0),FALSE) -> 0.7752861916 | P35: =ProjectData[[#This Row],[Actuals 09/10]]*VLOOKUP("Mid Year Nominal - EOY Real (2015/16)",CPI[],MATCH(P$4,CPI[#Headers],0),FALSE) -> 0.07103636602 | Q35: =ProjectData[[#This Row],[Actuals 10/11]]*VLOOKUP("Mid Year Nominal - EOY Real (2015/16)",CPI[],MATCH(Q$4,CPI[#Headers],0),FALSE) -> 0 | R35: =ProjectData[[#This Row],[Actuals 11/12]]*VLOOKUP("Mid Year Nominal - EOY Real (2015/16)",CPI[],MATCH(R$4,CPI[#Headers],0),FALSE) -> 0 | S35: =ProjectData[[#This Row],[Actuals 12/13]]*VLOOKUP("Mid Year Nominal - EOY Real (2015/16)",CPI[],MATCH(S$4,CPI[#Headers],0),FALSE) -> 0 | T35: =ProjectData[[#This Row],[Actuals 13/14]]*VLOOKUP("Mid Year Nominal - EOY Real (2015/16)",CPI[],MATCH(T$4,CPI[#Headers],0),FALSE) -> 0 | U35: =ProjectData[[#This Row],[Actuals 14/15]]*VLOOKUP("Mid Year Nominal - EOY Real (2015/16)",CPI[],MATCH(U$4,CPI[#Headers],0),FALSE) -> 0 | V35: =SUM(ProjectData[[#This Row],[Real 08]:[Real 15]]) -> 0.8895117374 | W35: =(ProjectData[[#This Row],[Real Sum]]-VLOOKUP(ProjectData[[#This Row],[Category]],Category_AverageStdDevLimit[],MATCH("Average",Category_AverageStdDevLimit[#Headers],0),FALSE))^2 -> 0.05001768481 | X35: =VLOOKUP(ProjectData[[#This Row],[Category]],Category_AverageStdDevLimit[],MATCH("Limit",Category_AverageStdDevLimit[#Headers],0),FALSE) -> 2.96351611 | Y35: =ProjectData[[#This Row],[Real Sum]]>ProjectData[[#This Row],[Category Limit]] -> FALSE | AA35: =OR(ProjectData[[#This Row],[Significant Project? (Financial Basis)]],ProjectData[[#This Row],[Non repeatable]]) -> FALSE | AB35: =AND(ProjectData[[#This Row],[SomeExpenditure >= 2011]],ProjectData[[#This Row],[Abnormal?]]) -> FALSE
A36: CP.01356 | B36: Communications Console | C36: Other | D36: 0.000143 | E36: 0.00678744 | F36: 0.05353453 | G36: 0.38093772 | H36: 0.63484521 | I36: 0 | K36: 0 | L36: =ProjectData[[#This Row],[Real Sum]]>0.00000001 -> TRUE | M36: =OR(ProjectData[[#This Row],[Real 11]]>0,ProjectData[[#This Row],[Real 12]]>0,ProjectData[[#This Row],[Real 13]]>0,ProjectData[[#This Row],[Real 14]]>0,ProjectData[[#This Row],[Real 15]]>0) -> TRUE | N36: =ProjectData[[#This Row],[Actuals 07/08]]*VLOOKUP("Mid Year Nominal - EOY Real (2015/16)",CPI[],MATCH(N$4,CPI[#Headers],0),FALSE) -> 0.0001767717874 | O36: =ProjectData[[#This Row],[Actuals 08/09]]*VLOOKUP("Mid Year Nominal - EOY Real (2015/16)",CPI[],MATCH(O$4,CPI[#Headers],0),FALSE) -> 0.008118410343 | P36: =ProjectData[[#This Row],[Actuals 09/10]]*VLOOKUP("Mid Year Nominal - EOY Real (2015/16)",CPI[],MATCH(P$4,CPI[#Headers],0),FALSE) -> 0.06236262544 | Q36: =ProjectData[[#This Row],[Actuals 10/11]]*VLOOKUP("Mid Year Nominal - EOY Real (2015/16)",CPI[],MATCH(Q$4,CPI[#Headers],0),FALSE) -> 0.4304656304 | R36: =ProjectData[[#This Row],[Actuals 11/12]]*VLOOKUP("Mid Year Nominal - EOY Real (2015/16)",CPI[],MATCH(R$4,CPI[#Headers],0),FALSE) -> 0.7003063768 | S36: =ProjectData[[#This Row],[Actuals 12/13]]*VLOOKUP("Mid Year Nominal - EOY Real (2015/16)",CPI[],MATCH(S$4,CPI[#Headers],0),FALSE) -> 0 | T36: =ProjectData[[#This Row],[Actuals 13/14]]*VLOOKUP("Mid Year Nominal - EOY Real (2015/16)",CPI[],MATCH(T$4,CPI[#Headers],0),FALSE) -> 0 | U36: =ProjectData[[#This Row],[Actuals 14/15]]*VLOOKUP("Mid Year Nominal - EOY Real (2015/16)",CPI[],MATCH(U$4,CPI[#Headers],0),FALSE) -> 0 | V36: =SUM(ProjectData[[#This Row],[Real 08]:[Real 15]]) -> 1.201429815 | W36: =(ProjectData[[#This Row],[Real Sum]]-VLOOKUP(ProjectData[[#This Row],[Category]],Category_AverageStdDevLimit[],MATCH("Average",Category_AverageStdDevLimit[#Headers],0),FALSE))^2 -> 0.05308567753 | X36: =VLOOKUP(ProjectData[[#This Row],[Category]],Category_AverageStdDevLimit[],MATCH("Limit",Category_AverageStdDevLimit[#Headers],0),FALSE) -> 7.704088755 | Y36: =ProjectData[[#This Row],[Real Sum]]>ProjectData[[#This Row],[Category Limit]] -> FALSE | AA36: =OR(ProjectData[[#This Row],[Significant Project? (Financial Basis)]],ProjectData[[#This Row],[Non repeatable]]) -> FALSE | AB36: =AND(ProjectData[[#This Row],[SomeExpenditure >= 2011]],ProjectData[[#This Row],[Abnormal?]]) -> FALSE
A37: CP.01358 | B37: Infrastructure Expansion for Telecomms | C37: Security / Compliance | D37: 1.9145059 | E37: 1.08768584 | F37: 0.27010103 | H37: 0 | I37: 0 | K37: 0 | L37: =ProjectData[[#This Row],[Real Sum]]>0.00000001 -> TRUE | M37: =OR(ProjectData[[#This Row],[Real 11]]>0,ProjectData[[#This Row],[Real 12]]>0,ProjectData[[#This Row],[Real 13]]>0,ProjectData[[#This Row],[Real 14]]>0,ProjectData[[#This Row],[Real 15]]>0) -> FALSE | N37: =ProjectData[[#This Row],[Actuals 07/08]]*VLOOKUP("Mid Year Nominal - EOY Real (2015/16)",CPI[],MATCH(N$4,CPI[#Headers],0),FALSE) -> 2.366647761 | O37: =ProjectData[[#This Row],[Actuals 08/09]]*VLOOKUP("Mid Year Nominal - EOY Real (2015/16)",CPI[],MATCH(O$4,CPI[#Headers],0),FALSE) -> 1.300973559 | P37: =ProjectData[[#This Row],[Actuals 09/10]]*VLOOKUP("Mid Year Nominal - EOY Real (2015/16)",CPI[],MATCH(P$4,CPI[#Headers],0),FALSE) -> 0.3146419584 | Q37: =ProjectData[[#This Row],[Actuals 10/11]]*VLOOKUP("Mid Year Nominal - EOY Real (2015/16)",CPI[],MATCH(Q$4,CPI[#Headers],0),FALSE) -> 0 | R37: =ProjectData[[#This Row],[Actuals 11/12]]*VLOOKUP("Mid Year Nominal - EOY Real (2015/16)",CPI[],MATCH(R$4,CPI[#Headers],0),FALSE) -> 0 | S37: =ProjectData[[#This Row],[Actuals 12/13]]*VLOOKUP("Mid Year Nominal - EOY Real (2015/16)",CPI[],MATCH(S$4,CPI[#Headers],0),FALSE) -> 0 | T37: =ProjectData[[#This Row],[Actuals 13/14]]*VLOOKUP("Mid Year Nominal - EOY Real (2015/16)",CPI[],MATCH(T$4,CPI[#Headers],0),FALSE) -> 0 | U37: =ProjectData[[#This Row],[Actuals 14/15]]*VLOOKUP("Mid Year Nominal - EOY Real (2015/16)",CPI[],MATCH(U$4,CPI[#Headers],0),FALSE) -> 0 | V37: =SUM(ProjectData[[#This Row],[Real 08]:[Real 15]]) -> 3.982263279 | W37: =(ProjectData[[#This Row],[Real Sum]]-VLOOKUP(ProjectData[[#This Row],[Category]],Category_AverageStdDevLimit[],MATCH("Average",Category_AverageStdDevLimit[#Headers],0),FALSE))^2 -> 0.1519746594 | X37: =VLOOKUP(ProjectData[[#This Row],[Category]],Category_AverageStdDevLimit[],MATCH("Limit",Category_AverageStdDevLimit[#Headers],0),FALSE) -> 10.86958417 | Y37: =ProjectData[[#This Row],[Real Sum]]>ProjectData[[#This Row],[Category Limit]] -> FALSE | AA37: =OR(ProjectData[[#This Row],[Significant Project? (Financial Basis)]],ProjectData[[#This Row],[Non repeatable]]) -> FALSE | AB37: =AND(ProjectData[[#This Row],[SomeExpenditure >= 2011]],ProjectData[[#This Row],[Abnormal?]]) -> FALSE
A38: CP.01367 | B38: Establish DWDM Network | C38: Other | D38: 3.74648439 | E38: 10.52361482 | F38: 1.36478353 | H38: 0 | I38: 0 | K38: 0 | L38: =ProjectData[[#This Row],[Real Sum]]>0.00000001 -> TRUE | M38: =OR(ProjectData[[#This Row],[Real 11]]>0,ProjectData[[#This Row],[Real 12]]>0,ProjectData[[#This Row],[Real 13]]>0,ProjectData[[#This Row],[Real 14]]>0,ProjectData[[#This Row],[Real 15]]>0) -> FALSE | N38: =ProjectData[[#This Row],[Actuals 07/08]]*VLOOKUP("Mid Year Nominal - EOY Real (2015/16)",CPI[],MATCH(N$4,CPI[#Headers],0),FALSE) -> 4.631277916 | O38: =ProjectData[[#This Row],[Actuals 08/09]]*VLOOKUP("Mid Year Nominal - EOY Real (2015/16)",CPI[],MATCH(O$4,CPI[#Headers],0),FALSE) -> 12.58722337 | P38: =ProjectData[[#This Row],[Actuals 09/10]]*VLOOKUP("Mid Year Nominal - EOY Real (2015/16)",CPI[],MATCH(P$4,CPI[#Headers],0),FALSE) -> 1.589842744 | Q38: =ProjectData[[#This Row],[Actuals 10/11]]*VLOOKUP("Mid Year Nominal - EOY Real (2015/16)",CPI[],MATCH(Q$4,CPI[#Headers],0),FALSE) -> 0 | R38: =ProjectData[[#This Row],[Actuals 11/12]]*VLOOKUP("Mid Year Nominal - EOY Real (2015/16)",CPI[],MATCH(R$4,CPI[#Headers],0),FALSE) -> 0 | S38: =ProjectData[[#This Row],[Actuals 12/13]]*VLOOKUP("Mid Year Nominal - EOY Real (2015/16)",CPI[],MATCH(S$4,CPI[#Headers],0),FALSE) -> 0 | T38: =ProjectData[[#This Row],[Actuals 13/14]]*VLOOKUP("Mid Year Nominal - EOY Real (2015/16)",CPI[],MATCH(T$4,CPI[#Headers],0),FALSE) -> 0 | U38: =ProjectData[[#This Row],[Actuals 14/15]]*VLOOKUP("Mid Year Nominal - EOY Real (2015/16)",CPI[],MATCH(U$4,CPI[#Headers],0),FALSE) -> 0 | V38: =SUM(ProjectData[[#This Row],[Real 08]:[Real 15]]) -> 18.80834403 | W38: =(ProjectData[[#This Row],[Real Sum]]-VLOOKUP(ProjectData[[#This Row],[Category]],Category_AverageStdDevLimit[],MATCH("Average",Category_AverageStdDevLimit[#Headers],0),FALSE))^2 -> 301.9431319 | X38: =VLOOKUP(ProjectData[[#This Row],[Category]],Category_AverageStdDevLimit[],MATCH("Limit",Category_AverageStdDevLimit[#Headers],0),FALSE) -> 7.704088755 | Y38: =ProjectData[[#This Row],[Real Sum]]>ProjectData[[#This Row],[Category Limit]] -> TRUE | Z38: TRUE | AA38: =OR(ProjectData[[#This Row],[Significant Project? (Financial Basis)]],ProjectData[[#This Row],[Non repeatable]]) -> TRUE | AB38: =AND(ProjectData[[#This Row],[SomeExpenditure >= 2011]],ProjectData[[#This Row],[Abnormal?]]) -> FALSE
A39: CP.01369 | B39: South East Qld 110/33kV System Spare Transformer | C39: Other | D39: 0.39055026 | H39: 0 | I39: 0 | K39: 0 | L39: =ProjectData[[#This Row],[Real Sum]]>0.00000001 -> TRUE | M39: =OR(ProjectData[[#This Row],[Real 11]]>0,ProjectData[[#This Row],[Real 12]]>0,ProjectData[[#This Row],[Real 13]]>0,ProjectData[[#This Row],[Real 14]]>0,ProjectData[[#This Row],[Real 15]]>0) -> FALSE | N39: =ProjectData[[#This Row],[Actuals 07/08]]*VLOOKUP("Mid Year Nominal - EOY Real (2015/16)",CPI[],MATCH(N$4,CPI[#Headers],0),FALSE) -> 0.4827850875 | O39: =ProjectData[[#This Row],[Actuals 08/09]]*VLOOKUP("Mid Year Nominal - EOY Real (2015/16)",CPI[],MATCH(O$4,CPI[#Headers],0),FALSE) -> 0 | P39: =ProjectData[[#This Row],[Actuals 09/10]]*VLOOKUP("Mid Year Nominal - EOY Real (2015/16)",CPI[],MATCH(P$4,CPI[#Headers],0),FALSE) -> 0 | Q39: =ProjectData[[#This Row],[Actuals 10/11]]*VLOOKUP("Mid Year Nominal - EOY Real (2015/16)",CPI[],MATCH(Q$4,CPI[#Headers],0),FALSE) -> 0 | R39: =ProjectData[[#This Row],[Actuals 11/12]]*VLOOKUP("Mid Year Nominal - EOY Real (2015/16)",CPI[],MATCH(R$4,CPI[#Headers],0),FALSE) -> 0 | S39: =ProjectData[[#This Row],[Actuals 12/13]]*VLOOKUP("Mid Year Nominal - EOY Real (2015/16)",CPI[],MATCH(S$4,CPI[#Headers],0),FALSE) -> 0 | T39: =ProjectData[[#This Row],[Actuals 13/14]]*VLOOKUP("Mid Year Nominal - EOY Real (2015/16)",CPI[],MATCH(T$4,CPI[#Headers],0),FALSE) -> 0 | U39: =ProjectData[[#This Row],[Actuals 14/15]]*VLOOKUP("Mid Year Nominal - EOY Real (2015/16)",CPI[],MATCH(U$4,CPI[#Headers],0),FALSE) -> 0 | V39: =SUM(ProjectData[[#This Row],[Real 08]:[Real 15]]) -> 0.4827850875 | W39: =(ProjectData[[#This Row],[Real Sum]]-VLOOKUP(ProjectData[[#This Row],[Category]],Category_AverageStdDevLimit[],MATCH("Average",Category_AverageStdDevLimit[#Headers],0),FALSE))^2 -> 0.9006921452 | X39: =VLOOKUP(ProjectData[[#This Row],[Category]],Category_AverageStdDevLimit[],MATCH("Limit",Category_AverageStdDevLimit[#Headers],0),FALSE) -> 7.704088755 | Y39: =ProjectData[[#This Row],[Real Sum]]>ProjectData[[#This Row],[Category Limit]] -> FALSE | Z39: TRUE | AA39: =OR(ProjectData[[#This Row],[Significant Project? (Financial Basis)]],ProjectData[[#This Row],[Non repeatable]]) -> TRUE | AB39: =AND(ProjectData[[#This Row],[SomeExpenditure >= 2011]],ProjectData[[#This Row],[Abnormal?]]) -> FALSE
A40: CP.01372 | B40: Darling Downs Power Station Connection | C40: Other | E40: 1.1416 | F40: 0.03319174 | G40: 0 | H40: 0 | I40: 0 | K40: 0 | L40: =ProjectData[[#This Row],[Real Sum]]>0.00000001 -> TRUE | M40: =OR(ProjectData[[#This Row],[Real 11]]>0,ProjectData[[#This Row],[Real 12]]>0,ProjectData[[#This Row],[Real 13]]>0,ProjectData[[#This Row],[Real 14]]>0,ProjectData[[#This Row],[Real 15]]>0) -> FALSE | N40: =ProjectData[[#This Row],[Actuals 07/08]]*VLOOKUP("Mid Year Nominal - EOY Real (2015/16)",CPI[],MATCH(N$4,CPI[#Headers],0),FALSE) -> 0 | O40: =ProjectData[[#This Row],[Actuals 08/09]]*VLOOKUP("Mid Year Nominal - EOY Real (2015/16)",CPI[],MATCH(O$4,CPI[#Headers],0),FALSE) -> 1.365459915 | P40: =ProjectData[[#This Row],[Actuals 09/10]]*VLOOKUP("Mid Year Nominal - EOY Real (2015/16)",CPI[],MATCH(P$4,CPI[#Headers],0),FALSE) -> 0.03866521382 | Q40: =ProjectData[[#This Row],[Actuals 10/11]]*VLOOKUP("Mid Year Nominal - EOY Real (2015/16)",CPI[],MATCH(Q$4,CPI[#Headers],0),FALSE) -> 0 | R40: =ProjectData[[#This Row],[Actuals 11/12]]*VLOOKUP("Mid Year Nominal - EOY Real (2015/16)",CPI[],MATCH(R$4,CPI[#Headers],0),FALSE) -> 0 | S40: =ProjectData[[#This Row],[Actuals 12/13]]*VLOOKUP("Mid Year Nominal - EOY Real (2015/16)",CPI[],MATCH(S$4,CPI[#Headers],0),FALSE) -> 0 | T40: =ProjectData[[#This Row],[Actuals 13/14]]*VLOOKUP("Mid Year Nominal - EOY Real (2015/16)",CPI[],MATCH(T$4,CPI[#Headers],0),FALSE) -> 0 | U40: =ProjectData[[#This Row],[Actuals 14/15]]*VLOOKUP("Mid Year Nominal - EOY Real (2015/16)",CPI[],MATCH(U$4,CPI[#Headers],0),FALSE) -> 0 | V40: =SUM(ProjectData[[#This Row],[Real 08]:[Real 15]]) -> 1.404125129 | W40: =(ProjectData[[#This Row],[Real Sum]]-VLOOKUP(ProjectData[[#This Row],[Category]],Category_AverageStdDevLimit[],MATCH("Average",Category_AverageStdDevLimit[#Headers],0),FALSE))^2 -> 0.0007677320931 | X40: =VLOOKUP(ProjectData[[#This Row],[Category]],Category_AverageStdDevLimit[],MATCH("Limit",Category_AverageStdDevLimit[#Headers],0),FALSE) -> 7.704088755 | Y40: =ProjectData[[#This Row],[Real Sum]]>ProjectData[[#This Row],[Category Limit]] -> FALSE | AA40: =OR(ProjectData[[#This Row],[Significant Project? (Financial Basis)]],ProjectData[[#This Row],[Non repeatable]]) -> FALSE | AB40: =AND(ProjectData[[#This Row],[SomeExpenditure >= 2011]],ProjectData[[#This Row],[Abnormal?]]) -> FALSE
A41: CP.01375 | B41: Disaster Recovery Relocation | C41: Security / Compliance | D41: 0.05259683 | E41: 0.76002715 | F41: 4.75061238 | G41: 0.0681582 | H41: 0 | I41: 0 | K41: 0 | L41: =ProjectData[[#This Row],[Real Sum]]>0.00000001 -> TRUE | M41: =OR(ProjectData[[#This Row],[Real 11]]>0,ProjectData[[#This Row],[Real 12]]>0,ProjectData[[#This Row],[Real 13]]>0,ProjectData[[#This Row],[Real 14]]>0,ProjectData[[#This Row],[Real 15]]>0) -> TRUE | N41: =ProjectData[[#This Row],[Actuals 07/08]]*VLOOKUP("Mid Year Nominal - EOY Real (2015/16)",CPI[],MATCH(N$4,CPI[#Headers],0),FALSE) -> 0.06501843111 | O41: =ProjectData[[#This Row],[Actuals 08/09]]*VLOOKUP("Mid Year Nominal - EOY Real (2015/16)",CPI[],MATCH(O$4,CPI[#Headers],0),FALSE) -> 0.9090632515 | P41: =ProjectData[[#This Row],[Actuals 09/10]]*VLOOKUP("Mid Year Nominal - EOY Real (2015/16)",CPI[],MATCH(P$4,CPI[#Headers],0),FALSE) -> 5.534010674 | Q41: =ProjectData[[#This Row],[Actuals 10/11]]*VLOOKUP("Mid Year Nominal - EOY Real (2015/16)",CPI[],MATCH(Q$4,CPI[#Headers],0),FALSE) -> 0.07701984075 | R41: =ProjectData[[#This Row],[Actuals 11/12]]*VLOOKUP("Mid Year Nominal - EOY Real (2015/16)",CPI[],MATCH(R$4,CPI[#Headers],0),FALSE) -> 0 | S41: =ProjectData[[#This Row],[Actuals 12/13]]*VLOOKUP("Mid Year Nominal - EOY Real (2015/16)",CPI[],MATCH(S$4,CPI[#Headers],0),FALSE) -> 0 | T41: =ProjectData[[#This Row],[Actuals 13/14]]*VLOOKUP("Mid Year Nominal - EOY Real (2015/16)",CPI[],MATCH(T$4,CPI[#Headers],0),FALSE) -> 0 | U41: =ProjectData[[#This Row],[Actuals 14/15]]*VLOOKUP("Mid Year Nominal - EOY Real (2015/16)",CPI[],MATCH(U$4,CPI[#Headers],0),FALSE) -> 0 | V41: =SUM(ProjectData[[#This Row],[Real 08]:[Real 15]]) -> 6.585112197 | W41: =(ProjectData[[#This Row],[Real Sum]]-VLOOKUP(ProjectData[[#This Row],[Category]],Category_AverageStdDevLimit[],MATCH("Average",Category_AverageStdDevLimit[#Headers],0),FALSE))^2 -> 8.956182617 | X41: =VLOOKUP(ProjectData[[#This Row],[Category]],Category_AverageStdDevLimit[],MATCH("Limit",Category_AverageStdDevLimit[#Headers],0),FALSE) -> 10.86958417 | Y41: =ProjectData[[#This Row],[Real Sum]]>ProjectData[[#This Row],[Category Limit]] -> FALSE | Z41: TRUE | AA41: =OR(ProjectData[[#This Row],[Significant Project? (Financial Basis)]],ProjectData[[#This Row],[Non repeatable]]) -> TRUE | AB41: =AND(ProjectData[[#This Row],[SomeExpenditure >= 2011]],ProjectData[[#This Row],[Abnormal?]]) -> TRUE
A42: CP.01385 | B42: Tarong Bus Rating Upgrade | C42: Replacement | G42: 0.04726289 | H42: 0.24715435 | I42: 1.02573884 | J42: 0 | K42: 0 | L42: =ProjectData[[#This Row],[Real Sum]]>0.00000001 -> TRUE | M42: =OR(ProjectData[[#This Row],[Real 11]]>0,ProjectData[[#This Row],[Real 12]]>0,ProjectData[[#This Row],[Real 13]]>0,ProjectData[[#This Row],[Real 14]]>0,ProjectData[[#This Row],[Real 15]]>0) -> TRUE | N42: =ProjectData[[#This Row],[Actuals 07/08]]*VLOOKUP("Mid Year Nominal - EOY Real (2015/16)",CPI[],MATCH(N$4,CPI[#Headers],0),FALSE) -> 0 | O42: =ProjectData[[#This Row],[Actuals 08/09]]*VLOOKUP("Mid Year Nominal - EOY Real (2015/16)",CPI[],MATCH(O$4,CPI[#Headers],0),FALSE) -> 0 | P42: =ProjectData[[#This Row],[Actuals 09/10]]*VLOOKUP("Mid Year Nominal - EOY Real (2015/16)",CPI[],MATCH(P$4,CPI[#Headers],0),FALSE) -> 0 | Q42: =ProjectData[[#This Row],[Actuals 10/11]]*VLOOKUP("Mid Year Nominal - EOY Real (2015/16)",CPI[],MATCH(Q$4,CPI[#Headers],0),FALSE) -> 0.05340781096 | R42: =ProjectData[[#This Row],[Actuals 11/12]]*VLOOKUP("Mid Year Nominal - EOY Real (2015/16)",CPI[],MATCH(R$4,CPI[#Headers],0),FALSE) -> 0.2726393216 | S42: =ProjectData[[#This Row],[Actuals 12/13]]*VLOOKUP("Mid Year Nominal - EOY Real (2015/16)",CPI[],MATCH(S$4,CPI[#Headers],0),FALSE) -> 1.108622823 | T42: =ProjectData[[#This Row],[Actuals 13/14]]*VLOOKUP("Mid Year Nominal - EOY Real (2015/16)",CPI[],MATCH(T$4,CPI[#Headers],0),FALSE) -> 0 | U42: =ProjectData[[#This Row],[Actuals 14/15]]*VLOOKUP("Mid Year Nominal - EOY Real (2015/16)",CPI[],MATCH(U$4,CPI[#Headers],0),FALSE) -> 0 | V42: =SUM(ProjectData[[#This Row],[Real 08]:[Real 15]]) -> 1.434669955 | W42: =(ProjectData[[#This Row],[Real Sum]]-VLOOKUP(ProjectData[[#This Row],[Category]],Category_AverageStdDevLimit[],MATCH("Average",Category_AverageStdDevLimit[#Headers],0),FALSE))^2 -> 0.5910604462 | X42: =VLOOKUP(ProjectData[[#This Row],[Category]],Category_AverageStdDevLimit[],MATCH("Limit",Category_AverageStdDevLimit[#Headers],0),FALSE) -> 2.96351611 | Y42: =ProjectData[[#This Row],[Real Sum]]>ProjectData[[#This Row],[Category Limit]] -> FALSE | AA42: =OR(ProjectData[[#This Row],[Significant Project? (Financial Basis)]],ProjectData[[#This Row],[Non repeatable]]) -> FALSE | AB42: =AND(ProjectData[[#This Row],[SomeExpenditure >= 2011]],ProjectData[[#This Row],[Abnormal?]]) -> FALSE
A43: CP.01403 | B43: Diesel Generator Installation Various Substations | C43: Security / Compliance | E43: 0.20428875 | F43: 2.67941601 | G43: 0.38855811 | H43: 0.0046822 | I43: 0 | K43: 0 | L43: =ProjectData[[#This Row],[Real Sum]]>0.00000001 -> TRUE | M43: =OR(ProjectData[[#This Row],[Real 11]]>0,ProjectData[[#This Row],[Real 12]]>0,ProjectData[[#This Row],[Real 13]]>0,ProjectData[[#This Row],[Real 14]]>0,ProjectData[[#This Row],[Real 15]]>0) -> TRUE | N43: =ProjectData[[#This Row],[Actuals 07/08]]*VLOOKUP("Mid Year Nominal - EOY Real (2015/16)",CPI[],MATCH(N$4,CPI[#Headers],0),FALSE) -> 0 | O43: =ProjectData[[#This Row],[Actuals 08/09]]*VLOOKUP("Mid Year Nominal - EOY Real (2015/16)",CPI[],MATCH(O$4,CPI[#Headers],0),FALSE) -> 0.2443483701 | P43: =ProjectData[[#This Row],[Actuals 09/10]]*VLOOKUP("Mid Year Nominal - EOY Real (2015/16)",CPI[],MATCH(P$4,CPI[#Headers],0),FALSE) -> 3.121264295 | Q43: =ProjectData[[#This Row],[Actuals 10/11]]*VLOOKUP("Mid Year Nominal - EOY Real (2015/16)",CPI[],MATCH(Q$4,CPI[#Headers],0),FALSE) -> 0.4390767913 | R43: =ProjectData[[#This Row],[Actuals 11/12]]*VLOOKUP("Mid Year Nominal - EOY Real (2015/16)",CPI[],MATCH(R$4,CPI[#Headers],0),FALSE) -> 0.005164998437 | S43: =ProjectData[[#This Row],[Actuals 12/13]]*VLOOKUP("Mid Year Nominal - EOY Real (2015/16)",CPI[],MATCH(S$4,CPI[#Headers],0),FALSE) -> 0 | T43: =ProjectData[[#This Row],[Actuals 13/14]]*VLOOKUP("Mid Year Nominal - EOY Real (2015/16)",CPI[],MATCH(T$4,CPI[#Headers],0),FALSE) -> 0 | U43: =ProjectData[[#This Row],[Actuals 14/15]]*VLOOKUP("Mid Year Nominal - EOY Real (2015/16)",CPI[],MATCH(U$4,CPI[#Headers],0),FALSE) -> 0 | V43: =SUM(ProjectData[[#This Row],[Real 08]:[Real 15]]) -> 3.809854454 | W43: =(ProjectData[[#This Row],[Real Sum]]-VLOOKUP(ProjectData[[#This Row],[Category]],Category_AverageStdDevLimit[],MATCH("Average",Category_AverageStdDevLimit[#Headers],0),FALSE))^2 -> 0.04727600037 | X43: =VLOOKUP(ProjectData[[#This Row],[Category]],Category_AverageStdDevLimit[],MATCH("Limit",Category_AverageStdDevLimit[#Headers],0),FALSE) -> 10.86958417 | Y43: =ProjectData[[#This Row],[Real Sum]]>ProjectData[[#This Row],[Category Limit]] -> FALSE | AA43: =OR(ProjectData[[#This Row],[Significant Project? (Financial Basis)]],ProjectData[[#This Row],[Non repeatable]]) -> FALSE | AB43: =AND(ProjectData[[#This Row],[SomeExpenditure >= 2011]],ProjectData[[#This Row],[Abnormal?]]) -> FALSE
A44: CP.01407 | B44: Blackwall Substation Security Upgrade | C44: Security / Compliance | D44: 0.00616154 | E44: 0.0640212 | F44: 0 | G44: 0 | H44: 0 | I44: 0 | K44: 0 | L44: =ProjectData[[#This Row],[Real Sum]]>0.00000001 -> TRUE | M44: =OR(ProjectData[[#This Row],[Real 11]]>0,ProjectData[[#This Row],[Real 12]]>0,ProjectData[[#This Row],[Real 13]]>0,ProjectData[[#This Row],[Real 14]]>0,ProjectData[[#This Row],[Real 15]]>0) -> FALSE | N44: =ProjectData[[#This Row],[Actuals 07/08]]*VLOOKUP("Mid Year Nominal - EOY Real (2015/16)",CPI[],MATCH(N$4,CPI[#Headers],0),FALSE) -> 0.007616688383 | O44: =ProjectData[[#This Row],[Actuals 08/09]]*VLOOKUP("Mid Year Nominal - EOY Real (2015/16)",CPI[],MATCH(O$4,CPI[#Headers],0),FALSE) -> 0.07657531739 | P44: =ProjectData[[#This Row],[Actuals 09/10]]*VLOOKUP("Mid Year Nominal - EOY Real (2015/16)",CPI[],MATCH(P$4,CPI[#Headers],0),FALSE) -> 0 | Q44: =ProjectData[[#This Row],[Actuals 10/11]]*VLOOKUP("Mid Year Nominal - EOY Real (2015/16)",CPI[],MATCH(Q$4,CPI[#Headers],0),FALSE) -> 0 | R44: =ProjectData[[#This Row],[Actuals 11/12]]*VLOOKUP("Mid Year Nominal - EOY Real (2015/16)",CPI[],MATCH(R$4,CPI[#Headers],0),FALSE) -> 0 | S44: =ProjectData[[#This Row],[Actuals 12/13]]*VLOOKUP("Mid Year Nominal - EOY Real (2015/16)",CPI[],MATCH(S$4,CPI[#Headers],0),FALSE) -> 0 | T44: =ProjectData[[#This Row],[Actuals 13/14]]*VLOOKUP("Mid Year Nominal - EOY Real (2015/16)",CPI[],MATCH(T$4,CPI[#Headers],0),FALSE) -> 0 | U44: =ProjectData[[#This Row],[Actuals 14/15]]*VLOOKUP("Mid Year Nominal - EOY Real (2015/16)",CPI[],MATCH(U$4,CPI[#Headers],0),FALSE) -> 0 | V44: =SUM(ProjectData[[#This Row],[Real 08]:[Real 15]]) -> 0.08419200577 | W44: =(ProjectData[[#This Row],[Real Sum]]-VLOOKUP(ProjectData[[#This Row],[Category]],Category_AverageStdDevLimit[],MATCH("Average",Category_AverageStdDevLimit[#Headers],0),FALSE))^2 -> 12.30769176 | X44: =VLOOKUP(ProjectData[[#This Row],[Category]],Category_AverageStdDevLimit[],MATCH("Limit",Category_AverageStdDevLimit[#Headers],0),FALSE) -> 10.86958417 | Y44: =ProjectData[[#This Row],[Real Sum]]>ProjectData[[#This Row],[Category Limit]] -> FALSE | AA44: =OR(ProjectData[[#This Row],[Significant Project? (Financial Basis)]],ProjectData[[#This Row],[Non repeatable]]) -> FALSE | AB44: =AND(ProjectData[[#This Row],[SomeExpenditure >= 2011]],ProjectData[[#This Row],[Abnormal?]]) -> FALSE
A45: CP.01408 | B45: SDM Version 8 Update | C45: Other | E45: 0 | F45: 0 | G45: 0 | H45: 0 | I45: 0 | K45: 0 | L45: =ProjectData[[#This Row],[Real Sum]]>0.00000001 -> FALSE | M45: =OR(ProjectData[[#This Row],[Real 11]]>0,ProjectData[[#This Row],[Real 12]]>0,ProjectData[[#This Row],[Real 13]]>0,ProjectData[[#This Row],[Real 14]]>0,ProjectData[[#This Row],[Real 15]]>0) -> FALSE | N45: =ProjectData[[#This Row],[Actuals 07/08]]*VLOOKUP("Mid Year Nominal - EOY Real (2015/16)",CPI[],MATCH(N$4,CPI[#Headers],0),FALSE) -> 0 | O45: =ProjectData[[#This Row],[Actuals 08/09]]*VLOOKUP("Mid Year Nominal - EOY Real (2015/16)",CPI[],MATCH(O$4,CPI[#Headers],0),FALSE) -> 0 | P45: =ProjectData[[#This Row],[Actuals 09/10]]*VLOOKUP("Mid Year Nominal - EOY Real (2015/16)",CPI[],MATCH(P$4,CPI[#Headers],0),FALSE) -> 0 | Q45: =ProjectData[[#This Row],[Actuals 10/11]]*VLOOKUP("Mid Year Nominal - EOY Real (2015/16)",CPI[],MATCH(Q$4,CPI[#Headers],0),FALSE) -> 0 | R45: =ProjectData[[#This Row],[Actuals 11/12]]*VLOOKUP("Mid Year Nominal - EOY Real (2015/16)",CPI[],MATCH(R$4,CPI[#Headers],0),FALSE) -> 0 | S45: =ProjectData[[#This Row],[Actuals 12/13]]*VLOOKUP("Mid Year Nominal - EOY Real (2015/16)",CPI[],MATCH(S$4,CPI[#Headers],0),FALSE) -> 0 | T45: =ProjectData[[#This Row],[Actuals 13/14]]*VLOOKUP("Mid Year Nominal - EOY Real (2015/16)",CPI[],MATCH(T$4,CPI[#Headers],0),FALSE) -> 0 | U45: =ProjectData[[#This Row],[Actuals 14/15]]*VLOOKUP("Mid Year Nominal - EOY Real (2015/16)",CPI[],MATCH(U$4,CPI[#Headers],0),FALSE) -> 0 | V45: =SUM(ProjectData[[#This Row],[Real 08]:[Real 15]]) -> 0 | W45: =(ProjectData[[#This Row],[Real Sum]]-VLOOKUP(ProjectData[[#This Row],[Category]],Category_AverageStdDevLimit[],MATCH("Average",Category_AverageStdDevLimit[#Headers],0),FALSE))^2 -> 2.050146049 | X45: =VLOOKUP(ProjectData[[#This Row],[Category]],Category_AverageStdDevLimit[],MATCH("Limit",Category_AverageStdDevLimit[#Headers],0),FALSE) -> 7.704088755 | Y45: =ProjectData[[#This Row],[Real Sum]]>ProjectData[[#This Row],[Category Limit]] -> FALSE | AA45: =OR(ProjectData[[#This Row],[Significant Project? (Financial Basis)]],ProjectData[[#This Row],[Non repeatable]]) -> FALSE | AB45: =AND(ProjectData[[#This Row],[SomeExpenditure >= 2011]],ProjectData[[#This Row],[Abnormal?]]) -> FALSE
A46: CP.01409 | B46: SDM Version 9 | C46: Other | E46: 0.1939153 | F46: -0.1939153 | G46: 0 | H46: 0 | I46: 0 | K46: 0 | L46: =ProjectData[[#This Row],[Real Sum]]>0.00000001 -> TRUE | M46: =OR(ProjectData[[#This Row],[Real 11]]>0,ProjectData[[#This Row],[Real 12]]>0,ProjectData[[#This Row],[Real 13]]>0,ProjectData[[#This Row],[Real 14]]>0,ProjectData[[#This Row],[Real 15]]>0) -> FALSE | N46: =ProjectData[[#This Row],[Actuals 07/08]]*VLOOKUP("Mid Year Nominal - EOY Real (2015/16)",CPI[],MATCH(N$4,CPI[#Headers],0),FALSE) -> 0 | O46: =ProjectData[[#This Row],[Actuals 08/09]]*VLOOKUP("Mid Year Nominal - EOY Real (2015/16)",CPI[],MATCH(O$4,CPI[#Headers],0),FALSE) -> 0.2319407578 | P46: =ProjectData[[#This Row],[Actuals 09/10]]*VLOOKUP("Mid Year Nominal - EOY Real (2015/16)",CPI[],MATCH(P$4,CPI[#Headers],0),FALSE) -> -0.2258928437 | Q46: =ProjectData[[#This Row],[Actuals 10/11]]*VLOOKUP("Mid Year Nominal - EOY Real (2015/16)",CPI[],MATCH(Q$4,CPI[#Headers],0),FALSE) -> 0 | R46: =ProjectData[[#This Row],[Actuals 11/12]]*VLOOKUP("Mid Year Nominal - EOY Real (2015/16)",CPI[],MATCH(R$4,CPI[#Headers],0),FALSE) -> 0 | S46: =ProjectData[[#This Row],[Actuals 12/13]]*VLOOKUP("Mid Year Nominal - EOY Real (2015/16)",CPI[],MATCH(S$4,CPI[#Headers],0),FALSE) -> 0 | T46: =ProjectData[[#This Row],[Actuals 13/14]]*VLOOKUP("Mid Year Nominal - EOY Real (2015/16)",CPI[],MATCH(T$4,CPI[#Headers],0),FALSE) -> 0 | U46: =ProjectData[[#This Row],[Actuals 14/15]]*VLOOKUP("Mid Year Nominal - EOY Real (2015/16)",CPI[],MATCH(U$4,CPI[#Headers],0),FALSE) -> 0 | V46: =SUM(ProjectData[[#This Row],[Real 08]:[Real 15]]) -> 0.006047914066 | W46: =(ProjectData[[#This Row],[Real Sum]]-VLOOKUP(ProjectData[[#This Row],[Category]],Category_AverageStdDevLimit[],MATCH("Average",Category_AverageStdDevLimit[#Headers],0),FALSE))^2 -> 2.032863419 | X46: =VLOOKUP(ProjectData[[#This Row],[Category]],Category_AverageStdDevLimit[],MATCH("Limit",Category_AverageStdDevLimit[#Headers],0),FALSE) -> 7.704088755 | Y46: =ProjectData[[#This Row],[Real Sum]]>ProjectData[[#This Row],[Category Limit]] -> FALSE | AA46: =OR(ProjectData[[#This Row],[Significant Project? (Financial Basis)]],ProjectData[[#This Row],[Non repeatable]]) -> FALSE | AB46: =AND(ProjectData[[#This Row],[SomeExpenditure >= 2011]],ProjectData[[#This Row],[Abnormal?]]) -> FALSE
A47: CP.01411 | B47: 500kV Technical Investigation | C47: Other | D47: 0.4888511 | E47: 0 | F47: -0.12040872 | G47: -1.2865445 | H47: 0 | I47: 0 | K47: 0 | L47: =ProjectData[[#This Row],[Real Sum]]>0.00000001 -> FALSE | M47: =OR(ProjectData[[#This Row],[Real 11]]>0,ProjectData[[#This Row],[Real 12]]>0,ProjectData[[#This Row],[Real 13]]>0,ProjectData[[#This Row],[Real 14]]>0,ProjectData[[#This Row],[Real 15]]>0) -> FALSE | N47: =ProjectData[[#This Row],[Actuals 07/08]]*VLOOKUP("Mid Year Nominal - EOY Real (2015/16)",CPI[],MATCH(N$4,CPI[#Headers],0),FALSE) -> 0.6043012776 | O47: =ProjectData[[#This Row],[Actuals 08/09]]*VLOOKUP("Mid Year Nominal - EOY Real (2015/16)",CPI[],MATCH(O$4,CPI[#Headers],0),FALSE) -> 0 | P47: =ProjectData[[#This Row],[Actuals 09/10]]*VLOOKUP("Mid Year Nominal - EOY Real (2015/16)",CPI[],MATCH(P$4,CPI[#Headers],0),FALSE) -> -0.1402646835 | Q47: =ProjectData[[#This Row],[Actuals 10/11]]*VLOOKUP("Mid Year Nominal - EOY Real (2015/16)",CPI[],MATCH(Q$4,CPI[#Headers],0),FALSE) -> -1.453815572 | R47: =ProjectData[[#This Row],[Actuals 11/12]]*VLOOKUP("Mid Year Nominal - EOY Real (2015/16)",CPI[],MATCH(R$4,CPI[#Headers],0),FALSE) -> 0 | S47: =ProjectData[[#This Row],[Actuals 12/13]]*VLOOKUP("Mid Year Nominal - EOY Real (2015/16)",CPI[],MATCH(S$4,CPI[#Headers],0),FALSE) -> 0 | T47: =ProjectData[[#This Row],[Actuals 13/14]]*VLOOKUP("Mid Year Nominal - EOY Real (2015/16)",CPI[],MATCH(T$4,CPI[#Headers],0),FALSE) -> 0 | U47: =ProjectData[[#This Row],[Actuals 14/15]]*VLOOKUP("Mid Year Nominal - EOY Real (2015/16)",CPI[],MATCH(U$4,CPI[#Headers],0),FALSE) -> 0 | V47: =SUM(ProjectData[[#This Row],[Real 08]:[Real 15]]) -> -0.9897789776 | W47: =(ProjectData[[#This Row],[Real Sum]]-VLOOKUP(ProjectData[[#This Row],[Category]],Category_AverageStdDevLimit[],MATCH("Average",Category_AverageStdDevLimit[#Headers],0),FALSE))^2 -> 5.864205093 | X47: =VLOOKUP(ProjectData[[#This Row],[Category]],Category_AverageStdDevLimit[],MATCH("Limit",Category_AverageStdDevLimit[#Headers],0),FALSE) -> 7.704088755 | Y47: =ProjectData[[#This Row],[Real Sum]]>ProjectData[[#This Row],[Category Limit]] -> FALSE | AA47: =OR(ProjectData[[#This Row],[Significant Project? (Financial Basis)]],ProjectData[[#This Row],[Non repeatable]]) -> FALSE | AB47: =AND(ProjectData[[#This Row],[SomeExpenditure >= 2011]],ProjectData[[#This Row],[Abnormal?]]) -> FALSE
A48: CP.01413 | B48: SF6 Detection Camera | C48: Other | E48: 0.1278585 | F48: 0 | G48: 0 | H48: 0 | I48: 0 | K48: 0 | L48: =ProjectData[[#This Row],[Real Sum]]>0.00000001 -> TRUE | M48: =OR(ProjectData[[#This Row],[Real 11]]>0,ProjectData[[#This Row],[Real 12]]>0,ProjectData[[#This Row],[Real 13]]>0,ProjectData[[#This Row],[Real 14]]>0,ProjectData[[#This Row],[Real 15]]>0) -> FALSE | N48: =ProjectData[[#This Row],[Actuals 07/08]]*VLOOKUP("Mid Year Nominal - EOY Real (2015/16)",CPI[],MATCH(N$4,CPI[#Headers],0),FALSE) -> 0 | O48: =ProjectData[[#This Row],[Actuals 08/09]]*VLOOKUP("Mid Year Nominal - EOY Real (2015/16)",CPI[],MATCH(O$4,CPI[#Headers],0),FALSE) -> 0.1529306732 | P48: =ProjectData[[#This Row],[Actuals 09/10]]*VLOOKUP("Mid Year Nominal - EOY Real (2015/16)",CPI[],MATCH(P$4,CPI[#Headers],0),FALSE) -> 0 | Q48: =ProjectData[[#This Row],[Actuals 10/11]]*VLOOKUP("Mid Year Nominal - EOY Real (2015/16)",CPI[],MATCH(Q$4,CPI[#Headers],0),FALSE) -> 0 | R48: =ProjectData[[#This Row],[Actuals 11/12]]*VLOOKUP("Mid Year Nominal - EOY Real (2015/16)",CPI[],MATCH(R$4,CPI[#Headers],0),FALSE) -> 0 | S48: =ProjectData[[#This Row],[Actuals 12/13]]*VLOOKUP("Mid Year Nominal - EOY Real (2015/16)",CPI[],MATCH(S$4,CPI[#Headers],0),FALSE) -> 0 | T48: =ProjectData[[#This Row],[Actuals 13/14]]*VLOOKUP("Mid Year Nominal - EOY Real (2015/16)",CPI[],MATCH(T$4,CPI[#Headers],0),FALSE) -> 0 | U48: =ProjectData[[#This Row],[Actuals 14/15]]*VLOOKUP("Mid Year Nominal - EOY Real (2015/16)",CPI[],MATCH(U$4,CPI[#Headers],0),FALSE) -> 0 | V48: =SUM(ProjectData[[#This Row],[Real 08]:[Real 15]]) -> 0.1529306732 | W48: =(ProjectData[[#This Row],[Real Sum]]-VLOOKUP(ProjectData[[#This Row],[Category]],Category_AverageStdDevLimit[],MATCH("Average",Category_AverageStdDevLimit[#Headers],0),FALSE))^2 -> 1.635591438 | X48: =VLOOKUP(ProjectData[[#This Row],[Category]],Category_AverageStdDevLimit[],MATCH("Limit",Category_AverageStdDevLimit[#Headers],0),FALSE) -> 7.704088755 | Y48: =ProjectData[[#This Row],[Real Sum]]>ProjectData[[#This Row],[Category Limit]] -> FALSE | AA48: =OR(ProjectData[[#This Row],[Significant Project? (Financial Basis)]],ProjectData[[#This Row],[Non repeatable]]) -> FALSE | AB48: =AND(ProjectData[[#This Row],[SomeExpenditure >= 2011]],ProjectData[[#This Row],[Abnormal?]]) -> FALSE
A49: CP.01414 | B49: Mobile Oil Processing Unit | C49: Security / Compliance | E49: 0.0477495 | F49: 0.1114155 | G49: 0 | H49: 0 | I49: 0 | K49: 0 | L49: =ProjectData[[#This Row],[Real Sum]]>0.00000001 -> TRUE | M49: =OR(ProjectData[[#This Row],[Real 11]]>0,ProjectData[[#This Row],[Real 12]]>0,ProjectData[[#This Row],[Real 13]]>0,ProjectData[[#This Row],[Real 14]]>0,ProjectData[[#This Row],[Real 15]]>0) -> FALSE | N49: =ProjectData[[#This Row],[Actuals 07/08]]*VLOOKUP("Mid Year Nominal - EOY Real (2015/16)",CPI[],MATCH(N$4,CPI[#Headers],0),FALSE) -> 0 | O49: =ProjectData[[#This Row],[Actuals 08/09]]*VLOOKUP("Mid Year Nominal - EOY Real (2015/16)",CPI[],MATCH(O$4,CPI[#Headers],0),FALSE) -> 0.05711284883 | P49: =ProjectData[[#This Row],[Actuals 09/10]]*VLOOKUP("Mid Year Nominal - EOY Real (2015/16)",CPI[],MATCH(P$4,CPI[#Headers],0),FALSE) -> 0.1297884392 | Q49: =ProjectData[[#This Row],[Actuals 10/11]]*VLOOKUP("Mid Year Nominal - EOY Real (2015/16)",CPI[],MATCH(Q$4,CPI[#Headers],0),FALSE) -> 0 | R49: =ProjectData[[#This Row],[Actuals 11/12]]*VLOOKUP("Mid Year Nominal - EOY Real (2015/16)",CPI[],MATCH(R$4,CPI[#Headers],0),FALSE) -> 0 | S49: =ProjectData[[#This Row],[Actuals 12/13]]*VLOOKUP("Mid Year Nominal - EOY Real (2015/16)",CPI[],MATCH(S$4,CPI[#Headers],0),FALSE) -> 0 | T49: =ProjectData[[#This Row],[Actuals 13/14]]*VLOOKUP("Mid Year Nominal - EOY Real (2015/16)",CPI[],MATCH(T$4,CPI[#Headers],0),FALSE) -> 0 | U49: =ProjectData[[#This Row],[Actuals 14/15]]*VLOOKUP("Mid Year Nominal - EOY Real (2015/16)",CPI[],MATCH(U$4,CPI[#Headers],0),FALSE) -> 0 | V49: =SUM(ProjectData[[#This Row],[Real 08]:[Real 15]]) -> 0.1869012881 | W49: =(ProjectData[[#This Row],[Real Sum]]-VLOOKUP(ProjectData[[#This Row],[Category]],Category_AverageStdDevLimit[],MATCH("Average",Category_AverageStdDevLimit[#Headers],0),FALSE))^2 -> 11.59758497 | X49: =VLOOKUP(ProjectData[[#This Row],[Category]],Category_AverageStdDevLimit[],MATCH("Limit",Category_AverageStdDevLimit[#Headers],0),FALSE) -> 10.86958417 | Y49: =ProjectData[[#This Row],[Real Sum]]>ProjectData[[#This Row],[Category Limit]] -> FALSE | AA49: =OR(ProjectData[[#This Row],[Significant Project? (Financial Basis)]],ProjectData[[#This Row],[Non repeatable]]) -> FALSE | AB49: =AND(ProjectData[[#This Row],[SomeExpenditure >= 2011]],ProjectData[[#This Row],[Abnormal?]]) -> FALSE
A50: CP.01421 | B50: NMS Common Services Infrastructure | C50: Replacement | E50: 0.147352 | F50: 0.5574643 | H50: 0 | I50: 0 | K50: 0 | L50: =ProjectData[[#This Row],[Real Sum]]>0.00000001 -> TRUE | M50: =OR(ProjectData[[#This Row],[Real 11]]>0,ProjectData[[#This Row],[Real 12]]>0,ProjectData[[#This Row],[Real 13]]>0,ProjectData[[#This Row],[Real 14]]>0,ProjectData[[#This Row],[Real 15]]>0) -> FALSE | N50: =ProjectData[[#This Row],[Actuals 07/08]]*VLOOKUP("Mid Year Nominal - EOY Real (2015/16)",CPI[],MATCH(N$4,CPI[#Headers],0),FALSE) -> 0 | O50: =ProjectData[[#This Row],[Actuals 08/09]]*VLOOKUP("Mid Year Nominal - EOY Real (2015/16)",CPI[],MATCH(O$4,CPI[#Headers],0),FALSE) -> 0.1762467146 | P50: =ProjectData[[#This Row],[Actuals 09/10]]*VLOOKUP("Mid Year Nominal - EOY Real (2015/16)",CPI[],MATCH(P$4,CPI[#Headers],0),FALSE) -> 0.6493927813 | Q50: =ProjectData[[#This Row],[Actuals 10/11]]*VLOOKUP("Mid Year Nominal - EOY Real (2015/16)",CPI[],MATCH(Q$4,CPI[#Headers],0),FALSE) -> 0 | R50: =ProjectData[[#This Row],[Actuals 11/12]]*VLOOKUP("Mid Year Nominal - EOY Real (2015/16)",CPI[],MATCH(R$4,CPI[#Headers],0),FALSE) -> 0 | S50: =ProjectData[[#This Row],[Actuals 12/13]]*VLOOKUP("Mid Year Nominal - EOY Real (2015/16)",CPI[],MATCH(S$4,CPI[#Headers],0),FALSE) -> 0 | T50: =ProjectData[[#This Row],[Actuals 13/14]]*VLOOKUP("Mid Year Nominal - EOY Real (2015/16)",CPI[],MATCH(T$4,CPI[#Headers],0),FALSE) -> 0 | U50: =ProjectData[[#This Row],[Actuals 14/15]]*VLOOKUP("Mid Year Nominal - EOY Real (2015/16)",CPI[],MATCH(U$4,CPI[#Headers],0),FALSE) -> 0 | V50: =SUM(ProjectData[[#This Row],[Real 08]:[Real 15]]) -> 0.825639496 | W50: =(ProjectData[[#This Row],[Real Sum]]-VLOOKUP(ProjectData[[#This Row],[Category]],Category_AverageStdDevLimit[],MATCH("Average",Category_AverageStdDevLimit[#Headers],0),FALSE))^2 -> 0.02552776217 | X50: =VLOOKUP(ProjectData[[#This Row],[Category]],Category_AverageStdDevLimit[],MATCH("Limit",Category_AverageStdDevLimit[#Headers],0),FALSE) -> 2.96351611 | Y50: =ProjectData[[#This Row],[Real Sum]]>ProjectData[[#This Row],[Category Limit]] -> FALSE | AA50: =OR(ProjectData[[#This Row],[Significant Project? (Financial Basis)]],ProjectData[[#This Row],[Non repeatable]]) -> FALSE | AB50: =AND(ProjectData[[#This Row],[SomeExpenditure >= 2011]],ProjectData[[#This Row],[Abnormal?]]) -> FALSE
A51: CP.01428 | B51: High Speed Monitoring - Stage 2 | C51: Other | E51: 0.05032175 | F51: 1.19399203 | G51: 0.88218996 | H51: -2.8e-07 | I51: 0.01818944 | J51: 0 | K51: 0 | L51: =ProjectData[[#This Row],[Real Sum]]>0.00000001 -> TRUE | M51: =OR(ProjectData[[#This Row],[Real 11]]>0,ProjectData[[#This Row],[Real 12]]>0,ProjectData[[#This Row],[Real 13]]>0,ProjectData[[#This Row],[Real 14]]>0,ProjectData[[#This Row],[Real 15]]>0) -> TRUE | N51: =ProjectData[[#This Row],[Actuals 07/08]]*VLOOKUP("Mid Year Nominal - EOY Real (2015/16)",CPI[],MATCH(N$4,CPI[#Headers],0),FALSE) -> 0 | O51: =ProjectData[[#This Row],[Actuals 08/09]]*VLOOKUP("Mid Year Nominal - EOY Real (2015/16)",CPI[],MATCH(O$4,CPI[#Headers],0),FALSE) -> 0.06018949938 | P51: =ProjectData[[#This Row],[Actuals 09/10]]*VLOOKUP("Mid Year Nominal - EOY Real (2015/16)",CPI[],MATCH(P$4,CPI[#Headers],0),FALSE) -> 1.390886924 | Q51: =ProjectData[[#This Row],[Actuals 10/11]]*VLOOKUP("Mid Year Nominal - EOY Real (2015/16)",CPI[],MATCH(Q$4,CPI[#Headers],0),FALSE) -> 0.9968885656 | R51: =ProjectData[[#This Row],[Actuals 11/12]]*VLOOKUP("Mid Year Nominal - EOY Real (2015/16)",CPI[],MATCH(R$4,CPI[#Headers],0),FALSE) -> -3.088718044e-07 | S51: =ProjectData[[#This Row],[Actuals 12/13]]*VLOOKUP("Mid Year Nominal - EOY Real (2015/16)",CPI[],MATCH(S$4,CPI[#Headers],0),FALSE) -> 0.01965922273 | T51: =ProjectData[[#This Row],[Actuals 13/14]]*VLOOKUP("Mid Year Nominal - EOY Real (2015/16)",CPI[],MATCH(T$4,CPI[#Headers],0),FALSE) -> 0 | U51: =ProjectData[[#This Row],[Actuals 14/15]]*VLOOKUP("Mid Year Nominal - EOY Real (2015/16)",CPI[],MATCH(U$4,CPI[#Headers],0),FALSE) -> 0 | V51: =SUM(ProjectData[[#This Row],[Real 08]:[Real 15]]) -> 2.467623902 | W51: =(ProjectData[[#This Row],[Real Sum]]-VLOOKUP(ProjectData[[#This Row],[Category]],Category_AverageStdDevLimit[],MATCH("Average",Category_AverageStdDevLimit[#Headers],0),FALSE))^2 -> 1.07286257 | X51: =VLOOKUP(ProjectData[[#This Row],[Category]],Category_AverageStdDevLimit[],MATCH("Limit",Category_AverageStdDevLimit[#Headers],0),FALSE) -> 7.704088755 | Y51: =ProjectData[[#This Row],[Real Sum]]>ProjectData[[#This Row],[Category Limit]] -> FALSE | AA51: =OR(ProjectData[[#This Row],[Significant Project? (Financial Basis)]],ProjectData[[#This Row],[Non repeatable]]) -> FALSE | AB51: =AND(ProjectData[[#This Row],[SomeExpenditure >= 2011]],ProjectData[[#This Row],[Abnormal?]]) -> FALSE
A52: CP.01433 | B52: DWDM Network Diversity - Wide Bay | C52: Other | E52: 0.0352477 | F52: 1.32882705 | G52: 1.48116603 | H52: 0.02080341 | I52: 0 | K52: 0 | L52: =ProjectData[[#This Row],[Real Sum]]>0.00000001 -> TRUE | M52: =OR(ProjectData[[#This Row],[Real 11]]>0,ProjectData[[#This Row],[Real 12]]>0,ProjectData[[#This Row],[Real 13]]>0,ProjectData[[#This Row],[Real 14]]>0,ProjectData[[#This Row],[Real 15]]>0) -> TRUE | N52: =ProjectData[[#This Row],[Actuals 07/08]]*VLOOKUP("Mid Year Nominal - EOY Real (2015/16)",CPI[],MATCH(N$4,CPI[#Headers],0),FALSE) -> 0 | O52: =ProjectData[[#This Row],[Actuals 08/09]]*VLOOKUP("Mid Year Nominal - EOY Real (2015/16)",CPI[],MATCH(O$4,CPI[#Headers],0),FALSE) -> 0.04215953176 | P52: =ProjectData[[#This Row],[Actuals 09/10]]*VLOOKUP("Mid Year Nominal - EOY Real (2015/16)",CPI[],MATCH(P$4,CPI[#Headers],0),FALSE) -> 1.547956872 | Q52: =ProjectData[[#This Row],[Actuals 10/11]]*VLOOKUP("Mid Year Nominal - EOY Real (2015/16)",CPI[],MATCH(Q$4,CPI[#Headers],0),FALSE) -> 1.67374097 | R52: =ProjectData[[#This Row],[Actuals 11/12]]*VLOOKUP("Mid Year Nominal - EOY Real (2015/16)",CPI[],MATCH(R$4,CPI[#Headers],0),FALSE) -> 0.02294852423 | S52: =ProjectData[[#This Row],[Actuals 12/13]]*VLOOKUP("Mid Year Nominal - EOY Real (2015/16)",CPI[],MATCH(S$4,CPI[#Headers],0),FALSE) -> 0 | T52: =ProjectData[[#This Row],[Actuals 13/14]]*VLOOKUP("Mid Year Nominal - EOY Real (2015/16)",CPI[],MATCH(T$4,CPI[#Headers],0),FALSE) -> 0 | U52: =ProjectData[[#This Row],[Actuals 14/15]]*VLOOKUP("Mid Year Nominal - EOY Real (2015/16)",CPI[],MATCH(U$4,CPI[#Headers],0),FALSE) -> 0 | V52: =SUM(ProjectData[[#This Row],[Real 08]:[Real 15]]) -> 3.286805897 | W52: =(ProjectData[[#This Row],[Real Sum]]-VLOOKUP(ProjectData[[#This Row],[Category]],Category_AverageStdDevLimit[],MATCH("Average",Category_AverageStdDevLimit[#Headers],0),FALSE))^2 -> 3.440924049 | X52: =VLOOKUP(ProjectData[[#This Row],[Category]],Category_AverageStdDevLimit[],MATCH("Limit",Category_AverageStdDevLimit[#Headers],0),FALSE) -> 7.704088755 | Y52: =ProjectData[[#This Row],[Real Sum]]>ProjectData[[#This Row],[Category Limit]] -> FALSE | AA52: =OR(ProjectData[[#This Row],[Significant Project? (Financial Basis)]],ProjectData[[#This Row],[Non repeatable]]) -> FALSE | AB52: =AND(ProjectData[[#This Row],[SomeExpenditure >= 2011]],ProjectData[[#This Row],[Abnormal?]]) -> FALSE
A53: CP.01434 | B53: Karana Downs to Upper Kedron OPGW Retrofit | C53: Other | F53: 0.0019964 | G53: 0.02674149 | H53: 0.20209455 | I53: 2.56789136 | J53: 0.00201271 | K53: 0 | L53: =ProjectData[[#This Row],[Real Sum]]>0.00000001 -> TRUE | M53: =OR(ProjectData[[#This Row],[Real 11]]>0,ProjectData[[#This Row],[Real 12]]>0,ProjectData[[#This Row],[Real 13]]>0,ProjectData[[#This Row],[Real 14]]>0,ProjectData[[#This Row],[Real 15]]>0) -> TRUE | N53: =ProjectData[[#This Row],[Actuals 07/08]]*VLOOKUP("Mid Year Nominal - EOY Real (2015/16)",CPI[],MATCH(N$4,CPI[#Headers],0),FALSE) -> 0 | O53: =ProjectData[[#This Row],[Actuals 08/09]]*VLOOKUP("Mid Year Nominal - EOY Real (2015/16)",CPI[],MATCH(O$4,CPI[#Headers],0),FALSE) -> 0 | P53: =ProjectData[[#This Row],[Actuals 09/10]]*VLOOKUP("Mid Year Nominal - EOY Real (2015/16)",CPI[],MATCH(P$4,CPI[#Headers],0),FALSE) -> 0.002325615737 | Q53: =ProjectData[[#This Row],[Actuals 10/11]]*VLOOKUP("Mid Year Nominal - EOY Real (2015/16)",CPI[],MATCH(Q$4,CPI[#Headers],0),FALSE) -> 0.03021830537 | R53: =ProjectData[[#This Row],[Actuals 11/12]]*VLOOKUP("Mid Year Nominal - EOY Real (2015/16)",CPI[],MATCH(R$4,CPI[#Headers],0),FALSE) -> 0.222933244 | S53: =ProjectData[[#This Row],[Actuals 12/13]]*VLOOKUP("Mid Year Nominal - EOY Real (2015/16)",CPI[],MATCH(S$4,CPI[#Headers],0),FALSE) -> 2.775387708 | T53: =ProjectData[[#This Row],[Actuals 13/14]]*VLOOKUP("Mid Year Nominal - EOY Real (2015/16)",CPI[],MATCH(T$4,CPI[#Headers],0),FALSE) -> 0.002117827862 | U53: =ProjectData[[#This Row],[Actuals 14/15]]*VLOOKUP("Mid Year Nominal - EOY Real (2015/16)",CPI[],MATCH(U$4,CPI[#Headers],0),FALSE) -> 0 | V53: =SUM(ProjectData[[#This Row],[Real 08]:[Real 15]]) -> 3.032982701 | W53: =(ProjectData[[#This Row],[Real Sum]]-VLOOKUP(ProjectData[[#This Row],[Category]],Category_AverageStdDevLimit[],MATCH("Average",Category_AverageStdDevLimit[#Headers],0),FALSE))^2 -> 2.563680018 | X53: =VLOOKUP(ProjectData[[#This Row],[Category]],Category_AverageStdDevLimit[],MATCH("Limit",Category_AverageStdDevLimit[#Headers],0),FALSE) -> 7.704088755 | Y53: =ProjectData[[#This Row],[Real Sum]]>ProjectData[[#This Row],[Category Limit]] -> FALSE | AA53: =OR(ProjectData[[#This Row],[Significant Project? (Financial Basis)]],ProjectData[[#This Row],[Non repeatable]]) -> FALSE | AB53: =AND(ProjectData[[#This Row],[SomeExpenditure >= 2011]],ProjectData[[#This Row],[Abnormal?]]) -> FALSE
A54: CP.01435 | B54: DWDM Network Diversity - Far North | C54: Other | E54: 0.00924675 | F54: 0.01967129 | G54: 0.0016744 | H54: 0 | I54: 0 | J54: 0.59811025 | K54: 0.28156996 | L54: =ProjectData[[#This Row],[Real Sum]]>0.00000001 -> TRUE | M54: =OR(ProjectData[[#This Row],[Real 11]]>0,ProjectData[[#This Row],[Real 12]]>0,ProjectData[[#This Row],[Real 13]]>0,ProjectData[[#This Row],[Real 14]]>0,ProjectData[[#This Row],[Real 15]]>0) -> TRUE | N54: =ProjectData[[#This Row],[Actuals 07/08]]*VLOOKUP("Mid Year Nominal - EOY Real (2015/16)",CPI[],MATCH(N$4,CPI[#Headers],0),FALSE) -> 0 | O54: =ProjectData[[#This Row],[Actuals 08/09]]*VLOOKUP("Mid Year Nominal - EOY Real (2015/16)",CPI[],MATCH(O$4,CPI[#Headers],0),FALSE) -> 0.01105997413 | P54: =ProjectData[[#This Row],[Actuals 09/10]]*VLOOKUP("Mid Year Nominal - EOY Real (2015/16)",CPI[],MATCH(P$4,CPI[#Headers],0),FALSE) -> 0.02291517811 | Q54: =ProjectData[[#This Row],[Actuals 10/11]]*VLOOKUP("Mid Year Nominal - EOY Real (2015/16)",CPI[],MATCH(Q$4,CPI[#Headers],0),FALSE) -> 0.001892098403 | R54: =ProjectData[[#This Row],[Actuals 11/12]]*VLOOKUP("Mid Year Nominal - EOY Real (2015/16)",CPI[],MATCH(R$4,CPI[#Headers],0),FALSE) -> 0 | S54: =ProjectData[[#This Row],[Actuals 12/13]]*VLOOKUP("Mid Year Nominal - EOY Real (2015/16)",CPI[],MATCH(S$4,CPI[#Headers],0),FALSE) -> 0 | T54: =ProjectData[[#This Row],[Actuals 13/14]]*VLOOKUP("Mid Year Nominal - EOY Real (2015/16)",CPI[],MATCH(T$4,CPI[#Headers],0),FALSE) -> 0.6293477708 | U54: =ProjectData[[#This Row],[Actuals 14/15]]*VLOOKUP("Mid Year Nominal - EOY Real (2015/16)",CPI[],MATCH(U$4,CPI[#Headers],0),FALSE) -> 0.29010828 | V54: =SUM(ProjectData[[#This Row],[Real 08]:[Real 15]]) -> 0.9553233014 | W54: =(ProjectData[[#This Row],[Real Sum]]-VLOOKUP(ProjectData[[#This Row],[Category]],Category_AverageStdDevLimit[],MATCH("Average",Category_AverageStdDevLimit[#Headers],0),FALSE))^2 -> 0.2270615958 | X54: =VLOOKUP(ProjectData[[#This Row],[Category]],Category_AverageStdDevLimit[],MATCH("Limit",Category_AverageStdDevLimit[#Headers],0),FALSE) -> 7.704088755 | Y54: =ProjectData[[#This Row],[Real Sum]]>ProjectData[[#This Row],[Category Limit]] -> FALSE | AA54: =OR(ProjectData[[#This Row],[Significant Project? (Financial Basis)]],ProjectData[[#This Row],[Non repeatable]]) -> FALSE | AB54: =AND(ProjectData[[#This Row],[SomeExpenditure >= 2011]],ProjectData[[#This Row],[Abnormal?]]) -> FALSE
A55: CP.01436 | B55: DWDM Network Diversity - North | C55: Other | E55: 0.01446725 | F55: 0.0216446 | G55: 1.2028667 | H55: 0.23363011 | I55: 0.01000424 | J55: 0 | K55: 0 | L55: =ProjectData[[#This Row],[Real Sum]]>0.00000001 -> TRUE | M55: =OR(ProjectData[[#This Row],[Real 11]]>0,ProjectData[[#This Row],[Real 12]]>0,ProjectData[[#This Row],[Real 13]]>0,ProjectData[[#This Row],[Real 14]]>0,ProjectData[[#This Row],[Real 15]]>0) -> TRUE | N55: =ProjectData[[#This Row],[Actuals 07/08]]*VLOOKUP("Mid Year Nominal - EOY Real (2015/16)",CPI[],MATCH(N$4,CPI[#Headers],0),FALSE) -> 0 | O55: =ProjectData[[#This Row],[Actuals 08/09]]*VLOOKUP("Mid Year Nominal - EOY Real (2015/16)",CPI[],MATCH(O$4,CPI[#Headers],0),FALSE) -> 0.01730417831 | P55: =ProjectData[[#This Row],[Actuals 09/10]]*VLOOKUP("Mid Year Nominal - EOY Real (2015/16)",CPI[],MATCH(P$4,CPI[#Headers],0),FALSE) -> 0.0252138962 | Q55: =ProjectData[[#This Row],[Actuals 10/11]]*VLOOKUP("Mid Year Nominal - EOY Real (2015/16)",CPI[],MATCH(Q$4,CPI[#Headers],0),FALSE) -> 1.359258338 | R55: =ProjectData[[#This Row],[Actuals 11/12]]*VLOOKUP("Mid Year Nominal - EOY Real (2015/16)",CPI[],MATCH(R$4,CPI[#Headers],0),FALSE) -> 0.2577205487 | S55: =ProjectData[[#This Row],[Actuals 12/13]]*VLOOKUP("Mid Year Nominal - EOY Real (2015/16)",CPI[],MATCH(S$4,CPI[#Headers],0),FALSE) -> 0.01081262438 | T55: =ProjectData[[#This Row],[Actuals 13/14]]*VLOOKUP("Mid Year Nominal - EOY Real (2015/16)",CPI[],MATCH(T$4,CPI[#Headers],0),FALSE) -> 0 | U55: =ProjectData[[#This Row],[Actuals 14/15]]*VLOOKUP("Mid Year Nominal - EOY Real (2015/16)",CPI[],MATCH(U$4,CPI[#Headers],0),FALSE) -> 0 | V55: =SUM(ProjectData[[#This Row],[Real 08]:[Real 15]]) -> 1.670309586 | W55: =(ProjectData[[#This Row],[Real Sum]]-VLOOKUP(ProjectData[[#This Row],[Category]],Category_AverageStdDevLimit[],MATCH("Average",Category_AverageStdDevLimit[#Headers],0),FALSE))^2 -> 0.05687103051 | X55: =VLOOKUP(ProjectData[[#This Row],[Category]],Category_AverageStdDevLimit[],MATCH("Limit",Category_AverageStdDevLimit[#Headers],0),FALSE) -> 7.704088755 | Y55: =ProjectData[[#This Row],[Real Sum]]>ProjectData[[#This Row],[Category Limit]] -> FALSE | AA55: =OR(ProjectData[[#This Row],[Significant Project? (Financial Basis)]],ProjectData[[#This Row],[Non repeatable]]) -> FALSE | AB55: =AND(ProjectData[[#This Row],[SomeExpenditure >= 2011]],ProjectData[[#This Row],[Abnormal?]]) -> FALSE
A56: CP.01437 | B56: SDH Interconenction to DWDM Network | C56: Other | E56: 0.02750995 | F56: 0.00134175 | G56: -0.0288517 | H56: 0 | I56: 0 | K56: 0 | L56: =ProjectData[[#This Row],[Real Sum]]>0.00000001 -> TRUE | M56: =OR(ProjectData[[#This Row],[Real 11]]>0,ProjectData[[#This Row],[Real 12]]>0,ProjectData[[#This Row],[Real 13]]>0,ProjectData[[#This Row],[Real 14]]>0,ProjectData[[#This Row],[Real 15]]>0) -> FALSE | N56: =ProjectData[[#This Row],[Actuals 07/08]]*VLOOKUP("Mid Year Nominal - EOY Real (2015/16)",CPI[],MATCH(N$4,CPI[#Headers],0),FALSE) -> 0 | O56: =ProjectData[[#This Row],[Actuals 08/09]]*VLOOKUP("Mid Year Nominal - EOY Real (2015/16)",CPI[],MATCH(O$4,CPI[#Headers],0),FALSE) -> 0.03290446216 | P56: =ProjectData[[#This Row],[Actuals 09/10]]*VLOOKUP("Mid Year Nominal - EOY Real (2015/16)",CPI[],MATCH(P$4,CPI[#Headers],0),FALSE) -> 0.001563010877 | Q56: =ProjectData[[#This Row],[Actuals 10/11]]*VLOOKUP("Mid Year Nominal - EOY Real (2015/16)",CPI[],MATCH(Q$4,CPI[#Headers],0),FALSE) -> -0.03260287595 | R56: =ProjectData[[#This Row],[Actuals 11/12]]*VLOOKUP("Mid Year Nominal - EOY Real (2015/16)",CPI[],MATCH(R$4,CPI[#Headers],0),FALSE) -> 0 | S56: =ProjectData[[#This Row],[Actuals 12/13]]*VLOOKUP("Mid Year Nominal - EOY Real (2015/16)",CPI[],MATCH(S$4,CPI[#Headers],0),FALSE) -> 0 | T56: =ProjectData[[#This Row],[Actuals 13/14]]*VLOOKUP("Mid Year Nominal - EOY Real (2015/16)",CPI[],MATCH(T$4,CPI[#Headers],0),FALSE) -> 0 | U56: =ProjectData[[#This Row],[Actuals 14/15]]*VLOOKUP("Mid Year Nominal - EOY Real (2015/16)",CPI[],MATCH(U$4,CPI[#Headers],0),FALSE) -> 0 | V56: =SUM(ProjectData[[#This Row],[Real 08]:[Real 15]]) -> 0.001864597087 | W56: =(ProjectData[[#This Row],[Real Sum]]-VLOOKUP(ProjectData[[#This Row],[Category]],Category_AverageStdDevLimit[],MATCH("Average",Category_AverageStdDevLimit[#Headers],0),FALSE))^2 -> 2.044809942 | X56: =VLOOKUP(ProjectData[[#This Row],[Category]],Category_AverageStdDevLimit[],MATCH("Limit",Category_AverageStdDevLimit[#Headers],0),FALSE) -> 7.704088755 | Y56: =ProjectData[[#This Row],[Real Sum]]>ProjectData[[#This Row],[Category Limit]] -> FALSE | AA56: =OR(ProjectData[[#This Row],[Significant Project? (Financial Basis)]],ProjectData[[#This Row],[Non repeatable]]) -> FALSE | AB56: =AND(ProjectData[[#This Row],[SomeExpenditure >= 2011]],ProjectData[[#This Row],[Abnormal?]]) -> FALSE
A57: CP.01439 | B57: Substation Security Upgrade - North | C57: Security / Compliance | E57: 0.0088085 | F57: 0.06940369 | G57: 0.07617082 | H57: 0.97369817 | I57: 0.60132791 | J57: 1.41354378 | K57: 0 | L57: =ProjectData[[#This Row],[Real Sum]]>0.00000001 -> TRUE | M57: =OR(ProjectData[[#This Row],[Real 11]]>0,ProjectData[[#This Row],[Real 12]]>0,ProjectData[[#This Row],[Real 13]]>0,ProjectData[[#This Row],[Real 14]]>0,ProjectData[[#This Row],[Real 15]]>0) -> TRUE | N57: =ProjectData[[#This Row],[Actuals 07/08]]*VLOOKUP("Mid Year Nominal - EOY Real (2015/16)",CPI[],MATCH(N$4,CPI[#Headers],0),FALSE) -> 0 | O57: =ProjectData[[#This Row],[Actuals 08/09]]*VLOOKUP("Mid Year Nominal - EOY Real (2015/16)",CPI[],MATCH(O$4,CPI[#Headers],0),FALSE) -> 0.01053578632 | P57: =ProjectData[[#This Row],[Actuals 09/10]]*VLOOKUP("Mid Year Nominal - EOY Real (2015/16)",CPI[],MATCH(P$4,CPI[#Headers],0),FALSE) -> 0.08084868445 | Q57: =ProjectData[[#This Row],[Actuals 10/11]]*VLOOKUP("Mid Year Nominal - EOY Real (2015/16)",CPI[],MATCH(Q$4,CPI[#Headers],0),FALSE) -> 0.08607422769 | R57: =ProjectData[[#This Row],[Actuals 11/12]]*VLOOKUP("Mid Year Nominal - EOY Real (2015/16)",CPI[],MATCH(R$4,CPI[#Headers],0),FALSE) -> 1.074099681 | S57: =ProjectData[[#This Row],[Actuals 12/13]]*VLOOKUP("Mid Year Nominal - EOY Real (2015/16)",CPI[],MATCH(S$4,CPI[#Headers],0),FALSE) -> 0.6499177168 | T57: =ProjectData[[#This Row],[Actuals 13/14]]*VLOOKUP("Mid Year Nominal - EOY Real (2015/16)",CPI[],MATCH(T$4,CPI[#Headers],0),FALSE) -> 1.487368971 | U57: =ProjectData[[#This Row],[Actuals 14/15]]*VLOOKUP("Mid Year Nominal - EOY Real (2015/16)",CPI[],MATCH(U$4,CPI[#Headers],0),FALSE) -> 0 | V57: =SUM(ProjectData[[#This Row],[Real 08]:[Real 15]]) -> 3.388845067 | W57: =(ProjectData[[#This Row],[Real Sum]]-VLOOKUP(ProjectData[[#This Row],[Category]],Category_AverageStdDevLimit[],MATCH("Average",Category_AverageStdDevLimit[#Headers],0),FALSE))^2 -> 0.04144438399 | X57: =VLOOKUP(ProjectData[[#This Row],[Category]],Category_AverageStdDevLimit[],MATCH("Limit",Category_AverageStdDevLimit[#Headers],0),FALSE) -> 10.86958417 | Y57: =ProjectData[[#This Row],[Real Sum]]>ProjectData[[#This Row],[Category Limit]] -> FALSE | AA57: =OR(ProjectData[[#This Row],[Significant Project? (Financial Basis)]],ProjectData[[#This Row],[Non repeatable]]) -> FALSE | AB57: =AND(ProjectData[[#This Row],[SomeExpenditure >= 2011]],ProjectData[[#This Row],[Abnormal?]]) -> FALSE
A58: CP.01448 | B58: Telstra DDN Replacement | C58: Replacement | E58: 0.01742711 | F58: 0.23706722 | G58: 0.02467942 | H58: 0 | I58: 0 | K58: 0 | L58: =ProjectData[[#This Row],[Real Sum]]>0.00000001 -> TRUE | M58: =OR(ProjectData[[#This Row],[Real 11]]>0,ProjectData[[#This Row],[Real 12]]>0,ProjectData[[#This Row],[Real 13]]>0,ProjectData[[#This Row],[Real 14]]>0,ProjectData[[#This Row],[Real 15]]>0) -> TRUE | N58: =ProjectData[[#This Row],[Actuals 07/08]]*VLOOKUP("Mid Year Nominal - EOY Real (2015/16)",CPI[],MATCH(N$4,CPI[#Headers],0),FALSE) -> 0 | O58: =ProjectData[[#This Row],[Actuals 08/09]]*VLOOKUP("Mid Year Nominal - EOY Real (2015/16)",CPI[],MATCH(O$4,CPI[#Headers],0),FALSE) -> 0.02084444652 | P58: =ProjectData[[#This Row],[Actuals 09/10]]*VLOOKUP("Mid Year Nominal - EOY Real (2015/16)",CPI[],MATCH(P$4,CPI[#Headers],0),FALSE) -> 0.276160718 | Q58: =ProjectData[[#This Row],[Actuals 10/11]]*VLOOKUP("Mid Year Nominal - EOY Real (2015/16)",CPI[],MATCH(Q$4,CPI[#Headers],0),FALSE) -> 0.02788813376 | R58: =ProjectData[[#This Row],[Actuals 11/12]]*VLOOKUP("Mid Year Nominal - EOY Real (2015/16)",CPI[],MATCH(R$4,CPI[#Headers],0),FALSE) -> 0 | S58: =ProjectData[[#This Row],[Actuals 12/13]]*VLOOKUP("Mid Year Nominal - EOY Real (2015/16)",CPI[],MATCH(S$4,CPI[#Headers],0),FALSE) -> 0 | T58: =ProjectData[[#This Row],[Actuals 13/14]]*VLOOKUP("Mid Year Nominal - EOY Real (2015/16)",CPI[],MATCH(T$4,CPI[#Headers],0),FALSE) -> 0 | U58: =ProjectData[[#This Row],[Actuals 14/15]]*VLOOKUP("Mid Year Nominal - EOY Real (2015/16)",CPI[],MATCH(U$4,CPI[#Headers],0),FALSE) -> 0 | V58: =SUM(ProjectData[[#This Row],[Real 08]:[Real 15]]) -> 0.3248932983 | W58: =(ProjectData[[#This Row],[Real Sum]]-VLOOKUP(ProjectData[[#This Row],[Category]],Category_AverageStdDevLimit[],MATCH("Average",Category_AverageStdDevLimit[#Headers],0),FALSE))^2 -> 0.1162619732 | X58: =VLOOKUP(ProjectData[[#This Row],[Category]],Category_AverageStdDevLimit[],MATCH("Limit",Category_AverageStdDevLimit[#Headers],0),FALSE) -> 2.96351611 | Y58: =ProjectData[[#This Row],[Real Sum]]>ProjectData[[#This Row],[Category Limit]] -> FALSE | AA58: =OR(ProjectData[[#This Row],[Significant Project? (Financial Basis)]],ProjectData[[#This Row],[Non repeatable]]) -> FALSE | AB58: =AND(ProjectData[[#This Row],[SomeExpenditure >= 2011]],ProjectData[[#This Row],[Abnormal?]]) -> FALSE
A59: CP.01449 | B59: Townsville Microwave Rationalisation | C59: Replacement | E59: 0.00343195 | F59: 0.0124655 | G59: 0.00511645 | H59: 0.01186635 | I59: 0.02745395 | J59: 0.3417341 | K59: 0.5814228 | L59: =ProjectData[[#This Row],[Real Sum]]>0.00000001 -> TRUE | M59: =OR(ProjectData[[#This Row],[Real 11]]>0,ProjectData[[#This Row],[Real 12]]>0,ProjectData[[#This Row],[Real 13]]>0,ProjectData[[#This Row],[Real 14]]>0,ProjectData[[#This Row],[Real 15]]>0) -> TRUE | N59: =ProjectData[[#This Row],[Actuals 07/08]]*VLOOKUP("Mid Year Nominal - EOY Real (2015/16)",CPI[],MATCH(N$4,CPI[#Headers],0),FALSE) -> 0 | O59: =ProjectData[[#This Row],[Actuals 08/09]]*VLOOKUP("Mid Year Nominal - EOY Real (2015/16)",CPI[],MATCH(O$4,CPI[#Headers],0),FALSE) -> 0.004104931812 | P59: =ProjectData[[#This Row],[Actuals 09/10]]*VLOOKUP("Mid Year Nominal - EOY Real (2015/16)",CPI[],MATCH(P$4,CPI[#Headers],0),FALSE) -> 0.0145211195 | Q59: =ProjectData[[#This Row],[Actuals 10/11]]*VLOOKUP("Mid Year Nominal - EOY Real (2015/16)",CPI[],MATCH(Q$4,CPI[#Headers],0),FALSE) -> 0.005781669178 | R59: =ProjectData[[#This Row],[Actuals 11/12]]*VLOOKUP("Mid Year Nominal - EOY Real (2015/16)",CPI[],MATCH(R$4,CPI[#Headers],0),FALSE) -> 0.01308993191 | S59: =ProjectData[[#This Row],[Actuals 12/13]]*VLOOKUP("Mid Year Nominal - EOY Real (2015/16)",CPI[],MATCH(S$4,CPI[#Headers],0),FALSE) -> 0.02967234383 | T59: =ProjectData[[#This Row],[Actuals 13/14]]*VLOOKUP("Mid Year Nominal - EOY Real (2015/16)",CPI[],MATCH(T$4,CPI[#Headers],0),FALSE) -> 0.3595818564 | U59: =ProjectData[[#This Row],[Actuals 14/15]]*VLOOKUP("Mid Year Nominal - EOY Real (2015/16)",CPI[],MATCH(U$4,CPI[#Headers],0),FALSE) -> 0.5990538496 | V59: =SUM(ProjectData[[#This Row],[Real 08]:[Real 15]]) -> 1.025805702 | W59: =(ProjectData[[#This Row],[Real Sum]]-VLOOKUP(ProjectData[[#This Row],[Category]],Category_AverageStdDevLimit[],MATCH("Average",Category_AverageStdDevLimit[#Headers],0),FALSE))^2 -> 0.1295570221 | X59: =VLOOKUP(ProjectData[[#This Row],[Category]],Category_AverageStdDevLimit[],MATCH("Limit",Category_AverageStdDevLimit[#Headers],0),FALSE) -> 2.96351611 | Y59: =ProjectData[[#This Row],[Real Sum]]>ProjectData[[#This Row],[Category Limit]] -> FALSE | AA59: =OR(ProjectData[[#This Row],[Significant Project? (Financial Basis)]],ProjectData[[#This Row],[Non repeatable]]) -> FALSE | AB59: =AND(ProjectData[[#This Row],[SomeExpenditure >= 2011]],ProjectData[[#This Row],[Abnormal?]]) -> FALSE
A60: CP.01451 | B60: EMS Software Upgrade - Evergreen Support | C60: Other | G60: 0.01310778 | H60: 0.008171 | I60: 0 | J60: -0.02127878 | K60: 0 | L60: =ProjectData[[#This Row],[Real Sum]]>0.00000001 -> TRUE | M60: =OR(ProjectData[[#This Row],[Real 11]]>0,ProjectData[[#This Row],[Real 12]]>0,ProjectData[[#This Row],[Real 13]]>0,ProjectData[[#This Row],[Real 14]]>0,ProjectData[[#This Row],[Real 15]]>0) -> TRUE | N60: =ProjectData[[#This Row],[Actuals 07/08]]*VLOOKUP("Mid Year Nominal - EOY Real (2015/16)",CPI[],MATCH(N$4,CPI[#Headers],0),FALSE) -> 0 | O60: =ProjectData[[#This Row],[Actuals 08/09]]*VLOOKUP("Mid Year Nominal - EOY Real (2015/16)",CPI[],MATCH(O$4,CPI[#Headers],0),FALSE) -> 0 | P60: =ProjectData[[#This Row],[Actuals 09/10]]*VLOOKUP("Mid Year Nominal - EOY Real (2015/16)",CPI[],MATCH(P$4,CPI[#Headers],0),FALSE) -> 0 | Q60: =ProjectData[[#This Row],[Actuals 10/11]]*VLOOKUP("Mid Year Nominal - EOY Real (2015/16)",CPI[],MATCH(Q$4,CPI[#Headers],0),FALSE) -> 0.01481199809 | R60: =ProjectData[[#This Row],[Actuals 11/12]]*VLOOKUP("Mid Year Nominal - EOY Real (2015/16)",CPI[],MATCH(R$4,CPI[#Headers],0),FALSE) -> 0.00901354112 | S60: =ProjectData[[#This Row],[Actuals 12/13]]*VLOOKUP("Mid Year Nominal - EOY Real (2015/16)",CPI[],MATCH(S$4,CPI[#Headers],0),FALSE) -> 0 | T60: =ProjectData[[#This Row],[Actuals 13/14]]*VLOOKUP("Mid Year Nominal - EOY Real (2015/16)",CPI[],MATCH(T$4,CPI[#Headers],0),FALSE) -> -0.02239010744 | U60: =ProjectData[[#This Row],[Actuals 14/15]]*VLOOKUP("Mid Year Nominal - EOY Real (2015/16)",CPI[],MATCH(U$4,CPI[#Headers],0),FALSE) -> 0 | V60: =SUM(ProjectData[[#This Row],[Real 08]:[Real 15]]) -> 0.00143543177 | W60: =(ProjectData[[#This Row],[Real Sum]]-VLOOKUP(ProjectData[[#This Row],[Category]],Category_AverageStdDevLimit[],MATCH("Average",Category_AverageStdDevLimit[#Headers],0),FALSE))^2 -> 2.046037512 | X60: =VLOOKUP(ProjectData[[#This Row],[Category]],Category_AverageStdDevLimit[],MATCH("Limit",Category_AverageStdDevLimit[#Headers],0),FALSE) -> 7.704088755 | Y60: =ProjectData[[#This Row],[Real Sum]]>ProjectData[[#This Row],[Category Limit]] -> FALSE | AA60: =OR(ProjectData[[#This Row],[Significant Project? (Financial Basis)]],ProjectData[[#This Row],[Non repeatable]]) -> FALSE | AB60: =AND(ProjectData[[#This Row],[SomeExpenditure >= 2011]],ProjectData[[#This Row],[Abnormal?]]) -> FALSE
A61: CP.01471 | B61: NMS Common Service Replacement | C61: Replacement | I61: 0.060012 | J61: 1.39378538 | K61: 0.37682355 | L61: =ProjectData[[#This Row],[Real Sum]]>0.00000001 -> TRUE | M61: =OR(ProjectData[[#This Row],[Real 11]]>0,ProjectData[[#This Row],[Real 12]]>0,ProjectData[[#This Row],[Real 13]]>0,ProjectData[[#This Row],[Real 14]]>0,ProjectData[[#This Row],[Real 15]]>0) -> TRUE | N61: =ProjectData[[#This Row],[Actuals 07/08]]*VLOOKUP("Mid Year Nominal - EOY Real (2015/16)",CPI[],MATCH(N$4,CPI[#Headers],0),FALSE) -> 0 | O61: =ProjectData[[#This Row],[Actuals 08/09]]*VLOOKUP("Mid Year Nominal - EOY Real (2015/16)",CPI[],MATCH(O$4,CPI[#Headers],0),FALSE) -> 0 | P61: =ProjectData[[#This Row],[Actuals 09/10]]*VLOOKUP("Mid Year Nominal - EOY Real (2015/16)",CPI[],MATCH(P$4,CPI[#Headers],0),FALSE) -> 0 | Q61: =ProjectData[[#This Row],[Actuals 10/11]]*VLOOKUP("Mid Year Nominal - EOY Real (2015/16)",CPI[],MATCH(Q$4,CPI[#Headers],0),FALSE) -> 0 | R61: =ProjectData[[#This Row],[Actuals 11/12]]*VLOOKUP("Mid Year Nominal - EOY Real (2015/16)",CPI[],MATCH(R$4,CPI[#Headers],0),FALSE) -> 0 | S61: =ProjectData[[#This Row],[Actuals 12/13]]*VLOOKUP("Mid Year Nominal - EOY Real (2015/16)",CPI[],MATCH(S$4,CPI[#Headers],0),FALSE) -> 0.06486122027 | T61: =ProjectData[[#This Row],[Actuals 13/14]]*VLOOKUP("Mid Year Nominal - EOY Real (2015/16)",CPI[],MATCH(T$4,CPI[#Headers],0),FALSE) -> 1.466578648 | U61: =ProjectData[[#This Row],[Actuals 14/15]]*VLOOKUP("Mid Year Nominal - EOY Real (2015/16)",CPI[],MATCH(U$4,CPI[#Headers],0),FALSE) -> 0.3882503373 | V61: =SUM(ProjectData[[#This Row],[Real 08]:[Real 15]]) -> 1.919690206 | W61: =(ProjectData[[#This Row],[Real Sum]]-VLOOKUP(ProjectData[[#This Row],[Category]],Category_AverageStdDevLimit[],MATCH("Average",Category_AverageStdDevLimit[#Headers],0),FALSE))^2 -> 1.572076647 | X61: =VLOOKUP(ProjectData[[#This Row],[Category]],Category_AverageStdDevLimit[],MATCH("Limit",Category_AverageStdDevLimit[#Headers],0),FALSE) -> 2.96351611 | Y61: =ProjectData[[#This Row],[Real Sum]]>ProjectData[[#This Row],[Category Limit]] -> FALSE | AA61: =OR(ProjectData[[#This Row],[Significant Project? (Financial Basis)]],ProjectData[[#This Row],[Non repeatable]]) -> FALSE | AB61: =AND(ProjectData[[#This Row],[SomeExpenditure >= 2011]],ProjectData[[#This Row],[Abnormal?]]) -> FALSE
A62: CP.01487 | B62: Mudgeeraba LV Changeover Switch Replace | C62: Replacement | E62: 0.00940169 | F62: -0.00561819 | G62: -0.0037835 | H62: 0 | I62: 0 | K62: 0 | L62: =ProjectData[[#This Row],[Real Sum]]>0.00000001 -> TRUE | M62: =OR(ProjectData[[#This Row],[Real 11]]>0,ProjectData[[#This Row],[Real 12]]>0,ProjectData[[#This Row],[Real 13]]>0,ProjectData[[#This Row],[Real 14]]>0,ProjectData[[#This Row],[Real 15]]>0) -> FALSE | N62: =ProjectData[[#This Row],[Actuals 07/08]]*VLOOKUP("Mid Year Nominal - EOY Real (2015/16)",CPI[],MATCH(N$4,CPI[#Headers],0),FALSE) -> 0 | O62: =ProjectData[[#This Row],[Actuals 08/09]]*VLOOKUP("Mid Year Nominal - EOY Real (2015/16)",CPI[],MATCH(O$4,CPI[#Headers],0),FALSE) -> 0.0112452968 | P62: =ProjectData[[#This Row],[Actuals 09/10]]*VLOOKUP("Mid Year Nominal - EOY Real (2015/16)",CPI[],MATCH(P$4,CPI[#Headers],0),FALSE) -> -0.006544655918 | Q62: =ProjectData[[#This Row],[Actuals 10/11]]*VLOOKUP("Mid Year Nominal - EOY Real (2015/16)",CPI[],MATCH(Q$4,CPI[#Headers],0),FALSE) -> -0.00427541466 | R62: =ProjectData[[#This Row],[Actuals 11/12]]*VLOOKUP("Mid Year Nominal - EOY Real (2015/16)",CPI[],MATCH(R$4,CPI[#Headers],0),FALSE) -> 0 | S62: =ProjectData[[#This Row],[Actuals 12/13]]*VLOOKUP("Mid Year Nominal - EOY Real (2015/16)",CPI[],MATCH(S$4,CPI[#Headers],0),FALSE) -> 0 | T62: =ProjectData[[#This Row],[Actuals 13/14]]*VLOOKUP("Mid Year Nominal - EOY Real (2015/16)",CPI[],MATCH(T$4,CPI[#Headers],0),FALSE) -> 0 | U62: =ProjectData[[#This Row],[Actuals 14/15]]*VLOOKUP("Mid Year Nominal - EOY Real (2015/16)",CPI[],MATCH(U$4,CPI[#Headers],0),FALSE) -> 0 | V62: =SUM(ProjectData[[#This Row],[Real 08]:[Real 15]]) -> 0.0004252262256 | W62: =(ProjectData[[#This Row],[Real Sum]]-VLOOKUP(ProjectData[[#This Row],[Category]],Category_AverageStdDevLimit[],MATCH("Average",Category_AverageStdDevLimit[#Headers],0),FALSE))^2 -> 0.4428106231 | X62: =VLOOKUP(ProjectData[[#This Row],[Category]],Category_AverageStdDevLimit[],MATCH("Limit",Category_AverageStdDevLimit[#Headers],0),FALSE) -> 2.96351611 | Y62: =ProjectData[[#This Row],[Real Sum]]>ProjectData[[#This Row],[Category Limit]] -> FALSE | AA62: =OR(ProjectData[[#This Row],[Significant Project? (Financial Basis)]],ProjectData[[#This Row],[Non repeatable]]) -> FALSE | AB62: =AND(ProjectData[[#This Row],[SomeExpenditure >= 2011]],ProjectData[[#This Row],[Abnormal?]]) -> FALSE
A63: CP.01515 | B63: Test Sticks and Detectors (Nth and Cen) | C63: Replacement | F63: 0.0961853 | G63: 0.27309278 | H63: 0 | I63: 0 | K63: 0 | L63: =ProjectData[[#This Row],[Real Sum]]>0.00000001 -> TRUE | M63: =OR(ProjectData[[#This Row],[Real 11]]>0,ProjectData[[#This Row],[Real 12]]>0,ProjectData[[#This Row],[Real 13]]>0,ProjectData[[#This Row],[Real 14]]>0,ProjectData[[#This Row],[Real 15]]>0) -> TRUE | N63: =ProjectData[[#This Row],[Actuals 07/08]]*VLOOKUP("Mid Year Nominal - EOY Real (2015/16)",CPI[],MATCH(N$4,CPI[#Headers],0),FALSE) -> 0 | O63: =ProjectData[[#This Row],[Actuals 08/09]]*VLOOKUP("Mid Year Nominal - EOY Real (2015/16)",CPI[],MATCH(O$4,CPI[#Headers],0),FALSE) -> 0 | P63: =ProjectData[[#This Row],[Actuals 09/10]]*VLOOKUP("Mid Year Nominal - EOY Real (2015/16)",CPI[],MATCH(P$4,CPI[#Headers],0),FALSE) -> 0.1120467077 | Q63: =ProjectData[[#This Row],[Actuals 10/11]]*VLOOKUP("Mid Year Nominal - EOY Real (2015/16)",CPI[],MATCH(Q$4,CPI[#Headers],0),FALSE) -> 0.3085991476 | R63: =ProjectData[[#This Row],[Actuals 11/12]]*VLOOKUP("Mid Year Nominal - EOY Real (2015/16)",CPI[],MATCH(R$4,CPI[#Headers],0),FALSE) -> 0 | S63: =ProjectData[[#This Row],[Actuals 12/13]]*VLOOKUP("Mid Year Nominal - EOY Real (2015/16)",CPI[],MATCH(S$4,CPI[#Headers],0),FALSE) -> 0 | T63: =ProjectData[[#This Row],[Actuals 13/14]]*VLOOKUP("Mid Year Nominal - EOY Real (2015/16)",CPI[],MATCH(T$4,CPI[#Headers],0),FALSE) -> 0 | U63: =ProjectData[[#This Row],[Actuals 14/15]]*VLOOKUP("Mid Year Nominal - EOY Real (2015/16)",CPI[],MATCH(U$4,CPI[#Headers],0),FALSE) -> 0 | V63: =SUM(ProjectData[[#This Row],[Real 08]:[Real 15]]) -> 0.4206458554 | W63: =(ProjectData[[#This Row],[Real Sum]]-VLOOKUP(ProjectData[[#This Row],[Category]],Category_AverageStdDevLimit[],MATCH("Average",Category_AverageStdDevLimit[#Headers],0),FALSE))^2 -> 0.06013262442 | X63: =VLOOKUP(ProjectData[[#This Row],[Category]],Category_AverageStdDevLimit[],MATCH("Limit",Category_AverageStdDevLimit[#Headers],0),FALSE) -> 2.96351611 | Y63: =ProjectData[[#This Row],[Real Sum]]>ProjectData[[#This Row],[Category Limit]] -> FALSE | AA63: =OR(ProjectData[[#This Row],[Significant Project? (Financial Basis)]],ProjectData[[#This Row],[Non repeatable]]) -> FALSE | AB63: =AND(ProjectData[[#This Row],[SomeExpenditure >= 2011]],ProjectData[[#This Row],[Abnormal?]]) -> FALSE
A64: CP.01622 | B64: Cardwell Substation Line Switching | C64: Other | F64: 0.02870561 | G64: 2.05509863 | H64: 1.09933905 | I64: 0.10407231 | J64: 0.00018472 | K64: 0 | L64: =ProjectData[[#This Row],[Real Sum]]>0.00000001 -> TRUE | M64: =OR(ProjectData[[#This Row],[Real 11]]>0,ProjectData[[#This Row],[Real 12]]>0,ProjectData[[#This Row],[Real 13]]>0,ProjectData[[#This Row],[Real 14]]>0,ProjectData[[#This Row],[Real 15]]>0) -> TRUE | N64: =ProjectData[[#This Row],[Actuals 07/08]]*VLOOKUP("Mid Year Nominal - EOY Real (2015/16)",CPI[],MATCH(N$4,CPI[#Headers],0),FALSE) -> 0 | O64: =ProjectData[[#This Row],[Actuals 08/09]]*VLOOKUP("Mid Year Nominal - EOY Real (2015/16)",CPI[],MATCH(O$4,CPI[#Headers],0),FALSE) -> 0 | P64: =ProjectData[[#This Row],[Actuals 09/10]]*VLOOKUP("Mid Year Nominal - EOY Real (2015/16)",CPI[],MATCH(P$4,CPI[#Headers],0),FALSE) -> 0.03343929991 | Q64: =ProjectData[[#This Row],[Actuals 10/11]]*VLOOKUP("Mid Year Nominal - EOY Real (2015/16)",CPI[],MATCH(Q$4,CPI[#Headers],0),FALSE) -> 2.322293858 | R64: =ProjectData[[#This Row],[Actuals 11/12]]*VLOOKUP("Mid Year Nominal - EOY Real (2015/16)",CPI[],MATCH(R$4,CPI[#Headers],0),FALSE) -> 1.212695843 | S64: =ProjectData[[#This Row],[Actuals 12/13]]*VLOOKUP("Mid Year Nominal - EOY Real (2015/16)",CPI[],MATCH(S$4,CPI[#Headers],0),FALSE) -> 0.1124817874 | T64: =ProjectData[[#This Row],[Actuals 13/14]]*VLOOKUP("Mid Year Nominal - EOY Real (2015/16)",CPI[],MATCH(T$4,CPI[#Headers],0),FALSE) -> 0.0001943673766 | U64: =ProjectData[[#This Row],[Actuals 14/15]]*VLOOKUP("Mid Year Nominal - EOY Real (2015/16)",CPI[],MATCH(U$4,CPI[#Headers],0),FALSE) -> 0 | V64: =SUM(ProjectData[[#This Row],[Real 08]:[Real 15]]) -> 3.681105155 | W64: =(ProjectData[[#This Row],[Real Sum]]-VLOOKUP(ProjectData[[#This Row],[Category]],Category_AverageStdDevLimit[],MATCH("Average",Category_AverageStdDevLimit[#Headers],0),FALSE))^2 -> 5.059224742 | X64: =VLOOKUP(ProjectData[[#This Row],[Category]],Category_AverageStdDevLimit[],MATCH("Limit",Category_AverageStdDevLimit[#Headers],0),FALSE) -> 7.704088755 | Y64: =ProjectData[[#This Row],[Real Sum]]>ProjectData[[#This Row],[Category Limit]] -> FALSE | AA64: =OR(ProjectData[[#This Row],[Significant Project? (Financial Basis)]],ProjectData[[#This Row],[Non repeatable]]) -> FALSE | AB64: =AND(ProjectData[[#This Row],[SomeExpenditure >= 2011]],ProjectData[[#This Row],[Abnormal?]]) -> FALSE
A65: CP.01668 | B65: Comms Site Access & Security (Part A) | C65: Security / Compliance | F65: 0.00915885 | G65: 0.03496633 | H65: 0.1162895 | I65: 0.19176858 | J65: 0.02037154 | K65: 0 | L65: =ProjectData[[#This Row],[Real Sum]]>0.00000001 -> TRUE | M65: =OR(ProjectData[[#This Row],[Real 11]]>0,ProjectData[[#This Row],[Real 12]]>0,ProjectData[[#This Row],[Real 13]]>0,ProjectData[[#This Row],[Real 14]]>0,ProjectData[[#This Row],[Real 15]]>0) -> TRUE | N65: =ProjectData[[#This Row],[Actuals 07/08]]*VLOOKUP("Mid Year Nominal - EOY Real (2015/16)",CPI[],MATCH(N$4,CPI[#Headers],0),FALSE) -> 0 | O65: =ProjectData[[#This Row],[Actuals 08/09]]*VLOOKUP("Mid Year Nominal - EOY Real (2015/16)",CPI[],MATCH(O$4,CPI[#Headers],0),FALSE) -> 0 | P65: =ProjectData[[#This Row],[Actuals 09/10]]*VLOOKUP("Mid Year Nominal - EOY Real (2015/16)",CPI[],MATCH(P$4,CPI[#Headers],0),FALSE) -> 0.01066918738 | Q65: =ProjectData[[#This Row],[Actuals 10/11]]*VLOOKUP("Mid Year Nominal - EOY Real (2015/16)",CPI[],MATCH(Q$4,CPI[#Headers],0),FALSE) -> 0.03951250426 | R65: =ProjectData[[#This Row],[Actuals 11/12]]*VLOOKUP("Mid Year Nominal - EOY Real (2015/16)",CPI[],MATCH(R$4,CPI[#Headers],0),FALSE) -> 0.1282805275 | S65: =ProjectData[[#This Row],[Actuals 12/13]]*VLOOKUP("Mid Year Nominal - EOY Real (2015/16)",CPI[],MATCH(S$4,CPI[#Headers],0),FALSE) -> 0.2072642823 | T65: =ProjectData[[#This Row],[Actuals 13/14]]*VLOOKUP("Mid Year Nominal - EOY Real (2015/16)",CPI[],MATCH(T$4,CPI[#Headers],0),FALSE) -> 0.02143548499 | U65: =ProjectData[[#This Row],[Actuals 14/15]]*VLOOKUP("Mid Year Nominal - EOY Real (2015/16)",CPI[],MATCH(U$4,CPI[#Headers],0),FALSE) -> 0 | V65: =SUM(ProjectData[[#This Row],[Real 08]:[Real 15]]) -> 0.4071619864 | W65: =(ProjectData[[#This Row],[Real Sum]]-VLOOKUP(ProjectData[[#This Row],[Category]],Category_AverageStdDevLimit[],MATCH("Average",Category_AverageStdDevLimit[#Headers],0),FALSE))^2 -> 10.14589413 | X65: =VLOOKUP(ProjectData[[#This Row],[Category]],Category_AverageStdDevLimit[],MATCH("Limit",Category_AverageStdDevLimit[#Headers],0),FALSE) -> 10.86958417 | Y65: =ProjectData[[#This Row],[Real Sum]]>ProjectData[[#This Row],[Category Limit]] -> FALSE | AA65: =OR(ProjectData[[#This Row],[Significant Project? (Financial Basis)]],ProjectData[[#This Row],[Non repeatable]]) -> FALSE | AB65: =AND(ProjectData[[#This Row],[SomeExpenditure >= 2011]],ProjectData[[#This Row],[Abnormal?]]) -> FALSE
A66: CP.01803 | B66: EMS FEP's Replacement | C66: Replacement | H66: 0.27979332 | I66: 1.68725062 | J66: 0.41762208 | K66: 0 | L66: =ProjectData[[#This Row],[Real Sum]]>0.00000001 -> TRUE | M66: =OR(ProjectData[[#This Row],[Real 11]]>0,ProjectData[[#This Row],[Real 12]]>0,ProjectData[[#This Row],[Real 13]]>0,ProjectData[[#This Row],[Real 14]]>0,ProjectData[[#This Row],[Real 15]]>0) -> TRUE | N66: =ProjectData[[#This Row],[Actuals 07/08]]*VLOOKUP("Mid Year Nominal - EOY Real (2015/16)",CPI[],MATCH(N$4,CPI[#Headers],0),FALSE) -> 0 | O66: =ProjectData[[#This Row],[Actuals 08/09]]*VLOOKUP("Mid Year Nominal - EOY Real (2015/16)",CPI[],MATCH(O$4,CPI[#Headers],0),FALSE) -> 0 | P66: =ProjectData[[#This Row],[Actuals 09/10]]*VLOOKUP("Mid Year Nominal - EOY Real (2015/16)",CPI[],MATCH(P$4,CPI[#Headers],0),FALSE) -> 0 | Q66: =ProjectData[[#This Row],[Actuals 10/11]]*VLOOKUP("Mid Year Nominal - EOY Real (2015/16)",CPI[],MATCH(Q$4,CPI[#Headers],0),FALSE) -> 0 | R66: =ProjectData[[#This Row],[Actuals 11/12]]*VLOOKUP("Mid Year Nominal - EOY Real (2015/16)",CPI[],MATCH(R$4,CPI[#Headers],0),FALSE) -> 0.3086438129 | S66: =ProjectData[[#This Row],[Actuals 12/13]]*VLOOKUP("Mid Year Nominal - EOY Real (2015/16)",CPI[],MATCH(S$4,CPI[#Headers],0),FALSE) -> 1.823587518 | T66: =ProjectData[[#This Row],[Actuals 13/14]]*VLOOKUP("Mid Year Nominal - EOY Real (2015/16)",CPI[],MATCH(T$4,CPI[#Headers],0),FALSE) -> 0.4394332401 | U66: =ProjectData[[#This Row],[Actuals 14/15]]*VLOOKUP("Mid Year Nominal - EOY Real (2015/16)",CPI[],MATCH(U$4,CPI[#Headers],0),FALSE) -> 0 | V66: =SUM(ProjectData[[#This Row],[Real 08]:[Real 15]]) -> 2.571664571 | W66: =(ProjectData[[#This Row],[Real Sum]]-VLOOKUP(ProjectData[[#This Row],[Category]],Category_AverageStdDevLimit[],MATCH("Average",Category_AverageStdDevLimit[#Headers],0),FALSE))^2 -> 3.632070484 | X66: =VLOOKUP(ProjectData[[#This Row],[Category]],Category_AverageStdDevLimit[],MATCH("Limit",Category_AverageStdDevLimit[#Headers],0),FALSE) -> 2.96351611 | Y66: =ProjectData[[#This Row],[Real Sum]]>ProjectData[[#This Row],[Category Limit]] -> FALSE | AA66: =OR(ProjectData[[#This Row],[Significant Project? (Financial Basis)]],ProjectData[[#This Row],[Non repeatable]]) -> FALSE | AB66: =AND(ProjectData[[#This Row],[SomeExpenditure >= 2011]],ProjectData[[#This Row],[Abnormal?]]) -> FALSE
A67: CP.01804 | B67: EMS Wallboard Life Extension | C67: Replacement | H67: 0.01258921 | I67: 0.07574416 | J67: 0.70114345 | K67: 0.013936 | L67: =ProjectData[[#This Row],[Real Sum]]>0.00000001 -> TRUE | M67: =OR(ProjectData[[#This Row],[Real 11]]>0,ProjectData[[#This Row],[Real 12]]>0,ProjectData[[#This Row],[Real 13]]>0,ProjectData[[#This Row],[Real 14]]>0,ProjectData[[#This Row],[Real 15]]>0) -> TRUE | N67: =ProjectData[[#This Row],[Actuals 07/08]]*VLOOKUP("Mid Year Nominal - EOY Real (2015/16)",CPI[],MATCH(N$4,CPI[#Headers],0),FALSE) -> 0 | O67: =ProjectData[[#This Row],[Actuals 08/09]]*VLOOKUP("Mid Year Nominal - EOY Real (2015/16)",CPI[],MATCH(O$4,CPI[#Headers],0),FALSE) -> 0 | P67: =ProjectData[[#This Row],[Actuals 09/10]]*VLOOKUP("Mid Year Nominal - EOY Real (2015/16)",CPI[],MATCH(P$4,CPI[#Headers],0),FALSE) -> 0 | Q67: =ProjectData[[#This Row],[Actuals 10/11]]*VLOOKUP("Mid Year Nominal - EOY Real (2015/16)",CPI[],MATCH(Q$4,CPI[#Headers],0),FALSE) -> 0 | R67: =ProjectData[[#This Row],[Actuals 11/12]]*VLOOKUP("Mid Year Nominal - EOY Real (2015/16)",CPI[],MATCH(R$4,CPI[#Headers],0),FALSE) -> 0.0138873286 | S67: =ProjectData[[#This Row],[Actuals 12/13]]*VLOOKUP("Mid Year Nominal - EOY Real (2015/16)",CPI[],MATCH(S$4,CPI[#Headers],0),FALSE) -> 0.08186460451 | T67: =ProjectData[[#This Row],[Actuals 13/14]]*VLOOKUP("Mid Year Nominal - EOY Real (2015/16)",CPI[],MATCH(T$4,CPI[#Headers],0),FALSE) -> 0.7377620886 | U67: =ProjectData[[#This Row],[Actuals 14/15]]*VLOOKUP("Mid Year Nominal - EOY Real (2015/16)",CPI[],MATCH(U$4,CPI[#Headers],0),FALSE) -> 0.01435859489 | V67: =SUM(ProjectData[[#This Row],[Real 08]:[Real 15]]) -> 0.8478726166 | W67: =(ProjectData[[#This Row],[Real Sum]]-VLOOKUP(ProjectData[[#This Row],[Category]],Category_AverageStdDevLimit[],MATCH("Average",Category_AverageStdDevLimit[#Headers],0),FALSE))^2 -> 0.03312662737 | X67: =VLOOKUP(ProjectData[[#This Row],[Category]],Category_AverageStdDevLimit[],MATCH("Limit",Category_AverageStdDevLimit[#Headers],0),FALSE) -> 2.96351611 | Y67: =ProjectData[[#This Row],[Real Sum]]>ProjectData[[#This Row],[Category Limit]] -> FALSE | AA67: =OR(ProjectData[[#This Row],[Significant Project? (Financial Basis)]],ProjectData[[#This Row],[Non repeatable]]) -> FALSE | AB67: =AND(ProjectData[[#This Row],[SomeExpenditure >= 2011]],ProjectData[[#This Row],[Abnormal?]]) -> FALSE
A68: CP.01807 | B68: EMS Hardware Replacement | C68: Replacement | I68: 0.034558 | J68: 0.013363 | K68: 0.00184 | L68: =ProjectData[[#This Row],[Real Sum]]>0.00000001 -> TRUE | M68: =OR(ProjectData[[#This Row],[Real 11]]>0,ProjectData[[#This Row],[Real 12]]>0,ProjectData[[#This Row],[Real 13]]>0,ProjectData[[#This Row],[Real 14]]>0,ProjectData[[#This Row],[Real 15]]>0) -> TRUE | N68: =ProjectData[[#This Row],[Actuals 07/08]]*VLOOKUP("Mid Year Nominal - EOY Real (2015/16)",CPI[],MATCH(N$4,CPI[#Headers],0),FALSE) -> 0 | O68: =ProjectData[[#This Row],[Actuals 08/09]]*VLOOKUP("Mid Year Nominal - EOY Real (2015/16)",CPI[],MATCH(O$4,CPI[#Headers],0),FALSE) -> 0 | P68: =ProjectData[[#This Row],[Actuals 09/10]]*VLOOKUP("Mid Year Nominal - EOY Real (2015/16)",CPI[],MATCH(P$4,CPI[#Headers],0),FALSE) -> 0 | Q68: =ProjectData[[#This Row],[Actuals 10/11]]*VLOOKUP("Mid Year Nominal - EOY Real (2015/16)",CPI[],MATCH(Q$4,CPI[#Headers],0),FALSE) -> 0 | R68: =ProjectData[[#This Row],[Actuals 11/12]]*VLOOKUP("Mid Year Nominal - EOY Real (2015/16)",CPI[],MATCH(R$4,CPI[#Headers],0),FALSE) -> 0 | S68: =ProjectData[[#This Row],[Actuals 12/13]]*VLOOKUP("Mid Year Nominal - EOY Real (2015/16)",CPI[],MATCH(S$4,CPI[#Headers],0),FALSE) -> 0.03735043075 | T68: =ProjectData[[#This Row],[Actuals 13/14]]*VLOOKUP("Mid Year Nominal - EOY Real (2015/16)",CPI[],MATCH(T$4,CPI[#Headers],0),FALSE) -> 0.01406090978 | U68: =ProjectData[[#This Row],[Actuals 14/15]]*VLOOKUP("Mid Year Nominal - EOY Real (2015/16)",CPI[],MATCH(U$4,CPI[#Headers],0),FALSE) -> 0.001895796111 | V68: =SUM(ProjectData[[#This Row],[Real 08]:[Real 15]]) -> 0.05330713663 | W68: =(ProjectData[[#This Row],[Real Sum]]-VLOOKUP(ProjectData[[#This Row],[Category]],Category_AverageStdDevLimit[],MATCH("Average",Category_AverageStdDevLimit[#Headers],0),FALSE))^2 -> 0.3752276244 | X68: =VLOOKUP(ProjectData[[#This Row],[Category]],Category_AverageStdDevLimit[],MATCH("Limit",Category_AverageStdDevLimit[#Headers],0),FALSE) -> 2.96351611 | Y68: =ProjectData[[#This Row],[Real Sum]]>ProjectData[[#This Row],[Category Limit]] -> FALSE | AA68: =OR(ProjectData[[#This Row],[Significant Project? (Financial Basis)]],ProjectData[[#This Row],[Non repeatable]]) -> FALSE | AB68: =AND(ProjectData[[#This Row],[SomeExpenditure >= 2011]],ProjectData[[#This Row],[Abnormal?]]) -> FALSE
A69: CP.01816 | B69: VOIP Deployment Stage 1 | C69: Replacement | G69: 0.01425725 | H69: 0.16915634 | I69: 0.05746339 | J69: 1.59652879 | K69: 0.66631356 | L69: =ProjectData[[#This Row],[Real Sum]]>0.00000001 -> TRUE | M69: =OR(ProjectData[[#This Row],[Real 11]]>0,ProjectData[[#This Row],[Real 12]]>0,ProjectData[[#This Row],[Real 13]]>0,ProjectData[[#This Row],[Real 14]]>0,ProjectData[[#This Row],[Real 15]]>0) -> TRUE | N69: =ProjectData[[#This Row],[Actuals 07/08]]*VLOOKUP("Mid Year Nominal - EOY Real (2015/16)",CPI[],MATCH(N$4,CPI[#Headers],0),FALSE) -> 0 | O69: =ProjectData[[#This Row],[Actuals 08/09]]*VLOOKUP("Mid Year Nominal - EOY Real (2015/16)",CPI[],MATCH(O$4,CPI[#Headers],0),FALSE) -> 0 | P69: =ProjectData[[#This Row],[Actuals 09/10]]*VLOOKUP("Mid Year Nominal - EOY Real (2015/16)",CPI[],MATCH(P$4,CPI[#Headers],0),FALSE) -> 0 | Q69: =ProjectData[[#This Row],[Actuals 10/11]]*VLOOKUP("Mid Year Nominal - EOY Real (2015/16)",CPI[],MATCH(Q$4,CPI[#Headers],0),FALSE) -> 0.01611091731 | R69: =ProjectData[[#This Row],[Actuals 11/12]]*VLOOKUP("Mid Year Nominal - EOY Real (2015/16)",CPI[],MATCH(R$4,CPI[#Headers],0),FALSE) -> 0.186598657 | S69: =ProjectData[[#This Row],[Actuals 12/13]]*VLOOKUP("Mid Year Nominal - EOY Real (2015/16)",CPI[],MATCH(S$4,CPI[#Headers],0),FALSE) -> 0.06210667193 | T69: =ProjectData[[#This Row],[Actuals 13/14]]*VLOOKUP("Mid Year Nominal - EOY Real (2015/16)",CPI[],MATCH(T$4,CPI[#Headers],0),FALSE) -> 1.679910744 | U69: =ProjectData[[#This Row],[Actuals 14/15]]*VLOOKUP("Mid Year Nominal - EOY Real (2015/16)",CPI[],MATCH(U$4,CPI[#Headers],0),FALSE) -> 0.6865188347 | V69: =SUM(ProjectData[[#This Row],[Real 08]:[Real 15]]) -> 2.631245825 | W69: =(ProjectData[[#This Row],[Real Sum]]-VLOOKUP(ProjectData[[#This Row],[Category]],Category_AverageStdDevLimit[],MATCH("Average",Category_AverageStdDevLimit[#Headers],0),FALSE))^2 -> 3.862720219 | X69: =VLOOKUP(ProjectData[[#This Row],[Category]],Category_AverageStdDevLimit[],MATCH("Limit",Category_AverageStdDevLimit[#Headers],0),FALSE) -> 2.96351611 | Y69: =ProjectData[[#This Row],[Real Sum]]>ProjectData[[#This Row],[Category Limit]] -> FALSE | AA69: =OR(ProjectData[[#This Row],[Significant Project? (Financial Basis)]],ProjectData[[#This Row],[Non repeatable]]) -> FALSE | AB69: =AND(ProjectData[[#This Row],[SomeExpenditure >= 2011]],ProjectData[[#This Row],[Abnormal?]]) -> FALSE
A70: CP.01924 | B70: Spare 330/275kV Transformer | C70: Other | F70: 0.04381335 | G70: 0.03995342 | H70: 3.5014812 | I70: 0.55065427 | J70: 0 | K70: 0 | L70: =ProjectData[[#This Row],[Real Sum]]>0.00000001 -> TRUE | M70: =OR(ProjectData[[#This Row],[Real 11]]>0,ProjectData[[#This Row],[Real 12]]>0,ProjectData[[#This Row],[Real 13]]>0,ProjectData[[#This Row],[Real 14]]>0,ProjectData[[#This Row],[Real 15]]>0) -> TRUE | N70: =ProjectData[[#This Row],[Actuals 07/08]]*VLOOKUP("Mid Year Nominal - EOY Real (2015/16)",CPI[],MATCH(N$4,CPI[#Headers],0),FALSE) -> 0 | O70: =ProjectData[[#This Row],[Actuals 08/09]]*VLOOKUP("Mid Year Nominal - EOY Real (2015/16)",CPI[],MATCH(O$4,CPI[#Headers],0),FALSE) -> 0 | P70: =ProjectData[[#This Row],[Actuals 09/10]]*VLOOKUP("Mid Year Nominal - EOY Real (2015/16)",CPI[],MATCH(P$4,CPI[#Headers],0),FALSE) -> 0.0510383772 | Q70: =ProjectData[[#This Row],[Actuals 10/11]]*VLOOKUP("Mid Year Nominal - EOY Real (2015/16)",CPI[],MATCH(Q$4,CPI[#Headers],0),FALSE) -> 0.0451479946 | R70: =ProjectData[[#This Row],[Actuals 11/12]]*VLOOKUP("Mid Year Nominal - EOY Real (2015/16)",CPI[],MATCH(R$4,CPI[#Headers],0),FALSE) -> 3.862531487 | S70: =ProjectData[[#This Row],[Actuals 12/13]]*VLOOKUP("Mid Year Nominal - EOY Real (2015/16)",CPI[],MATCH(S$4,CPI[#Headers],0),FALSE) -> 0.5951494351 | T70: =ProjectData[[#This Row],[Actuals 13/14]]*VLOOKUP("Mid Year Nominal - EOY Real (2015/16)",CPI[],MATCH(T$4,CPI[#Headers],0),FALSE) -> 0 | U70: =ProjectData[[#This Row],[Actuals 14/15]]*VLOOKUP("Mid Year Nominal - EOY Real (2015/16)",CPI[],MATCH(U$4,CPI[#Headers],0),FALSE) -> 0 | V70: =SUM(ProjectData[[#This Row],[Real 08]:[Real 15]]) -> 4.553867293 | W70: =(ProjectData[[#This Row],[Real Sum]]-VLOOKUP(ProjectData[[#This Row],[Category]],Category_AverageStdDevLimit[],MATCH("Average",Category_AverageStdDevLimit[#Headers],0),FALSE))^2 -> 9.747097455 | X70: =VLOOKUP(ProjectData[[#This Row],[Category]],Category_AverageStdDevLimit[],MATCH("Limit",Category_AverageStdDevLimit[#Headers],0),FALSE) -> 7.704088755 | Y70: =ProjectData[[#This Row],[Real Sum]]>ProjectData[[#This Row],[Category Limit]] -> FALSE | Z70: TRUE | AA70: =OR(ProjectData[[#This Row],[Significant Project? (Financial Basis)]],ProjectData[[#This Row],[Non repeatable]]) -> TRUE | AB70: =AND(ProjectData[[#This Row],[SomeExpenditure >= 2011]],ProjectData[[#This Row],[Abnormal?]]) -> TRUE
A71: CP.01928 | B71: Tarong 275kV OHEW Upgrades | C71: Replacement | D71: 2.7e-07 | E71: 0 | F71: 0 | G71: 0 | H71: 0 | I71: 0 | K71: 0 | L71: =ProjectData[[#This Row],[Real Sum]]>0.00000001 -> TRUE | M71: =OR(ProjectData[[#This Row],[Real 11]]>0,ProjectData[[#This Row],[Real 12]]>0,ProjectData[[#This Row],[Real 13]]>0,ProjectData[[#This Row],[Real 14]]>0,ProjectData[[#This Row],[Real 15]]>0) -> FALSE | N71: =ProjectData[[#This Row],[Actuals 07/08]]*VLOOKUP("Mid Year Nominal - EOY Real (2015/16)",CPI[],MATCH(N$4,CPI[#Headers],0),FALSE) -> 3.337649132e-07 | O71: =ProjectData[[#This Row],[Actuals 08/09]]*VLOOKUP("Mid Year Nominal - EOY Real (2015/16)",CPI[],MATCH(O$4,CPI[#Headers],0),FALSE) -> 0 | P71: =ProjectData[[#This Row],[Actuals 09/10]]*VLOOKUP("Mid Year Nominal - EOY Real (2015/16)",CPI[],MATCH(P$4,CPI[#Headers],0),FALSE) -> 0 | Q71: =ProjectData[[#This Row],[Actuals 10/11]]*VLOOKUP("Mid Year Nominal - EOY Real (2015/16)",CPI[],MATCH(Q$4,CPI[#Headers],0),FALSE) -> 0 | R71: =ProjectData[[#This Row],[Actuals 11/12]]*VLOOKUP("Mid Year Nominal - EOY Real (2015/16)",CPI[],MATCH(R$4,CPI[#Headers],0),FALSE) -> 0 | S71: =ProjectData[[#This Row],[Actuals 12/13]]*VLOOKUP("Mid Year Nominal - EOY Real (2015/16)",CPI[],MATCH(S$4,CPI[#Headers],0),FALSE) -> 0 | T71: =ProjectData[[#This Row],[Actuals 13/14]]*VLOOKUP("Mid Year Nominal - EOY Real (2015/16)",CPI[],MATCH(T$4,CPI[#Headers],0),FALSE) -> 0 | U71: =ProjectData[[#This Row],[Actuals 14/15]]*VLOOKUP("Mid Year Nominal - EOY Real (2015/16)",CPI[],MATCH(U$4,CPI[#Headers],0),FALSE) -> 0 | V71: =SUM(ProjectData[[#This Row],[Real 08]:[Real 15]]) -> 3.337649132e-07 | W71: =(ProjectData[[#This Row],[Real Sum]]-VLOOKUP(ProjectData[[#This Row],[Category]],Category_AverageStdDevLimit[],MATCH("Average",Category_AverageStdDevLimit[#Headers],0),FALSE))^2 -> 0.4433762847 | X71: =VLOOKUP(ProjectData[[#This Row],[Category]],Category_AverageStdDevLimit[],MATCH("Limit",Category_AverageStdDevLimit[#Headers],0),FALSE) -> 2.96351611 | Y71: =ProjectData[[#This Row],[Real Sum]]>ProjectData[[#This Row],[Category Limit]] -> FALSE | AA71: =OR(ProjectData[[#This Row],[Significant Project? (Financial Basis)]],ProjectData[[#This Row],[Non repeatable]]) -> FALSE | AB71: =AND(ProjectData[[#This Row],[SomeExpenditure >= 2011]],ProjectData[[#This Row],[Abnormal?]]) -> FALSE
A72: CP.02007 | B72: Yarwun Remote132kV bus Establishm Larcom | C72: Other | E72: 0 | F72: 0 | G72: 0 | H72: 0 | I72: 0 | K72: 0 | L72: =ProjectData[[#This Row],[Real Sum]]>0.00000001 -> FALSE | M72: =OR(ProjectData[[#This Row],[Real 11]]>0,ProjectData[[#This Row],[Real 12]]>0,ProjectData[[#This Row],[Real 13]]>0,ProjectData[[#This Row],[Real 14]]>0,ProjectData[[#This Row],[Real 15]]>0) -> FALSE | N72: =ProjectData[[#This Row],[Actuals 07/08]]*VLOOKUP("Mid Year Nominal - EOY Real (2015/16)",CPI[],MATCH(N$4,CPI[#Headers],0),FALSE) -> 0 | O72: =ProjectData[[#This Row],[Actuals 08/09]]*VLOOKUP("Mid Year Nominal - EOY Real (2015/16)",CPI[],MATCH(O$4,CPI[#Headers],0),FALSE) -> 0 | P72: =ProjectData[[#This Row],[Actuals 09/10]]*VLOOKUP("Mid Year Nominal - EOY Real (2015/16)",CPI[],MATCH(P$4,CPI[#Headers],0),FALSE) -> 0 | Q72: =ProjectData[[#This Row],[Actuals 10/11]]*VLOOKUP("Mid Year Nominal - EOY Real (2015/16)",CPI[],MATCH(Q$4,CPI[#Headers],0),FALSE) -> 0 | R72: =ProjectData[[#This Row],[Actuals 11/12]]*VLOOKUP("Mid Year Nominal - EOY Real (2015/16)",CPI[],MATCH(R$4,CPI[#Headers],0),FALSE) -> 0 | S72: =ProjectData[[#This Row],[Actuals 12/13]]*VLOOKUP("Mid Year Nominal - EOY Real (2015/16)",CPI[],MATCH(S$4,CPI[#Headers],0),FALSE) -> 0 | T72: =ProjectData[[#This Row],[Actuals 13/14]]*VLOOKUP("Mid Year Nominal - EOY Real (2015/16)",CPI[],MATCH(T$4,CPI[#Headers],0),FALSE) -> 0 | U72: =ProjectData[[#This Row],[Actuals 14/15]]*VLOOKUP("Mid Year Nominal - EOY Real (2015/16)",CPI[],MATCH(U$4,CPI[#Headers],0),FALSE) -> 0 | V72: =SUM(ProjectData[[#This Row],[Real 08]:[Real 15]]) -> 0 | W72: =(ProjectData[[#This Row],[Real Sum]]-VLOOKUP(ProjectData[[#This Row],[Category]],Category_AverageStdDevLimit[],MATCH("Average",Category_AverageStdDevLimit[#Headers],0),FALSE))^2 -> 2.050146049 | X72: =VLOOKUP(ProjectData[[#This Row],[Category]],Category_AverageStdDevLimit[],MATCH("Limit",Category_AverageStdDevLimit[#Headers],0),FALSE) -> 7.704088755 | Y72: =ProjectData[[#This Row],[Real Sum]]>ProjectData[[#This Row],[Category Limit]] -> FALSE | AA72: =OR(ProjectData[[#This Row],[Significant Project? (Financial Basis)]],ProjectData[[#This Row],[Non repeatable]]) -> FALSE | AB72: =AND(ProjectData[[#This Row],[SomeExpenditure >= 2011]],ProjectData[[#This Row],[Abnormal?]]) -> FALSE
A73: CP.02011 | B73: Eagle Heights Generator Replacement | C73: Replacement | F73: 0.07695647 | G73: 0.001322 | H73: 0 | I73: 0 | K73: 0 | L73: =ProjectData[[#This Row],[Real Sum]]>0.00000001 -> TRUE | M73: =OR(ProjectData[[#This Row],[Real 11]]>0,ProjectData[[#This Row],[Real 12]]>0,ProjectData[[#This Row],[Real 13]]>0,ProjectData[[#This Row],[Real 14]]>0,ProjectData[[#This Row],[Real 15]]>0) -> TRUE | N73: =ProjectData[[#This Row],[Actuals 07/08]]*VLOOKUP("Mid Year Nominal - EOY Real (2015/16)",CPI[],MATCH(N$4,CPI[#Headers],0),FALSE) -> 0 | O73: =ProjectData[[#This Row],[Actuals 08/09]]*VLOOKUP("Mid Year Nominal - EOY Real (2015/16)",CPI[],MATCH(O$4,CPI[#Headers],0),FALSE) -> 0 | P73: =ProjectData[[#This Row],[Actuals 09/10]]*VLOOKUP("Mid Year Nominal - EOY Real (2015/16)",CPI[],MATCH(P$4,CPI[#Headers],0),FALSE) -> 0.08964695335 | Q73: =ProjectData[[#This Row],[Actuals 10/11]]*VLOOKUP("Mid Year Nominal - EOY Real (2015/16)",CPI[],MATCH(Q$4,CPI[#Headers],0),FALSE) -> 0.001493880846 | R73: =ProjectData[[#This Row],[Actuals 11/12]]*VLOOKUP("Mid Year Nominal - EOY Real (2015/16)",CPI[],MATCH(R$4,CPI[#Headers],0),FALSE) -> 0 | S73: =ProjectData[[#This Row],[Actuals 12/13]]*VLOOKUP("Mid Year Nominal - EOY Real (2015/16)",CPI[],MATCH(S$4,CPI[#Headers],0),FALSE) -> 0 | T73: =ProjectData[[#This Row],[Actuals 13/14]]*VLOOKUP("Mid Year Nominal - EOY Real (2015/16)",CPI[],MATCH(T$4,CPI[#Headers],0),FALSE) -> 0 | U73: =ProjectData[[#This Row],[Actuals 14/15]]*VLOOKUP("Mid Year Nominal - EOY Real (2015/16)",CPI[],MATCH(U$4,CPI[#Headers],0),FALSE) -> 0 | V73: =SUM(ProjectData[[#This Row],[Real 08]:[Real 15]]) -> 0.09114083419 | W73: =(ProjectData[[#This Row],[Real Sum]]-VLOOKUP(ProjectData[[#This Row],[Category]],Category_AverageStdDevLimit[],MATCH("Average",Category_AverageStdDevLimit[#Headers],0),FALSE))^2 -> 0.330308325 | X73: =VLOOKUP(ProjectData[[#This Row],[Category]],Category_AverageStdDevLimit[],MATCH("Limit",Category_AverageStdDevLimit[#Headers],0),FALSE) -> 2.96351611 | Y73: =ProjectData[[#This Row],[Real Sum]]>ProjectData[[#This Row],[Category Limit]] -> FALSE | AA73: =OR(ProjectData[[#This Row],[Significant Project? (Financial Basis)]],ProjectData[[#This Row],[Non repeatable]]) -> FALSE | AB73: =AND(ProjectData[[#This Row],[SomeExpenditure >= 2011]],ProjectData[[#This Row],[Abnormal?]]) -> FALSE
A74: CP.02016 | B74: Powerlink Test and Training Facility | C74: Replacement | F74: 0.06609972 | G74: 0.6426842 | H74: 0.03074774 | I74: 0 | K74: 0 | L74: =ProjectData[[#This Row],[Real Sum]]>0.00000001 -> TRUE | M74: =OR(ProjectData[[#This Row],[Real 11]]>0,ProjectData[[#This Row],[Real 12]]>0,ProjectData[[#This Row],[Real 13]]>0,ProjectData[[#This Row],[Real 14]]>0,ProjectData[[#This Row],[Real 15]]>0) -> TRUE | N74: =ProjectData[[#This Row],[Actuals 07/08]]*VLOOKUP("Mid Year Nominal - EOY Real (2015/16)",CPI[],MATCH(N$4,CPI[#Headers],0),FALSE) -> 0 | O74: =ProjectData[[#This Row],[Actuals 08/09]]*VLOOKUP("Mid Year Nominal - EOY Real (2015/16)",CPI[],MATCH(O$4,CPI[#Headers],0),FALSE) -> 0 | P74: =ProjectData[[#This Row],[Actuals 09/10]]*VLOOKUP("Mid Year Nominal - EOY Real (2015/16)",CPI[],MATCH(P$4,CPI[#Headers],0),FALSE) -> 0.07699987428 | Q74: =ProjectData[[#This Row],[Actuals 10/11]]*VLOOKUP("Mid Year Nominal - EOY Real (2015/16)",CPI[],MATCH(Q$4,CPI[#Headers],0),FALSE) -> 0.7262432801 | R74: =ProjectData[[#This Row],[Actuals 11/12]]*VLOOKUP("Mid Year Nominal - EOY Real (2015/16)",CPI[],MATCH(R$4,CPI[#Headers],0),FALSE) -> 0.03391824977 | S74: =ProjectData[[#This Row],[Actuals 12/13]]*VLOOKUP("Mid Year Nominal - EOY Real (2015/16)",CPI[],MATCH(S$4,CPI[#Headers],0),FALSE) -> 0 | T74: =ProjectData[[#This Row],[Actuals 13/14]]*VLOOKUP("Mid Year Nominal - EOY Real (2015/16)",CPI[],MATCH(T$4,CPI[#Headers],0),FALSE) -> 0 | U74: =ProjectData[[#This Row],[Actuals 14/15]]*VLOOKUP("Mid Year Nominal - EOY Real (2015/16)",CPI[],MATCH(U$4,CPI[#Headers],0),FALSE) -> 0 | V74: =SUM(ProjectData[[#This Row],[Real 08]:[Real 15]]) -> 0.8371614042 | W74: =(ProjectData[[#This Row],[Real Sum]]-VLOOKUP(ProjectData[[#This Row],[Category]],Category_AverageStdDevLimit[],MATCH("Average",Category_AverageStdDevLimit[#Headers],0),FALSE))^2 -> 0.02934232149 | X74: =VLOOKUP(ProjectData[[#This Row],[Category]],Category_AverageStdDevLimit[],MATCH("Limit",Category_AverageStdDevLimit[#Headers],0),FALSE) -> 2.96351611 | Y74: =ProjectData[[#This Row],[Real Sum]]>ProjectData[[#This Row],[Category Limit]] -> FALSE | AA74: =OR(ProjectData[[#This Row],[Significant Project? (Financial Basis)]],ProjectData[[#This Row],[Non repeatable]]) -> FALSE | AB74: =AND(ProjectData[[#This Row],[SomeExpenditure >= 2011]],ProjectData[[#This Row],[Abnormal?]]) -> FALSE
A75: CP.02018 | B75: Accurate Fault Location Stage 1 | C75: Other | F75: 0.754 | G75: 0.570965 | H75: 0.03342146 | I75: 0.03164615 | J75: 0.0166404 | K75: 0.02946267 | L75: =ProjectData[[#This Row],[Real Sum]]>0.00000001 -> TRUE | M75: =OR(ProjectData[[#This Row],[Real 11]]>0,ProjectData[[#This Row],[Real 12]]>0,ProjectData[[#This Row],[Real 13]]>0,ProjectData[[#This Row],[Real 14]]>0,ProjectData[[#This Row],[Real 15]]>0) -> TRUE | N75: =ProjectData[[#This Row],[Actuals 07/08]]*VLOOKUP("Mid Year Nominal - EOY Real (2015/16)",CPI[],MATCH(N$4,CPI[#Headers],0),FALSE) -> 0 | O75: =ProjectData[[#This Row],[Actuals 08/09]]*VLOOKUP("Mid Year Nominal - EOY Real (2015/16)",CPI[],MATCH(O$4,CPI[#Headers],0),FALSE) -> 0 | P75: =ProjectData[[#This Row],[Actuals 09/10]]*VLOOKUP("Mid Year Nominal - EOY Real (2015/16)",CPI[],MATCH(P$4,CPI[#Headers],0),FALSE) -> 0.8783381414 | Q75: =ProjectData[[#This Row],[Actuals 10/11]]*VLOOKUP("Mid Year Nominal - EOY Real (2015/16)",CPI[],MATCH(Q$4,CPI[#Headers],0),FALSE) -> 0.6451994532 | R75: =ProjectData[[#This Row],[Actuals 11/12]]*VLOOKUP("Mid Year Nominal - EOY Real (2015/16)",CPI[],MATCH(R$4,CPI[#Headers],0),FALSE) -> 0.03686766663 | S75: =ProjectData[[#This Row],[Actuals 12/13]]*VLOOKUP("Mid Year Nominal - EOY Real (2015/16)",CPI[],MATCH(S$4,CPI[#Headers],0),FALSE) -> 0.0342032911 | T75: =ProjectData[[#This Row],[Actuals 13/14]]*VLOOKUP("Mid Year Nominal - EOY Real (2015/16)",CPI[],MATCH(T$4,CPI[#Headers],0),FALSE) -> 0.01750947864 | U75: =ProjectData[[#This Row],[Actuals 14/15]]*VLOOKUP("Mid Year Nominal - EOY Real (2015/16)",CPI[],MATCH(U$4,CPI[#Headers],0),FALSE) -> 0.03035609522 | V75: =SUM(ProjectData[[#This Row],[Real 08]:[Real 15]]) -> 1.642474126 | W75: =(ProjectData[[#This Row],[Real Sum]]-VLOOKUP(ProjectData[[#This Row],[Category]],Category_AverageStdDevLimit[],MATCH("Average",Category_AverageStdDevLimit[#Headers],0),FALSE))^2 -> 0.04436963854 | X75: =VLOOKUP(ProjectData[[#This Row],[Category]],Category_AverageStdDevLimit[],MATCH("Limit",Category_AverageStdDevLimit[#Headers],0),FALSE) -> 7.704088755 | Y75: =ProjectData[[#This Row],[Real Sum]]>ProjectData[[#This Row],[Category Limit]] -> FALSE | AA75: =OR(ProjectData[[#This Row],[Significant Project? (Financial Basis)]],ProjectData[[#This Row],[Non repeatable]]) -> FALSE | AB75: =AND(ProjectData[[#This Row],[SomeExpenditure >= 2011]],ProjectData[[#This Row],[Abnormal?]]) -> FALSE
A76: CP.02028 | B76: IEC 61850 SAS - Gen 1 | C76: Other | F76: 0.34114645 | G76: 0 | H76: -0.10178707 | I76: -0.01900309 | J76: 0 | K76: 0 | L76: =ProjectData[[#This Row],[Real Sum]]>0.00000001 -> TRUE | M76: =OR(ProjectData[[#This Row],[Real 11]]>0,ProjectData[[#This Row],[Real 12]]>0,ProjectData[[#This Row],[Real 13]]>0,ProjectData[[#This Row],[Real 14]]>0,ProjectData[[#This Row],[Real 15]]>0) -> FALSE | N76: =ProjectData[[#This Row],[Actuals 07/08]]*VLOOKUP("Mid Year Nominal - EOY Real (2015/16)",CPI[],MATCH(N$4,CPI[#Headers],0),FALSE) -> 0 | O76: =ProjectData[[#This Row],[Actuals 08/09]]*VLOOKUP("Mid Year Nominal - EOY Real (2015/16)",CPI[],MATCH(O$4,CPI[#Headers],0),FALSE) -> 0 | P76: =ProjectData[[#This Row],[Actuals 09/10]]*VLOOKUP("Mid Year Nominal - EOY Real (2015/16)",CPI[],MATCH(P$4,CPI[#Headers],0),FALSE) -> 0.3974031019 | Q76: =ProjectData[[#This Row],[Actuals 10/11]]*VLOOKUP("Mid Year Nominal - EOY Real (2015/16)",CPI[],MATCH(Q$4,CPI[#Headers],0),FALSE) -> 0 | R76: =ProjectData[[#This Row],[Actuals 11/12]]*VLOOKUP("Mid Year Nominal - EOY Real (2015/16)",CPI[],MATCH(R$4,CPI[#Headers],0),FALSE) -> -0.1122826999 | S76: =ProjectData[[#This Row],[Actuals 12/13]]*VLOOKUP("Mid Year Nominal - EOY Real (2015/16)",CPI[],MATCH(S$4,CPI[#Headers],0),FALSE) -> -0.02053861905 | T76: =ProjectData[[#This Row],[Actuals 13/14]]*VLOOKUP("Mid Year Nominal - EOY Real (2015/16)",CPI[],MATCH(T$4,CPI[#Headers],0),FALSE) -> 0 | U76: =ProjectData[[#This Row],[Actuals 14/15]]*VLOOKUP("Mid Year Nominal - EOY Real (2015/16)",CPI[],MATCH(U$4,CPI[#Headers],0),FALSE) -> 0 | V76: =SUM(ProjectData[[#This Row],[Real 08]:[Real 15]]) -> 0.2645817829 | W76: =(ProjectData[[#This Row],[Real Sum]]-VLOOKUP(ProjectData[[#This Row],[Category]],Category_AverageStdDevLimit[],MATCH("Average",Category_AverageStdDevLimit[#Headers],0),FALSE))^2 -> 1.362475656 | X76: =VLOOKUP(ProjectData[[#This Row],[Category]],Category_AverageStdDevLimit[],MATCH("Limit",Category_AverageStdDevLimit[#Headers],0),FALSE) -> 7.704088755 | Y76: =ProjectData[[#This Row],[Real Sum]]>ProjectData[[#This Row],[Category Limit]] -> FALSE | AA76: =OR(ProjectData[[#This Row],[Significant Project? (Financial Basis)]],ProjectData[[#This Row],[Non repeatable]]) -> FALSE | AB76: =AND(ProjectData[[#This Row],[SomeExpenditure >= 2011]],ProjectData[[#This Row],[Abnormal?]]) -> FALSE
A77: CP.02033 | B77: Revise Substation LAN Design Standard 1. | C77: Other | F77: 0.01554296 | G77: -0.01554296 | H77: 0 | I77: 0 | J77: 0 | K77: 0 | L77: =ProjectData[[#This Row],[Real Sum]]>0.00000001 -> TRUE | M77: =OR(ProjectData[[#This Row],[Real 11]]>0,ProjectData[[#This Row],[Real 12]]>0,ProjectData[[#This Row],[Real 13]]>0,ProjectData[[#This Row],[Real 14]]>0,ProjectData[[#This Row],[Real 15]]>0) -> FALSE | N77: =ProjectData[[#This Row],[Actuals 07/08]]*VLOOKUP("Mid Year Nominal - EOY Real (2015/16)",CPI[],MATCH(N$4,CPI[#Headers],0),FALSE) -> 0 | O77: =ProjectData[[#This Row],[Actuals 08/09]]*VLOOKUP("Mid Year Nominal - EOY Real (2015/16)",CPI[],MATCH(O$4,CPI[#Headers],0),FALSE) -> 0 | P77: =ProjectData[[#This Row],[Actuals 09/10]]*VLOOKUP("Mid Year Nominal - EOY Real (2015/16)",CPI[],MATCH(P$4,CPI[#Headers],0),FALSE) -> 0.01810606711 | Q77: =ProjectData[[#This Row],[Actuals 10/11]]*VLOOKUP("Mid Year Nominal - EOY Real (2015/16)",CPI[],MATCH(Q$4,CPI[#Headers],0),FALSE) -> -0.01756378989 | R77: =ProjectData[[#This Row],[Actuals 11/12]]*VLOOKUP("Mid Year Nominal - EOY Real (2015/16)",CPI[],MATCH(R$4,CPI[#Headers],0),FALSE) -> 0 | S77: =ProjectData[[#This Row],[Actuals 12/13]]*VLOOKUP("Mid Year Nominal - EOY Real (2015/16)",CPI[],MATCH(S$4,CPI[#Headers],0),FALSE) -> 0 | T77: =ProjectData[[#This Row],[Actuals 13/14]]*VLOOKUP("Mid Year Nominal - EOY Real (2015/16)",CPI[],MATCH(T$4,CPI[#Headers],0),FALSE) -> 0 | U77: =ProjectData[[#This Row],[Actuals 14/15]]*VLOOKUP("Mid Year Nominal - EOY Real (2015/16)",CPI[],MATCH(U$4,CPI[#Headers],0),FALSE) -> 0 | V77: =SUM(ProjectData[[#This Row],[Real 08]:[Real 15]]) -> 0.0005422772173 | W77: =(ProjectData[[#This Row],[Real Sum]]-VLOOKUP(ProjectData[[#This Row],[Category]],Category_AverageStdDevLimit[],MATCH("Average",Category_AverageStdDevLimit[#Headers],0),FALSE))^2 -> 2.048593442 | X77: =VLOOKUP(ProjectData[[#This Row],[Category]],Category_AverageStdDevLimit[],MATCH("Limit",Category_AverageStdDevLimit[#Headers],0),FALSE) -> 7.704088755 | Y77: =ProjectData[[#This Row],[Real Sum]]>ProjectData[[#This Row],[Category Limit]] -> FALSE | AA77: =OR(ProjectData[[#This Row],[Significant Project? (Financial Basis)]],ProjectData[[#This Row],[Non repeatable]]) -> FALSE | AB77: =AND(ProjectData[[#This Row],[SomeExpenditure >= 2011]],ProjectData[[#This Row],[Abnormal?]]) -> FALSE
A78: CP.02034 | B78: Mary Street DC Power Supply Replacement | C78: Replacement | F78: 0.04031799 | G78: 0.13835234 | H78: 0 | I78: 0 | K78: 0 | L78: =ProjectData[[#This Row],[Real Sum]]>0.00000001 -> TRUE | M78: =OR(ProjectData[[#This Row],[Real 11]]>0,ProjectData[[#This Row],[Real 12]]>0,ProjectData[[#This Row],[Real 13]]>0,ProjectData[[#This Row],[Real 14]]>0,ProjectData[[#This Row],[Real 15]]>0) -> TRUE | N78: =ProjectData[[#This Row],[Actuals 07/08]]*VLOOKUP("Mid Year Nominal - EOY Real (2015/16)",CPI[],MATCH(N$4,CPI[#Headers],0),FALSE) -> 0 | O78: =ProjectData[[#This Row],[Actuals 08/09]]*VLOOKUP("Mid Year Nominal - EOY Real (2015/16)",CPI[],MATCH(O$4,CPI[#Headers],0),FALSE) -> 0 | P78: =ProjectData[[#This Row],[Actuals 09/10]]*VLOOKUP("Mid Year Nominal - EOY Real (2015/16)",CPI[],MATCH(P$4,CPI[#Headers],0),FALSE) -> 0.04696661591 | Q78: =ProjectData[[#This Row],[Actuals 10/11]]*VLOOKUP("Mid Year Nominal - EOY Real (2015/16)",CPI[],MATCH(Q$4,CPI[#Headers],0),FALSE) -> 0.1563403258 | R78: =ProjectData[[#This Row],[Actuals 11/12]]*VLOOKUP("Mid Year Nominal - EOY Real (2015/16)",CPI[],MATCH(R$4,CPI[#Headers],0),FALSE) -> 0 | S78: =ProjectData[[#This Row],[Actuals 12/13]]*VLOOKUP("Mid Year Nominal - EOY Real (2015/16)",CPI[],MATCH(S$4,CPI[#Headers],0),FALSE) -> 0 | T78: =ProjectData[[#This Row],[Actuals 13/14]]*VLOOKUP("Mid Year Nominal - EOY Real (2015/16)",CPI[],MATCH(T$4,CPI[#Headers],0),FALSE) -> 0 | U78: =ProjectData[[#This Row],[Actuals 14/15]]*VLOOKUP("Mid Year Nominal - EOY Real (2015/16)",CPI[],MATCH(U$4,CPI[#Headers],0),FALSE) -> 0 | V78: =SUM(ProjectData[[#This Row],[Real 08]:[Real 15]]) -> 0.2033069417 | W78: =(ProjectData[[#This Row],[Real Sum]]-VLOOKUP(ProjectData[[#This Row],[Category]],Category_AverageStdDevLimit[],MATCH("Average",Category_AverageStdDevLimit[#Headers],0),FALSE))^2 -> 0.2139603261 | X78: =VLOOKUP(ProjectData[[#This Row],[Category]],Category_AverageStdDevLimit[],MATCH("Limit",Category_AverageStdDevLimit[#Headers],0),FALSE) -> 2.96351611 | Y78: =ProjectData[[#This Row],[Real Sum]]>ProjectData[[#This Row],[Category Limit]] -> FALSE | AA78: =OR(ProjectData[[#This Row],[Significant Project? (Financial Basis)]],ProjectData[[#This Row],[Non repeatable]]) -> FALSE | AB78: =AND(ProjectData[[#This Row],[SomeExpenditure >= 2011]],ProjectData[[#This Row],[Abnormal?]]) -> FALSE
A79: CP.02035 | B79: Transgrid Wavelengths | C79: Other | F79: 0 | G79: 0 | H79: 0 | I79: 0 | J79: 0 | K79: 0 | L79: =ProjectData[[#This Row],[Real Sum]]>0.00000001 -> FALSE | M79: =OR(ProjectData[[#This Row],[Real 11]]>0,ProjectData[[#This Row],[Real 12]]>0,ProjectData[[#This Row],[Real 13]]>0,ProjectData[[#This Row],[Real 14]]>0,ProjectData[[#This Row],[Real 15]]>0) -> FALSE | N79: =ProjectData[[#This Row],[Actuals 07/08]]*VLOOKUP("Mid Year Nominal - EOY Real (2015/16)",CPI[],MATCH(N$4,CPI[#Headers],0),FALSE) -> 0 | O79: =ProjectData[[#This Row],[Actuals 08/09]]*VLOOKUP("Mid Year Nominal - EOY Real (2015/16)",CPI[],MATCH(O$4,CPI[#Headers],0),FALSE) -> 0 | P79: =ProjectData[[#This Row],[Actuals 09/10]]*VLOOKUP("Mid Year Nominal - EOY Real (2015/16)",CPI[],MATCH(P$4,CPI[#Headers],0),FALSE) -> 0 | Q79: =ProjectData[[#This Row],[Actuals 10/11]]*VLOOKUP("Mid Year Nominal - EOY Real (2015/16)",CPI[],MATCH(Q$4,CPI[#Headers],0),FALSE) -> 0 | R79: =ProjectData[[#This Row],[Actuals 11/12]]*VLOOKUP("Mid Year Nominal - EOY Real (2015/16)",CPI[],MATCH(R$4,CPI[#Headers],0),FALSE) -> 0 | S79: =ProjectData[[#This Row],[Actuals 12/13]]*VLOOKUP("Mid Year Nominal - EOY Real (2015/16)",CPI[],MATCH(S$4,CPI[#Headers],0),FALSE) -> 0 | T79: =ProjectData[[#This Row],[Actuals 13/14]]*VLOOKUP("Mid Year Nominal - EOY Real (2015/16)",CPI[],MATCH(T$4,CPI[#Headers],0),FALSE) -> 0 | U79: =ProjectData[[#This Row],[Actuals 14/15]]*VLOOKUP("Mid Year Nominal - EOY Real (2015/16)",CPI[],MATCH(U$4,CPI[#Headers],0),FALSE) -> 0 | V79: =SUM(ProjectData[[#This Row],[Real 08]:[Real 15]]) -> 0 | W79: =(ProjectData[[#This Row],[Real Sum]]-VLOOKUP(ProjectData[[#This Row],[Category]],Category_AverageStdDevLimit[],MATCH("Average",Category_AverageStdDevLimit[#Headers],0),FALSE))^2 -> 2.050146049 | X79: =VLOOKUP(ProjectData[[#This Row],[Category]],Category_AverageStdDevLimit[],MATCH("Limit",Category_AverageStdDevLimit[#Headers],0),FALSE) -> 7.704088755 | Y79: =ProjectData[[#This Row],[Real Sum]]>ProjectData[[#This Row],[Category Limit]] -> FALSE | AA79: =OR(ProjectData[[#This Row],[Significant Project? (Financial Basis)]],ProjectData[[#This Row],[Non repeatable]]) -> FALSE | AB79: =AND(ProjectData[[#This Row],[SomeExpenditure >= 2011]],ProjectData[[#This Row],[Abnormal?]]) -> FALSE
A80: CP.02038 | B80: EMS Front End Processor (FEP) Expansion | C80: Replacement | F80: 0.03828585 | G80: 0.0648951 | H80: 0 | I80: 0 | K80: 0 | L80: =ProjectData[[#This Row],[Real Sum]]>0.00000001 -> TRUE | M80: =OR(ProjectData[[#This Row],[Real 11]]>0,ProjectData[[#This Row],[Real 12]]>0,ProjectData[[#This Row],[Real 13]]>0,ProjectData[[#This Row],[Real 14]]>0,ProjectData[[#This Row],[Real 15]]>0) -> TRUE | N80: =ProjectData[[#This Row],[Actuals 07/08]]*VLOOKUP("Mid Year Nominal - EOY Real (2015/16)",CPI[],MATCH(N$4,CPI[#Headers],0),FALSE) -> 0 | O80: =ProjectData[[#This Row],[Actuals 08/09]]*VLOOKUP("Mid Year Nominal - EOY Real (2015/16)",CPI[],MATCH(O$4,CPI[#Headers],0),FALSE) -> 0 | P80: =ProjectData[[#This Row],[Actuals 09/10]]*VLOOKUP("Mid Year Nominal - EOY Real (2015/16)",CPI[],MATCH(P$4,CPI[#Headers],0),FALSE) -> 0.04459936648 | Q80: =ProjectData[[#This Row],[Actuals 10/11]]*VLOOKUP("Mid Year Nominal - EOY Real (2015/16)",CPI[],MATCH(Q$4,CPI[#Headers],0),FALSE) -> 0.07333248629 | R80: =ProjectData[[#This Row],[Actuals 11/12]]*VLOOKUP("Mid Year Nominal - EOY Real (2015/16)",CPI[],MATCH(R$4,CPI[#Headers],0),FALSE) -> 0 | S80: =ProjectData[[#This Row],[Actuals 12/13]]*VLOOKUP("Mid Year Nominal - EOY Real (2015/16)",CPI[],MATCH(S$4,CPI[#Headers],0),FALSE) -> 0 | T80: =ProjectData[[#This Row],[Actuals 13/14]]*VLOOKUP("Mid Year Nominal - EOY Real (2015/16)",CPI[],MATCH(T$4,CPI[#Headers],0),FALSE) -> 0 | U80: =ProjectData[[#This Row],[Actuals 14/15]]*VLOOKUP("Mid Year Nominal - EOY Real (2015/16)",CPI[],MATCH(U$4,CPI[#Headers],0),FALSE) -> 0 | V80: =SUM(ProjectData[[#This Row],[Real 08]:[Real 15]]) -> 0.1179318528 | W80: =(ProjectData[[#This Row],[Real Sum]]-VLOOKUP(ProjectData[[#This Row],[Category]],Category_AverageStdDevLimit[],MATCH("Average",Category_AverageStdDevLimit[#Headers],0),FALSE))^2 -> 0.3002311707 | X80: =VLOOKUP(ProjectData[[#This Row],[Category]],Category_AverageStdDevLimit[],MATCH("Limit",Category_AverageStdDevLimit[#Headers],0),FALSE) -> 2.96351611 | Y80: =ProjectData[[#This Row],[Real Sum]]>ProjectData[[#This Row],[Category Limit]] -> FALSE | AA80: =OR(ProjectData[[#This Row],[Significant Project? (Financial Basis)]],ProjectData[[#This Row],[Non repeatable]]) -> FALSE | AB80: =AND(ProjectData[[#This Row],[SomeExpenditure >= 2011]],ProjectData[[#This Row],[Abnormal?]]) -> FALSE
A81: CP.02045 | B81: PLVC to Mary St and South Pine Fibre Route | C81: Other | F81: 0.0052573 | G81: 0.0224973 | H81: 0.00316825 | I81: 0.0098581 | J81: 0.02947142 | K81: 0.08432063 | L81: =ProjectData[[#This Row],[Real Sum]]>0.00000001 -> TRUE | M81: =OR(ProjectData[[#This Row],[Real 11]]>0,ProjectData[[#This Row],[Real 12]]>0,ProjectData[[#This Row],[Real 13]]>0,ProjectData[[#This Row],[Real 14]]>0,ProjectData[[#This Row],[Real 15]]>0) -> TRUE | N81: =ProjectData[[#This Row],[Actuals 07/08]]*VLOOKUP("Mid Year Nominal - EOY Real (2015/16)",CPI[],MATCH(N$4,CPI[#Headers],0),FALSE) -> 0 | O81: =ProjectData[[#This Row],[Actuals 08/09]]*VLOOKUP("Mid Year Nominal - EOY Real (2015/16)",CPI[],MATCH(O$4,CPI[#Headers],0),FALSE) -> 0 | P81: =ProjectData[[#This Row],[Actuals 09/10]]*VLOOKUP("Mid Year Nominal - EOY Real (2015/16)",CPI[],MATCH(P$4,CPI[#Headers],0),FALSE) -> 0.006124253462 | Q81: =ProjectData[[#This Row],[Actuals 10/11]]*VLOOKUP("Mid Year Nominal - EOY Real (2015/16)",CPI[],MATCH(Q$4,CPI[#Headers],0),FALSE) -> 0.02542230375 | R81: =ProjectData[[#This Row],[Actuals 11/12]]*VLOOKUP("Mid Year Nominal - EOY Real (2015/16)",CPI[],MATCH(R$4,CPI[#Headers],0),FALSE) -> 0.003494939622 | S81: =ProjectData[[#This Row],[Actuals 12/13]]*VLOOKUP("Mid Year Nominal - EOY Real (2015/16)",CPI[],MATCH(S$4,CPI[#Headers],0),FALSE) -> 0.01065467566 | T81: =ProjectData[[#This Row],[Actuals 13/14]]*VLOOKUP("Mid Year Nominal - EOY Real (2015/16)",CPI[],MATCH(T$4,CPI[#Headers],0),FALSE) -> 0.03101062468 | U81: =ProjectData[[#This Row],[Actuals 14/15]]*VLOOKUP("Mid Year Nominal - EOY Real (2015/16)",CPI[],MATCH(U$4,CPI[#Headers],0),FALSE) -> 0.08687756655 | V81: =SUM(ProjectData[[#This Row],[Real 08]:[Real 15]]) -> 0.1635843637 | W81: =(ProjectData[[#This Row],[Real Sum]]-VLOOKUP(ProjectData[[#This Row],[Category]],Category_AverageStdDevLimit[],MATCH("Average",Category_AverageStdDevLimit[#Headers],0),FALSE))^2 -> 1.608454877 | X81: =VLOOKUP(ProjectData[[#This Row],[Category]],Category_AverageStdDevLimit[],MATCH("Limit",Category_AverageStdDevLimit[#Headers],0),FALSE) -> 7.704088755 | Y81: =ProjectData[[#This Row],[Real Sum]]>ProjectData[[#This Row],[Category Limit]] -> FALSE | AA81: =OR(ProjectData[[#This Row],[Significant Project? (Financial Basis)]],ProjectData[[#This Row],[Non repeatable]]) -> FALSE | AB81: =AND(ProjectData[[#This Row],[SomeExpenditure >= 2011]],ProjectData[[#This Row],[Abnormal?]]) -> FALSE
A82: CP.02060 | B82: EMS Redundancy at DR Site | C82: Security / Compliance | F82: 0.0032252 | G82: 0.17457206 | H82: 0 | I82: 0 | K82: 0 | L82: =ProjectData[[#This Row],[Real Sum]]>0.00000001 -> TRUE | M82: =OR(ProjectData[[#This Row],[Real 11]]>0,ProjectData[[#This Row],[Real 12]]>0,ProjectData[[#This Row],[Real 13]]>0,ProjectData[[#This Row],[Real 14]]>0,ProjectData[[#This Row],[Real 15]]>0) -> TRUE | N82: =ProjectData[[#This Row],[Actuals 07/08]]*VLOOKUP("Mid Year Nominal - EOY Real (2015/16)",CPI[],MATCH(N$4,CPI[#Headers],0),FALSE) -> 0 | O82: =ProjectData[[#This Row],[Actuals 08/09]]*VLOOKUP("Mid Year Nominal - EOY Real (2015/16)",CPI[],MATCH(O$4,CPI[#Headers],0),FALSE) -> 0 | P82: =ProjectData[[#This Row],[Actuals 09/10]]*VLOOKUP("Mid Year Nominal - EOY Real (2015/16)",CPI[],MATCH(P$4,CPI[#Headers],0),FALSE) -> 0.003757050628 | Q82: =ProjectData[[#This Row],[Actuals 10/11]]*VLOOKUP("Mid Year Nominal - EOY Real (2015/16)",CPI[],MATCH(Q$4,CPI[#Headers],0),FALSE) -> 0.1972691805 | R82: =ProjectData[[#This Row],[Actuals 11/12]]*VLOOKUP("Mid Year Nominal - EOY Real (2015/16)",CPI[],MATCH(R$4,CPI[#Headers],0),FALSE) -> 0 | S82: =ProjectData[[#This Row],[Actuals 12/13]]*VLOOKUP("Mid Year Nominal - EOY Real (2015/16)",CPI[],MATCH(S$4,CPI[#Headers],0),FALSE) -> 0 | T82: =ProjectData[[#This Row],[Actuals 13/14]]*VLOOKUP("Mid Year Nominal - EOY Real (2015/16)",CPI[],MATCH(T$4,CPI[#Headers],0),FALSE) -> 0 | U82: =ProjectData[[#This Row],[Actuals 14/15]]*VLOOKUP("Mid Year Nominal - EOY Real (2015/16)",CPI[],MATCH(U$4,CPI[#Headers],0),FALSE) -> 0 | V82: =SUM(ProjectData[[#This Row],[Real 08]:[Real 15]]) -> 0.2010262312 | W82: =(ProjectData[[#This Row],[Real Sum]]-VLOOKUP(ProjectData[[#This Row],[Category]],Category_AverageStdDevLimit[],MATCH("Average",Category_AverageStdDevLimit[#Headers],0),FALSE))^2 -> 11.50157886 | X82: =VLOOKUP(ProjectData[[#This Row],[Category]],Category_AverageStdDevLimit[],MATCH("Limit",Category_AverageStdDevLimit[#Headers],0),FALSE) -> 10.86958417 | Y82: =ProjectData[[#This Row],[Real Sum]]>ProjectData[[#This Row],[Category Limit]] -> FALSE | AA82: =OR(ProjectData[[#This Row],[Significant Project? (Financial Basis)]],ProjectData[[#This Row],[Non repeatable]]) -> FALSE | AB82: =AND(ProjectData[[#This Row],[SomeExpenditure >= 2011]],ProjectData[[#This Row],[Abnormal?]]) -> FALSE
A83: CP.02065 | B83: SCADA and OPSWAN at QR SVC Sites | C83: Replacement | G83: 0.03867145 | H83: 0.1153314 | I83: 0.2604031 | J83: 0.07321389 | K83: 0.1062132 | L83: =ProjectData[[#This Row],[Real Sum]]>0.00000001 -> TRUE | M83: =OR(ProjectData[[#This Row],[Real 11]]>0,ProjectData[[#This Row],[Real 12]]>0,ProjectData[[#This Row],[Real 13]]>0,ProjectData[[#This Row],[Real 14]]>0,ProjectData[[#This Row],[Real 15]]>0) -> TRUE | N83: =ProjectData[[#This Row],[Actuals 07/08]]*VLOOKUP("Mid Year Nominal - EOY Real (2015/16)",CPI[],MATCH(N$4,CPI[#Headers],0),FALSE) -> 0 | O83: =ProjectData[[#This Row],[Actuals 08/09]]*VLOOKUP("Mid Year Nominal - EOY Real (2015/16)",CPI[],MATCH(O$4,CPI[#Headers],0),FALSE) -> 0 | P83: =ProjectData[[#This Row],[Actuals 09/10]]*VLOOKUP("Mid Year Nominal - EOY Real (2015/16)",CPI[],MATCH(P$4,CPI[#Headers],0),FALSE) -> 0 | Q83: =ProjectData[[#This Row],[Actuals 10/11]]*VLOOKUP("Mid Year Nominal - EOY Real (2015/16)",CPI[],MATCH(Q$4,CPI[#Headers],0),FALSE) -> 0.04369934829 | R83: =ProjectData[[#This Row],[Actuals 11/12]]*VLOOKUP("Mid Year Nominal - EOY Real (2015/16)",CPI[],MATCH(R$4,CPI[#Headers],0),FALSE) -> 0.1272236344 | S83: =ProjectData[[#This Row],[Actuals 12/13]]*VLOOKUP("Mid Year Nominal - EOY Real (2015/16)",CPI[],MATCH(S$4,CPI[#Headers],0),FALSE) -> 0.2814447582 | T83: =ProjectData[[#This Row],[Actuals 13/14]]*VLOOKUP("Mid Year Nominal - EOY Real (2015/16)",CPI[],MATCH(T$4,CPI[#Headers],0),FALSE) -> 0.07703763388 | U83: =ProjectData[[#This Row],[Actuals 14/15]]*VLOOKUP("Mid Year Nominal - EOY Real (2015/16)",CPI[],MATCH(U$4,CPI[#Headers],0),FALSE) -> 0.1094340063 | V83: =SUM(ProjectData[[#This Row],[Real 08]:[Real 15]]) -> 0.638839381 | W83: =(ProjectData[[#This Row],[Real Sum]]-VLOOKUP(ProjectData[[#This Row],[Category]],Category_AverageStdDevLimit[],MATCH("Average",Category_AverageStdDevLimit[#Headers],0),FALSE))^2 -> 0.0007304056346 | X83: =VLOOKUP(ProjectData[[#This Row],[Category]],Category_AverageStdDevLimit[],MATCH("Limit",Category_AverageStdDevLimit[#Headers],0),FALSE) -> 2.96351611 | Y83: =ProjectData[[#This Row],[Real Sum]]>ProjectData[[#This Row],[Category Limit]] -> FALSE | AA83: =OR(ProjectData[[#This Row],[Significant Project? (Financial Basis)]],ProjectData[[#This Row],[Non repeatable]]) -> FALSE | AB83: =AND(ProjectData[[#This Row],[SomeExpenditure >= 2011]],ProjectData[[#This Row],[Abnormal?]]) -> FALSE
A84: CP.02066 | B84: Blackwall Synchronisation Clock Replacem | C84: Replacement | H84: 0.00965675 | I84: 0 | K84: 0 | L84: =ProjectData[[#This Row],[Real Sum]]>0.00000001 -> TRUE | M84: =OR(ProjectData[[#This Row],[Real 11]]>0,ProjectData[[#This Row],[Real 12]]>0,ProjectData[[#This Row],[Real 13]]>0,ProjectData[[#This Row],[Real 14]]>0,ProjectData[[#This Row],[Real 15]]>0) -> TRUE | N84: =ProjectData[[#This Row],[Actuals 07/08]]*VLOOKUP("Mid Year Nominal - EOY Real (2015/16)",CPI[],MATCH(N$4,CPI[#Headers],0),FALSE) -> 0 | O84: =ProjectData[[#This Row],[Actuals 08/09]]*VLOOKUP("Mid Year Nominal - EOY Real (2015/16)",CPI[],MATCH(O$4,CPI[#Headers],0),FALSE) -> 0 | P84: =ProjectData[[#This Row],[Actuals 09/10]]*VLOOKUP("Mid Year Nominal - EOY Real (2015/16)",CPI[],MATCH(P$4,CPI[#Headers],0),FALSE) -> 0 | Q84: =ProjectData[[#This Row],[Actuals 10/11]]*VLOOKUP("Mid Year Nominal - EOY Real (2015/16)",CPI[],MATCH(Q$4,CPI[#Headers],0),FALSE) -> 0 | R84: =ProjectData[[#This Row],[Actuals 11/12]]*VLOOKUP("Mid Year Nominal - EOY Real (2015/16)",CPI[],MATCH(R$4,CPI[#Headers],0),FALSE) -> 0.01065249213 | S84: =ProjectData[[#This Row],[Actuals 12/13]]*VLOOKUP("Mid Year Nominal - EOY Real (2015/16)",CPI[],MATCH(S$4,CPI[#Headers],0),FALSE) -> 0 | T84: =ProjectData[[#This Row],[Actuals 13/14]]*VLOOKUP("Mid Year Nominal - EOY Real (2015/16)",CPI[],MATCH(T$4,CPI[#Headers],0),FALSE) -> 0 | U84: =ProjectData[[#This Row],[Actuals 14/15]]*VLOOKUP("Mid Year Nominal - EOY Real (2015/16)",CPI[],MATCH(U$4,CPI[#Headers],0),FALSE) -> 0 | V84: =SUM(ProjectData[[#This Row],[Real 08]:[Real 15]]) -> 0.01065249213 | W84: =(ProjectData[[#This Row],[Real Sum]]-VLOOKUP(ProjectData[[#This Row],[Category]],Category_AverageStdDevLimit[],MATCH("Average",Category_AverageStdDevLimit[#Headers],0),FALSE))^2 -> 0.4293039529 | X84: =VLOOKUP(ProjectData[[#This Row],[Category]],Category_AverageStdDevLimit[],MATCH("Limit",Category_AverageStdDevLimit[#Headers],0),FALSE) -> 2.96351611 | Y84: =ProjectData[[#This Row],[Real Sum]]>ProjectData[[#This Row],[Category Limit]] -> FALSE | AA84: =OR(ProjectData[[#This Row],[Significant Project? (Financial Basis)]],ProjectData[[#This Row],[Non repeatable]]) -> FALSE | AB84: =AND(ProjectData[[#This Row],[SomeExpenditure >= 2011]],ProjectData[[#This Row],[Abnormal?]]) -> FALSE
A85: CP.02067 | B85: Substation Security Upgrade - Stage 1 | C85: Security / Compliance | G85: 1.62285332 | H85: 0.42023633 | I85: 0.46984671 | J85: 2.47078486 | K85: 2.81742454 | L85: =ProjectData[[#This Row],[Real Sum]]>0.00000001 -> TRUE | M85: =OR(ProjectData[[#This Row],[Real 11]]>0,ProjectData[[#This Row],[Real 12]]>0,ProjectData[[#This Row],[Real 13]]>0,ProjectData[[#This Row],[Real 14]]>0,ProjectData[[#This Row],[Real 15]]>0) -> TRUE | N85: =ProjectData[[#This Row],[Actuals 07/08]]*VLOOKUP("Mid Year Nominal - EOY Real (2015/16)",CPI[],MATCH(N$4,CPI[#Headers],0),FALSE) -> 0 | O85: =ProjectData[[#This Row],[Actuals 08/09]]*VLOOKUP("Mid Year Nominal - EOY Real (2015/16)",CPI[],MATCH(O$4,CPI[#Headers],0),FALSE) -> 0 | P85: =ProjectData[[#This Row],[Actuals 09/10]]*VLOOKUP("Mid Year Nominal - EOY Real (2015/16)",CPI[],MATCH(P$4,CPI[#Headers],0),FALSE) -> 0 | Q85: =ProjectData[[#This Row],[Actuals 10/11]]*VLOOKUP("Mid Year Nominal - EOY Real (2015/16)",CPI[],MATCH(Q$4,CPI[#Headers],0),FALSE) -> 1.833849841 | R85: =ProjectData[[#This Row],[Actuals 11/12]]*VLOOKUP("Mid Year Nominal - EOY Real (2015/16)",CPI[],MATCH(R$4,CPI[#Headers],0),FALSE) -> 0.4635684054 | S85: =ProjectData[[#This Row],[Actuals 12/13]]*VLOOKUP("Mid Year Nominal - EOY Real (2015/16)",CPI[],MATCH(S$4,CPI[#Headers],0),FALSE) -> 0.5078122867 | T85: =ProjectData[[#This Row],[Actuals 13/14]]*VLOOKUP("Mid Year Nominal - EOY Real (2015/16)",CPI[],MATCH(T$4,CPI[#Headers],0),FALSE) -> 2.59982661 | U85: =ProjectData[[#This Row],[Actuals 14/15]]*VLOOKUP("Mid Year Nominal - EOY Real (2015/16)",CPI[],MATCH(U$4,CPI[#Headers],0),FALSE) -> 2.902860047 | V85: =SUM(ProjectData[[#This Row],[Real 08]:[Real 15]]) -> 8.307917191 | W85: =(ProjectData[[#This Row],[Real Sum]]-VLOOKUP(ProjectData[[#This Row],[Category]],Category_AverageStdDevLimit[],MATCH("Average",Category_AverageStdDevLimit[#Headers],0),FALSE))^2 -> 22.23587599 | X85: =VLOOKUP(ProjectData[[#This Row],[Category]],Category_AverageStdDevLimit[],MATCH("Limit",Category_AverageStdDevLimit[#Headers],0),FALSE) -> 10.86958417 | Y85: =ProjectData[[#This Row],[Real Sum]]>ProjectData[[#This Row],[Category Limit]] -> FALSE | AA85: =OR(ProjectData[[#This Row],[Significant Project? (Financial Basis)]],ProjectData[[#This Row],[Non repeatable]]) -> FALSE | AB85: =AND(ProjectData[[#This Row],[SomeExpenditure >= 2011]],ProjectData[[#This Row],[Abnormal?]]) -> FALSE
A86: CP.02076 | B86: Ross Station Supply Cable Replacement | C86: Replacement | G86: 0.16250249 | H86: 0.70502973 | I86: 0.28241983 | J86: 0.0011929 | K86: 0 | L86: =ProjectData[[#This Row],[Real Sum]]>0.00000001 -> TRUE | M86: =OR(ProjectData[[#This Row],[Real 11]]>0,ProjectData[[#This Row],[Real 12]]>0,ProjectData[[#This Row],[Real 13]]>0,ProjectData[[#This Row],[Real 14]]>0,ProjectData[[#This Row],[Real 15]]>0) -> TRUE | N86: =ProjectData[[#This Row],[Actuals 07/08]]*VLOOKUP("Mid Year Nominal - EOY Real (2015/16)",CPI[],MATCH(N$4,CPI[#Headers],0),FALSE) -> 0 | O86: =ProjectData[[#This Row],[Actuals 08/09]]*VLOOKUP("Mid Year Nominal - EOY Real (2015/16)",CPI[],MATCH(O$4,CPI[#Headers],0),FALSE) -> 0 | P86: =ProjectData[[#This Row],[Actuals 09/10]]*VLOOKUP("Mid Year Nominal - EOY Real (2015/16)",CPI[],MATCH(P$4,CPI[#Headers],0),FALSE) -> 0 | Q86: =ProjectData[[#This Row],[Actuals 10/11]]*VLOOKUP("Mid Year Nominal - EOY Real (2015/16)",CPI[],MATCH(Q$4,CPI[#Headers],0),FALSE) -> 0.1836303761 | R86: =ProjectData[[#This Row],[Actuals 11/12]]*VLOOKUP("Mid Year Nominal - EOY Real (2015/16)",CPI[],MATCH(R$4,CPI[#Headers],0),FALSE) -> 0.7777278744 | S86: =ProjectData[[#This Row],[Actuals 12/13]]*VLOOKUP("Mid Year Nominal - EOY Real (2015/16)",CPI[],MATCH(S$4,CPI[#Headers],0),FALSE) -> 0.3052405319 | T86: =ProjectData[[#This Row],[Actuals 13/14]]*VLOOKUP("Mid Year Nominal - EOY Real (2015/16)",CPI[],MATCH(T$4,CPI[#Headers],0),FALSE) -> 0.001255201622 | U86: =ProjectData[[#This Row],[Actuals 14/15]]*VLOOKUP("Mid Year Nominal - EOY Real (2015/16)",CPI[],MATCH(U$4,CPI[#Headers],0),FALSE) -> 0 | V86: =SUM(ProjectData[[#This Row],[Real 08]:[Real 15]]) -> 1.267853984 | W86: =(ProjectData[[#This Row],[Real Sum]]-VLOOKUP(ProjectData[[#This Row],[Category]],Category_AverageStdDevLimit[],MATCH("Average",Category_AverageStdDevLimit[#Headers],0),FALSE))^2 -> 0.3623902569 | X86: =VLOOKUP(ProjectData[[#This Row],[Category]],Category_AverageStdDevLimit[],MATCH("Limit",Category_AverageStdDevLimit[#Headers],0),FALSE) -> 2.96351611 | Y86: =ProjectData[[#This Row],[Real Sum]]>ProjectData[[#This Row],[Category Limit]] -> FALSE | AA86: =OR(ProjectData[[#This Row],[Significant Project? (Financial Basis)]],ProjectData[[#This Row],[Non repeatable]]) -> FALSE | AB86: =AND(ProjectData[[#This Row],[SomeExpenditure >= 2011]],ProjectData[[#This Row],[Abnormal?]]) -> FALSE
A87: CP.02082 | B87: Braemar R-OADM Installation | C87: Other | G87: 0.0088875 | H87: 0.00622375 | I87: 0.35612167 | J87: 0.07861483 | K87: 0 | L87: =ProjectData[[#This Row],[Real Sum]]>0.00000001 -> TRUE | M87: =OR(ProjectData[[#This Row],[Real 11]]>0,ProjectData[[#This Row],[Real 12]]>0,ProjectData[[#This Row],[Real 13]]>0,ProjectData[[#This Row],[Real 14]]>0,ProjectData[[#This Row],[Real 15]]>0) -> TRUE | N87: =ProjectData[[#This Row],[Actuals 07/08]]*VLOOKUP("Mid Year Nominal - EOY Real (2015/16)",CPI[],MATCH(N$4,CPI[#Headers],0),FALSE) -> 0 | O87: =ProjectData[[#This Row],[Actuals 08/09]]*VLOOKUP("Mid Year Nominal - EOY Real (2015/16)",CPI[],MATCH(O$4,CPI[#Headers],0),FALSE) -> 0 | P87: =ProjectData[[#This Row],[Actuals 09/10]]*VLOOKUP("Mid Year Nominal - EOY Real (2015/16)",CPI[],MATCH(P$4,CPI[#Headers],0),FALSE) -> 0 | Q87: =ProjectData[[#This Row],[Actuals 10/11]]*VLOOKUP("Mid Year Nominal - EOY Real (2015/16)",CPI[],MATCH(Q$4,CPI[#Headers],0),FALSE) -> 0.01004301514 | R87: =ProjectData[[#This Row],[Actuals 11/12]]*VLOOKUP("Mid Year Nominal - EOY Real (2015/16)",CPI[],MATCH(R$4,CPI[#Headers],0),FALSE) -> 0.006865503187 | S87: =ProjectData[[#This Row],[Actuals 12/13]]*VLOOKUP("Mid Year Nominal - EOY Real (2015/16)",CPI[],MATCH(S$4,CPI[#Headers],0),FALSE) -> 0.3848977884 | T87: =ProjectData[[#This Row],[Actuals 13/14]]*VLOOKUP("Mid Year Nominal - EOY Real (2015/16)",CPI[],MATCH(T$4,CPI[#Headers],0),FALSE) -> 0.08272064893 | U87: =ProjectData[[#This Row],[Actuals 14/15]]*VLOOKUP("Mid Year Nominal - EOY Real (2015/16)",CPI[],MATCH(U$4,CPI[#Headers],0),FALSE) -> 0 | V87: =SUM(ProjectData[[#This Row],[Real 08]:[Real 15]]) -> 0.4845269557 | W87: =(ProjectData[[#This Row],[Real Sum]]-VLOOKUP(ProjectData[[#This Row],[Category]],Category_AverageStdDevLimit[],MATCH("Average",Category_AverageStdDevLimit[#Headers],0),FALSE))^2 -> 0.8973889462 | X87: =VLOOKUP(ProjectData[[#This Row],[Category]],Category_AverageStdDevLimit[],MATCH("Limit",Category_AverageStdDevLimit[#Headers],0),FALSE) -> 7.704088755 | Y87: =ProjectData[[#This Row],[Real Sum]]>ProjectData[[#This Row],[Category Limit]] -> FALSE | AA87: =OR(ProjectData[[#This Row],[Significant Project? (Financial Basis)]],ProjectData[[#This Row],[Non repeatable]]) -> FALSE | AB87: =AND(ProjectData[[#This Row],[SomeExpenditure >= 2011]],ProjectData[[#This Row],[Abnormal?]]) -> FALSE
A88: CP.02085 | B88: Transmission Structure Signs Upgrade (Combined Regions) | C88: Security / Compliance | G88: 0.13323865 | H88: 6.67053139 | I88: 2.21141087 | J88: 0.04720185 | K88: 0 | L88: =ProjectData[[#This Row],[Real Sum]]>0.00000001 -> TRUE | M88: =OR(ProjectData[[#This Row],[Real 11]]>0,ProjectData[[#This Row],[Real 12]]>0,ProjectData[[#This Row],[Real 13]]>0,ProjectData[[#This Row],[Real 14]]>0,ProjectData[[#This Row],[Real 15]]>0) -> TRUE | N88: =ProjectData[[#This Row],[Actuals 07/08]]*VLOOKUP("Mid Year Nominal - EOY Real (2015/16)",CPI[],MATCH(N$4,CPI[#Headers],0),FALSE) -> 0 | O88: =ProjectData[[#This Row],[Actuals 08/09]]*VLOOKUP("Mid Year Nominal - EOY Real (2015/16)",CPI[],MATCH(O$4,CPI[#Headers],0),FALSE) -> 0 | P88: =ProjectData[[#This Row],[Actuals 09/10]]*VLOOKUP("Mid Year Nominal - EOY Real (2015/16)",CPI[],MATCH(P$4,CPI[#Headers],0),FALSE) -> 0 | Q88: =ProjectData[[#This Row],[Actuals 10/11]]*VLOOKUP("Mid Year Nominal - EOY Real (2015/16)",CPI[],MATCH(Q$4,CPI[#Headers],0),FALSE) -> 0.1505617755 | R88: =ProjectData[[#This Row],[Actuals 11/12]]*VLOOKUP("Mid Year Nominal - EOY Real (2015/16)",CPI[],MATCH(R$4,CPI[#Headers],0),FALSE) -> 7.358353809 | S88: =ProjectData[[#This Row],[Actuals 12/13]]*VLOOKUP("Mid Year Nominal - EOY Real (2015/16)",CPI[],MATCH(S$4,CPI[#Headers],0),FALSE) -> 2.390102105 | T88: =ProjectData[[#This Row],[Actuals 13/14]]*VLOOKUP("Mid Year Nominal - EOY Real (2015/16)",CPI[],MATCH(T$4,CPI[#Headers],0),FALSE) -> 0.04966706234 | U88: =ProjectData[[#This Row],[Actuals 14/15]]*VLOOKUP("Mid Year Nominal - EOY Real (2015/16)",CPI[],MATCH(U$4,CPI[#Headers],0),FALSE) -> 0 | V88: =SUM(ProjectData[[#This Row],[Real 08]:[Real 15]]) -> 9.948684752 | W88: =(ProjectData[[#This Row],[Real Sum]]-VLOOKUP(ProjectData[[#This Row],[Category]],Category_AverageStdDevLimit[],MATCH("Average",Category_AverageStdDevLimit[#Headers],0),FALSE))^2 -> 40.40205069 | X88: =VLOOKUP(ProjectData[[#This Row],[Category]],Category_AverageStdDevLimit[],MATCH("Limit",Category_AverageStdDevLimit[#Headers],0),FALSE) -> 10.86958417 | Y88: =ProjectData[[#This Row],[Real Sum]]>ProjectData[[#This Row],[Category Limit]] -> FALSE | Z88: TRUE | AA88: =OR(ProjectData[[#This Row],[Significant Project? (Financial Basis)]],ProjectData[[#This Row],[Non repeatable]]) -> TRUE | AB88: =AND(ProjectData[[#This Row],[SomeExpenditure >= 2011]],ProjectData[[#This Row],[Abnormal?]]) -> TRUE
A89: CP.02091 | B89: Release & Patch Management for OpsWAN Se | C89: Other | G89: 0.11199592 | H89: 0.11220225 | I89: 0 | K89: 0 | L89: =ProjectData[[#This Row],[Real Sum]]>0.00000001 -> TRUE | M89: =OR(ProjectData[[#This Row],[Real 11]]>0,ProjectData[[#This Row],[Real 12]]>0,ProjectData[[#This Row],[Real 13]]>0,ProjectData[[#This Row],[Real 14]]>0,ProjectData[[#This Row],[Real 15]]>0) -> TRUE | N89: =ProjectData[[#This Row],[Actuals 07/08]]*VLOOKUP("Mid Year Nominal - EOY Real (2015/16)",CPI[],MATCH(N$4,CPI[#Headers],0),FALSE) -> 0 | O89: =ProjectData[[#This Row],[Actuals 08/09]]*VLOOKUP("Mid Year Nominal - EOY Real (2015/16)",CPI[],MATCH(O$4,CPI[#Headers],0),FALSE) -> 0 | P89: =ProjectData[[#This Row],[Actuals 09/10]]*VLOOKUP("Mid Year Nominal - EOY Real (2015/16)",CPI[],MATCH(P$4,CPI[#Headers],0),FALSE) -> 0 | Q89: =ProjectData[[#This Row],[Actuals 10/11]]*VLOOKUP("Mid Year Nominal - EOY Real (2015/16)",CPI[],MATCH(Q$4,CPI[#Headers],0),FALSE) -> 0.1265571556 | R89: =ProjectData[[#This Row],[Actuals 11/12]]*VLOOKUP("Mid Year Nominal - EOY Real (2015/16)",CPI[],MATCH(R$4,CPI[#Headers],0),FALSE) -> 0.1237718265 | S89: =ProjectData[[#This Row],[Actuals 12/13]]*VLOOKUP("Mid Year Nominal - EOY Real (2015/16)",CPI[],MATCH(S$4,CPI[#Headers],0),FALSE) -> 0 | T89: =ProjectData[[#This Row],[Actuals 13/14]]*VLOOKUP("Mid Year Nominal - EOY Real (2015/16)",CPI[],MATCH(T$4,CPI[#Headers],0),FALSE) -> 0 | U89: =ProjectData[[#This Row],[Actuals 14/15]]*VLOOKUP("Mid Year Nominal - EOY Real (2015/16)",CPI[],MATCH(U$4,CPI[#Headers],0),FALSE) -> 0 | V89: =SUM(ProjectData[[#This Row],[Real 08]:[Real 15]]) -> 0.2503289821 | W89: =(ProjectData[[#This Row],[Real Sum]]-VLOOKUP(ProjectData[[#This Row],[Category]],Category_AverageStdDevLimit[],MATCH("Average",Category_AverageStdDevLimit[#Headers],0),FALSE))^2 -> 1.395952 | X89: =VLOOKUP(ProjectData[[#This Row],[Category]],Category_AverageStdDevLimit[],MATCH("Limit",Category_AverageStdDevLimit[#Headers],0),FALSE) -> 7.704088755 | Y89: =ProjectData[[#This Row],[Real Sum]]>ProjectData[[#This Row],[Category Limit]] -> FALSE | AA89: =OR(ProjectData[[#This Row],[Significant Project? (Financial Basis)]],ProjectData[[#This Row],[Non repeatable]]) -> FALSE | AB89: =AND(ProjectData[[#This Row],[SomeExpenditure >= 2011]],ProjectData[[#This Row],[Abnormal?]]) -> FALSE
A90: CP.02093 | B90: NMS SCADA Interface to EMS | C90: Other | G90: 0.0138165 | H90: 0.0604955 | I90: 0.001024 | J90: 0 | K90: 0 | L90: =ProjectData[[#This Row],[Real Sum]]>0.00000001 -> TRUE | M90: =OR(ProjectData[[#This Row],[Real 11]]>0,ProjectData[[#This Row],[Real 12]]>0,ProjectData[[#This Row],[Real 13]]>0,ProjectData[[#This Row],[Real 14]]>0,ProjectData[[#This Row],[Real 15]]>0) -> TRUE | N90: =ProjectData[[#This Row],[Actuals 07/08]]*VLOOKUP("Mid Year Nominal - EOY Real (2015/16)",CPI[],MATCH(N$4,CPI[#Headers],0),FALSE) -> 0 | O90: =ProjectData[[#This Row],[Actuals 08/09]]*VLOOKUP("Mid Year Nominal - EOY Real (2015/16)",CPI[],MATCH(O$4,CPI[#Headers],0),FALSE) -> 0 | P90: =ProjectData[[#This Row],[Actuals 09/10]]*VLOOKUP("Mid Year Nominal - EOY Real (2015/16)",CPI[],MATCH(P$4,CPI[#Headers],0),FALSE) -> 0 | Q90: =ProjectData[[#This Row],[Actuals 10/11]]*VLOOKUP("Mid Year Nominal - EOY Real (2015/16)",CPI[],MATCH(Q$4,CPI[#Headers],0),FALSE) -> 0.01561286286 | R90: =ProjectData[[#This Row],[Actuals 11/12]]*VLOOKUP("Mid Year Nominal - EOY Real (2015/16)",CPI[],MATCH(R$4,CPI[#Headers],0),FALSE) -> 0.06673340801 | S90: =ProjectData[[#This Row],[Actuals 12/13]]*VLOOKUP("Mid Year Nominal - EOY Real (2015/16)",CPI[],MATCH(S$4,CPI[#Headers],0),FALSE) -> 0.001106743477 | T90: =ProjectData[[#This Row],[Actuals 13/14]]*VLOOKUP("Mid Year Nominal - EOY Real (2015/16)",CPI[],MATCH(T$4,CPI[#Headers],0),FALSE) -> 0 | U90: =ProjectData[[#This Row],[Actuals 14/15]]*VLOOKUP("Mid Year Nominal - EOY Real (2015/16)",CPI[],MATCH(U$4,CPI[#Headers],0),FALSE) -> 0 | V90: =SUM(ProjectData[[#This Row],[Real 08]:[Real 15]]) -> 0.08345301435 | W90: =(ProjectData[[#This Row],[Real Sum]]-VLOOKUP(ProjectData[[#This Row],[Category]],Category_AverageStdDevLimit[],MATCH("Average",Category_AverageStdDevLimit[#Headers],0),FALSE))^2 -> 1.818128877 | X90: =VLOOKUP(ProjectData[[#This Row],[Category]],Category_AverageStdDevLimit[],MATCH("Limit",Category_AverageStdDevLimit[#Headers],0),FALSE) -> 7.704088755 | Y90: =ProjectData[[#This Row],[Real Sum]]>ProjectData[[#This Row],[Category Limit]] -> FALSE | AA90: =OR(ProjectData[[#This Row],[Significant Project? (Financial Basis)]],ProjectData[[#This Row],[Non repeatable]]) -> FALSE | AB90: =AND(ProjectData[[#This Row],[SomeExpenditure >= 2011]],ProjectData[[#This Row],[Abnormal?]]) -> FALSE
A91: CP.02096 | B91: Establish OpsWAN Connection at Mansfield | C91: Other | G91: 0.07854136 | H91: 0.00193408 | I91: 0 | K91: 0 | L91: =ProjectData[[#This Row],[Real Sum]]>0.00000001 -> TRUE | M91: =OR(ProjectData[[#This Row],[Real 11]]>0,ProjectData[[#This Row],[Real 12]]>0,ProjectData[[#This Row],[Real 13]]>0,ProjectData[[#This Row],[Real 14]]>0,ProjectData[[#This Row],[Real 15]]>0) -> TRUE | N91: =ProjectData[[#This Row],[Actuals 07/08]]*VLOOKUP("Mid Year Nominal - EOY Real (2015/16)",CPI[],MATCH(N$4,CPI[#Headers],0),FALSE) -> 0 | O91: =ProjectData[[#This Row],[Actuals 08/09]]*VLOOKUP("Mid Year Nominal - EOY Real (2015/16)",CPI[],MATCH(O$4,CPI[#Headers],0),FALSE) -> 0 | P91: =ProjectData[[#This Row],[Actuals 09/10]]*VLOOKUP("Mid Year Nominal - EOY Real (2015/16)",CPI[],MATCH(P$4,CPI[#Headers],0),FALSE) -> 0 | Q91: =ProjectData[[#This Row],[Actuals 10/11]]*VLOOKUP("Mid Year Nominal - EOY Real (2015/16)",CPI[],MATCH(Q$4,CPI[#Headers],0),FALSE) -> 0.08875297527 | R91: =ProjectData[[#This Row],[Actuals 11/12]]*VLOOKUP("Mid Year Nominal - EOY Real (2015/16)",CPI[],MATCH(R$4,CPI[#Headers],0),FALSE) -> 0.002133509926 | S91: =ProjectData[[#This Row],[Actuals 12/13]]*VLOOKUP("Mid Year Nominal - EOY Real (2015/16)",CPI[],MATCH(S$4,CPI[#Headers],0),FALSE) -> 0 | T91: =ProjectData[[#This Row],[Actuals 13/14]]*VLOOKUP("Mid Year Nominal - EOY Real (2015/16)",CPI[],MATCH(T$4,CPI[#Headers],0),FALSE) -> 0 | U91: =ProjectData[[#This Row],[Actuals 14/15]]*VLOOKUP("Mid Year Nominal - EOY Real (2015/16)",CPI[],MATCH(U$4,CPI[#Headers],0),FALSE) -> 0 | V91: =SUM(ProjectData[[#This Row],[Real 08]:[Real 15]]) -> 0.0908864852 | W91: =(ProjectData[[#This Row],[Real Sum]]-VLOOKUP(ProjectData[[#This Row],[Category]],Category_AverageStdDevLimit[],MATCH("Average",Category_AverageStdDevLimit[#Headers],0),FALSE))^2 -> 1.798137845 | X91: =VLOOKUP(ProjectData[[#This Row],[Category]],Category_AverageStdDevLimit[],MATCH("Limit",Category_AverageStdDevLimit[#Headers],0),FALSE) -> 7.704088755 | Y91: =ProjectData[[#This Row],[Real Sum]]>ProjectData[[#This Row],[Category Limit]] -> FALSE | AA91: =OR(ProjectData[[#This Row],[Significant Project? (Financial Basis)]],ProjectData[[#This Row],[Non repeatable]]) -> FALSE | AB91: =AND(ProjectData[[#This Row],[SomeExpenditure >= 2011]],ProjectData[[#This Row],[Abnormal?]]) -> FALSE
A92: CP.02098 | B92: MPLS Wide Area Network Deployment - Stage 1 | C92: Other | G92: 0.03250325 | H92: 0.89106308 | I92: 4.40434373 | J92: 3.96234819 | K92: 1.73413001 | L92: =ProjectData[[#This Row],[Real Sum]]>0.00000001 -> TRUE | M92: =OR(ProjectData[[#This Row],[Real 11]]>0,ProjectData[[#This Row],[Real 12]]>0,ProjectData[[#This Row],[Real 13]]>0,ProjectData[[#This Row],[Real 14]]>0,ProjectData[[#This Row],[Real 15]]>0) -> TRUE | N92: =ProjectData[[#This Row],[Actuals 07/08]]*VLOOKUP("Mid Year Nominal - EOY Real (2015/16)",CPI[],MATCH(N$4,CPI[#Headers],0),FALSE) -> 0 | O92: =ProjectData[[#This Row],[Actuals 08/09]]*VLOOKUP("Mid Year Nominal - EOY Real (2015/16)",CPI[],MATCH(O$4,CPI[#Headers],0),FALSE) -> 0 | P92: =ProjectData[[#This Row],[Actuals 09/10]]*VLOOKUP("Mid Year Nominal - EOY Real (2015/16)",CPI[],MATCH(P$4,CPI[#Headers],0),FALSE) -> 0 | Q92: =ProjectData[[#This Row],[Actuals 10/11]]*VLOOKUP("Mid Year Nominal - EOY Real (2015/16)",CPI[],MATCH(Q$4,CPI[#Headers],0),FALSE) -> 0.03672918503 | R92: =ProjectData[[#This Row],[Actuals 11/12]]*VLOOKUP("Mid Year Nominal - EOY Real (2015/16)",CPI[],MATCH(R$4,CPI[#Headers],0),FALSE) -> 0.9829437905 | S92: =ProjectData[[#This Row],[Actuals 12/13]]*VLOOKUP("Mid Year Nominal - EOY Real (2015/16)",CPI[],MATCH(S$4,CPI[#Headers],0),FALSE) -> 4.7602331 | T92: =ProjectData[[#This Row],[Actuals 13/14]]*VLOOKUP("Mid Year Nominal - EOY Real (2015/16)",CPI[],MATCH(T$4,CPI[#Headers],0),FALSE) -> 4.16928986 | U92: =ProjectData[[#This Row],[Actuals 14/15]]*VLOOKUP("Mid Year Nominal - EOY Real (2015/16)",CPI[],MATCH(U$4,CPI[#Headers],0),FALSE) -> 1.786715722 | V92: =SUM(ProjectData[[#This Row],[Real 08]:[Real 15]]) -> 11.73591166 | W92: =(ProjectData[[#This Row],[Real Sum]]-VLOOKUP(ProjectData[[#This Row],[Category]],Category_AverageStdDevLimit[],MATCH("Average",Category_AverageStdDevLimit[#Headers],0),FALSE))^2 -> 106.1740348 | X92: =VLOOKUP(ProjectData[[#This Row],[Category]],Category_AverageStdDevLimit[],MATCH("Limit",Category_AverageStdDevLimit[#Headers],0),FALSE) -> 7.704088755 | Y92: =ProjectData[[#This Row],[Real Sum]]>ProjectData[[#This Row],[Category Limit]] -> TRUE | Z92: TRUE | AA92: =OR(ProjectData[[#This Row],[Significant Project? (Financial Basis)]],ProjectData[[#This Row],[Non repeatable]]) -> TRUE | AB92: =AND(ProjectData[[#This Row],[SomeExpenditure >= 2011]],ProjectData[[#This Row],[Abnormal?]]) -> TRUE
A93: CP.02102 | B93: 110/33kV System Spare Transformer | C93: Other | G93: 0.0007406 | H93: 1.69691009 | I93: 0.21312977 | J93: 0.000401 | K93: 0 | L93: =ProjectData[[#This Row],[Real Sum]]>0.00000001 -> TRUE | M93: =OR(ProjectData[[#This Row],[Real 11]]>0,ProjectData[[#This Row],[Real 12]]>0,ProjectData[[#This Row],[Real 13]]>0,ProjectData[[#This Row],[Real 14]]>0,ProjectData[[#This Row],[Real 15]]>0) -> TRUE | N93: =ProjectData[[#This Row],[Actuals 07/08]]*VLOOKUP("Mid Year Nominal - EOY Real (2015/16)",CPI[],MATCH(N$4,CPI[#Headers],0),FALSE) -> 0 | O93: =ProjectData[[#This Row],[Actuals 08/09]]*VLOOKUP("Mid Year Nominal - EOY Real (2015/16)",CPI[],MATCH(O$4,CPI[#Headers],0),FALSE) -> 0 | P93: =ProjectData[[#This Row],[Actuals 09/10]]*VLOOKUP("Mid Year Nominal - EOY Real (2015/16)",CPI[],MATCH(P$4,CPI[#Headers],0),FALSE) -> 0 | Q93: =ProjectData[[#This Row],[Actuals 10/11]]*VLOOKUP("Mid Year Nominal - EOY Real (2015/16)",CPI[],MATCH(Q$4,CPI[#Headers],0),FALSE) -> 0.0008368896781 | R93: =ProjectData[[#This Row],[Actuals 11/12]]*VLOOKUP("Mid Year Nominal - EOY Real (2015/16)",CPI[],MATCH(R$4,CPI[#Headers],0),FALSE) -> 1.871884576 | S93: =ProjectData[[#This Row],[Actuals 12/13]]*VLOOKUP("Mid Year Nominal - EOY Real (2015/16)",CPI[],MATCH(S$4,CPI[#Headers],0),FALSE) -> 0.2303515456 | T93: =ProjectData[[#This Row],[Actuals 13/14]]*VLOOKUP("Mid Year Nominal - EOY Real (2015/16)",CPI[],MATCH(T$4,CPI[#Headers],0),FALSE) -> 0.0004219430382 | U93: =ProjectData[[#This Row],[Actuals 14/15]]*VLOOKUP("Mid Year Nominal - EOY Real (2015/16)",CPI[],MATCH(U$4,CPI[#Headers],0),FALSE) -> 0 | V93: =SUM(ProjectData[[#This Row],[Real 08]:[Real 15]]) -> 2.103494955 | W93: =(ProjectData[[#This Row],[Real Sum]]-VLOOKUP(ProjectData[[#This Row],[Category]],Category_AverageStdDevLimit[],MATCH("Average",Category_AverageStdDevLimit[#Headers],0),FALSE))^2 -> 0.4511296362 | X93: =VLOOKUP(ProjectData[[#This Row],[Category]],Category_AverageStdDevLimit[],MATCH("Limit",Category_AverageStdDevLimit[#Headers],0),FALSE) -> 7.704088755 | Y93: =ProjectData[[#This Row],[Real Sum]]>ProjectData[[#This Row],[Category Limit]] -> FALSE | Z93: TRUE | AA93: =OR(ProjectData[[#This Row],[Significant Project? (Financial Basis)]],ProjectData[[#This Row],[Non repeatable]]) -> TRUE | AB93: =AND(ProjectData[[#This Row],[SomeExpenditure >= 2011]],ProjectData[[#This Row],[Abnormal?]]) -> TRUE
A94: CP.02103 | B94: Callide B Control Interface Replacement | C94: Replacement | G94: 0.24268336 | H94: 0.1350962 | I94: 0.07599794 | J94: 0 | K94: 0 | L94: =ProjectData[[#This Row],[Real Sum]]>0.00000001 -> TRUE | M94: =OR(ProjectData[[#This Row],[Real 11]]>0,ProjectData[[#This Row],[Real 12]]>0,ProjectData[[#This Row],[Real 13]]>0,ProjectData[[#This Row],[Real 14]]>0,ProjectData[[#This Row],[Real 15]]>0) -> TRUE | N94: =ProjectData[[#This Row],[Actuals 07/08]]*VLOOKUP("Mid Year Nominal - EOY Real (2015/16)",CPI[],MATCH(N$4,CPI[#Headers],0),FALSE) -> 0 | O94: =ProjectData[[#This Row],[Actuals 08/09]]*VLOOKUP("Mid Year Nominal - EOY Real (2015/16)",CPI[],MATCH(O$4,CPI[#Headers],0),FALSE) -> 0 | P94: =ProjectData[[#This Row],[Actuals 09/10]]*VLOOKUP("Mid Year Nominal - EOY Real (2015/16)",CPI[],MATCH(P$4,CPI[#Headers],0),FALSE) -> 0 | Q94: =ProjectData[[#This Row],[Actuals 10/11]]*VLOOKUP("Mid Year Nominal - EOY Real (2015/16)",CPI[],MATCH(Q$4,CPI[#Headers],0),FALSE) -> 0.2742360235 | R94: =ProjectData[[#This Row],[Actuals 11/12]]*VLOOKUP("Mid Year Nominal - EOY Real (2015/16)",CPI[],MATCH(R$4,CPI[#Headers],0),FALSE) -> 0.1490264538 | S94: =ProjectData[[#This Row],[Actuals 12/13]]*VLOOKUP("Mid Year Nominal - EOY Real (2015/16)",CPI[],MATCH(S$4,CPI[#Headers],0),FALSE) -> 0.08213889099 | T94: =ProjectData[[#This Row],[Actuals 13/14]]*VLOOKUP("Mid Year Nominal - EOY Real (2015/16)",CPI[],MATCH(T$4,CPI[#Headers],0),FALSE) -> 0 | U94: =ProjectData[[#This Row],[Actuals 14/15]]*VLOOKUP("Mid Year Nominal - EOY Real (2015/16)",CPI[],MATCH(U$4,CPI[#Headers],0),FALSE) -> 0 | V94: =SUM(ProjectData[[#This Row],[Real 08]:[Real 15]]) -> 0.5054013683 | W94: =(ProjectData[[#This Row],[Real Sum]]-VLOOKUP(ProjectData[[#This Row],[Category]],Category_AverageStdDevLimit[],MATCH("Average",Category_AverageStdDevLimit[#Headers],0),FALSE))^2 -> 0.02574870505 | X94: =VLOOKUP(ProjectData[[#This Row],[Category]],Category_AverageStdDevLimit[],MATCH("Limit",Category_AverageStdDevLimit[#Headers],0),FALSE) -> 2.96351611 | Y94: =ProjectData[[#This Row],[Real Sum]]>ProjectData[[#This Row],[Category Limit]] -> FALSE | AA94: =OR(ProjectData[[#This Row],[Significant Project? (Financial Basis)]],ProjectData[[#This Row],[Non repeatable]]) -> FALSE | AB94: =AND(ProjectData[[#This Row],[SomeExpenditure >= 2011]],ProjectData[[#This Row],[Abnormal?]]) -> FALSE
A95: CP.02110 | B95: Chinchilla and Columboola 132kV Metering | C95: Security / Compliance | H95: 0.02379222 | I95: 0.54265322 | J95: 1.78897628 | K95: 0.53731808 | L95: =ProjectData[[#This Row],[Real Sum]]>0.00000001 -> TRUE | M95: =OR(ProjectData[[#This Row],[Real 11]]>0,ProjectData[[#This Row],[Real 12]]>0,ProjectData[[#This Row],[Real 13]]>0,ProjectData[[#This Row],[Real 14]]>0,ProjectData[[#This Row],[Real 15]]>0) -> TRUE | N95: =ProjectData[[#This Row],[Actuals 07/08]]*VLOOKUP("Mid Year Nominal - EOY Real (2015/16)",CPI[],MATCH(N$4,CPI[#Headers],0),FALSE) -> 0 | O95: =ProjectData[[#This Row],[Actuals 08/09]]*VLOOKUP("Mid Year Nominal - EOY Real (2015/16)",CPI[],MATCH(O$4,CPI[#Headers],0),FALSE) -> 0 | P95: =ProjectData[[#This Row],[Actuals 09/10]]*VLOOKUP("Mid Year Nominal - EOY Real (2015/16)",CPI[],MATCH(P$4,CPI[#Headers],0),FALSE) -> 0 | Q95: =ProjectData[[#This Row],[Actuals 10/11]]*VLOOKUP("Mid Year Nominal - EOY Real (2015/16)",CPI[],MATCH(Q$4,CPI[#Headers],0),FALSE) -> 0 | R95: =ProjectData[[#This Row],[Actuals 11/12]]*VLOOKUP("Mid Year Nominal - EOY Real (2015/16)",CPI[],MATCH(R$4,CPI[#Headers],0),FALSE) -> 0.02624552115 | S95: =ProjectData[[#This Row],[Actuals 12/13]]*VLOOKUP("Mid Year Nominal - EOY Real (2015/16)",CPI[],MATCH(S$4,CPI[#Headers],0),FALSE) -> 0.5865018668 | T95: =ProjectData[[#This Row],[Actuals 13/14]]*VLOOKUP("Mid Year Nominal - EOY Real (2015/16)",CPI[],MATCH(T$4,CPI[#Headers],0),FALSE) -> 1.882409194 | U95: =ProjectData[[#This Row],[Actuals 14/15]]*VLOOKUP("Mid Year Nominal - EOY Real (2015/16)",CPI[],MATCH(U$4,CPI[#Headers],0),FALSE) -> 0.5536116992 | V95: =SUM(ProjectData[[#This Row],[Real 08]:[Real 15]]) -> 3.048768281 | W95: =(ProjectData[[#This Row],[Real Sum]]-VLOOKUP(ProjectData[[#This Row],[Category]],Category_AverageStdDevLimit[],MATCH("Average",Category_AverageStdDevLimit[#Headers],0),FALSE))^2 -> 0.2955615456 | X95: =VLOOKUP(ProjectData[[#This Row],[Category]],Category_AverageStdDevLimit[],MATCH("Limit",Category_AverageStdDevLimit[#Headers],0),FALSE) -> 10.86958417 | Y95: =ProjectData[[#This Row],[Real Sum]]>ProjectData[[#This Row],[Category Limit]] -> FALSE | AA95: =OR(ProjectData[[#This Row],[Significant Project? (Financial Basis)]],ProjectData[[#This Row],[Non repeatable]]) -> FALSE | AB95: =AND(ProjectData[[#This Row],[SomeExpenditure >= 2011]],ProjectData[[#This Row],[Abnormal?]]) -> FALSE
A96: CP.02112 | B96: North Qld 132/33kV No.1 System Spare Transformer | C96: Other | G96: 0.0098493 | H96: 0.03087076 | I96: 1.99014861 | J96: -0.000983 | K96: 0 | L96: =ProjectData[[#This Row],[Real Sum]]>0.00000001 -> TRUE | M96: =OR(ProjectData[[#This Row],[Real 11]]>0,ProjectData[[#This Row],[Real 12]]>0,ProjectData[[#This Row],[Real 13]]>0,ProjectData[[#This Row],[Real 14]]>0,ProjectData[[#This Row],[Real 15]]>0) -> TRUE | N96: =ProjectData[[#This Row],[Actuals 07/08]]*VLOOKUP("Mid Year Nominal - EOY Real (2015/16)",CPI[],MATCH(N$4,CPI[#Headers],0),FALSE) -> 0 | O96: =ProjectData[[#This Row],[Actuals 08/09]]*VLOOKUP("Mid Year Nominal - EOY Real (2015/16)",CPI[],MATCH(O$4,CPI[#Headers],0),FALSE) -> 0 | P96: =ProjectData[[#This Row],[Actuals 09/10]]*VLOOKUP("Mid Year Nominal - EOY Real (2015/16)",CPI[],MATCH(P$4,CPI[#Headers],0),FALSE) -> 0 | Q96: =ProjectData[[#This Row],[Actuals 10/11]]*VLOOKUP("Mid Year Nominal - EOY Real (2015/16)",CPI[],MATCH(Q$4,CPI[#Headers],0),FALSE) -> 0.01112986431 | R96: =ProjectData[[#This Row],[Actuals 11/12]]*VLOOKUP("Mid Year Nominal - EOY Real (2015/16)",CPI[],MATCH(R$4,CPI[#Headers],0),FALSE) -> 0.0340539548 | S96: =ProjectData[[#This Row],[Actuals 12/13]]*VLOOKUP("Mid Year Nominal - EOY Real (2015/16)",CPI[],MATCH(S$4,CPI[#Headers],0),FALSE) -> 2.15096093 | T96: =ProjectData[[#This Row],[Actuals 13/14]]*VLOOKUP("Mid Year Nominal - EOY Real (2015/16)",CPI[],MATCH(T$4,CPI[#Headers],0),FALSE) -> -0.001034339169 | U96: =ProjectData[[#This Row],[Actuals 14/15]]*VLOOKUP("Mid Year Nominal - EOY Real (2015/16)",CPI[],MATCH(U$4,CPI[#Headers],0),FALSE) -> 0 | V96: =SUM(ProjectData[[#This Row],[Real 08]:[Real 15]]) -> 2.19511041 | W96: =(ProjectData[[#This Row],[Real Sum]]-VLOOKUP(ProjectData[[#This Row],[Category]],Category_AverageStdDevLimit[],MATCH("Average",Category_AverageStdDevLimit[#Headers],0),FALSE))^2 -> 0.5825922403 | X96: =VLOOKUP(ProjectData[[#This Row],[Category]],Category_AverageStdDevLimit[],MATCH("Limit",Category_AverageStdDevLimit[#Headers],0),FALSE) -> 7.704088755 | Y96: =ProjectData[[#This Row],[Real Sum]]>ProjectData[[#This Row],[Category Limit]] -> FALSE | Z96: TRUE | AA96: =OR(ProjectData[[#This Row],[Significant Project? (Financial Basis)]],ProjectData[[#This Row],[Non repeatable]]) -> TRUE | AB96: =AND(ProjectData[[#This Row],[SomeExpenditure >= 2011]],ProjectData[[#This Row],[Abnormal?]]) -> TRUE
A97: CP.02132 | B97: Alarm Grouping in the EMS | C97: Other | H97: 0.07829263 | I97: 0.09292988 | J97: 0 | K97: 0 | L97: =ProjectData[[#This Row],[Real Sum]]>0.00000001 -> TRUE | M97: =OR(ProjectData[[#This Row],[Real 11]]>0,ProjectData[[#This Row],[Real 12]]>0,ProjectData[[#This Row],[Real 13]]>0,ProjectData[[#This Row],[Real 14]]>0,ProjectData[[#This Row],[Real 15]]>0) -> TRUE | N97: =ProjectData[[#This Row],[Actuals 07/08]]*VLOOKUP("Mid Year Nominal - EOY Real (2015/16)",CPI[],MATCH(N$4,CPI[#Headers],0),FALSE) -> 0 | O97: =ProjectData[[#This Row],[Actuals 08/09]]*VLOOKUP("Mid Year Nominal - EOY Real (2015/16)",CPI[],MATCH(O$4,CPI[#Headers],0),FALSE) -> 0 | P97: =ProjectData[[#This Row],[Actuals 09/10]]*VLOOKUP("Mid Year Nominal - EOY Real (2015/16)",CPI[],MATCH(P$4,CPI[#Headers],0),FALSE) -> 0 | Q97: =ProjectData[[#This Row],[Actuals 10/11]]*VLOOKUP("Mid Year Nominal - EOY Real (2015/16)",CPI[],MATCH(Q$4,CPI[#Headers],0),FALSE) -> 0 | R97: =ProjectData[[#This Row],[Actuals 11/12]]*VLOOKUP("Mid Year Nominal - EOY Real (2015/16)",CPI[],MATCH(R$4,CPI[#Headers],0),FALSE) -> 0.08636566392 | S97: =ProjectData[[#This Row],[Actuals 12/13]]*VLOOKUP("Mid Year Nominal - EOY Real (2015/16)",CPI[],MATCH(S$4,CPI[#Headers],0),FALSE) -> 0.1004390025 | T97: =ProjectData[[#This Row],[Actuals 13/14]]*VLOOKUP("Mid Year Nominal - EOY Real (2015/16)",CPI[],MATCH(T$4,CPI[#Headers],0),FALSE) -> 0 | U97: =ProjectData[[#This Row],[Actuals 14/15]]*VLOOKUP("Mid Year Nominal - EOY Real (2015/16)",CPI[],MATCH(U$4,CPI[#Headers],0),FALSE) -> 0 | V97: =SUM(ProjectData[[#This Row],[Real 08]:[Real 15]]) -> 0.1868046664 | W97: =(ProjectData[[#This Row],[Real Sum]]-VLOOKUP(ProjectData[[#This Row],[Category]],Category_AverageStdDevLimit[],MATCH("Average",Category_AverageStdDevLimit[#Headers],0),FALSE))^2 -> 1.55009582 | X97: =VLOOKUP(ProjectData[[#This Row],[Category]],Category_AverageStdDevLimit[],MATCH("Limit",Category_AverageStdDevLimit[#Headers],0),FALSE) -> 7.704088755 | Y97: =ProjectData[[#This Row],[Real Sum]]>ProjectData[[#This Row],[Category Limit]] -> FALSE | AA97: =OR(ProjectData[[#This Row],[Significant Project? (Financial Basis)]],ProjectData[[#This Row],[Non repeatable]]) -> FALSE | AB97: =AND(ProjectData[[#This Row],[SomeExpenditure >= 2011]],ProjectData[[#This Row],[Abnormal?]]) -> FALSE
A98: CP.02134 | B98: DWDM Redundancy - Central | C98: Other | H98: 0.02797882 | I98: 0.07225719 | J98: 0.01764216 | K98: 0 | L98: =ProjectData[[#This Row],[Real Sum]]>0.00000001 -> TRUE | M98: =OR(ProjectData[[#This Row],[Real 11]]>0,ProjectData[[#This Row],[Real 12]]>0,ProjectData[[#This Row],[Real 13]]>0,ProjectData[[#This Row],[Real 14]]>0,ProjectData[[#This Row],[Real 15]]>0) -> TRUE | N98: =ProjectData[[#This Row],[Actuals 07/08]]*VLOOKUP("Mid Year Nominal - EOY Real (2015/16)",CPI[],MATCH(N$4,CPI[#Headers],0),FALSE) -> 0 | O98: =ProjectData[[#This Row],[Actuals 08/09]]*VLOOKUP("Mid Year Nominal - EOY Real (2015/16)",CPI[],MATCH(O$4,CPI[#Headers],0),FALSE) -> 0 | P98: =ProjectData[[#This Row],[Actuals 09/10]]*VLOOKUP("Mid Year Nominal - EOY Real (2015/16)",CPI[],MATCH(P$4,CPI[#Headers],0),FALSE) -> 0 | Q98: =ProjectData[[#This Row],[Actuals 10/11]]*VLOOKUP("Mid Year Nominal - EOY Real (2015/16)",CPI[],MATCH(Q$4,CPI[#Headers],0),FALSE) -> 0 | R98: =ProjectData[[#This Row],[Actuals 11/12]]*VLOOKUP("Mid Year Nominal - EOY Real (2015/16)",CPI[],MATCH(R$4,CPI[#Headers],0),FALSE) -> 0.03086381649 | S98: =ProjectData[[#This Row],[Actuals 12/13]]*VLOOKUP("Mid Year Nominal - EOY Real (2015/16)",CPI[],MATCH(S$4,CPI[#Headers],0),FALSE) -> 0.07809587277 | T98: =ProjectData[[#This Row],[Actuals 13/14]]*VLOOKUP("Mid Year Nominal - EOY Real (2015/16)",CPI[],MATCH(T$4,CPI[#Headers],0),FALSE) -> 0.01856355758 | U98: =ProjectData[[#This Row],[Actuals 14/15]]*VLOOKUP("Mid Year Nominal - EOY Real (2015/16)",CPI[],MATCH(U$4,CPI[#Headers],0),FALSE) -> 0 | V98: =SUM(ProjectData[[#This Row],[Real 08]:[Real 15]]) -> 0.1275232468 | W98: =(ProjectData[[#This Row],[Real Sum]]-VLOOKUP(ProjectData[[#This Row],[Category]],Category_AverageStdDevLimit[],MATCH("Average",Category_AverageStdDevLimit[#Headers],0),FALSE))^2 -> 1.701224214 | X98: =VLOOKUP(ProjectData[[#This Row],[Category]],Category_AverageStdDevLimit[],MATCH("Limit",Category_AverageStdDevLimit[#Headers],0),FALSE) -> 7.704088755 | Y98: =ProjectData[[#This Row],[Real Sum]]>ProjectData[[#This Row],[Category Limit]] -> FALSE | AA98: =OR(ProjectData[[#This Row],[Significant Project? (Financial Basis)]],ProjectData[[#This Row],[Non repeatable]]) -> FALSE | AB98: =AND(ProjectData[[#This Row],[SomeExpenditure >= 2011]],ProjectData[[#This Row],[Abnormal?]]) -> FALSE
A99: CP.02135 | B99: Operations Support System for Telecoms | C99: Replacement | H99: 0.24637267 | I99: 1.43725334 | J99: 3.88739775 | K99: 0.01603507 | L99: =ProjectData[[#This Row],[Real Sum]]>0.00000001 -> TRUE | M99: =OR(ProjectData[[#This Row],[Real 11]]>0,ProjectData[[#This Row],[Real 12]]>0,ProjectData[[#This Row],[Real 13]]>0,ProjectData[[#This Row],[Real 14]]>0,ProjectData[[#This Row],[Real 15]]>0) -> TRUE | N99: =ProjectData[[#This Row],[Actuals 07/08]]*VLOOKUP("Mid Year Nominal - EOY Real (2015/16)",CPI[],MATCH(N$4,CPI[#Headers],0),FALSE) -> 0 | O99: =ProjectData[[#This Row],[Actuals 08/09]]*VLOOKUP("Mid Year Nominal - EOY Real (2015/16)",CPI[],MATCH(O$4,CPI[#Headers],0),FALSE) -> 0 | P99: =ProjectData[[#This Row],[Actuals 09/10]]*VLOOKUP("Mid Year Nominal - EOY Real (2015/16)",CPI[],MATCH(P$4,CPI[#Headers],0),FALSE) -> 0 | Q99: =ProjectData[[#This Row],[Actuals 10/11]]*VLOOKUP("Mid Year Nominal - EOY Real (2015/16)",CPI[],MATCH(Q$4,CPI[#Headers],0),FALSE) -> 0 | R99: =ProjectData[[#This Row],[Actuals 11/12]]*VLOOKUP("Mid Year Nominal - EOY Real (2015/16)",CPI[],MATCH(R$4,CPI[#Headers],0),FALSE) -> 0.2717770398 | S99: =ProjectData[[#This Row],[Actuals 12/13]]*VLOOKUP("Mid Year Nominal - EOY Real (2015/16)",CPI[],MATCH(S$4,CPI[#Headers],0),FALSE) -> 1.553389413 | T99: =ProjectData[[#This Row],[Actuals 13/14]]*VLOOKUP("Mid Year Nominal - EOY Real (2015/16)",CPI[],MATCH(T$4,CPI[#Headers],0),FALSE) -> 4.090424981 | U99: =ProjectData[[#This Row],[Actuals 14/15]]*VLOOKUP("Mid Year Nominal - EOY Real (2015/16)",CPI[],MATCH(U$4,CPI[#Headers],0),FALSE) -> 0.01652131704 | V99: =SUM(ProjectData[[#This Row],[Real 08]:[Real 15]]) -> 5.932112751 | W99: =(ProjectData[[#This Row],[Real Sum]]-VLOOKUP(ProjectData[[#This Row],[Category]],Category_AverageStdDevLimit[],MATCH("Average",Category_AverageStdDevLimit[#Headers],0),FALSE))^2 -> 27.73336118 | X99: =VLOOKUP(ProjectData[[#This Row],[Category]],Category_AverageStdDevLimit[],MATCH("Limit",Category_AverageStdDevLimit[#Headers],0),FALSE) -> 2.96351611 | Y99: =ProjectData[[#This Row],[Real Sum]]>ProjectData[[#This Row],[Category Limit]] -> TRUE | AA99: =OR(ProjectData[[#This Row],[Significant Project? (Financial Basis)]],ProjectData[[#This Row],[Non repeatable]]) -> TRUE | AB99: =AND(ProjectData[[#This Row],[SomeExpenditure >= 2011]],ProjectData[[#This Row],[Abnormal?]]) -> TRUE
A100: CP.02172 | B100: OpsWAN Security Device Replacement (2013 | C100: Replacement | H100: 0.00396565 | I100: 0.55195962 | J100: -0.001152 | K100: 0 | L100: =ProjectData[[#This Row],[Real Sum]]>0.00000001 -> TRUE | M100: =OR(ProjectData[[#This Row],[Real 11]]>0,ProjectData[[#This Row],[Real 12]]>0,ProjectData[[#This Row],[Real 13]]>0,ProjectData[[#This Row],[Real 14]]>0,ProjectData[[#This Row],[Real 15]]>0) -> TRUE | N100: =ProjectData[[#This Row],[Actuals 07/08]]*VLOOKUP("Mid Year Nominal - EOY Real (2015/16)",CPI[],MATCH(N$4,CPI[#Headers],0),FALSE) -> 0 | O100: =ProjectData[[#This Row],[Actuals 08/09]]*VLOOKUP("Mid Year Nominal - EOY Real (2015/16)",CPI[],MATCH(O$4,CPI[#Headers],0),FALSE) -> 0 | P100: =ProjectData[[#This Row],[Actuals 09/10]]*VLOOKUP("Mid Year Nominal - EOY Real (2015/16)",CPI[],MATCH(P$4,CPI[#Headers],0),FALSE) -> 0 | Q100: =ProjectData[[#This Row],[Actuals 10/11]]*VLOOKUP("Mid Year Nominal - EOY Real (2015/16)",CPI[],MATCH(Q$4,CPI[#Headers],0),FALSE) -> 0 | R100: =ProjectData[[#This Row],[Actuals 11/12]]*VLOOKUP("Mid Year Nominal - EOY Real (2015/16)",CPI[],MATCH(R$4,CPI[#Headers],0),FALSE) -> 0.004374562396 | S100: =ProjectData[[#This Row],[Actuals 12/13]]*VLOOKUP("Mid Year Nominal - EOY Real (2015/16)",CPI[],MATCH(S$4,CPI[#Headers],0),FALSE) -> 0.5965602628 | T100: =ProjectData[[#This Row],[Actuals 13/14]]*VLOOKUP("Mid Year Nominal - EOY Real (2015/16)",CPI[],MATCH(T$4,CPI[#Headers],0),FALSE) -> -0.001212165536 | U100: =ProjectData[[#This Row],[Actuals 14/15]]*VLOOKUP("Mid Year Nominal - EOY Real (2015/16)",CPI[],MATCH(U$4,CPI[#Headers],0),FALSE) -> 0 | V100: =SUM(ProjectData[[#This Row],[Real 08]:[Real 15]]) -> 0.5997226597 | W100: =(ProjectData[[#This Row],[Real Sum]]-VLOOKUP(ProjectData[[#This Row],[Category]],Category_AverageStdDevLimit[],MATCH("Average",Category_AverageStdDevLimit[#Headers],0),FALSE))^2 -> 0.004374861926 | X100: =VLOOKUP(ProjectData[[#This Row],[Category]],Category_AverageStdDevLimit[],MATCH("Limit",Category_AverageStdDevLimit[#Headers],0),FALSE) -> 2.96351611 | Y100: =ProjectData[[#This Row],[Real Sum]]>ProjectData[[#This Row],[Category Limit]] -> FALSE | AA100: =OR(ProjectData[[#This Row],[Significant Project? (Financial Basis)]],ProjectData[[#This Row],[Non repeatable]]) -> FALSE | AB100: =AND(ProjectData[[#This Row],[SomeExpenditure >= 2011]],ProjectData[[#This Row],[Abnormal?]]) -> FALSE
A101: CP.02176 | B101: DWDM/SDH Regional Powered Spares | C101: Other | H101: 0.00265235 | I101: 0.00602315 | J101: 0 | K101: -0.0086755 | L101: =ProjectData[[#This Row],[Real Sum]]>0.00000001 -> TRUE | M101: =OR(ProjectData[[#This Row],[Real 11]]>0,ProjectData[[#This Row],[Real 12]]>0,ProjectData[[#This Row],[Real 13]]>0,ProjectData[[#This Row],[Real 14]]>0,ProjectData[[#This Row],[Real 15]]>0) -> TRUE | N101: =ProjectData[[#This Row],[Actuals 07/08]]*VLOOKUP("Mid Year Nominal - EOY Real (2015/16)",CPI[],MATCH(N$4,CPI[#Headers],0),FALSE) -> 0 | O101: =ProjectData[[#This Row],[Actuals 08/09]]*VLOOKUP("Mid Year Nominal - EOY Real (2015/16)",CPI[],MATCH(O$4,CPI[#Headers],0),FALSE) -> 0 | P101: =ProjectData[[#This Row],[Actuals 09/10]]*VLOOKUP("Mid Year Nominal - EOY Real (2015/16)",CPI[],MATCH(P$4,CPI[#Headers],0),FALSE) -> 0 | Q101: =ProjectData[[#This Row],[Actuals 10/11]]*VLOOKUP("Mid Year Nominal - EOY Real (2015/16)",CPI[],MATCH(Q$4,CPI[#Headers],0),FALSE) -> 0 | R101: =ProjectData[[#This Row],[Actuals 11/12]]*VLOOKUP("Mid Year Nominal - EOY Real (2015/16)",CPI[],MATCH(R$4,CPI[#Headers],0),FALSE) -> 0.002925843323 | S101: =ProjectData[[#This Row],[Actuals 12/13]]*VLOOKUP("Mid Year Nominal - EOY Real (2015/16)",CPI[],MATCH(S$4,CPI[#Headers],0),FALSE) -> 0.006509845678 | T101: =ProjectData[[#This Row],[Actuals 13/14]]*VLOOKUP("Mid Year Nominal - EOY Real (2015/16)",CPI[],MATCH(T$4,CPI[#Headers],0),FALSE) -> 0 | U101: =ProjectData[[#This Row],[Actuals 14/15]]*VLOOKUP("Mid Year Nominal - EOY Real (2015/16)",CPI[],MATCH(U$4,CPI[#Headers],0),FALSE) -> -0.008938575632 | V101: =SUM(ProjectData[[#This Row],[Real 08]:[Real 15]]) -> 0.000497113369 | W101: =(ProjectData[[#This Row],[Real Sum]]-VLOOKUP(ProjectData[[#This Row],[Category]],Category_AverageStdDevLimit[],MATCH("Average",Category_AverageStdDevLimit[#Headers],0),FALSE))^2 -> 2.04872273 | X101: =VLOOKUP(ProjectData[[#This Row],[Category]],Category_AverageStdDevLimit[],MATCH("Limit",Category_AverageStdDevLimit[#Headers],0),FALSE) -> 7.704088755 | Y101: =ProjectData[[#This Row],[Real Sum]]>ProjectData[[#This Row],[Category Limit]] -> FALSE | AA101: =OR(ProjectData[[#This Row],[Significant Project? (Financial Basis)]],ProjectData[[#This Row],[Non repeatable]]) -> FALSE | AB101: =AND(ProjectData[[#This Row],[SomeExpenditure >= 2011]],ProjectData[[#This Row],[Abnormal?]]) -> FALSE
A102: CP.02177 | B102: Energex ICCP Rationalisation | C102: Other | H102: 0.01825049 | I102: 0.32197042 | J102: 0.0313 | K102: 0.02392 | L102: =ProjectData[[#This Row],[Real Sum]]>0.00000001 -> TRUE | M102: =OR(ProjectData[[#This Row],[Real 11]]>0,ProjectData[[#This Row],[Real 12]]>0,ProjectData[[#This Row],[Real 13]]>0,ProjectData[[#This Row],[Real 14]]>0,ProjectData[[#This Row],[Real 15]]>0) -> TRUE | N102: =ProjectData[[#This Row],[Actuals 07/08]]*VLOOKUP("Mid Year Nominal - EOY Real (2015/16)",CPI[],MATCH(N$4,CPI[#Headers],0),FALSE) -> 0 | O102: =ProjectData[[#This Row],[Actuals 08/09]]*VLOOKUP("Mid Year Nominal - EOY Real (2015/16)",CPI[],MATCH(O$4,CPI[#Headers],0),FALSE) -> 0 | P102: =ProjectData[[#This Row],[Actuals 09/10]]*VLOOKUP("Mid Year Nominal - EOY Real (2015/16)",CPI[],MATCH(P$4,CPI[#Headers],0),FALSE) -> 0 | Q102: =ProjectData[[#This Row],[Actuals 10/11]]*VLOOKUP("Mid Year Nominal - EOY Real (2015/16)",CPI[],MATCH(Q$4,CPI[#Headers],0),FALSE) -> 0 | R102: =ProjectData[[#This Row],[Actuals 11/12]]*VLOOKUP("Mid Year Nominal - EOY Real (2015/16)",CPI[],MATCH(R$4,CPI[#Headers],0),FALSE) -> 0.02013236349 | S102: =ProjectData[[#This Row],[Actuals 12/13]]*VLOOKUP("Mid Year Nominal - EOY Real (2015/16)",CPI[],MATCH(S$4,CPI[#Headers],0),FALSE) -> 0.3479869748 | T102: =ProjectData[[#This Row],[Actuals 13/14]]*VLOOKUP("Mid Year Nominal - EOY Real (2015/16)",CPI[],MATCH(T$4,CPI[#Headers],0),FALSE) -> 0.03293470598 | U102: =ProjectData[[#This Row],[Actuals 14/15]]*VLOOKUP("Mid Year Nominal - EOY Real (2015/16)",CPI[],MATCH(U$4,CPI[#Headers],0),FALSE) -> 0.02464534945 | V102: =SUM(ProjectData[[#This Row],[Real 08]:[Real 15]]) -> 0.4256993937 | W102: =(ProjectData[[#This Row],[Real Sum]]-VLOOKUP(ProjectData[[#This Row],[Category]],Category_AverageStdDevLimit[],MATCH("Average",Category_AverageStdDevLimit[#Headers],0),FALSE))^2 -> 1.012305051 | X102: =VLOOKUP(ProjectData[[#This Row],[Category]],Category_AverageStdDevLimit[],MATCH("Limit",Category_AverageStdDevLimit[#Headers],0),FALSE) -> 7.704088755 | Y102: =ProjectData[[#This Row],[Real Sum]]>ProjectData[[#This Row],[Category Limit]] -> FALSE | AA102: =OR(ProjectData[[#This Row],[Significant Project? (Financial Basis)]],ProjectData[[#This Row],[Non repeatable]]) -> FALSE | AB102: =AND(ProjectData[[#This Row],[SomeExpenditure >= 2011]],ProjectData[[#This Row],[Abnormal?]]) -> FALSE
A103: CP.02180 | B103: OpsWAN Network Monitoring Enhancement | C103: Replacement | H103: 0.00122445 | I103: 0.03087983 | J103: 0 | K103: 0 | L103: =ProjectData[[#This Row],[Real Sum]]>0.00000001 -> TRUE | M103: =OR(ProjectData[[#This Row],[Real 11]]>0,ProjectData[[#This Row],[Real 12]]>0,ProjectData[[#This Row],[Real 13]]>0,ProjectData[[#This Row],[Real 14]]>0,ProjectData[[#This Row],[Real 15]]>0) -> TRUE | N103: =ProjectData[[#This Row],[Actuals 07/08]]*VLOOKUP("Mid Year Nominal - EOY Real (2015/16)",CPI[],MATCH(N$4,CPI[#Headers],0),FALSE) -> 0 | O103: =ProjectData[[#This Row],[Actuals 08/09]]*VLOOKUP("Mid Year Nominal - EOY Real (2015/16)",CPI[],MATCH(O$4,CPI[#Headers],0),FALSE) -> 0 | P103: =ProjectData[[#This Row],[Actuals 09/10]]*VLOOKUP("Mid Year Nominal - EOY Real (2015/16)",CPI[],MATCH(P$4,CPI[#Headers],0),FALSE) -> 0 | Q103: =ProjectData[[#This Row],[Actuals 10/11]]*VLOOKUP("Mid Year Nominal - EOY Real (2015/16)",CPI[],MATCH(Q$4,CPI[#Headers],0),FALSE) -> 0 | R103: =ProjectData[[#This Row],[Actuals 11/12]]*VLOOKUP("Mid Year Nominal - EOY Real (2015/16)",CPI[],MATCH(R$4,CPI[#Headers],0),FALSE) -> 0.001350707432 | S103: =ProjectData[[#This Row],[Actuals 12/13]]*VLOOKUP("Mid Year Nominal - EOY Real (2015/16)",CPI[],MATCH(S$4,CPI[#Headers],0),FALSE) -> 0.03337504925 | T103: =ProjectData[[#This Row],[Actuals 13/14]]*VLOOKUP("Mid Year Nominal - EOY Real (2015/16)",CPI[],MATCH(T$4,CPI[#Headers],0),FALSE) -> 0 | U103: =ProjectData[[#This Row],[Actuals 14/15]]*VLOOKUP("Mid Year Nominal - EOY Real (2015/16)",CPI[],MATCH(U$4,CPI[#Headers],0),FALSE) -> 0 | V103: =SUM(ProjectData[[#This Row],[Real 08]:[Real 15]]) -> 0.03472575668 | W103: =(ProjectData[[#This Row],[Real Sum]]-VLOOKUP(ProjectData[[#This Row],[Category]],Category_AverageStdDevLimit[],MATCH("Average",Category_AverageStdDevLimit[#Headers],0),FALSE))^2 -> 0.3983372477 | X103: =VLOOKUP(ProjectData[[#This Row],[Category]],Category_AverageStdDevLimit[],MATCH("Limit",Category_AverageStdDevLimit[#Headers],0),FALSE) -> 2.96351611 | Y103: =ProjectData[[#This Row],[Real Sum]]>ProjectData[[#This Row],[Category Limit]] -> FALSE | AA103: =OR(ProjectData[[#This Row],[Significant Project? (Financial Basis)]],ProjectData[[#This Row],[Non repeatable]]) -> FALSE | AB103: =AND(ProjectData[[#This Row],[SomeExpenditure >= 2011]],ProjectData[[#This Row],[Abnormal?]]) -> FALSE
A104: CP.02181 | B104: OpsWAN Storage Replacement | C104: Replacement | H104: 0.02299587 | I104: 0.01712559 | J104: -0.04012146 | K104: 0 | L104: =ProjectData[[#This Row],[Real Sum]]>0.00000001 -> TRUE | M104: =OR(ProjectData[[#This Row],[Real 11]]>0,ProjectData[[#This Row],[Real 12]]>0,ProjectData[[#This Row],[Real 13]]>0,ProjectData[[#This Row],[Real 14]]>0,ProjectData[[#This Row],[Real 15]]>0) -> TRUE | N104: =ProjectData[[#This Row],[Actuals 07/08]]*VLOOKUP("Mid Year Nominal - EOY Real (2015/16)",CPI[],MATCH(N$4,CPI[#Headers],0),FALSE) -> 0 | O104: =ProjectData[[#This Row],[Actuals 08/09]]*VLOOKUP("Mid Year Nominal - EOY Real (2015/16)",CPI[],MATCH(O$4,CPI[#Headers],0),FALSE) -> 0 | P104: =ProjectData[[#This Row],[Actuals 09/10]]*VLOOKUP("Mid Year Nominal - EOY Real (2015/16)",CPI[],MATCH(P$4,CPI[#Headers],0),FALSE) -> 0 | Q104: =ProjectData[[#This Row],[Actuals 10/11]]*VLOOKUP("Mid Year Nominal - EOY Real (2015/16)",CPI[],MATCH(Q$4,CPI[#Headers],0),FALSE) -> 0 | R104: =ProjectData[[#This Row],[Actuals 11/12]]*VLOOKUP("Mid Year Nominal - EOY Real (2015/16)",CPI[],MATCH(R$4,CPI[#Headers],0),FALSE) -> 0.02536705664 | S104: =ProjectData[[#This Row],[Actuals 12/13]]*VLOOKUP("Mid Year Nominal - EOY Real (2015/16)",CPI[],MATCH(S$4,CPI[#Headers],0),FALSE) -> 0.0185094092 | T104: =ProjectData[[#This Row],[Actuals 13/14]]*VLOOKUP("Mid Year Nominal - EOY Real (2015/16)",CPI[],MATCH(T$4,CPI[#Headers],0),FALSE) -> -0.04221688461 | U104: =ProjectData[[#This Row],[Actuals 14/15]]*VLOOKUP("Mid Year Nominal - EOY Real (2015/16)",CPI[],MATCH(U$4,CPI[#Headers],0),FALSE) -> 0 | V104: =SUM(ProjectData[[#This Row],[Real 08]:[Real 15]]) -> 0.001659581233 | W104: =(ProjectData[[#This Row],[Real Sum]]-VLOOKUP(ProjectData[[#This Row],[Category]],Category_AverageStdDevLimit[],MATCH("Average",Category_AverageStdDevLimit[#Headers],0),FALSE))^2 -> 0.4411693679 | X104: =VLOOKUP(ProjectData[[#This Row],[Category]],Category_AverageStdDevLimit[],MATCH("Limit",Category_AverageStdDevLimit[#Headers],0),FALSE) -> 2.96351611 | Y104: =ProjectData[[#This Row],[Real Sum]]>ProjectData[[#This Row],[Category Limit]] -> FALSE | AA104: =OR(ProjectData[[#This Row],[Significant Project? (Financial Basis)]],ProjectData[[#This Row],[Non repeatable]]) -> FALSE | AB104: =AND(ProjectData[[#This Row],[SomeExpenditure >= 2011]],ProjectData[[#This Row],[Abnormal?]]) -> FALSE
A105: CP.02182 | B105: Columboola OpsWAN Lite Establishment | C105: Replacement | H105: 0.0467824 | I105: 0.11267778 | J105: 0.00868463 | K105: 0.0065083 | L105: =ProjectData[[#This Row],[Real Sum]]>0.00000001 -> TRUE | M105: =OR(ProjectData[[#This Row],[Real 11]]>0,ProjectData[[#This Row],[Real 12]]>0,ProjectData[[#This Row],[Real 13]]>0,ProjectData[[#This Row],[Real 14]]>0,ProjectData[[#This Row],[Real 15]]>0) -> TRUE | N105: =ProjectData[[#This Row],[Actuals 07/08]]*VLOOKUP("Mid Year Nominal - EOY Real (2015/16)",CPI[],MATCH(N$4,CPI[#Headers],0),FALSE) -> 0 | O105: =ProjectData[[#This Row],[Actuals 08/09]]*VLOOKUP("Mid Year Nominal - EOY Real (2015/16)",CPI[],MATCH(O$4,CPI[#Headers],0),FALSE) -> 0 | P105: =ProjectData[[#This Row],[Actuals 09/10]]*VLOOKUP("Mid Year Nominal - EOY Real (2015/16)",CPI[],MATCH(P$4,CPI[#Headers],0),FALSE) -> 0 | Q105: =ProjectData[[#This Row],[Actuals 10/11]]*VLOOKUP("Mid Year Nominal - EOY Real (2015/16)",CPI[],MATCH(Q$4,CPI[#Headers],0),FALSE) -> 0 | R105: =ProjectData[[#This Row],[Actuals 11/12]]*VLOOKUP("Mid Year Nominal - EOY Real (2015/16)",CPI[],MATCH(R$4,CPI[#Headers],0),FALSE) -> 0.05160630107 | S105: =ProjectData[[#This Row],[Actuals 12/13]]*VLOOKUP("Mid Year Nominal - EOY Real (2015/16)",CPI[],MATCH(S$4,CPI[#Headers],0),FALSE) -> 0.1217826153 | T105: =ProjectData[[#This Row],[Actuals 13/14]]*VLOOKUP("Mid Year Nominal - EOY Real (2015/16)",CPI[],MATCH(T$4,CPI[#Headers],0),FALSE) -> 0.009138202414 | U105: =ProjectData[[#This Row],[Actuals 14/15]]*VLOOKUP("Mid Year Nominal - EOY Real (2015/16)",CPI[],MATCH(U$4,CPI[#Headers],0),FALSE) -> 0.006705657517 | V105: =SUM(ProjectData[[#This Row],[Real 08]:[Real 15]]) -> 0.1892327763 | W105: =(ProjectData[[#This Row],[Real Sum]]-VLOOKUP(ProjectData[[#This Row],[Category]],Category_AverageStdDevLimit[],MATCH("Average",Category_AverageStdDevLimit[#Headers],0),FALSE))^2 -> 0.2271786567 | X105: =VLOOKUP(ProjectData[[#This Row],[Category]],Category_AverageStdDevLimit[],MATCH("Limit",Category_AverageStdDevLimit[#Headers],0),FALSE) -> 2.96351611 | Y105: =ProjectData[[#This Row],[Real Sum]]>ProjectData[[#This Row],[Category Limit]] -> FALSE | AA105: =OR(ProjectData[[#This Row],[Significant Project? (Financial Basis)]],ProjectData[[#This Row],[Non repeatable]]) -> FALSE | AB105: =AND(ProjectData[[#This Row],[SomeExpenditure >= 2011]],ProjectData[[#This Row],[Abnormal?]]) -> FALSE
A106: CP.02183 | B106: Chinchilla OpsWAN Lite Establishment | C106: Replacement | H106: 0.03884335 | I106: 0.02078131 | J106: 0.08427712 | K106: 0 | L106: =ProjectData[[#This Row],[Real Sum]]>0.00000001 -> TRUE | M106: =OR(ProjectData[[#This Row],[Real 11]]>0,ProjectData[[#This Row],[Real 12]]>0,ProjectData[[#This Row],[Real 13]]>0,ProjectData[[#This Row],[Real 14]]>0,ProjectData[[#This Row],[Real 15]]>0) -> TRUE | N106: =ProjectData[[#This Row],[Actuals 07/08]]*VLOOKUP("Mid Year Nominal - EOY Real (2015/16)",CPI[],MATCH(N$4,CPI[#Headers],0),FALSE) -> 0 | O106: =ProjectData[[#This Row],[Actuals 08/09]]*VLOOKUP("Mid Year Nominal - EOY Real (2015/16)",CPI[],MATCH(O$4,CPI[#Headers],0),FALSE) -> 0 | P106: =ProjectData[[#This Row],[Actuals 09/10]]*VLOOKUP("Mid Year Nominal - EOY Real (2015/16)",CPI[],MATCH(P$4,CPI[#Headers],0),FALSE) -> 0 | Q106: =ProjectData[[#This Row],[Actuals 10/11]]*VLOOKUP("Mid Year Nominal - EOY Real (2015/16)",CPI[],MATCH(Q$4,CPI[#Headers],0),FALSE) -> 0 | R106: =ProjectData[[#This Row],[Actuals 11/12]]*VLOOKUP("Mid Year Nominal - EOY Real (2015/16)",CPI[],MATCH(R$4,CPI[#Headers],0),FALSE) -> 0.04284862715 | S106: =ProjectData[[#This Row],[Actuals 12/13]]*VLOOKUP("Mid Year Nominal - EOY Real (2015/16)",CPI[],MATCH(S$4,CPI[#Headers],0),FALSE) -> 0.02246052665 | T106: =ProjectData[[#This Row],[Actuals 13/14]]*VLOOKUP("Mid Year Nominal - EOY Real (2015/16)",CPI[],MATCH(T$4,CPI[#Headers],0),FALSE) -> 0.08867866351 | U106: =ProjectData[[#This Row],[Actuals 14/15]]*VLOOKUP("Mid Year Nominal - EOY Real (2015/16)",CPI[],MATCH(U$4,CPI[#Headers],0),FALSE) -> 0 | V106: =SUM(ProjectData[[#This Row],[Real 08]:[Real 15]]) -> 0.1539878173 | W106: =(ProjectData[[#This Row],[Real Sum]]-VLOOKUP(ProjectData[[#This Row],[Category]],Category_AverageStdDevLimit[],MATCH("Average",Category_AverageStdDevLimit[#Headers],0),FALSE))^2 -> 0.2620186583 | X106: =VLOOKUP(ProjectData[[#This Row],[Category]],Category_AverageStdDevLimit[],MATCH("Limit",Category_AverageStdDevLimit[#Headers],0),FALSE) -> 2.96351611 | Y106: =ProjectData[[#This Row],[Real Sum]]>ProjectData[[#This Row],[Category Limit]] -> FALSE | AA106: =OR(ProjectData[[#This Row],[Significant Project? (Financial Basis)]],ProjectData[[#This Row],[Non repeatable]]) -> FALSE | AB106: =AND(ProjectData[[#This Row],[SomeExpenditure >= 2011]],ProjectData[[#This Row],[Abnormal?]]) -> FALSE
A107: CP.02188 | B107: MIC 95 Microwave Decommissioning | C107: Replacement | I107: 0.0175276 | J107: 0.03444863 | K107: -0.05197623 | L107: =ProjectData[[#This Row],[Real Sum]]>0.00000001 -> TRUE | M107: =OR(ProjectData[[#This Row],[Real 11]]>0,ProjectData[[#This Row],[Real 12]]>0,ProjectData[[#This Row],[Real 13]]>0,ProjectData[[#This Row],[Real 14]]>0,ProjectData[[#This Row],[Real 15]]>0) -> TRUE | N107: =ProjectData[[#This Row],[Actuals 07/08]]*VLOOKUP("Mid Year Nominal - EOY Real (2015/16)",CPI[],MATCH(N$4,CPI[#Headers],0),FALSE) -> 0 | O107: =ProjectData[[#This Row],[Actuals 08/09]]*VLOOKUP("Mid Year Nominal - EOY Real (2015/16)",CPI[],MATCH(O$4,CPI[#Headers],0),FALSE) -> 0 | P107: =ProjectData[[#This Row],[Actuals 09/10]]*VLOOKUP("Mid Year Nominal - EOY Real (2015/16)",CPI[],MATCH(P$4,CPI[#Headers],0),FALSE) -> 0 | Q107: =ProjectData[[#This Row],[Actuals 10/11]]*VLOOKUP("Mid Year Nominal - EOY Real (2015/16)",CPI[],MATCH(Q$4,CPI[#Headers],0),FALSE) -> 0 | R107: =ProjectData[[#This Row],[Actuals 11/12]]*VLOOKUP("Mid Year Nominal - EOY Real (2015/16)",CPI[],MATCH(R$4,CPI[#Headers],0),FALSE) -> 0 | S107: =ProjectData[[#This Row],[Actuals 12/13]]*VLOOKUP("Mid Year Nominal - EOY Real (2015/16)",CPI[],MATCH(S$4,CPI[#Headers],0),FALSE) -> 0.01894390329 | T107: =ProjectData[[#This Row],[Actuals 13/14]]*VLOOKUP("Mid Year Nominal - EOY Real (2015/16)",CPI[],MATCH(T$4,CPI[#Headers],0),FALSE) -> 0.03624777956 | U107: =ProjectData[[#This Row],[Actuals 14/15]]*VLOOKUP("Mid Year Nominal - EOY Real (2015/16)",CPI[],MATCH(U$4,CPI[#Headers],0),FALSE) -> -0.05355235582 | V107: =SUM(ProjectData[[#This Row],[Real 08]:[Real 15]]) -> 0.001639327035 | W107: =(ProjectData[[#This Row],[Real Sum]]-VLOOKUP(ProjectData[[#This Row],[Category]],Category_AverageStdDevLimit[],MATCH("Average",Category_AverageStdDevLimit[#Headers],0),FALSE))^2 -> 0.4411962743 | X107: =VLOOKUP(ProjectData[[#This Row],[Category]],Category_AverageStdDevLimit[],MATCH("Limit",Category_AverageStdDevLimit[#Headers],0),FALSE) -> 2.96351611 | Y107: =ProjectData[[#This Row],[Real Sum]]>ProjectData[[#This Row],[Category Limit]] -> FALSE | AA107: =OR(ProjectData[[#This Row],[Significant Project? (Financial Basis)]],ProjectData[[#This Row],[Non repeatable]]) -> FALSE | AB107: =AND(ProjectData[[#This Row],[SomeExpenditure >= 2011]],ProjectData[[#This Row],[Abnormal?]]) -> FALSE
A108: CP.02199 | B108: Decommission & Relocate Equip Mt Mercer/ | C108: Replacement | I108: 0.02626677 | J108: 0.13680126 | K108: 0.08312917 | L108: =ProjectData[[#This Row],[Real Sum]]>0.00000001 -> TRUE | M108: =OR(ProjectData[[#This Row],[Real 11]]>0,ProjectData[[#This Row],[Real 12]]>0,ProjectData[[#This Row],[Real 13]]>0,ProjectData[[#This Row],[Real 14]]>0,ProjectData[[#This Row],[Real 15]]>0) -> TRUE | N108: =ProjectData[[#This Row],[Actuals 07/08]]*VLOOKUP("Mid Year Nominal - EOY Real (2015/16)",CPI[],MATCH(N$4,CPI[#Headers],0),FALSE) -> 0 | O108: =ProjectData[[#This Row],[Actuals 08/09]]*VLOOKUP("Mid Year Nominal - EOY Real (2015/16)",CPI[],MATCH(O$4,CPI[#Headers],0),FALSE) -> 0 | P108: =ProjectData[[#This Row],[Actuals 09/10]]*VLOOKUP("Mid Year Nominal - EOY Real (2015/16)",CPI[],MATCH(P$4,CPI[#Headers],0),FALSE) -> 0 | Q108: =ProjectData[[#This Row],[Actuals 10/11]]*VLOOKUP("Mid Year Nominal - EOY Real (2015/16)",CPI[],MATCH(Q$4,CPI[#Headers],0),FALSE) -> 0 | R108: =ProjectData[[#This Row],[Actuals 11/12]]*VLOOKUP("Mid Year Nominal - EOY Real (2015/16)",CPI[],MATCH(R$4,CPI[#Headers],0),FALSE) -> 0 | S108: =ProjectData[[#This Row],[Actuals 12/13]]*VLOOKUP("Mid Year Nominal - EOY Real (2015/16)",CPI[],MATCH(S$4,CPI[#Headers],0),FALSE) -> 0.02838923473 | T108: =ProjectData[[#This Row],[Actuals 13/14]]*VLOOKUP("Mid Year Nominal - EOY Real (2015/16)",CPI[],MATCH(T$4,CPI[#Headers],0),FALSE) -> 0.1439459832 | U108: =ProjectData[[#This Row],[Actuals 14/15]]*VLOOKUP("Mid Year Nominal - EOY Real (2015/16)",CPI[],MATCH(U$4,CPI[#Headers],0),FALSE) -> 0.08564997675 | V108: =SUM(ProjectData[[#This Row],[Real 08]:[Real 15]]) -> 0.2579851947 | W108: =(ProjectData[[#This Row],[Real Sum]]-VLOOKUP(ProjectData[[#This Row],[Category]],Category_AverageStdDevLimit[],MATCH("Average",Category_AverageStdDevLimit[#Headers],0),FALSE))^2 -> 0.1663662608 | X108: =VLOOKUP(ProjectData[[#This Row],[Category]],Category_AverageStdDevLimit[],MATCH("Limit",Category_AverageStdDevLimit[#Headers],0),FALSE) -> 2.96351611 | Y108: =ProjectData[[#This Row],[Real Sum]]>ProjectData[[#This Row],[Category Limit]] -> FALSE | AA108: =OR(ProjectData[[#This Row],[Significant Project? (Financial Basis)]],ProjectData[[#This Row],[Non repeatable]]) -> FALSE | AB108: =AND(ProjectData[[#This Row],[SomeExpenditure >= 2011]],ProjectData[[#This Row],[Abnormal?]]) -> FALSE
A109: CP.02226 | B109: Cairns - Wrights Lookout Microwave Ratio | C109: Replacement | J109: 0.01333079 | K109: 0.0296075 | L109: =ProjectData[[#This Row],[Real Sum]]>0.00000001 -> TRUE | M109: =OR(ProjectData[[#This Row],[Real 11]]>0,ProjectData[[#This Row],[Real 12]]>0,ProjectData[[#This Row],[Real 13]]>0,ProjectData[[#This Row],[Real 14]]>0,ProjectData[[#This Row],[Real 15]]>0) -> TRUE | N109: =ProjectData[[#This Row],[Actuals 07/08]]*VLOOKUP("Mid Year Nominal - EOY Real (2015/16)",CPI[],MATCH(N$4,CPI[#Headers],0),FALSE) -> 0 | O109: =ProjectData[[#This Row],[Actuals 08/09]]*VLOOKUP("Mid Year Nominal - EOY Real (2015/16)",CPI[],MATCH(O$4,CPI[#Headers],0),FALSE) -> 0 | P109: =ProjectData[[#This Row],[Actuals 09/10]]*VLOOKUP("Mid Year Nominal - EOY Real (2015/16)",CPI[],MATCH(P$4,CPI[#Headers],0),FALSE) -> 0 | Q109: =ProjectData[[#This Row],[Actuals 10/11]]*VLOOKUP("Mid Year Nominal - EOY Real (2015/16)",CPI[],MATCH(Q$4,CPI[#Headers],0),FALSE) -> 0 | R109: =ProjectData[[#This Row],[Actuals 11/12]]*VLOOKUP("Mid Year Nominal - EOY Real (2015/16)",CPI[],MATCH(R$4,CPI[#Headers],0),FALSE) -> 0 | S109: =ProjectData[[#This Row],[Actuals 12/13]]*VLOOKUP("Mid Year Nominal - EOY Real (2015/16)",CPI[],MATCH(S$4,CPI[#Headers],0),FALSE) -> 0 | T109: =ProjectData[[#This Row],[Actuals 13/14]]*VLOOKUP("Mid Year Nominal - EOY Real (2015/16)",CPI[],MATCH(T$4,CPI[#Headers],0),FALSE) -> 0.01402701754 | U109: =ProjectData[[#This Row],[Actuals 14/15]]*VLOOKUP("Mid Year Nominal - EOY Real (2015/16)",CPI[],MATCH(U$4,CPI[#Headers],0),FALSE) -> 0.03050531705 | V109: =SUM(ProjectData[[#This Row],[Real 08]:[Real 15]]) -> 0.04453233459 | W109: =(ProjectData[[#This Row],[Real Sum]]-VLOOKUP(ProjectData[[#This Row],[Category]],Category_AverageStdDevLimit[],MATCH("Average",Category_AverageStdDevLimit[#Headers],0),FALSE))^2 -> 0.3860547765 | X109: =VLOOKUP(ProjectData[[#This Row],[Category]],Category_AverageStdDevLimit[],MATCH("Limit",Category_AverageStdDevLimit[#Headers],0),FALSE) -> 2.96351611 | Y109: =ProjectData[[#This Row],[Real Sum]]>ProjectData[[#This Row],[Category Limit]] -> FALSE | AA109: =OR(ProjectData[[#This Row],[Significant Project? (Financial Basis)]],ProjectData[[#This Row],[Non repeatable]]) -> FALSE | AB109: =AND(ProjectData[[#This Row],[SomeExpenditure >= 2011]],ProjectData[[#This Row],[Abnormal?]]) -> FALSE
A110: CP.02247 | B110: OSI PI Hardware & System replacement | C110: Replacement | H110: 0.0469326 | I110: 0.03188325 | J110: 0.35181543 | K110: 0 | L110: =ProjectData[[#This Row],[Real Sum]]>0.00000001 -> TRUE | M110: =OR(ProjectData[[#This Row],[Real 11]]>0,ProjectData[[#This Row],[Real 12]]>0,ProjectData[[#This Row],[Real 13]]>0,ProjectData[[#This Row],[Real 14]]>0,ProjectData[[#This Row],[Real 15]]>0) -> TRUE | N110: =ProjectData[[#This Row],[Actuals 07/08]]*VLOOKUP("Mid Year Nominal - EOY Real (2015/16)",CPI[],MATCH(N$4,CPI[#Headers],0),FALSE) -> 0 | O110: =ProjectData[[#This Row],[Actuals 08/09]]*VLOOKUP("Mid Year Nominal - EOY Real (2015/16)",CPI[],MATCH(O$4,CPI[#Headers],0),FALSE) -> 0 | P110: =ProjectData[[#This Row],[Actuals 09/10]]*VLOOKUP("Mid Year Nominal - EOY Real (2015/16)",CPI[],MATCH(P$4,CPI[#Headers],0),FALSE) -> 0 | Q110: =ProjectData[[#This Row],[Actuals 10/11]]*VLOOKUP("Mid Year Nominal - EOY Real (2015/16)",CPI[],MATCH(Q$4,CPI[#Headers],0),FALSE) -> 0 | R110: =ProjectData[[#This Row],[Actuals 11/12]]*VLOOKUP("Mid Year Nominal - EOY Real (2015/16)",CPI[],MATCH(R$4,CPI[#Headers],0),FALSE) -> 0.05177198874 | S110: =ProjectData[[#This Row],[Actuals 12/13]]*VLOOKUP("Mid Year Nominal - EOY Real (2015/16)",CPI[],MATCH(S$4,CPI[#Headers],0),FALSE) -> 0.03445954977 | T110: =ProjectData[[#This Row],[Actuals 13/14]]*VLOOKUP("Mid Year Nominal - EOY Real (2015/16)",CPI[],MATCH(T$4,CPI[#Headers],0),FALSE) -> 0.3701897043 | U110: =ProjectData[[#This Row],[Actuals 14/15]]*VLOOKUP("Mid Year Nominal - EOY Real (2015/16)",CPI[],MATCH(U$4,CPI[#Headers],0),FALSE) -> 0 | V110: =SUM(ProjectData[[#This Row],[Real 08]:[Real 15]]) -> 0.4564212428 | W110: =(ProjectData[[#This Row],[Real Sum]]-VLOOKUP(ProjectData[[#This Row],[Category]],Category_AverageStdDevLimit[],MATCH("Average",Category_AverageStdDevLimit[#Headers],0),FALSE))^2 -> 0.04386685443 | X110: =VLOOKUP(ProjectData[[#This Row],[Category]],Category_AverageStdDevLimit[],MATCH("Limit",Category_AverageStdDevLimit[#Headers],0),FALSE) -> 2.96351611 | Y110: =ProjectData[[#This Row],[Real Sum]]>ProjectData[[#This Row],[Category Limit]] -> FALSE | AA110: =OR(ProjectData[[#This Row],[Significant Project? (Financial Basis)]],ProjectData[[#This Row],[Non repeatable]]) -> FALSE | AB110: =AND(ProjectData[[#This Row],[SomeExpenditure >= 2011]],ProjectData[[#This Row],[Abnormal?]]) -> FALSE
A111: CP.02294 | B111: Diesel Generator Installation Stage 2 | C111: Replacement | F111: 0.01683195 | G111: 0.22070876 | H111: 3.59973713 | I111: 0.53935898 | J111: 0.2758032 | K111: 0.00510053 | L111: =ProjectData[[#This Row],[Real Sum]]>0.00000001 -> TRUE | M111: =OR(ProjectData[[#This Row],[Real 11]]>0,ProjectData[[#This Row],[Real 12]]>0,ProjectData[[#This Row],[Real 13]]>0,ProjectData[[#This Row],[Real 14]]>0,ProjectData[[#This Row],[Real 15]]>0) -> TRUE | N111: =ProjectData[[#This Row],[Actuals 07/08]]*VLOOKUP("Mid Year Nominal - EOY Real (2015/16)",CPI[],MATCH(N$4,CPI[#Headers],0),FALSE) -> 0 | O111: =ProjectData[[#This Row],[Actuals 08/09]]*VLOOKUP("Mid Year Nominal - EOY Real (2015/16)",CPI[],MATCH(O$4,CPI[#Headers],0),FALSE) -> 0 | P111: =ProjectData[[#This Row],[Actuals 09/10]]*VLOOKUP("Mid Year Nominal - EOY Real (2015/16)",CPI[],MATCH(P$4,CPI[#Headers],0),FALSE) -> 0.01960761761 | Q111: =ProjectData[[#This Row],[Actuals 10/11]]*VLOOKUP("Mid Year Nominal - EOY Real (2015/16)",CPI[],MATCH(Q$4,CPI[#Headers],0),FALSE) -> 0.249404379 | R111: =ProjectData[[#This Row],[Actuals 11/12]]*VLOOKUP("Mid Year Nominal - EOY Real (2015/16)",CPI[],MATCH(R$4,CPI[#Headers],0),FALSE) -> 3.970918938 | S111: =ProjectData[[#This Row],[Actuals 12/13]]*VLOOKUP("Mid Year Nominal - EOY Real (2015/16)",CPI[],MATCH(S$4,CPI[#Headers],0),FALSE) -> 0.5829414385 | T111: =ProjectData[[#This Row],[Actuals 13/14]]*VLOOKUP("Mid Year Nominal - EOY Real (2015/16)",CPI[],MATCH(T$4,CPI[#Headers],0),FALSE) -> 0.2902075814 | U111: =ProjectData[[#This Row],[Actuals 14/15]]*VLOOKUP("Mid Year Nominal - EOY Real (2015/16)",CPI[],MATCH(U$4,CPI[#Headers],0),FALSE) -> 0.005255198337 | V111: =SUM(ProjectData[[#This Row],[Real 08]:[Real 15]]) -> 5.118335153 | W111: =(ProjectData[[#This Row],[Real Sum]]-VLOOKUP(ProjectData[[#This Row],[Category]],Category_AverageStdDevLimit[],MATCH("Average",Category_AverageStdDevLimit[#Headers],0),FALSE))^2 -> 19.82448691 | X111: =VLOOKUP(ProjectData[[#This Row],[Category]],Category_AverageStdDevLimit[],MATCH("Limit",Category_AverageStdDevLimit[#Headers],0),FALSE) -> 2.96351611 | Y111: =ProjectData[[#This Row],[Real Sum]]>ProjectData[[#This Row],[Category Limit]] -> TRUE | AA111: =OR(ProjectData[[#This Row],[Significant Project? (Financial Basis)]],ProjectData[[#This Row],[Non repeatable]]) -> TRUE | AB111: =AND(ProjectData[[#This Row],[SomeExpenditure >= 2011]],ProjectData[[#This Row],[Abnormal?]]) -> TRUE
A112: CP.02295 | B112: Marconi SMA Mux Replacement | C112: Replacement | H112: 0.0095655 | I112: 0.01546975 | J112: 0.234814889 | K112: 1.803471188 | L112: =ProjectData[[#This Row],[Real Sum]]>0.00000001 -> TRUE | M112: =OR(ProjectData[[#This Row],[Real 11]]>0,ProjectData[[#This Row],[Real 12]]>0,ProjectData[[#This Row],[Real 13]]>0,ProjectData[[#This Row],[Real 14]]>0,ProjectData[[#This Row],[Real 15]]>0) -> TRUE | N112: =ProjectData[[#This Row],[Actuals 07/08]]*VLOOKUP("Mid Year Nominal - EOY Real (2015/16)",CPI[],MATCH(N$4,CPI[#Headers],0),FALSE) -> 0 | O112: =ProjectData[[#This Row],[Actuals 08/09]]*VLOOKUP("Mid Year Nominal - EOY Real (2015/16)",CPI[],MATCH(O$4,CPI[#Headers],0),FALSE) -> 0 | P112: =ProjectData[[#This Row],[Actuals 09/10]]*VLOOKUP("Mid Year Nominal - EOY Real (2015/16)",CPI[],MATCH(P$4,CPI[#Headers],0),FALSE) -> 0 | Q112: =ProjectData[[#This Row],[Actuals 10/11]]*VLOOKUP("Mid Year Nominal - EOY Real (2015/16)",CPI[],MATCH(Q$4,CPI[#Headers],0),FALSE) -> 0 | R112: =ProjectData[[#This Row],[Actuals 11/12]]*VLOOKUP("Mid Year Nominal - EOY Real (2015/16)",CPI[],MATCH(R$4,CPI[#Headers],0),FALSE) -> 0.01055183302 | S112: =ProjectData[[#This Row],[Actuals 12/13]]*VLOOKUP("Mid Year Nominal - EOY Real (2015/16)",CPI[],MATCH(S$4,CPI[#Headers],0),FALSE) -> 0.01671977042 | T112: =ProjectData[[#This Row],[Actuals 13/14]]*VLOOKUP("Mid Year Nominal - EOY Real (2015/16)",CPI[],MATCH(T$4,CPI[#Headers],0),FALSE) -> 0.2470785727 | U112: =ProjectData[[#This Row],[Actuals 14/15]]*VLOOKUP("Mid Year Nominal - EOY Real (2015/16)",CPI[],MATCH(U$4,CPI[#Headers],0),FALSE) -> 1.858159601 | V112: =SUM(ProjectData[[#This Row],[Real 08]:[Real 15]]) -> 2.132509777 | W112: =(ProjectData[[#This Row],[Real Sum]]-VLOOKUP(ProjectData[[#This Row],[Category]],Category_AverageStdDevLimit[],MATCH("Average",Category_AverageStdDevLimit[#Headers],0),FALSE))^2 -> 2.151045732 | X112: =VLOOKUP(ProjectData[[#This Row],[Category]],Category_AverageStdDevLimit[],MATCH("Limit",Category_AverageStdDevLimit[#Headers],0),FALSE) -> 2.96351611 | Y112: =ProjectData[[#This Row],[Real Sum]]>ProjectData[[#This Row],[Category Limit]] -> FALSE | AA112: =OR(ProjectData[[#This Row],[Significant Project? (Financial Basis)]],ProjectData[[#This Row],[Non repeatable]]) -> FALSE | AB112: =AND(ProjectData[[#This Row],[SomeExpenditure >= 2011]],ProjectData[[#This Row],[Abnormal?]]) -> FALSE
A113: CP.02297 | B113: Power Quality Monitoring Stage 3 | C113: Security / Compliance | K113: 0.06332922 | L113: =ProjectData[[#This Row],[Real Sum]]>0.00000001 -> TRUE | M113: =OR(ProjectData[[#This Row],[Real 11]]>0,ProjectData[[#This Row],[Real 12]]>0,ProjectData[[#This Row],[Real 13]]>0,ProjectData[[#This Row],[Real 14]]>0,ProjectData[[#This Row],[Real 15]]>0) -> TRUE | N113: =ProjectData[[#This Row],[Actuals 07/08]]*VLOOKUP("Mid Year Nominal - EOY Real (2015/16)",CPI[],MATCH(N$4,CPI[#Headers],0),FALSE) -> 0 | O113: =ProjectData[[#This Row],[Actuals 08/09]]*VLOOKUP("Mid Year Nominal - EOY Real (2015/16)",CPI[],MATCH(O$4,CPI[#Headers],0),FALSE) -> 0 | P113: =ProjectData[[#This Row],[Actuals 09/10]]*VLOOKUP("Mid Year Nominal - EOY Real (2015/16)",CPI[],MATCH(P$4,CPI[#Headers],0),FALSE) -> 0 | Q113: =ProjectData[[#This Row],[Actuals 10/11]]*VLOOKUP("Mid Year Nominal - EOY Real (2015/16)",CPI[],MATCH(Q$4,CPI[#Headers],0),FALSE) -> 0 | R113: =ProjectData[[#This Row],[Actuals 11/12]]*VLOOKUP("Mid Year Nominal - EOY Real (2015/16)",CPI[],MATCH(R$4,CPI[#Headers],0),FALSE) -> 0 | S113: =ProjectData[[#This Row],[Actuals 12/13]]*VLOOKUP("Mid Year Nominal - EOY Real (2015/16)",CPI[],MATCH(S$4,CPI[#Headers],0),FALSE) -> 0 | T113: =ProjectData[[#This Row],[Actuals 13/14]]*VLOOKUP("Mid Year Nominal - EOY Real (2015/16)",CPI[],MATCH(T$4,CPI[#Headers],0),FALSE) -> 0 | U113: =ProjectData[[#This Row],[Actuals 14/15]]*VLOOKUP("Mid Year Nominal - EOY Real (2015/16)",CPI[],MATCH(U$4,CPI[#Headers],0),FALSE) -> 0.06524961359 | V113: =SUM(ProjectData[[#This Row],[Real 08]:[Real 15]]) -> 0.06524961359 | W113: =(ProjectData[[#This Row],[Real Sum]]-VLOOKUP(ProjectData[[#This Row],[Category]],Category_AverageStdDevLimit[],MATCH("Average",Category_AverageStdDevLimit[#Headers],0),FALSE))^2 -> 12.44095919 | X113: =VLOOKUP(ProjectData[[#This Row],[Category]],Category_AverageStdDevLimit[],MATCH("Limit",Category_AverageStdDevLimit[#Headers],0),FALSE) -> 10.86958417 | Y113: =ProjectData[[#This Row],[Real Sum]]>ProjectData[[#This Row],[Category Limit]] -> FALSE | AA113: =OR(ProjectData[[#This Row],[Significant Project? (Financial Basis)]],ProjectData[[#This Row],[Non repeatable]]) -> FALSE | AB113: =AND(ProjectData[[#This Row],[SomeExpenditure >= 2011]],ProjectData[[#This Row],[Abnormal?]]) -> FALSE
A114: CP.02300 | B114: OPSWAN Common Services | C114: Replacement | J114: 0.04862169 | K114: 0.00816065 | L114: =ProjectData[[#This Row],[Real Sum]]>0.00000001 -> TRUE | M114: =OR(ProjectData[[#This Row],[Real 11]]>0,ProjectData[[#This Row],[Real 12]]>0,ProjectData[[#This Row],[Real 13]]>0,ProjectData[[#This Row],[Real 14]]>0,ProjectData[[#This Row],[Real 15]]>0) -> TRUE | N114: =ProjectData[[#This Row],[Actuals 07/08]]*VLOOKUP("Mid Year Nominal - EOY Real (2015/16)",CPI[],MATCH(N$4,CPI[#Headers],0),FALSE) -> 0 | O114: =ProjectData[[#This Row],[Actuals 08/09]]*VLOOKUP("Mid Year Nominal - EOY Real (2015/16)",CPI[],MATCH(O$4,CPI[#Headers],0),FALSE) -> 0 | P114: =ProjectData[[#This Row],[Actuals 09/10]]*VLOOKUP("Mid Year Nominal - EOY Real (2015/16)",CPI[],MATCH(P$4,CPI[#Headers],0),FALSE) -> 0 | Q114: =ProjectData[[#This Row],[Actuals 10/11]]*VLOOKUP("Mid Year Nominal - EOY Real (2015/16)",CPI[],MATCH(Q$4,CPI[#Headers],0),FALSE) -> 0 | R114: =ProjectData[[#This Row],[Actuals 11/12]]*VLOOKUP("Mid Year Nominal - EOY Real (2015/16)",CPI[],MATCH(R$4,CPI[#Headers],0),FALSE) -> 0 | S114: =ProjectData[[#This Row],[Actuals 12/13]]*VLOOKUP("Mid Year Nominal - EOY Real (2015/16)",CPI[],MATCH(S$4,CPI[#Headers],0),FALSE) -> 0 | T114: =ProjectData[[#This Row],[Actuals 13/14]]*VLOOKUP("Mid Year Nominal - EOY Real (2015/16)",CPI[],MATCH(T$4,CPI[#Headers],0),FALSE) -> 0.05116105637 | U114: =ProjectData[[#This Row],[Actuals 14/15]]*VLOOKUP("Mid Year Nominal - EOY Real (2015/16)",CPI[],MATCH(U$4,CPI[#Headers],0),FALSE) -> 0.008408113334 | V114: =SUM(ProjectData[[#This Row],[Real 08]:[Real 15]]) -> 0.0595691697 | W114: =(ProjectData[[#This Row],[Real Sum]]-VLOOKUP(ProjectData[[#This Row],[Category]],Category_AverageStdDevLimit[],MATCH("Average",Category_AverageStdDevLimit[#Headers],0),FALSE))^2 -> 0.3675951173 | X114: =VLOOKUP(ProjectData[[#This Row],[Category]],Category_AverageStdDevLimit[],MATCH("Limit",Category_AverageStdDevLimit[#Headers],0),FALSE) -> 2.96351611 | Y114: =ProjectData[[#This Row],[Real Sum]]>ProjectData[[#This Row],[Category Limit]] -> FALSE | AA114: =OR(ProjectData[[#This Row],[Significant Project? (Financial Basis)]],ProjectData[[#This Row],[Non repeatable]]) -> FALSE | AB114: =AND(ProjectData[[#This Row],[SomeExpenditure >= 2011]],ProjectData[[#This Row],[Abnormal?]]) -> FALSE
A115: CP.02309 | B115: High Speed Monitoring Stage 3 and 4 | C115: Security / Compliance | G115: 0.03433048 | H115: 0.03672394 | I115: 0.72367046 | J115: 0.19427325 | K115: 1.10379308 | L115: =ProjectData[[#This Row],[Real Sum]]>0.00000001 -> TRUE | M115: =OR(ProjectData[[#This Row],[Real 11]]>0,ProjectData[[#This Row],[Real 12]]>0,ProjectData[[#This Row],[Real 13]]>0,ProjectData[[#This Row],[Real 14]]>0,ProjectData[[#This Row],[Real 15]]>0) -> TRUE | N115: =ProjectData[[#This Row],[Actuals 07/08]]*VLOOKUP("Mid Year Nominal - EOY Real (2015/16)",CPI[],MATCH(N$4,CPI[#Headers],0),FALSE) -> 0 | O115: =ProjectData[[#This Row],[Actuals 08/09]]*VLOOKUP("Mid Year Nominal - EOY Real (2015/16)",CPI[],MATCH(O$4,CPI[#Headers],0),FALSE) -> 0 | P115: =ProjectData[[#This Row],[Actuals 09/10]]*VLOOKUP("Mid Year Nominal - EOY Real (2015/16)",CPI[],MATCH(P$4,CPI[#Headers],0),FALSE) -> 0 | Q115: =ProjectData[[#This Row],[Actuals 10/11]]*VLOOKUP("Mid Year Nominal - EOY Real (2015/16)",CPI[],MATCH(Q$4,CPI[#Headers],0),FALSE) -> 0.03879398374 | R115: =ProjectData[[#This Row],[Actuals 11/12]]*VLOOKUP("Mid Year Nominal - EOY Real (2015/16)",CPI[],MATCH(R$4,CPI[#Headers],0),FALSE) -> 0.04051067718 | S115: =ProjectData[[#This Row],[Actuals 12/13]]*VLOOKUP("Mid Year Nominal - EOY Real (2015/16)",CPI[],MATCH(S$4,CPI[#Headers],0),FALSE) -> 0.7821460559 | T115: =ProjectData[[#This Row],[Actuals 13/14]]*VLOOKUP("Mid Year Nominal - EOY Real (2015/16)",CPI[],MATCH(T$4,CPI[#Headers],0),FALSE) -> 0.2044195645 | U115: =ProjectData[[#This Row],[Actuals 14/15]]*VLOOKUP("Mid Year Nominal - EOY Real (2015/16)",CPI[],MATCH(U$4,CPI[#Headers],0),FALSE) -> 1.137264472 | V115: =SUM(ProjectData[[#This Row],[Real 08]:[Real 15]]) -> 2.203134753 | W115: =(ProjectData[[#This Row],[Real Sum]]-VLOOKUP(ProjectData[[#This Row],[Category]],Category_AverageStdDevLimit[],MATCH("Average",Category_AverageStdDevLimit[#Headers],0),FALSE))^2 -> 1.930124624 | X115: =VLOOKUP(ProjectData[[#This Row],[Category]],Category_AverageStdDevLimit[],MATCH("Limit",Category_AverageStdDevLimit[#Headers],0),FALSE) -> 10.86958417 | Y115: =ProjectData[[#This Row],[Real Sum]]>ProjectData[[#This Row],[Category Limit]] -> FALSE | AA115: =OR(ProjectData[[#This Row],[Significant Project? (Financial Basis)]],ProjectData[[#This Row],[Non repeatable]]) -> FALSE | AB115: =AND(ProjectData[[#This Row],[SomeExpenditure >= 2011]],ProjectData[[#This Row],[Abnormal?]]) -> FALSE
A116: CP.02314 | B116: Boyne Isl Metering & UFLS Relay Replace | C116: Replacement | J116: 0.0025818 | K116: 0.0041778 | L116: =ProjectData[[#This Row],[Real Sum]]>0.00000001 -> TRUE | M116: =OR(ProjectData[[#This Row],[Real 11]]>0,ProjectData[[#This Row],[Real 12]]>0,ProjectData[[#This Row],[Real 13]]>0,ProjectData[[#This Row],[Real 14]]>0,ProjectData[[#This Row],[Real 15]]>0) -> TRUE | N116: =ProjectData[[#This Row],[Actuals 07/08]]*VLOOKUP("Mid Year Nominal - EOY Real (2015/16)",CPI[],MATCH(N$4,CPI[#Headers],0),FALSE) -> 0 | O116: =ProjectData[[#This Row],[Actuals 08/09]]*VLOOKUP("Mid Year Nominal - EOY Real (2015/16)",CPI[],MATCH(O$4,CPI[#Headers],0),FALSE) -> 0 | P116: =ProjectData[[#This Row],[Actuals 09/10]]*VLOOKUP("Mid Year Nominal - EOY Real (2015/16)",CPI[],MATCH(P$4,CPI[#Headers],0),FALSE) -> 0 | Q116: =ProjectData[[#This Row],[Actuals 10/11]]*VLOOKUP("Mid Year Nominal - EOY Real (2015/16)",CPI[],MATCH(Q$4,CPI[#Headers],0),FALSE) -> 0 | R116: =ProjectData[[#This Row],[Actuals 11/12]]*VLOOKUP("Mid Year Nominal - EOY Real (2015/16)",CPI[],MATCH(R$4,CPI[#Headers],0),FALSE) -> 0 | S116: =ProjectData[[#This Row],[Actuals 12/13]]*VLOOKUP("Mid Year Nominal - EOY Real (2015/16)",CPI[],MATCH(S$4,CPI[#Headers],0),FALSE) -> 0 | T116: =ProjectData[[#This Row],[Actuals 13/14]]*VLOOKUP("Mid Year Nominal - EOY Real (2015/16)",CPI[],MATCH(T$4,CPI[#Headers],0),FALSE) -> 0.002716639741 | U116: =ProjectData[[#This Row],[Actuals 14/15]]*VLOOKUP("Mid Year Nominal - EOY Real (2015/16)",CPI[],MATCH(U$4,CPI[#Headers],0),FALSE) -> 0.004304487496 | V116: =SUM(ProjectData[[#This Row],[Real 08]:[Real 15]]) -> 0.007021127237 | W116: =(ProjectData[[#This Row],[Real Sum]]-VLOOKUP(ProjectData[[#This Row],[Category]],Category_AverageStdDevLimit[],MATCH("Average",Category_AverageStdDevLimit[#Headers],0),FALSE))^2 -> 0.434075774 | X116: =VLOOKUP(ProjectData[[#This Row],[Category]],Category_AverageStdDevLimit[],MATCH("Limit",Category_AverageStdDevLimit[#Headers],0),FALSE) -> 2.96351611 | Y116: =ProjectData[[#This Row],[Real Sum]]>ProjectData[[#This Row],[Category Limit]] -> FALSE | AA116: =OR(ProjectData[[#This Row],[Significant Project? (Financial Basis)]],ProjectData[[#This Row],[Non repeatable]]) -> FALSE | AB116: =AND(ProjectData[[#This Row],[SomeExpenditure >= 2011]],ProjectData[[#This Row],[Abnormal?]]) -> FALSE
A117: CP.02316 | B117: Real Time SAN Enhancement | C117: Replacement | H117: 0.0429686 | I117: 0.29338393 | J117: 0.0286186 | K117: 0 | L117: =ProjectData[[#This Row],[Real Sum]]>0.00000001 -> TRUE | M117: =OR(ProjectData[[#This Row],[Real 11]]>0,ProjectData[[#This Row],[Real 12]]>0,ProjectData[[#This Row],[Real 13]]>0,ProjectData[[#This Row],[Real 14]]>0,ProjectData[[#This Row],[Real 15]]>0) -> TRUE | N117: =ProjectData[[#This Row],[Actuals 07/08]]*VLOOKUP("Mid Year Nominal - EOY Real (2015/16)",CPI[],MATCH(N$4,CPI[#Headers],0),FALSE) -> 0 | O117: =ProjectData[[#This Row],[Actuals 08/09]]*VLOOKUP("Mid Year Nominal - EOY Real (2015/16)",CPI[],MATCH(O$4,CPI[#Headers],0),FALSE) -> 0 | P117: =ProjectData[[#This Row],[Actuals 09/10]]*VLOOKUP("Mid Year Nominal - EOY Real (2015/16)",CPI[],MATCH(P$4,CPI[#Headers],0),FALSE) -> 0 | Q117: =ProjectData[[#This Row],[Actuals 10/11]]*VLOOKUP("Mid Year Nominal - EOY Real (2015/16)",CPI[],MATCH(Q$4,CPI[#Headers],0),FALSE) -> 0 | R117: =ProjectData[[#This Row],[Actuals 11/12]]*VLOOKUP("Mid Year Nominal - EOY Real (2015/16)",CPI[],MATCH(R$4,CPI[#Headers],0),FALSE) -> 0.04739924648 | S117: =ProjectData[[#This Row],[Actuals 12/13]]*VLOOKUP("Mid Year Nominal - EOY Real (2015/16)",CPI[],MATCH(S$4,CPI[#Headers],0),FALSE) -> 0.317090577 | T117: =ProjectData[[#This Row],[Actuals 13/14]]*VLOOKUP("Mid Year Nominal - EOY Real (2015/16)",CPI[],MATCH(T$4,CPI[#Headers],0),FALSE) -> 0.03011326442 | U117: =ProjectData[[#This Row],[Actuals 14/15]]*VLOOKUP("Mid Year Nominal - EOY Real (2015/16)",CPI[],MATCH(U$4,CPI[#Headers],0),FALSE) -> 0 | V117: =SUM(ProjectData[[#This Row],[Real 08]:[Real 15]]) -> 0.3946030879 | W117: =(ProjectData[[#This Row],[Real Sum]]-VLOOKUP(ProjectData[[#This Row],[Category]],Category_AverageStdDevLimit[],MATCH("Average",Category_AverageStdDevLimit[#Headers],0),FALSE))^2 -> 0.07358324126 | X117: =VLOOKUP(ProjectData[[#This Row],[Category]],Category_AverageStdDevLimit[],MATCH("Limit",Category_AverageStdDevLimit[#Headers],0),FALSE) -> 2.96351611 | Y117: =ProjectData[[#This Row],[Real Sum]]>ProjectData[[#This Row],[Category Limit]] -> FALSE | AA117: =OR(ProjectData[[#This Row],[Significant Project? (Financial Basis)]],ProjectData[[#This Row],[Non repeatable]]) -> FALSE | AB117: =AND(ProjectData[[#This Row],[SomeExpenditure >= 2011]],ProjectData[[#This Row],[Abnormal?]]) -> FALSE
A118: CP.02318 | B118: Accurate Fault Location System Stage 2a | C118: Other | G118: 0.0494732 | H118: 0.00090965 | I118: 0.00287385 | J118: 0.0017388 | K118: 0 | L118: =ProjectData[[#This Row],[Real Sum]]>0.00000001 -> TRUE | M118: =OR(ProjectData[[#This Row],[Real 11]]>0,ProjectData[[#This Row],[Real 12]]>0,ProjectData[[#This Row],[Real 13]]>0,ProjectData[[#This Row],[Real 14]]>0,ProjectData[[#This Row],[Real 15]]>0) -> TRUE | N118: =ProjectData[[#This Row],[Actuals 07/08]]*VLOOKUP("Mid Year Nominal - EOY Real (2015/16)",CPI[],MATCH(N$4,CPI[#Headers],0),FALSE) -> 0 | O118: =ProjectData[[#This Row],[Actuals 08/09]]*VLOOKUP("Mid Year Nominal - EOY Real (2015/16)",CPI[],MATCH(O$4,CPI[#Headers],0),FALSE) -> 0 | P118: =ProjectData[[#This Row],[Actuals 09/10]]*VLOOKUP("Mid Year Nominal - EOY Real (2015/16)",CPI[],MATCH(P$4,CPI[#Headers],0),FALSE) -> 0 | Q118: =ProjectData[[#This Row],[Actuals 10/11]]*VLOOKUP("Mid Year Nominal - EOY Real (2015/16)",CPI[],MATCH(Q$4,CPI[#Headers],0),FALSE) -> 0.05590549612 | R118: =ProjectData[[#This Row],[Actuals 11/12]]*VLOOKUP("Mid Year Nominal - EOY Real (2015/16)",CPI[],MATCH(R$4,CPI[#Headers],0),FALSE) -> 0.001003447274 | S118: =ProjectData[[#This Row],[Actuals 12/13]]*VLOOKUP("Mid Year Nominal - EOY Real (2015/16)",CPI[],MATCH(S$4,CPI[#Headers],0),FALSE) -> 0.003106069084 | T118: =ProjectData[[#This Row],[Actuals 13/14]]*VLOOKUP("Mid Year Nominal - EOY Real (2015/16)",CPI[],MATCH(T$4,CPI[#Headers],0),FALSE) -> 0.001829612356 | U118: =ProjectData[[#This Row],[Actuals 14/15]]*VLOOKUP("Mid Year Nominal - EOY Real (2015/16)",CPI[],MATCH(U$4,CPI[#Headers],0),FALSE) -> 0 | V118: =SUM(ProjectData[[#This Row],[Real 08]:[Real 15]]) -> 0.06184462483 | W118: =(ProjectData[[#This Row],[Real Sum]]-VLOOKUP(ProjectData[[#This Row],[Category]],Category_AverageStdDevLimit[],MATCH("Average",Category_AverageStdDevLimit[#Headers],0),FALSE))^2 -> 1.876868444 | X118: =VLOOKUP(ProjectData[[#This Row],[Category]],Category_AverageStdDevLimit[],MATCH("Limit",Category_AverageStdDevLimit[#Headers],0),FALSE) -> 7.704088755 | Y118: =ProjectData[[#This Row],[Real Sum]]>ProjectData[[#This Row],[Category Limit]] -> FALSE | AA118: =OR(ProjectData[[#This Row],[Significant Project? (Financial Basis)]],ProjectData[[#This Row],[Non repeatable]]) -> FALSE | AB118: =AND(ProjectData[[#This Row],[SomeExpenditure >= 2011]],ProjectData[[#This Row],[Abnormal?]]) -> FALSE
A119: CP.02327 | B119: U2000 NMS Platform Upgrade | C119: Replacement | K119: 0.0296285 | L119: =ProjectData[[#This Row],[Real Sum]]>0.00000001 -> TRUE | M119: =OR(ProjectData[[#This Row],[Real 11]]>0,ProjectData[[#This Row],[Real 12]]>0,ProjectData[[#This Row],[Real 13]]>0,ProjectData[[#This Row],[Real 14]]>0,ProjectData[[#This Row],[Real 15]]>0) -> TRUE | N119: =ProjectData[[#This Row],[Actuals 07/08]]*VLOOKUP("Mid Year Nominal - EOY Real (2015/16)",CPI[],MATCH(N$4,CPI[#Headers],0),FALSE) -> 0 | O119: =ProjectData[[#This Row],[Actuals 08/09]]*VLOOKUP("Mid Year Nominal - EOY Real (2015/16)",CPI[],MATCH(O$4,CPI[#Headers],0),FALSE) -> 0 | P119: =ProjectData[[#This Row],[Actuals 09/10]]*VLOOKUP("Mid Year Nominal - EOY Real (2015/16)",CPI[],MATCH(P$4,CPI[#Headers],0),FALSE) -> 0 | Q119: =ProjectData[[#This Row],[Actuals 10/11]]*VLOOKUP("Mid Year Nominal - EOY Real (2015/16)",CPI[],MATCH(Q$4,CPI[#Headers],0),FALSE) -> 0 | R119: =ProjectData[[#This Row],[Actuals 11/12]]*VLOOKUP("Mid Year Nominal - EOY Real (2015/16)",CPI[],MATCH(R$4,CPI[#Headers],0),FALSE) -> 0 | S119: =ProjectData[[#This Row],[Actuals 12/13]]*VLOOKUP("Mid Year Nominal - EOY Real (2015/16)",CPI[],MATCH(S$4,CPI[#Headers],0),FALSE) -> 0 | T119: =ProjectData[[#This Row],[Actuals 13/14]]*VLOOKUP("Mid Year Nominal - EOY Real (2015/16)",CPI[],MATCH(T$4,CPI[#Headers],0),FALSE) -> 0 | U119: =ProjectData[[#This Row],[Actuals 14/15]]*VLOOKUP("Mid Year Nominal - EOY Real (2015/16)",CPI[],MATCH(U$4,CPI[#Headers],0),FALSE) -> 0.03052695385 | V119: =SUM(ProjectData[[#This Row],[Real 08]:[Real 15]]) -> 0.03052695385 | W119: =(ProjectData[[#This Row],[Real Sum]]-VLOOKUP(ProjectData[[#This Row],[Category]],Category_AverageStdDevLimit[],MATCH("Average",Category_AverageStdDevLimit[#Headers],0),FALSE))^2 -> 0.4036549395 | X119: =VLOOKUP(ProjectData[[#This Row],[Category]],Category_AverageStdDevLimit[],MATCH("Limit",Category_AverageStdDevLimit[#Headers],0),FALSE) -> 2.96351611 | Y119: =ProjectData[[#This Row],[Real Sum]]>ProjectData[[#This Row],[Category Limit]] -> FALSE | AA119: =OR(ProjectData[[#This Row],[Significant Project? (Financial Basis)]],ProjectData[[#This Row],[Non repeatable]]) -> FALSE | AB119: =AND(ProjectData[[#This Row],[SomeExpenditure >= 2011]],ProjectData[[#This Row],[Abnormal?]]) -> FALSE
A120: CP.02329 | B120: MV36/38 NMS Platform Upgrade 1 | C120: Other | G120: 0.0020445 | H120: 0.0022457 | I120: 0.00287385 | J120: 0 | K120: 0.0028336 | L120: =ProjectData[[#This Row],[Real Sum]]>0.00000001 -> TRUE | M120: =OR(ProjectData[[#This Row],[Real 11]]>0,ProjectData[[#This Row],[Real 12]]>0,ProjectData[[#This Row],[Real 13]]>0,ProjectData[[#This Row],[Real 14]]>0,ProjectData[[#This Row],[Real 15]]>0) -> TRUE | N120: =ProjectData[[#This Row],[Actuals 07/08]]*VLOOKUP("Mid Year Nominal - EOY Real (2015/16)",CPI[],MATCH(N$4,CPI[#Headers],0),FALSE) -> 0 | O120: =ProjectData[[#This Row],[Actuals 08/09]]*VLOOKUP("Mid Year Nominal - EOY Real (2015/16)",CPI[],MATCH(O$4,CPI[#Headers],0),FALSE) -> 0 | P120: =ProjectData[[#This Row],[Actuals 09/10]]*VLOOKUP("Mid Year Nominal - EOY Real (2015/16)",CPI[],MATCH(P$4,CPI[#Headers],0),FALSE) -> 0 | Q120: =ProjectData[[#This Row],[Actuals 10/11]]*VLOOKUP("Mid Year Nominal - EOY Real (2015/16)",CPI[],MATCH(Q$4,CPI[#Headers],0),FALSE) -> 0.002310317239 | R120: =ProjectData[[#This Row],[Actuals 11/12]]*VLOOKUP("Mid Year Nominal - EOY Real (2015/16)",CPI[],MATCH(R$4,CPI[#Headers],0),FALSE) -> 0.002477262182 | S120: =ProjectData[[#This Row],[Actuals 12/13]]*VLOOKUP("Mid Year Nominal - EOY Real (2015/16)",CPI[],MATCH(S$4,CPI[#Headers],0),FALSE) -> 0.003106069084 | T120: =ProjectData[[#This Row],[Actuals 13/14]]*VLOOKUP("Mid Year Nominal - EOY Real (2015/16)",CPI[],MATCH(T$4,CPI[#Headers],0),FALSE) -> 0 | U120: =ProjectData[[#This Row],[Actuals 14/15]]*VLOOKUP("Mid Year Nominal - EOY Real (2015/16)",CPI[],MATCH(U$4,CPI[#Headers],0),FALSE) -> 0.002919526011 | V120: =SUM(ProjectData[[#This Row],[Real 08]:[Real 15]]) -> 0.01081317452 | W120: =(ProjectData[[#This Row],[Real Sum]]-VLOOKUP(ProjectData[[#This Row],[Category]],Category_AverageStdDevLimit[],MATCH("Average",Category_AverageStdDevLimit[#Headers],0),FALSE))^2 -> 2.019297651 | X120: =VLOOKUP(ProjectData[[#This Row],[Category]],Category_AverageStdDevLimit[],MATCH("Limit",Category_AverageStdDevLimit[#Headers],0),FALSE) -> 7.704088755 | Y120: =ProjectData[[#This Row],[Real Sum]]>ProjectData[[#This Row],[Category Limit]] -> FALSE | AA120: =OR(ProjectData[[#This Row],[Significant Project? (Financial Basis)]],ProjectData[[#This Row],[Non repeatable]]) -> FALSE | AB120: =AND(ProjectData[[#This Row],[SomeExpenditure >= 2011]],ProjectData[[#This Row],[Abnormal?]]) -> FALSE
A121: CP.02331 | B121: Castlerock NMS Platform Upgrade 1 | C121: Replacement | K121: 0.08656988 | L121: =ProjectData[[#This Row],[Real Sum]]>0.00000001 -> TRUE | M121: =OR(ProjectData[[#This Row],[Real 11]]>0,ProjectData[[#This Row],[Real 12]]>0,ProjectData[[#This Row],[Real 13]]>0,ProjectData[[#This Row],[Real 14]]>0,ProjectData[[#This Row],[Real 15]]>0) -> TRUE | N121: =ProjectData[[#This Row],[Actuals 07/08]]*VLOOKUP("Mid Year Nominal - EOY Real (2015/16)",CPI[],MATCH(N$4,CPI[#Headers],0),FALSE) -> 0 | O121: =ProjectData[[#This Row],[Actuals 08/09]]*VLOOKUP("Mid Year Nominal - EOY Real (2015/16)",CPI[],MATCH(O$4,CPI[#Headers],0),FALSE) -> 0 | P121: =ProjectData[[#This Row],[Actuals 09/10]]*VLOOKUP("Mid Year Nominal - EOY Real (2015/16)",CPI[],MATCH(P$4,CPI[#Headers],0),FALSE) -> 0 | Q121: =ProjectData[[#This Row],[Actuals 10/11]]*VLOOKUP("Mid Year Nominal - EOY Real (2015/16)",CPI[],MATCH(Q$4,CPI[#Headers],0),FALSE) -> 0 | R121: =ProjectData[[#This Row],[Actuals 11/12]]*VLOOKUP("Mid Year Nominal - EOY Real (2015/16)",CPI[],MATCH(R$4,CPI[#Headers],0),FALSE) -> 0 | S121: =ProjectData[[#This Row],[Actuals 12/13]]*VLOOKUP("Mid Year Nominal - EOY Real (2015/16)",CPI[],MATCH(S$4,CPI[#Headers],0),FALSE) -> 0 | T121: =ProjectData[[#This Row],[Actuals 13/14]]*VLOOKUP("Mid Year Nominal - EOY Real (2015/16)",CPI[],MATCH(T$4,CPI[#Headers],0),FALSE) -> 0 | U121: =ProjectData[[#This Row],[Actuals 14/15]]*VLOOKUP("Mid Year Nominal - EOY Real (2015/16)",CPI[],MATCH(U$4,CPI[#Headers],0),FALSE) -> 0.08919502275 | V121: =SUM(ProjectData[[#This Row],[Real 08]:[Real 15]]) -> 0.08919502275 | W121: =(ProjectData[[#This Row],[Real Sum]]-VLOOKUP(ProjectData[[#This Row],[Category]],Category_AverageStdDevLimit[],MATCH("Average",Category_AverageStdDevLimit[#Headers],0),FALSE))^2 -> 0.3325487225 | X121: =VLOOKUP(ProjectData[[#This Row],[Category]],Category_AverageStdDevLimit[],MATCH("Limit",Category_AverageStdDevLimit[#Headers],0),FALSE) -> 2.96351611 | Y121: =ProjectData[[#This Row],[Real Sum]]>ProjectData[[#This Row],[Category Limit]] -> FALSE | AA121: =OR(ProjectData[[#This Row],[Significant Project? (Financial Basis)]],ProjectData[[#This Row],[Non repeatable]]) -> FALSE | AB121: =AND(ProjectData[[#This Row],[SomeExpenditure >= 2011]],ProjectData[[#This Row],[Abnormal?]]) -> FALSE
A122: CP.02344 | B122: T005 Gladstone to H008 Boyne Is BS1112 T | C122: Replacement | K122: 0.3197643 | L122: =ProjectData[[#This Row],[Real Sum]]>0.00000001 -> TRUE | M122: =OR(ProjectData[[#This Row],[Real 11]]>0,ProjectData[[#This Row],[Real 12]]>0,ProjectData[[#This Row],[Real 13]]>0,ProjectData[[#This Row],[Real 14]]>0,ProjectData[[#This Row],[Real 15]]>0) -> TRUE | N122: =ProjectData[[#This Row],[Actuals 07/08]]*VLOOKUP("Mid Year Nominal - EOY Real (2015/16)",CPI[],MATCH(N$4,CPI[#Headers],0),FALSE) -> 0 | O122: =ProjectData[[#This Row],[Actuals 08/09]]*VLOOKUP("Mid Year Nominal - EOY Real (2015/16)",CPI[],MATCH(O$4,CPI[#Headers],0),FALSE) -> 0 | P122: =ProjectData[[#This Row],[Actuals 09/10]]*VLOOKUP("Mid Year Nominal - EOY Real (2015/16)",CPI[],MATCH(P$4,CPI[#Headers],0),FALSE) -> 0 | Q122: =ProjectData[[#This Row],[Actuals 10/11]]*VLOOKUP("Mid Year Nominal - EOY Real (2015/16)",CPI[],MATCH(Q$4,CPI[#Headers],0),FALSE) -> 0 | R122: =ProjectData[[#This Row],[Actuals 11/12]]*VLOOKUP("Mid Year Nominal - EOY Real (2015/16)",CPI[],MATCH(R$4,CPI[#Headers],0),FALSE) -> 0 | S122: =ProjectData[[#This Row],[Actuals 12/13]]*VLOOKUP("Mid Year Nominal - EOY Real (2015/16)",CPI[],MATCH(S$4,CPI[#Headers],0),FALSE) -> 0 | T122: =ProjectData[[#This Row],[Actuals 13/14]]*VLOOKUP("Mid Year Nominal - EOY Real (2015/16)",CPI[],MATCH(T$4,CPI[#Headers],0),FALSE) -> 0 | U122: =ProjectData[[#This Row],[Actuals 14/15]]*VLOOKUP("Mid Year Nominal - EOY Real (2015/16)",CPI[],MATCH(U$4,CPI[#Headers],0),FALSE) -> 0.3294608242 | V122: =SUM(ProjectData[[#This Row],[Real 08]:[Real 15]]) -> 0.3294608242 | W122: =(ProjectData[[#This Row],[Real Sum]]-VLOOKUP(ProjectData[[#This Row],[Category]],Category_AverageStdDevLimit[],MATCH("Average",Category_AverageStdDevLimit[#Headers],0),FALSE))^2 -> 0.1131680378 | X122: =VLOOKUP(ProjectData[[#This Row],[Category]],Category_AverageStdDevLimit[],MATCH("Limit",Category_AverageStdDevLimit[#Headers],0),FALSE) -> 2.96351611 | Y122: =ProjectData[[#This Row],[Real Sum]]>ProjectData[[#This Row],[Category Limit]] -> FALSE | AA122: =OR(ProjectData[[#This Row],[Significant Project? (Financial Basis)]],ProjectData[[#This Row],[Non repeatable]]) -> FALSE | AB122: =AND(ProjectData[[#This Row],[SomeExpenditure >= 2011]],ProjectData[[#This Row],[Abnormal?]]) -> FALSE
A123: CP.02361 | B123: NMS Backup Facility Replacement | C123: Replacement | J123: 0.1774309 | K123: 0 | L123: =ProjectData[[#This Row],[Real Sum]]>0.00000001 -> TRUE | M123: =OR(ProjectData[[#This Row],[Real 11]]>0,ProjectData[[#This Row],[Real 12]]>0,ProjectData[[#This Row],[Real 13]]>0,ProjectData[[#This Row],[Real 14]]>0,ProjectData[[#This Row],[Real 15]]>0) -> TRUE | N123: =ProjectData[[#This Row],[Actuals 07/08]]*VLOOKUP("Mid Year Nominal - EOY Real (2015/16)",CPI[],MATCH(N$4,CPI[#Headers],0),FALSE) -> 0 | O123: =ProjectData[[#This Row],[Actuals 08/09]]*VLOOKUP("Mid Year Nominal - EOY Real (2015/16)",CPI[],MATCH(O$4,CPI[#Headers],0),FALSE) -> 0 | P123: =ProjectData[[#This Row],[Actuals 09/10]]*VLOOKUP("Mid Year Nominal - EOY Real (2015/16)",CPI[],MATCH(P$4,CPI[#Headers],0),FALSE) -> 0 | Q123: =ProjectData[[#This Row],[Actuals 10/11]]*VLOOKUP("Mid Year Nominal - EOY Real (2015/16)",CPI[],MATCH(Q$4,CPI[#Headers],0),FALSE) -> 0 | R123: =ProjectData[[#This Row],[Actuals 11/12]]*VLOOKUP("Mid Year Nominal - EOY Real (2015/16)",CPI[],MATCH(R$4,CPI[#Headers],0),FALSE) -> 0 | S123: =ProjectData[[#This Row],[Actuals 12/13]]*VLOOKUP("Mid Year Nominal - EOY Real (2015/16)",CPI[],MATCH(S$4,CPI[#Headers],0),FALSE) -> 0 | T123: =ProjectData[[#This Row],[Actuals 13/14]]*VLOOKUP("Mid Year Nominal - EOY Real (2015/16)",CPI[],MATCH(T$4,CPI[#Headers],0),FALSE) -> 0.1866975886 | U123: =ProjectData[[#This Row],[Actuals 14/15]]*VLOOKUP("Mid Year Nominal - EOY Real (2015/16)",CPI[],MATCH(U$4,CPI[#Headers],0),FALSE) -> 0 | V123: =SUM(ProjectData[[#This Row],[Real 08]:[Real 15]]) -> 0.1866975886 | W123: =(ProjectData[[#This Row],[Real Sum]]-VLOOKUP(ProjectData[[#This Row],[Category]],Category_AverageStdDevLimit[],MATCH("Average",Category_AverageStdDevLimit[#Headers],0),FALSE))^2 -> 0.2296017902 | X123: =VLOOKUP(ProjectData[[#This Row],[Category]],Category_AverageStdDevLimit[],MATCH("Limit",Category_AverageStdDevLimit[#Headers],0),FALSE) -> 2.96351611 | Y123: =ProjectData[[#This Row],[Real Sum]]>ProjectData[[#This Row],[Category Limit]] -> FALSE | AA123: =OR(ProjectData[[#This Row],[Significant Project? (Financial Basis)]],ProjectData[[#This Row],[Non repeatable]]) -> FALSE | AB123: =AND(ProjectData[[#This Row],[SomeExpenditure >= 2011]],ProjectData[[#This Row],[Abnormal?]]) -> FALSE
A124: CP.02364 | B124: EMS Replacement | C124: Replacement | H124: 0.0260395 | I124: 0.03305776 | J124: 0.009852 | K124: 0 | L124: =ProjectData[[#This Row],[Real Sum]]>0.00000001 -> TRUE | M124: =OR(ProjectData[[#This Row],[Real 11]]>0,ProjectData[[#This Row],[Real 12]]>0,ProjectData[[#This Row],[Real 13]]>0,ProjectData[[#This Row],[Real 14]]>0,ProjectData[[#This Row],[Real 15]]>0) -> TRUE | N124: =ProjectData[[#This Row],[Actuals 07/08]]*VLOOKUP("Mid Year Nominal - EOY Real (2015/16)",CPI[],MATCH(N$4,CPI[#Headers],0),FALSE) -> 0 | O124: =ProjectData[[#This Row],[Actuals 08/09]]*VLOOKUP("Mid Year Nominal - EOY Real (2015/16)",CPI[],MATCH(O$4,CPI[#Headers],0),FALSE) -> 0 | P124: =ProjectData[[#This Row],[Actuals 09/10]]*VLOOKUP("Mid Year Nominal - EOY Real (2015/16)",CPI[],MATCH(P$4,CPI[#Headers],0),FALSE) -> 0 | Q124: =ProjectData[[#This Row],[Actuals 10/11]]*VLOOKUP("Mid Year Nominal - EOY Real (2015/16)",CPI[],MATCH(Q$4,CPI[#Headers],0),FALSE) -> 0 | R124: =ProjectData[[#This Row],[Actuals 11/12]]*VLOOKUP("Mid Year Nominal - EOY Real (2015/16)",CPI[],MATCH(R$4,CPI[#Headers],0),FALSE) -> 0.02872452625 | S124: =ProjectData[[#This Row],[Actuals 12/13]]*VLOOKUP("Mid Year Nominal - EOY Real (2015/16)",CPI[],MATCH(S$4,CPI[#Headers],0),FALSE) -> 0.03572896509 | T124: =ProjectData[[#This Row],[Actuals 13/14]]*VLOOKUP("Mid Year Nominal - EOY Real (2015/16)",CPI[],MATCH(T$4,CPI[#Headers],0),FALSE) -> 0.01036654068 | U124: =ProjectData[[#This Row],[Actuals 14/15]]*VLOOKUP("Mid Year Nominal - EOY Real (2015/16)",CPI[],MATCH(U$4,CPI[#Headers],0),FALSE) -> 0 | V124: =SUM(ProjectData[[#This Row],[Real 08]:[Real 15]]) -> 0.07482003202 | W124: =(ProjectData[[#This Row],[Real Sum]]-VLOOKUP(ProjectData[[#This Row],[Category]],Category_AverageStdDevLimit[],MATCH("Average",Category_AverageStdDevLimit[#Headers],0),FALSE))^2 -> 0.3493346255 | X124: =VLOOKUP(ProjectData[[#This Row],[Category]],Category_AverageStdDevLimit[],MATCH("Limit",Category_AverageStdDevLimit[#Headers],0),FALSE) -> 2.96351611 | Y124: =ProjectData[[#This Row],[Real Sum]]>ProjectData[[#This Row],[Category Limit]] -> FALSE | AA124: =OR(ProjectData[[#This Row],[Significant Project? (Financial Basis)]],ProjectData[[#This Row],[Non repeatable]]) -> FALSE | AB124: =AND(ProjectData[[#This Row],[SomeExpenditure >= 2011]],ProjectData[[#This Row],[Abnormal?]]) -> FALSE
A125: CP.02437 | B125: Integration of Phasor Meaurements into E | C125: Other | J125: 0.0528167 | K125: 0.33134721 | L125: =ProjectData[[#This Row],[Real Sum]]>0.00000001 -> TRUE | M125: =OR(ProjectData[[#This Row],[Real 11]]>0,ProjectData[[#This Row],[Real 12]]>0,ProjectData[[#This Row],[Real 13]]>0,ProjectData[[#This Row],[Real 14]]>0,ProjectData[[#This Row],[Real 15]]>0) -> TRUE | N125: =ProjectData[[#This Row],[Actuals 07/08]]*VLOOKUP("Mid Year Nominal - EOY Real (2015/16)",CPI[],MATCH(N$4,CPI[#Headers],0),FALSE) -> 0 | O125: =ProjectData[[#This Row],[Actuals 08/09]]*VLOOKUP("Mid Year Nominal - EOY Real (2015/16)",CPI[],MATCH(O$4,CPI[#Headers],0),FALSE) -> 0 | P125: =ProjectData[[#This Row],[Actuals 09/10]]*VLOOKUP("Mid Year Nominal - EOY Real (2015/16)",CPI[],MATCH(P$4,CPI[#Headers],0),FALSE) -> 0 | Q125: =ProjectData[[#This Row],[Actuals 10/11]]*VLOOKUP("Mid Year Nominal - EOY Real (2015/16)",CPI[],MATCH(Q$4,CPI[#Headers],0),FALSE) -> 0 | R125: =ProjectData[[#This Row],[Actuals 11/12]]*VLOOKUP("Mid Year Nominal - EOY Real (2015/16)",CPI[],MATCH(R$4,CPI[#Headers],0),FALSE) -> 0 | S125: =ProjectData[[#This Row],[Actuals 12/13]]*VLOOKUP("Mid Year Nominal - EOY Real (2015/16)",CPI[],MATCH(S$4,CPI[#Headers],0),FALSE) -> 0 | T125: =ProjectData[[#This Row],[Actuals 13/14]]*VLOOKUP("Mid Year Nominal - EOY Real (2015/16)",CPI[],MATCH(T$4,CPI[#Headers],0),FALSE) -> 0.05557515927 | U125: =ProjectData[[#This Row],[Actuals 14/15]]*VLOOKUP("Mid Year Nominal - EOY Real (2015/16)",CPI[],MATCH(U$4,CPI[#Headers],0),FALSE) -> 0.341394974 | V125: =SUM(ProjectData[[#This Row],[Real 08]:[Real 15]]) -> 0.3969701333 | W125: =(ProjectData[[#This Row],[Real Sum]]-VLOOKUP(ProjectData[[#This Row],[Category]],Category_AverageStdDevLimit[],MATCH("Average",Category_AverageStdDevLimit[#Headers],0),FALSE))^2 -> 1.070941376 | X125: =VLOOKUP(ProjectData[[#This Row],[Category]],Category_AverageStdDevLimit[],MATCH("Limit",Category_AverageStdDevLimit[#Headers],0),FALSE) -> 7.704088755 | Y125: =ProjectData[[#This Row],[Real Sum]]>ProjectData[[#This Row],[Category Limit]] -> FALSE | AA125: =OR(ProjectData[[#This Row],[Significant Project? (Financial Basis)]],ProjectData[[#This Row],[Non repeatable]]) -> FALSE | AB125: =AND(ProjectData[[#This Row],[SomeExpenditure >= 2011]],ProjectData[[#This Row],[Abnormal?]]) -> FALSE
A126: CP.02497 | B126: Power System Disturbance Recorders Stage | C126: Other | G126: 0.01673855 | H126: 0.09780361 | I126: 0.17142142 | J126: 0.04641591 | K126: -0.33237949 | L126: =ProjectData[[#This Row],[Real Sum]]>0.00000001 -> TRUE | M126: =OR(ProjectData[[#This Row],[Real 11]]>0,ProjectData[[#This Row],[Real 12]]>0,ProjectData[[#This Row],[Real 13]]>0,ProjectData[[#This Row],[Real 14]]>0,ProjectData[[#This Row],[Real 15]]>0) -> TRUE | N126: =ProjectData[[#This Row],[Actuals 07/08]]*VLOOKUP("Mid Year Nominal - EOY Real (2015/16)",CPI[],MATCH(N$4,CPI[#Headers],0),FALSE) -> 0 | O126: =ProjectData[[#This Row],[Actuals 08/09]]*VLOOKUP("Mid Year Nominal - EOY Real (2015/16)",CPI[],MATCH(O$4,CPI[#Headers],0),FALSE) -> 0 | P126: =ProjectData[[#This Row],[Actuals 09/10]]*VLOOKUP("Mid Year Nominal - EOY Real (2015/16)",CPI[],MATCH(P$4,CPI[#Headers],0),FALSE) -> 0 | Q126: =ProjectData[[#This Row],[Actuals 10/11]]*VLOOKUP("Mid Year Nominal - EOY Real (2015/16)",CPI[],MATCH(Q$4,CPI[#Headers],0),FALSE) -> 0.01891482544 | R126: =ProjectData[[#This Row],[Actuals 11/12]]*VLOOKUP("Mid Year Nominal - EOY Real (2015/16)",CPI[],MATCH(R$4,CPI[#Headers],0),FALSE) -> 0.1078884911 | S126: =ProjectData[[#This Row],[Actuals 12/13]]*VLOOKUP("Mid Year Nominal - EOY Real (2015/16)",CPI[],MATCH(S$4,CPI[#Headers],0),FALSE) -> 0.1852729868 | T126: =ProjectData[[#This Row],[Actuals 13/14]]*VLOOKUP("Mid Year Nominal - EOY Real (2015/16)",CPI[],MATCH(T$4,CPI[#Headers],0),FALSE) -> 0.04884007503 | U126: =ProjectData[[#This Row],[Actuals 14/15]]*VLOOKUP("Mid Year Nominal - EOY Real (2015/16)",CPI[],MATCH(U$4,CPI[#Headers],0),FALSE) -> -0.3424585568 | V126: =SUM(ProjectData[[#This Row],[Real 08]:[Real 15]]) -> 0.01845782144 | W126: =(ProjectData[[#This Row],[Real Sum]]-VLOOKUP(ProjectData[[#This Row],[Category]],Category_AverageStdDevLimit[],MATCH("Average",Category_AverageStdDevLimit[#Headers],0),FALSE))^2 -> 1.997629701 | X126: =VLOOKUP(ProjectData[[#This Row],[Category]],Category_AverageStdDevLimit[],MATCH("Limit",Category_AverageStdDevLimit[#Headers],0),FALSE) -> 7.704088755 | Y126: =ProjectData[[#This Row],[Real Sum]]>ProjectData[[#This Row],[Category Limit]] -> FALSE | AA126: =OR(ProjectData[[#This Row],[Significant Project? (Financial Basis)]],ProjectData[[#This Row],[Non repeatable]]) -> FALSE | AB126: =AND(ProjectData[[#This Row],[SomeExpenditure >= 2011]],ProjectData[[#This Row],[Abnormal?]]) -> FALSE
A127: CP.02512 | B127: SCADA & OpsWAN Rationalization Sth St 1 | C127: Replacement | I127: 0.02141145 | J127: 0.08379551 | K127: 0.0379881 | L127: =ProjectData[[#This Row],[Real Sum]]>0.00000001 -> TRUE | M127: =OR(ProjectData[[#This Row],[Real 11]]>0,ProjectData[[#This Row],[Real 12]]>0,ProjectData[[#This Row],[Real 13]]>0,ProjectData[[#This Row],[Real 14]]>0,ProjectData[[#This Row],[Real 15]]>0) -> TRUE | N127: =ProjectData[[#This Row],[Actuals 07/08]]*VLOOKUP("Mid Year Nominal - EOY Real (2015/16)",CPI[],MATCH(N$4,CPI[#Headers],0),FALSE) -> 0 | O127: =ProjectData[[#This Row],[Actuals 08/09]]*VLOOKUP("Mid Year Nominal - EOY Real (2015/16)",CPI[],MATCH(O$4,CPI[#Headers],0),FALSE) -> 0 | P127: =ProjectData[[#This Row],[Actuals 09/10]]*VLOOKUP("Mid Year Nominal - EOY Real (2015/16)",CPI[],MATCH(P$4,CPI[#Headers],0),FALSE) -> 0 | Q127: =ProjectData[[#This Row],[Actuals 10/11]]*VLOOKUP("Mid Year Nominal - EOY Real (2015/16)",CPI[],MATCH(Q$4,CPI[#Headers],0),FALSE) -> 0 | R127: =ProjectData[[#This Row],[Actuals 11/12]]*VLOOKUP("Mid Year Nominal - EOY Real (2015/16)",CPI[],MATCH(R$4,CPI[#Headers],0),FALSE) -> 0 | S127: =ProjectData[[#This Row],[Actuals 12/13]]*VLOOKUP("Mid Year Nominal - EOY Real (2015/16)",CPI[],MATCH(S$4,CPI[#Headers],0),FALSE) -> 0.02314158459 | T127: =ProjectData[[#This Row],[Actuals 13/14]]*VLOOKUP("Mid Year Nominal - EOY Real (2015/16)",CPI[],MATCH(T$4,CPI[#Headers],0),FALSE) -> 0.08817190045 | U127: =ProjectData[[#This Row],[Actuals 14/15]]*VLOOKUP("Mid Year Nominal - EOY Real (2015/16)",CPI[],MATCH(U$4,CPI[#Headers],0),FALSE) -> 0.03914005014 | V127: =SUM(ProjectData[[#This Row],[Real 08]:[Real 15]]) -> 0.1504535352 | W127: =(ProjectData[[#This Row],[Real Sum]]-VLOOKUP(ProjectData[[#This Row],[Category]],Category_AverageStdDevLimit[],MATCH("Average",Category_AverageStdDevLimit[#Headers],0),FALSE))^2 -> 0.2656493891 | X127: =VLOOKUP(ProjectData[[#This Row],[Category]],Category_AverageStdDevLimit[],MATCH("Limit",Category_AverageStdDevLimit[#Headers],0),FALSE) -> 2.96351611 | Y127: =ProjectData[[#This Row],[Real Sum]]>ProjectData[[#This Row],[Category Limit]] -> FALSE | AA127: =OR(ProjectData[[#This Row],[Significant Project? (Financial Basis)]],ProjectData[[#This Row],[Non repeatable]]) -> FALSE | AB127: =AND(ProjectData[[#This Row],[SomeExpenditure >= 2011]],ProjectData[[#This Row],[Abnormal?]]) -> FALSE
A128: CP.02513 | B128: SCADA & OpsWAN Rationalization Nth St 1 | C128: Replacement | I128: 0.01790725 | J128: 0.02477133 | K128: 0 | L128: =ProjectData[[#This Row],[Real Sum]]>0.00000001 -> TRUE | M128: =OR(ProjectData[[#This Row],[Real 11]]>0,ProjectData[[#This Row],[Real 12]]>0,ProjectData[[#This Row],[Real 13]]>0,ProjectData[[#This Row],[Real 14]]>0,ProjectData[[#This Row],[Real 15]]>0) -> TRUE | N128: =ProjectData[[#This Row],[Actuals 07/08]]*VLOOKUP("Mid Year Nominal - EOY Real (2015/16)",CPI[],MATCH(N$4,CPI[#Headers],0),FALSE) -> 0 | O128: =ProjectData[[#This Row],[Actuals 08/09]]*VLOOKUP("Mid Year Nominal - EOY Real (2015/16)",CPI[],MATCH(O$4,CPI[#Headers],0),FALSE) -> 0 | P128: =ProjectData[[#This Row],[Actuals 09/10]]*VLOOKUP("Mid Year Nominal - EOY Real (2015/16)",CPI[],MATCH(P$4,CPI[#Headers],0),FALSE) -> 0 | Q128: =ProjectData[[#This Row],[Actuals 10/11]]*VLOOKUP("Mid Year Nominal - EOY Real (2015/16)",CPI[],MATCH(Q$4,CPI[#Headers],0),FALSE) -> 0 | R128: =ProjectData[[#This Row],[Actuals 11/12]]*VLOOKUP("Mid Year Nominal - EOY Real (2015/16)",CPI[],MATCH(R$4,CPI[#Headers],0),FALSE) -> 0 | S128: =ProjectData[[#This Row],[Actuals 12/13]]*VLOOKUP("Mid Year Nominal - EOY Real (2015/16)",CPI[],MATCH(S$4,CPI[#Headers],0),FALSE) -> 0.0193542306 | T128: =ProjectData[[#This Row],[Actuals 13/14]]*VLOOKUP("Mid Year Nominal - EOY Real (2015/16)",CPI[],MATCH(T$4,CPI[#Headers],0),FALSE) -> 0.02606506295 | U128: =ProjectData[[#This Row],[Actuals 14/15]]*VLOOKUP("Mid Year Nominal - EOY Real (2015/16)",CPI[],MATCH(U$4,CPI[#Headers],0),FALSE) -> 0 | V128: =SUM(ProjectData[[#This Row],[Real 08]:[Real 15]]) -> 0.04541929354 | W128: =(ProjectData[[#This Row],[Real Sum]]-VLOOKUP(ProjectData[[#This Row],[Category]],Category_AverageStdDevLimit[],MATCH("Average",Category_AverageStdDevLimit[#Headers],0),FALSE))^2 -> 0.3849533694 | X128: =VLOOKUP(ProjectData[[#This Row],[Category]],Category_AverageStdDevLimit[],MATCH("Limit",Category_AverageStdDevLimit[#Headers],0),FALSE) -> 2.96351611 | Y128: =ProjectData[[#This Row],[Real Sum]]>ProjectData[[#This Row],[Category Limit]] -> FALSE | AA128: =OR(ProjectData[[#This Row],[Significant Project? (Financial Basis)]],ProjectData[[#This Row],[Non repeatable]]) -> FALSE | AB128: =AND(ProjectData[[#This Row],[SomeExpenditure >= 2011]],ProjectData[[#This Row],[Abnormal?]]) -> FALSE
A129: CP.02514 | B129: SCADA & OpsWAN Rationalization Cen St 1 | C129: Replacement | I129: 0.03042133 | J129: 0.09650824 | K129: 0 | L129: =ProjectData[[#This Row],[Real Sum]]>0.00000001 -> TRUE | M129: =OR(ProjectData[[#This Row],[Real 11]]>0,ProjectData[[#This Row],[Real 12]]>0,ProjectData[[#This Row],[Real 13]]>0,ProjectData[[#This Row],[Real 14]]>0,ProjectData[[#This Row],[Real 15]]>0) -> TRUE | N129: =ProjectData[[#This Row],[Actuals 07/08]]*VLOOKUP("Mid Year Nominal - EOY Real (2015/16)",CPI[],MATCH(N$4,CPI[#Headers],0),FALSE) -> 0 | O129: =ProjectData[[#This Row],[Actuals 08/09]]*VLOOKUP("Mid Year Nominal - EOY Real (2015/16)",CPI[],MATCH(O$4,CPI[#Headers],0),FALSE) -> 0 | P129: =ProjectData[[#This Row],[Actuals 09/10]]*VLOOKUP("Mid Year Nominal - EOY Real (2015/16)",CPI[],MATCH(P$4,CPI[#Headers],0),FALSE) -> 0 | Q129: =ProjectData[[#This Row],[Actuals 10/11]]*VLOOKUP("Mid Year Nominal - EOY Real (2015/16)",CPI[],MATCH(Q$4,CPI[#Headers],0),FALSE) -> 0 | R129: =ProjectData[[#This Row],[Actuals 11/12]]*VLOOKUP("Mid Year Nominal - EOY Real (2015/16)",CPI[],MATCH(R$4,CPI[#Headers],0),FALSE) -> 0 | S129: =ProjectData[[#This Row],[Actuals 12/13]]*VLOOKUP("Mid Year Nominal - EOY Real (2015/16)",CPI[],MATCH(S$4,CPI[#Headers],0),FALSE) -> 0.03287950053 | T129: =ProjectData[[#This Row],[Actuals 13/14]]*VLOOKUP("Mid Year Nominal - EOY Real (2015/16)",CPI[],MATCH(T$4,CPI[#Headers],0),FALSE) -> 0.1015485786 | U129: =ProjectData[[#This Row],[Actuals 14/15]]*VLOOKUP("Mid Year Nominal - EOY Real (2015/16)",CPI[],MATCH(U$4,CPI[#Headers],0),FALSE) -> 0 | V129: =SUM(ProjectData[[#This Row],[Real 08]:[Real 15]]) -> 0.1344280791 | W129: =(ProjectData[[#This Row],[Real Sum]]-VLOOKUP(ProjectData[[#This Row],[Category]],Category_AverageStdDevLimit[],MATCH("Average",Category_AverageStdDevLimit[#Headers],0),FALSE))^2 -> 0.2824256247 | X129: =VLOOKUP(ProjectData[[#This Row],[Category]],Category_AverageStdDevLimit[],MATCH("Limit",Category_AverageStdDevLimit[#Headers],0),FALSE) -> 2.96351611 | Y129: =ProjectData[[#This Row],[Real Sum]]>ProjectData[[#This Row],[Category Limit]] -> FALSE | AA129: =OR(ProjectData[[#This Row],[Significant Project? (Financial Basis)]],ProjectData[[#This Row],[Non repeatable]]) -> FALSE | AB129: =AND(ProjectData[[#This Row],[SomeExpenditure >= 2011]],ProjectData[[#This Row],[Abnormal?]]) -> FALSE
A130: CP.02521 | B130: Ebenezer Linesperson Training Facility E | C130: Other | H130: 0.20989789 | I130: 0.0156095 | J130: -0.22550739 | K130: 0 | L130: =ProjectData[[#This Row],[Real Sum]]>0.00000001 -> TRUE | M130: =OR(ProjectData[[#This Row],[Real 11]]>0,ProjectData[[#This Row],[Real 12]]>0,ProjectData[[#This Row],[Real 13]]>0,ProjectData[[#This Row],[Real 14]]>0,ProjectData[[#This Row],[Real 15]]>0) -> TRUE | N130: =ProjectData[[#This Row],[Actuals 07/08]]*VLOOKUP("Mid Year Nominal - EOY Real (2015/16)",CPI[],MATCH(N$4,CPI[#Headers],0),FALSE) -> 0 | O130: =ProjectData[[#This Row],[Actuals 08/09]]*VLOOKUP("Mid Year Nominal - EOY Real (2015/16)",CPI[],MATCH(O$4,CPI[#Headers],0),FALSE) -> 0 | P130: =ProjectData[[#This Row],[Actuals 09/10]]*VLOOKUP("Mid Year Nominal - EOY Real (2015/16)",CPI[],MATCH(P$4,CPI[#Headers],0),FALSE) -> 0 | Q130: =ProjectData[[#This Row],[Actuals 10/11]]*VLOOKUP("Mid Year Nominal - EOY Real (2015/16)",CPI[],MATCH(Q$4,CPI[#Headers],0),FALSE) -> 0 | R130: =ProjectData[[#This Row],[Actuals 11/12]]*VLOOKUP("Mid Year Nominal - EOY Real (2015/16)",CPI[],MATCH(R$4,CPI[#Headers],0),FALSE) -> 0.2315412144 | S130: =ProjectData[[#This Row],[Actuals 12/13]]*VLOOKUP("Mid Year Nominal - EOY Real (2015/16)",CPI[],MATCH(S$4,CPI[#Headers],0),FALSE) -> 0.0168708128 | T130: =ProjectData[[#This Row],[Actuals 13/14]]*VLOOKUP("Mid Year Nominal - EOY Real (2015/16)",CPI[],MATCH(T$4,CPI[#Headers],0),FALSE) -> -0.2372849708 | U130: =ProjectData[[#This Row],[Actuals 14/15]]*VLOOKUP("Mid Year Nominal - EOY Real (2015/16)",CPI[],MATCH(U$4,CPI[#Headers],0),FALSE) -> 0 | V130: =SUM(ProjectData[[#This Row],[Real 08]:[Real 15]]) -> 0.01112705638 | W130: =(ProjectData[[#This Row],[Real Sum]]-VLOOKUP(ProjectData[[#This Row],[Category]],Category_AverageStdDevLimit[],MATCH("Average",Category_AverageStdDevLimit[#Headers],0),FALSE))^2 -> 2.018405685 | X130: =VLOOKUP(ProjectData[[#This Row],[Category]],Category_AverageStdDevLimit[],MATCH("Limit",Category_AverageStdDevLimit[#Headers],0),FALSE) -> 7.704088755 | Y130: =ProjectData[[#This Row],[Real Sum]]>ProjectData[[#This Row],[Category Limit]] -> FALSE | AA130: =OR(ProjectData[[#This Row],[Significant Project? (Financial Basis)]],ProjectData[[#This Row],[Non repeatable]]) -> FALSE | AB130: =AND(ProjectData[[#This Row],[SomeExpenditure >= 2011]],ProjectData[[#This Row],[Abnormal?]]) -> FALSE
A131: CP.02611 | B131: Estab 2nd 132kV Fdr Ross -Townsville Sth | C131: Other | J131: 0.3627296 | K131: 0.21302177 | L131: =ProjectData[[#This Row],[Real Sum]]>0.00000001 -> TRUE | M131: =OR(ProjectData[[#This Row],[Real 11]]>0,ProjectData[[#This Row],[Real 12]]>0,ProjectData[[#This Row],[Real 13]]>0,ProjectData[[#This Row],[Real 14]]>0,ProjectData[[#This Row],[Real 15]]>0) -> TRUE | N131: =ProjectData[[#This Row],[Actuals 07/08]]*VLOOKUP("Mid Year Nominal - EOY Real (2015/16)",CPI[],MATCH(N$4,CPI[#Headers],0),FALSE) -> 0 | O131: =ProjectData[[#This Row],[Actuals 08/09]]*VLOOKUP("Mid Year Nominal - EOY Real (2015/16)",CPI[],MATCH(O$4,CPI[#Headers],0),FALSE) -> 0 | P131: =ProjectData[[#This Row],[Actuals 09/10]]*VLOOKUP("Mid Year Nominal - EOY Real (2015/16)",CPI[],MATCH(P$4,CPI[#Headers],0),FALSE) -> 0 | Q131: =ProjectData[[#This Row],[Actuals 10/11]]*VLOOKUP("Mid Year Nominal - EOY Real (2015/16)",CPI[],MATCH(Q$4,CPI[#Headers],0),FALSE) -> 0 | R131: =ProjectData[[#This Row],[Actuals 11/12]]*VLOOKUP("Mid Year Nominal - EOY Real (2015/16)",CPI[],MATCH(R$4,CPI[#Headers],0),FALSE) -> 0 | S131: =ProjectData[[#This Row],[Actuals 12/13]]*VLOOKUP("Mid Year Nominal - EOY Real (2015/16)",CPI[],MATCH(S$4,CPI[#Headers],0),FALSE) -> 0 | T131: =ProjectData[[#This Row],[Actuals 13/14]]*VLOOKUP("Mid Year Nominal - EOY Real (2015/16)",CPI[],MATCH(T$4,CPI[#Headers],0),FALSE) -> 0.381673889 | U131: =ProjectData[[#This Row],[Actuals 14/15]]*VLOOKUP("Mid Year Nominal - EOY Real (2015/16)",CPI[],MATCH(U$4,CPI[#Headers],0),FALSE) -> 0.2194814365 | V131: =SUM(ProjectData[[#This Row],[Real 08]:[Real 15]]) -> 0.6011553255 | W131: =(ProjectData[[#This Row],[Real Sum]]-VLOOKUP(ProjectData[[#This Row],[Category]],Category_AverageStdDevLimit[],MATCH("Average",Category_AverageStdDevLimit[#Headers],0),FALSE))^2 -> 0.6900255784 | X131: =VLOOKUP(ProjectData[[#This Row],[Category]],Category_AverageStdDevLimit[],MATCH("Limit",Category_AverageStdDevLimit[#Headers],0),FALSE) -> 7.704088755 | Y131: =ProjectData[[#This Row],[Real Sum]]>ProjectData[[#This Row],[Category Limit]] -> FALSE | AA131: =OR(ProjectData[[#This Row],[Significant Project? (Financial Basis)]],ProjectData[[#This Row],[Non repeatable]]) -> FALSE | AB131: =AND(ProjectData[[#This Row],[SomeExpenditure >= 2011]],ProjectData[[#This Row],[Abnormal?]]) -> FALSE
